Workbook

Sheet INDICE
F1: JAPÃO
F2: Trocas comerciais com Portugal (PT) 2019-2023 Setores agrícola e agroalimentar, do mar e das florestas
C3: Fonte
D4: Estatísticas do Comércio Internacional | F4: Japão - Síntese
D5: dados: 2022 definitivos | F5: 1. Evolução da balança comercial
F6: 2. Ranking dos parceiros comerciais de Portugal por país
C7: Data | D7: 2024-07-05T15:40:28.630 | F7: 2A Parceiros comerciais de Portugal - UE vs. Países Terceiros
F8: 3. Principais produtos transacionados (NC a 2 e 4 dígitos)
F9: 3A Principais produtos transacionados (sem mar nem florestas)
F10: 4A Evolução da balança comercial por produto
F11: 5.2. Trocas comerciais por produto (NC 2 dígitos)

Sheet Sintese
A1: Japão - Síntese (2019-2023)
A3: • As trocas comerciais de bens transacionáveis (excluindo serviços) entre Portugal e Japão representam um total de 264,8 milhões de € (M€) em exportações e 477,4 M€ em importações, na média do período 2019-2023, correspondendo a um saldo negativo da balança comercial de cerca de -212,6 M€.
A4: • No que respeita aos produtos dos setores agrícola e agroalimentar, mar e florestas, Portugal exportou para Japão 73,4 M€ em média anual, no mesmo período (este país ocupa assim a 25ª posição em relação ao total dos países), enquanto as importações totalizaram 14,8 M€ (56ª posição), com um saldo positivo de 58,5 M€. Estes setores representam perto de 27,7% do total de exportações de bens transacionáveis e 3,1% das correspondentes importações.
A5: • Se nos referirmos apenas ao setor agrícola e agroalimentar, as exportações representam, em média, 61,1 M€ (18ª posição) e as importações 11,8 milhões (48ª posição), ou seja, Portugal tem um saldo positivo de 49,2 M€. Estes valores representam, respetivamente, cerca de 83,2% das exportações do setor agroflorestal e mar e 79,6% das importações.
A6: • As principais exportações agrícolas e agroalimentares (NC 4 dígitos) neste período são Tomates preparados (66%), Vinhos de uvas frescas (12%) e Carnes de suíno (6%). As importações agrícolas e agroalimentares mais relevantes referem-se a Gorduras e óleos, animais ou vegetais, processados de outras formas (49%), Preparações para molhos e molhos preparados (27%) e Produtos de padaria, pastelaria, etc. (5%). Se considerarmos também os produtos do mar e da floresta, merecem particular destaque, em termos de exportações, Tomates preparados (55%), Vinhos de uvas frescas (10%) e Carnes de suíno (5%). Nas importações destes setores, destacam-se Gorduras e óleos, animais ou vegetais, processados de outras formas (39%), Preparações para molhos e molhos preparados (22%) e Lenha, resíduos de madeira, etc. (5%).
A9: Saldo da Balança Comercial | B9: 2019 | C9: 2020 | D9: 2021 | E9: 2022 | F9: 2023 | G9: média 2019-2023 | J9: Posição entre os parceiros comerciais de Portugal (milhares de euros)
A10: Total de Bens Transacionáveis* | B10: -247098.473 | C10: -49563.209 | D10: -304834.15 | E10: -340605.77 | F10: -120901.17 | G10: -212600.5544 | J10: AA + M + F | K10: Posição | L10: média 2019-2023 | M10: % do total | N10: TVMA* 2019-2023 | O10: TVT* 2019-2023
A11: Agrícola e Agroalimentar (AA) | B11: 35934.736 | C11: 2006-12-30T22:32:09.600 | D11: 40983.639 | E11: 57924.23 | F11: 2097-11-18T00:33:07.200 | G11: 49240.3134 | J11: Exportações | K11: 25ª | L11: 73359.52 | M11: 0.005285820675 | N11: 0.1065983454 | O11: 0.499546944
A12: Mar (M) | B12: 762.891 | C12: 3045.377 | D12: 3283.83 | E12: 5290.268 | F12: 1106.742 | G12: 2697.8216 | J12: Importações | K12: 56ª | L12: 14847.267 | M12: 0.0009182289766 | N12: -0.1468939313 | O12: -0.4703217676
A13: Florestas (F) | B13: 7401.703 | C13: 1917-06-16T13:35:02.400 | D13: 6505.124 | E13: 3419.369 | F13: 1925-02-03T19:52:19.200 | G13: 6574.118 | J13: AA
A14: AA + M + F | B14: 44099.33 | C14: 2032-10-17T21:10:04.800 | D14: 50772.593 | E14: 66633.867 | F14: 2126-01-04T14:13:55.200 | G14: 58512.253 | J14: Exportações | K14: 18ª | L14: 61056.1688 | M14: 0.007878911614 | N14: 0.1146135312 | O14: 0.5434666287
J15: Importações | K15: 48ª | L15: 11815.8554 | M15: 0.001053896662 | N15: -0.1559966013 | O15: -0.5717267221
A16: milhares de euros *exclui serviços | K16: *TVMA - Taxa de variação média anual; TVT - Taxa de variação total
A18: Evolução das trocas comerciais Portugal-Japão em milhares de euros (2019-2023)
E27: Exportações | G27: Importações | I27: Saldo
A28: Principais produtos agrícolas e agroalimentares, do mar e da floresta transacionados (NC 4 dígitos)
A47: Principais produtos agrícolas e agroalimentares transacionados (NC 4 dígitos)
A81: Fonte: GPP a partir de dados INE/Comércio Internacional (2022 definitivos) | N81: 2024-07-05T15:40:28.630

Sheet 1
A1: Evolução da balança comercial Portugal-Japão 2019-2023 em milhões de euros
A3: Total de Bens Transacionáveis (BT)(1) | B3: 2019 | C3: 2020 | D3: 2021 | E3: 2022 | F3: 2023 | G3: média quinquénio | H3: var. 19/20 | I3: var. 20/21 | J3: var. 21/22 | K3: var. 22/23 | L3: TVMA* 2019-2023 | M3: TVT* 2019-2023
A4: Exportações | B4: 151.246836 | C4: 242.837484 | D4: 297.266069 | E4: 248.924659 | F4: 383.556738 | G4: 264.7663572 | H4: 0.6055706712 | I4: 0.2241358463 | J4: -0.1626200063 | K4: 0.5408547291 | L4: 0.2619316404 | M4: 1.535965367
A5: Importações | B5: 398.345309 | C5: 292.400693 | D5: 602.100219 | E5: 589.530429 | F5: 504.457908 | G5: 477.3669116 | H5: -0.2659617513 | I5: 1.059161395 | J5: -0.02087657437 | K5: -0.1443055639 | L5: 0.06081904199 | M5: 0.2663834533
A6: Saldo (exp-imp) | B6: -247.098473 | C6: -49.563209 | D6: -304.83415 | E6: -340.60577 | F6: -120.90117 | G6: -212.6005544
A7: Cobertura (exp/imp) | B7: 0.3796877548 | C7: 0.830495583 | D7: 0.4937152647 | E7: 0.4222422572 | F7: 0.7603344737 | G7: 0.5546391062
A8: Exp BT Japão / Exp BT Mundo | B8: 0.002524870472 | C8: 0.004517285389 | D8: 0.00467263376 | E8: 0.003177566425 | F8: 0.004947251389 | G8: 0.003973727014 | L8: Exportações
A9: Imp BT Japão / Imp BT Mundo | B9: 0.004980740335 | C9: 0.004290824799 | D9: 0.007241506317 | E9: 0.005384537732 | F9: 0.004807795762 | G9: 0.005355499113 | L9: Importações
A10: Exp BT Japão / Exp TE Mundo | B10: 0.001621584558 | C10: 0.003268963723 | D10: 0.003323275047 | E10: 0.002070945744 | F10: 0.003043111359 | G10: 0.002630585605
A11: Imp BT Japão / Imp TE Mundo | B11: 0.004315684401 | C11: 0.003720831426 | D11: 0.006301561047 | E11: 0.004677617537 | F11: 0.004076460645 | G11: 0.004623717106
A12: (1) Todos os produtos transacionados entre PT e Japão (exclui serviços) | D12: TE - Total da Economia (bens e serviços) Fonte: INE/Contas Nacionais | H12: *TVMA - Taxa de variação média anual; TVT - Taxa de variação total
A24: Agro(1) + Mar + Florestas (AMF) | B24: 2019 | C24: 2020 | D24: 2021 | E24: 2022 | F24: 2023 | G24: média quinquénio | H24: var. 19/20 | I24: var. 20/21 | J24: var. 21/22 | K24: var. 22/23 | L24: TVMA* 2019-2023 | M24: TVT* 2019-2023
A25: Exportações | B25: 61.031083 | C25: 61.95402 | D25: 67.850806 | E25: 84.442717 | F25: 91.518974 | G25: 73.35952 | H25: 0.01512240902 | I25: 0.09518003836 | J25: 0.2445352086 | K25: 0.08379949451 | L25: 0.1065983454 | M25: 0.499546944
A26: Importações | B26: 16.931753 | C26: 13.449138 | D26: 17.078213 | E26: 17.80885 | F26: 8.968381 | G26: 14.847267 | H26: -0.2056854361 | I26: 0.2698369962 | J26: 0.04278181798 | K26: -0.4964087518 | L26: -0.1468939313 | M26: -0.4703217676
A27: Saldo (exp-imp) | B27: 44.09933 | C27: 48.504882 | D27: 50.772593 | E27: 66.633867 | F27: 82.550593 | G27: 58.512253
A28: Cobertura (exp/imp) | B28: 3.604534215 | C28: 4.60654207 | D28: 3.972945296 | E28: 4.741615377 | F28: 10.20462601 | G28: 4.94094435
A29: Exp AMF / Exp BT | B29: 0.4035197338 | C29: 0.2551254402 | D29: 0.2282494138 | E29: 0.3392300198 | F29: 0.2386060912 | G29: 0.2770726643 | L29: Exportações
A30: Imp AMF / Imp BT | B30: 0.04250521499 | C30: 0.04599557498 | D30: 0.02836440257 | E30: 0.03020853399 | F30: 0.01777825436 | G30: 0.03110242172 | L30: Importações
A31: Exp AMF Japão / Exp AMF Mundo | B31: 0.005159958061 | C31: 0.005370755265 | D31: 0.005064789589 | E31: 0.005152601721 | F31: 0.005633828106 | G31: 0.005285820675
A32: Imp AMF Japão / Imp AMF Mundo | B32: 0.001223979294 | C32: 0.001030949649 | D32: 0.001142767308 | E32: 0.0009221015433 | F32: 0.0004550027433 | G32: 0.0009182289766
A33: (1) Produtos agrícolas e agroalimentares | B33: BT - Total de Bens Transacionáveis (exclui serviços) | H33: *TVMA - Taxa de variação média anual; TVT - Taxa de variação total
A45: Agroalimentar (AA)(1) | B45: 2019 | C45: 2020 | D45: 2021 | E45: 2022 | F45: 2023 | G45: média quinquénio | H45: var. 19/20 | I45: var. 20/21 | J45: var. 21/22 | K45: var. 22/23 | L45: TVMA* 2019-2023 | M45: TVT* 2019-2023
A46: Exportações | B46: 51.011007 | C46: 50.835247 | D46: 56.030745 | E46: 68.670058 | F46: 78.733787 | G46: 61.0561688 | H46: -0.003445530883 | I46: 0.1022026705 | J46: 0.2255781714 | K46: 0.1465519222 | L46: 0.1146135312 | M46: 0.5434666287
A47: Importações | B47: 15.076271 | C47: 11.753308 | D47: 15.047106 | E47: 10.745828 | F47: 6.456764 | G47: 11.8158554 | H47: -0.2204101399 | I47: 0.2802443363 | J47: -0.2858541702 | K47: -0.3991376002 | L47: -0.191034046 | M47: -0.5717267221
A48: Saldo (exp-imp) | B48: 35.934736 | C48: 39.081939 | D48: 40.983639 | E48: 57.92423 | F48: 72.277023 | G48: 49.2403134
A49: Cobertura (exp/imp) | B49: 3.383529455 | C49: 4.325186322 | D49: 3.723689127 | E49: 6.390392439 | F49: 12.19400105 | G49: 5.167308395
A50: Exp AA / Exp AMF | B50: 0.8358201181 | C50: 0.8205318557 | D50: 0.825793359 | E50: 0.8132146909 | F50: 0.8603001493 | G50: 0.8322869179 | L50: Exportações
A51: Imp AA / Imp AMF | B51: 0.890414064 | C51: 0.873907904 | D51: 0.8810702853 | E51: 0.6033981981 | F51: 0.719947558 | G51: 0.7958269626 | L51: Importações
A52: Exp AA / Exp BT | B52: 0.3372699116 | C52: 0.2093385509 | D52: 0.1884868501 | E52: 0.2758668357 | F52: 0.2052728559 | G52: 0.2306039538
A53: Imp AA / Imp BT | B53: 0.03784724122 | C53: 0.04019589653 | D53: 0.02499103227 | E53: 0.01822777497 | F53: 0.01279941081 | G53: 0.02475214581
A54: Exp AA Japão / Exp AA Mundo | B54: 0.00810771904 | C54: 0.00768242706 | D54: 0.007519085845 | E54: 0.007735383143 | F54: 0.008280240022 | G54: 0.007878911614
A55: Imp AA Japão / Imp AA Mundo | B55: 0.001618133803 | C55: 0.001293782945 | D55: 0.001465031183 | E55: 0.0008117900558 | F55: 0.0004563609013 | G55: 0.001053896662
A56: (1) Produtos agrícolas e agroalimentares | B56: AMF - Agroalimentar, Mar e Florestas; BT - Total de Bens Transacionáveis (exclui serviços) | H56: *TVMA - Taxa de variação média anual; TVT - Taxa de variação total
A67: Mar (M) | B67: 2019 | C67: 2020 | D67: 2021 | E67: 2022 | F67: 2023 | G67: média quinquénio | H67: var. 19/20 | I67: var. 20/21 | J67: var. 21/22 | K67: var. 22/23 | L67: TVMA* 2019-2023 | M67: TVT* 2019-2023
A68: Exportações | B68: 1.025326 | C68: 3.069242 | D68: 3.297368 | E68: 5.779924 | F68: 2.116607 | G68: 3.0576934 | H68: 1.993430382 | I68: 0.07432649495 | J68: 0.7528901839 | K68: -0.6338002022 | L68: 0.1986560023 | M68: 1.064325883
A69: Importações | B69: 0.262435 | C69: 0.023865 | D69: 0.013538 | E69: 0.489656 | F69: 1.009865 | G69: 0.3598718 | H69: -0.9090631966 | I69: -0.432725749 | J69: 35.16900576 | K69: 1.062396866 | L69: 0.400587969
A70: Saldo (exp-imp) | B70: 0.762891 | C70: 3.045377 | D70: 3.28383 | E70: 5.290268 | F70: 1.106742 | G70: 2.6978216
A71: Cobertura (exp/imp) | B71: 3.90697125 | C71: 128.6085062 | D71: 243.5638942 | E71: 11.80405019 | F71: 2.095930644 | G71: 8.496618518
A72: Exp M / Exp AMF | B72: 0.01680006236 | C72: 0.04954064321 | D72: 0.04859732985 | E72: 0.06844786863 | F72: 0.02312752108 | G72: 0.04168093521 | L72: Exportações
A73: Imp M / Imp AMF | B73: 0.01549957645 | C73: 0.001774463166 | D73: 0.0007927058879 | E73: 0.02749509373 | F73: 0.112602821 | G73: 0.02423825206 | L73: Importações
A74: Exp M / Exp BT | B74: 0.006779156689 | C74: 0.01263907841 | D74: 0.01109231205 | E74: 0.02321957183 | F74: 0.005518367403 | G74: 0.01154864777
A75: Imp M / Imp BT | B75: 0.0006588128291 | C75: 8.161745362e-05 | D75: 2.248462893e-05 | E75: 0.0008305864734 | F75: 0.002001881592 | G75: 0.0007538683374
A76: Exp M Japão / Exp M Mundo | B76: 0.0009596953739 | C76: 0.003411520951 | D76: 0.003010123731 | E76: 0.004518666083 | F76: 0.001586534911 | G76: 0.0026931909
A77: Imp M Japão / Imp M Mundo | B77: 0.0001204193609 | C77: 1.239825982e-05 | D77: 6.471150434e-06 | E77: 0.0001882979364 | F77: 0.0003985633794 | G77: 0.0001588072541
A78: AMF - Agroalimentar, Mar e Florestas; BT - Total de Bens Transacionáveis (exclui serviços) | H78: *TVMA - Taxa de variação média anual; TVT - Taxa de variação total
A90: Florestas (F) | B90: 2019 | C90: 2020 | D90: 2021 | E90: 2022 | F90: 2023 | G90: média quinquénio | H90: var. 19/20 | I90: var. 20/21 | J90: var. 21/22 | K90: var. 22/23 | L90: TVMA* 2019-2023 | M90: TVT* 2019-2023
A91: Exportações | B91: 8.99475 | C91: 8.049531 | D91: 8.522693 | E91: 9.992735 | F91: 10.66858 | G91: 9.2456578 | H91: -0.1050856333 | I91: 0.05878131285 | J91: 0.1724856216 | K91: 0.06763363584 | L91: 0.04358872974 | M91: 0.1860896634
A92: Importações | B92: 1.593047 | C92: 1.671965 | D92: 2.017569 | E92: 6.573366 | F92: 1.501752 | G92: 2.6715398 | H92: 0.04953902804 | I92: 0.2067052839 | J92: 2.25806255 | K92: -0.7715398777 | L92: -0.01464571967 | M92: -0.05730841588
A93: Saldo (exp-imp) | B93: 7.401703 | C93: 6.377566 | D93: 6.505124 | E93: 3.419369 | F93: 9.166828 | G93: 6.574118
A94: Cobertura (exp/imp) | B94: 5.646255258 | C94: 4.814413579 | D94: 4.224238675 | E94: 1.520185397 | F94: 7.104089091 | G94: 3.460797327
A95: Exp F / Exp AMF | B95: 0.1473798196 | C95: 0.1299275011 | D95: 0.1256093111 | E95: 0.1183374405 | F95: 0.1165723296 | G95: 0.1260321469 | L95: Exportações
A96: Imp F / Imp AMF | B96: 0.09408635952 | C96: 0.1243176328 | D96: 0.1181370088 | E96: 0.3691067082 | F96: 0.1674496211 | G96: 0.1799347853 | L96: Importações
A97: Exp F / Exp BT | B97: 0.05947066555 | C97: 0.0331478109 | D97: 0.02867025163 | E97: 0.04014361229 | F97: 0.0278148679 | G97: 0.03492006272
A98: Imp F / Imp BT | B98: 0.003999160939 | C98: 0.005718061003 | D98: 0.003350885677 | E98: 0.01115017254 | F98: 0.002976961955 | G98: 0.005596407575
A99: Exp F Japão / Exp F Mundo | B99: 0.00201324863 | C99: 0.002003024758 | D99: 0.001757495206 | E99: 0.00160349484 | F99: 0.001975003773 | G99: 0.001851393439
A100: Imp F Japão / Imp F Mundo | B100: 0.0006816777792 | C100: 0.0008211727585 | D100: 0.0007814846165 | E100: 0.001891237571 | F100: 0.0004958775354 | G100: 0.0009924805899
A101: AMF - Agroalimentar, Mar e Florestas; BT - Total de Bens Transacionáveis (exclui serviços) | H101: *TVMA - Taxa de variação média anual; TVT - Taxa de variação total
A111: Fonte: GPP a partir de dados INE/Comércio Internacional (2022 definitivos) | H111: 2024-07-05T15:40:28.630

Sheet 2
A1: Ranking dos parceiros comerciais de Portugal por país (média 2019-2023 em milhares de euros) produtos agrícolas e agroalimentares, do mar e da floresta
A2: Exportações | F2: Importações | K2: Trocas comerciais (total e saldo)
A3: P | B3: País | C3: média quinquénio | D3: % do Total | F3: P | G3: País | H3: média quinquénio | I3: % do Total | K3: P | L3: País | M3: Total (exp+imp) | N3: % do Total | O3: Saldo (exp-imp)
A4: 1 | B4: Espanha | C4: 4593112.103 | D4: 0.3309504603 | F4: 1 | G4: Espanha | H4: 7533806.993 | I4: 0.4659281661 | K4: 1 | L4: Espanha | M4: 12126919.1 | N4: 0.4035847787 | O4: -2940694.891
A5: 2 | B5: França | C5: 1475585.43 | D5: 0.106321306 | F5: 2 | G5: França | H5: 1064727.851 | I5: 0.06584807596 | K5: 2 | L5: França | M5: 2540313.281 | N5: 0.08454181685 | O5: 410857.5784
A6: 3 | B6: Itália | C6: 914508.2784 | D6: 0.06589365314 | F6: 3 | G6: Países Baixos | H6: 945771.6 | I6: 0.05849122861 | K6: 3 | L6: Países Baixos | M6: 1579163.121 | N6: 0.05255466731 | O6: -312380.0792
A7: 4 | B7: Alemanha | C7: 650647.8008 | D7: 0.04688154445 | F7: 4 | G7: Alemanha | H7: 908159.0842 | I7: 0.05616508321 | K7: 4 | L7: Alemanha | M7: 1558806.885 | N7: 0.05187721026 | O7: -257511.2834
A8: 5 | B8: Países Baixos | C8: 633391.5208 | D8: 0.04563816661 | F8: 5 | G8: Brasil | H8: 813481.1398 | I8: 0.05030972734 | K8: 5 | L8: Itália | M8: 1407796.955 | N8: 0.04685158845 | O8: 421219.6016
A9: 6 | B9: Estados Unidos | C9: 565282.6436 | D9: 0.04073067387 | F9: 6 | G9: Itália | H9: 493288.6768 | I9: 0.03050742988 | K9: 6 | L9: Brasil | M9: 1307207.747 | N9: 0.04350397204 | O9: -319754.5326 | P9: Nota: Nesta listagem, o Reino Unido passa a ser constituído por três componentes: Reino Unido [até 2020] ; Reino Unido (sem Irlanda do Norte) pós-2020 e Reino Unido (Irlanda do Norte) pós-2020. Estas componentes são calculadas igualmente como média do quinquénio, embora a primeira corresponda apenas a 2019-2020 e as duas últimas a 2021-2023.
A10: 7 | B10: Brasil | C10: 493726.6072 | D10: 0.03557480076 | F10: 7 | G10: Suécia | H10: 339005.3954 | I10: 0.02096578295 | K10: 7 | L10: Estados Unidos | M10: 831258.0686 | N10: 0.02766433098 | O10: 299307.2186
A11: 8 | B11: Reino Unido (sem Irlanda do Norte) pós 2020 | C11: 454907.9418 | D11: 0.0327777745 | F11: 8 | G11: Bélgica | H11: 312235.7102 | I11: 0.01931021222 | K11: 8 | L11: Bélgica | M11: 566869.0996 | N11: 0.01886544623 | O11: -57602.3208
A12: 9 | B12: Angola | C12: 292707.0878 | D12: 0.02109061205 | F12: 9 | G12: Estados Unidos | H12: 265975.425 | I12: 0.01644924566 | K12: 9 | L12: Reino Unido (sem Irlanda do Norte) pós 2020 | M12: 544526.1836 | N12: 0.0181218723 | O12: 365289.7
A13: 10 | B13: Reino Unido | C13: 261878.4294 | D13: 0.0188692949 | F13: 10 | G13: Polónia | H13: 241338.734 | I13: 0.01492558992 | K13: 10 | L13: Polónia | M13: 500775.9404 | N13: 0.01666586092 | O13: 18098.4724
A14: 11 | B14: Polónia | C14: 259437.2064 | D14: 0.01869339589 | F14: 11 | G14: Ucrânia | H14: 222824.0602 | I14: 0.01378055024 | K14: 11 | L14: Suécia | M14: 438295.9144 | N14: 0.01458652096 | O14: -239714.8764
A15: 12 | B15: Bélgica | C15: 254633.3894 | D15: 0.01834726337 | F15: 12 | G15: China, República Popular da | H15: 185793.117 | I15: 0.01149037218 | K15: 12 | L15: China, República Popular da | M15: 398803.9546 | N15: 0.01327222557 | O15: 27217.7206
A16: 13 | B16: Israel | C16: 229312.128 | D16: 0.01652277424 | F16: 13 | G16: Dinamarca | H16: 157388.8544 | I16: 0.009733711039 | K16: 13 | L16: Reino Unido | M16: 360801.6302 | N16: 0.01200750536 | O16: 162955.2286
A17: 14 | B17: China, República Popular da | C17: 213010.8376 | D17: 0.01534820688 | F17: 14 | G17: África do Sul | H17: 152632.7646 | I17: 0.009439570746 | K17: 14 | L17: Angola | M17: 311605.5448 | N17: 0.01037025594 | O17: 273808.6308
A18: 15 | B18: Turquia | C18: 183340.2302 | D18: 0.01321033152 | F18: 15 | G18: Roménia | H18: 151274.4294 | I18: 0.009355564529 | K18: 15 | L18: Turquia | M18: 242682.4712 | N18: 0.008076490876 | O18: 123997.9892
A19: 16 | B19: Suíça | C19: 154487.3398 | D19: 0.01113137565 | F19: 16 | G19: Irlanda | H19: 122155.5706 | I19: 0.007554709198 | K19: 16 | L19: Dinamarca | M19: 241866.6906 | N19: 0.008049341636 | O19: -72911.0182
A20: 17 | B20: Marrocos | C20: 118641.6206 | D20: 0.008548560992 | F20: 17 | G20: Canadá | H20: 119672.9708 | I20: 0.007401172856 | K20: 17 | L20: Ucrânia | M20: 239492.5 | N20: 0.007970328395 | O20: -206155.6204
A21: 18 | B21: Cabo Verde | C21: 109793.973 | D21: 0.007911055749 | F21: 18 | G21: Argentina | H21: 105868.1334 | I21: 0.00654741292 | K21: 18 | L21: Israel | M21: 237364.4856 | N21: 0.007899507915 | O21: 221259.7704
A22: 19 | B22: Suécia | C22: 99290.519 | D22: 0.007154243623 | F22: 19 | G22: Uruguai | H22: 104314.013 | I22: 0.00645129837 | K22: 19 | L22: Canadá | M22: 218508.6438 | N22: 0.007271984084 | O22: -20837.2978
A23: 20 | B23: Canadá | C23: 98835.673 | D23: 0.007121470312 | F23: 20 | G23: Rússia, Federação da | H23: 103735.9496 | I23: 0.006415548049 | K23: 20 | L23: Irlanda | M23: 195458.6172 | N23: 0.006504877466 | O23: -48852.524
A24: 21 | B24: Argélia | C24: 96652.6324 | D24: 0.006964174283 | F24: 21 | G24: Reino Unido | H24: 98923.2008 | I24: 0.006117903681 | K24: 21 | L24: África do Sul | M24: 189444.1922 | N24: 0.006304716951 | O24: -115821.337
A25: 22 | B25: Dinamarca | C25: 84477.8362 | D25: 0.006086935863 | F25: 22 | G25: Reino Unido (sem Irlanda do Norte) pós 2020 | H25: 89618.2418 | I25: 0.005542438649 | K25: 22 | L25: Roménia | M25: 177358.7408 | N25: 0.00590251222 | O25: -125190.118
A26: 23 | B26: Egito | C26: 82715.0134 | D26: 0.005959918058 | F26: 23 | G26: Finlândia | H26: 81448.7386 | I26: 0.005037195862 | K26: 23 | L26: Rússia, Federação da | M26: 176432.6266 | N26: 0.00587169107 | O26: -31039.2726
A27: 24 | B27: México | C27: 78972.8492 | D27: 0.005690281494 | F27: 24 | G27: Índia | H27: 79609.9066 | I27: 0.004923473328 | K27: 24 | L27: Marrocos | M27: 161461.9424 | N27: 0.005373465575 | O27: 75821.2988
A28: 25 | B28: Japão | C28: 73359.52 | D28: 0.005285980057 | F28: 25 | G28: Costa Rica | H28: 70759.3454 | I28: 0.00437611052 | K28: 25 | L28: Suíça | M28: 158551.543 | N28: 0.005276607264 | O28: 150423.1366
A29: 26 | B29: Irlanda | C29: 73303.0466 | D29: 0.005281751561 | F29: 26 | G29: Áustria | H29: 70715.1344 | I29: 0.004373376291 | K29: 26 | L29: Argentina | M29: 121955.0376 | N29: 0.004058672815 | O29: -89781.2292
A30: 27 | B30: Rússia, Federação da | C30: 72696.677 | D30: 0.005238060422 | F30: 27 | G30: Vietname | H30: 69724.8096 | I30: 0.004312129671 | K30: 27 | L30: Grécia | M30: 120764.9056 | N30: 0.004019065132 | O30: -5978.9236
A31: 28 | B31: Luxemburgo | C31: 58600.804 | D31: 0.004222401419 | F31: 28 | G31: Grécia | H31: 63371.9146 | I31: 0.003919234987 | K31: 28 | L31: Áustria | M31: 112876.9108 | N31: 0.003756552073 | O31: -28553.358
A32: 29 | B32: Grécia | C32: 57392.991 | D32: 0.004135374092 | F32: 29 | G32: Turquia | H32: 59342.241 | I32: 0.003670019891 | K32: 29 | L32: Finlândia | M32: 112241.3968 | N32: 0.003735402119 | O32: -50656.0804
A33: 30 | B33: Áustria | C33: 42161.7764 | D33: 0.003037909591 | F33: 30 | G33: Equador | H33: 58414.7256 | I33: 0.003612657717 | K33: 30 | L33: Índia | M33: 110946.8562 | N33: 0.00369231971 | O33: -48272.957
A34: 31 | B34: Moçambique | C34: 41355.922 | D34: 0.002979844845 | F34: 31 | G34: Chile | H34: 53583.805 | I34: 0.003313889514 | K34: 31 | L34: Cabo Verde | M34: 110212.875 | N34: 0.003667892761 | O34: 109375.071
A35: 32 | B35: África do Sul | C35: 36811.4276 | D35: 0.002652397468 | F35: 32 | G35: Bulgária | H35: 44062.536 | I35: 0.002725046794 | K35: 32 | L35: Uruguai | M35: 107585.2684 | N35: 0.003580445816 | O35: -101042.7576
A36: 33 | B36: Arábia Saudita | C36: 35880.8896 | D36: 0.002585348815 | F36: 33 | G36: Marrocos | H36: 42820.3218 | I36: 0.002648222078 | K36: 33 | L36: Argélia | M36: 103327.6826 | N36: 0.003438753041 | O36: 89977.5822
A37: 34 | B37: Austrália | C37: 35113.0132 | D37: 0.002530020523 | F37: 34 | G37: Checa, República | H37: 40061.6156 | I37: 0.002477609939 | K37: 34 | L37: Egito | M37: 96954.5744 | N37: 0.003226655521 | O37: 68475.4524
A38: 35 | B38: Guiné-Bissau | C38: 34934.7098 | D38: 0.002517173113 | F38: 35 | G38: Moçambique | H38: 38763.0688 | I38: 0.002397301335 | K38: 35 | L38: México | M38: 96736.9562 | N38: 0.003219413171 | O38: 61208.7422
A39: 36 | B39: Índia | C39: 31336.9496 | D39: 0.002257941383 | F39: 36 | G39: Cuba | H39: 37252.762 | I39: 0.002303896436 | K39: 36 | L39: Japão | M39: 88206.787 | N39: 0.002935602114 | O39: 58514.465
A40: 37 | B40: Emirados Árabes Unidos | C40: 31193.752 | D40: 0.002247623475 | F40: 37 | G40: Colômbia | H40: 31648.7828 | I40: 0.001957318437 | K40: 37 | L40: Chile | M40: 83999.5456 | N40: 0.002795511189 | O40: -23168.0644
A41: 38 | B41: Finlândia | C41: 30792.6582 | D41: 0.002218723205 | F41: 38 | G41: Guiana | H41: 31014.2578 | I41: 0.001918076249 | K41: 38 | L41: Moçambique | M41: 80118.9908 | N41: 0.002666366034 | O41: 2592.8532
A42: 39 | B42: Checa, República | C42: 30742.8852 | D42: 0.002215136879 | F42: 39 | G42: Indonésia | H42: 29000.573 | I42: 0.001793539947 | K42: 39 | L42: Vietname | M42: 76018.5502 | N42: 0.002529903062 | O42: -63431.069
A43: 40 | B43: Chile | C43: 30415.7406 | D43: 0.002191564919 | F43: 40 | G43: Hungria | H43: 27599.632 | I43: 0.001706898774 | K43: 40 | L43: Costa Rica | M43: 75105.2118 | N43: 0.002499507092 | O43: -66413.479
A44: 41 | B44: Jordânia | C44: 29568.7308 | D44: 0.002130534777 | F44: 41 | G44: Costa do Marfim | H44: 23657.68 | I44: 0.00146310882 | K44: 41 | L44: Checa, República | M44: 70804.5008 | N44: 0.002356379107 | O44: -9318.7304
A45: 42 | B45: São Tomé e Príncipe | C45: 26635.9748 | D45: 0.001919219023 | F45: 42 | G45: Uganda | H45: 22974.374 | I45: 0.001420849772 | K45: 42 | L45: Luxemburgo | M45: 67465.9948 | N45: 0.002245273376 | O45: 49735.6132
A46: 43 | B46: Roménia | C46: 26084.3114 | D46: 0.001879469665 | F46: 43 | G46: Namíbia | H46: 22899.6914 | I46: 0.001416231027 | K46: 43 | L46: Equador | M46: 61226.8336 | N46: 0.002037633623 | O46: -55602.6176
A47: 44 | B47: Tunísia | C47: 25934.5578 | D47: 0.001868679373 | F47: 44 | G47: Peru | H47: 21918.8742 | I47: 0.001355572404 | K47: 44 | L47: Bulgária | M47: 58340.3954 | N47: 0.001941572742 | O47: -29784.6766
A48: 45 | B48: Noruega | C48: 23600.8168 | D48: 0.001700524831 | F48: 45 | G48: Letónia | H48: 19655.4446 | I48: 0.001215590639 | K48: 45 | L48: Austrália | M48: 52768.539 | N48: 0.001756140943 | O48: 17457.4874
A49: 46 | B49: Coreia, República da | C49: 22131.0668 | D49: 0.001594623989 | F49: 46 | G49: Lituânia | H49: 19336.7592 | I49: 0.001195881546 | K49: 46 | L49: Hungria | M49: 47356.8316 | N49: 0.001576038914 | O49: -7842.4324
A50: 47 | B50: Hungria | C50: 19757.1996 | D50: 0.001423578209 | F50: 47 | G50: Angola | H50: 18898.457 | I50: 0.001168774754 | K50: 47 | L50: Cuba | M50: 44341.484 | N50: 0.001475687919 | O50: -30164.04
A51: 48 | B51: Nigéria | C51: 18837.3684 | D51: 0.00135730102 | F51: 48 | G51: Suazilândia | H51: 17908.5294 | I51: 0.001107552698 | K51: 48 | L51: Colômbia | M51: 40554.3906 | N51: 0.001349653166 | O51: -22743.175
A52: 49 | B52: Ucrânia | C52: 16668.4398 | D52: 0.001201021813 | F52: 49 | G52: México | H52: 17764.107 | I52: 0.001098620897 | K52: 49 | L52: Noruega | M52: 38853.5164 | N52: 0.001293047945 | O52: 8348.1172
A53: 50 | B53: Argentina | C53: 16086.9042 | D53: 0.001159120054 | F53: 50 | G53: Austrália | H53: 17655.5258 | I53: 0.001091905695 | K53: 50 | L53: Tunísia | M53: 37484.3298 | N53: 0.001247481312 | O53: 14384.7858
A54: 51 | B54: Lituânia | C54: 15776.044 | D54: 0.001136721444 | F54: 51 | G54: Senegal | H54: 16694.6988 | I54: 0.001032483365 | K54: 51 | L54: Arábia Saudita | M54: 35932.1724 | N54: 0.001195825397 | O54: 35829.6068
A55: 52 | B55: Macau | C55: 14584.6512 | D55: 0.001050877253 | F55: 52 | G55: Nova Zelânda | H55: 16509.396 | I55: 0.001021023316 | K55: 52 | L55: Costa do Marfim | M55: 35761.2586 | N55: 0.001190137373 | O55: -11554.1014
A56: 53 | B56: Bulgária | C56: 14277.8594 | D56: 0.001028771786 | F56: 53 | G56: Estónia | H56: 16249.3098 | I56: 0.00100493829 | K56: 53 | L56: Guiné-Bissau | M56: 35226.5092 | N56: 0.001172340873 | O56: 34642.9104
A57: 54 | B57: Líbia, Jamahira Árabe da | C57: 13798.5402 | D57: 0.0009942350914 | F57: 54 | G57: Eslovénia | H57: 16020.6952 | I57: 0.0009907996238 | K57: 54 | L57: Lituânia | M57: 35112.8032 | N57: 0.001168556729 | O57: -3560.7152
A58: 55 | B58: Iraque | C58: 13659.5246 | D58: 0.0009842185109 | F58: 55 | G58: Noruega | H58: 15252.6996 | I58: 0.0009433029489 | K58: 55 | L58: Coreia, República da | M58: 35092.7906 | N58: 0.001167890708 | O58: 9169.343
A59: 56 | B59: Senegal | C59: 13224.0438 | D59: 0.0009528405328 | F59: 56 | G59: Japão | H59: 14847.267 | I59: 0.0009182289766 | K59: 56 | L59: Indonésia | M59: 33328.2666 | N59: 0.001109167217 | O59: -24672.8794
A60: 57 | B60: Letónia | C60: 13141.4868 | D60: 0.0009468920002 | F60: 57 | G60: Egito | H60: 14239.561 | I60: 0.0008806454093 | K60: 57 | L60: Letónia | M60: 32796.9314 | N60: 0.001091484341 | O60: -6513.9578
A61: 58 | B61: Eslováquia | C61: 12789.7874 | D61: 0.0009215507771 | F61: 58 | G61: Mauritânia | H61: 13443.2356 | I61: 0.0008313966784 | K61: 58 | L61: Emirados Árabes Unidos | M61: 31952.3308 | N61: 0.00106337597 | O61: 30435.1732
A62: 59 | B62: Croácia | C62: 12333.1012 | D62: 0.0008886448726 | F62: 59 | G62: Tanzânia, República Unida da | H62: 13079.5878 | I62: 0.0008089068863 | K62: 59 | L62: Guiana | M62: 31130.901 | N62: 0.001036038724 | O62: -30897.6146
A63: 60 | B63: Costa do Marfim | C63: 12103.5786 | D63: 0.0008721069331 | F63: 60 | G63: Camarões | H63: 13022.8276 | I63: 0.0008053965527 | K63: 60 | L63: Senegal | M63: 29918.7426 | N63: 0.0009956980017 | O63: -3470.655
A64: 61 | B64: Síria, República Árabe da | C64: 11995.3212 | D64: 0.0008643065931 | F64: 61 | G64: Coreia, República da | H64: 12961.7238 | I64: 0.0008016175893 | K64: 61 | L64: Jordânia | M64: 29716.5252 | N64: 0.0009889681914 | O64: 29420.9364
A65: 62 | B65: Dominicana, República | C65: 11848.0206 | D65: 0.0008536930482 | F65: 62 | G65: Paquistão | H65: 12615.7756 | I65: 0.0007802224287 | K65: 62 | L65: São Tomé e Príncipe | M65: 27725.0646 | N65: 0.000922692233 | O65: 25546.885
A66: 63 | B66: Território Palestiniano Ocupado | C66: 11806.0928 | D66: 0.0008506719975 | F66: 63 | G66: Tailândia | H66: 12316.114 | I66: 0.0007616898621 | K66: 63 | L66: Peru | M66: 27430.0544 | N66: 0.0009128742714 | O66: -16407.694
A67: 64 | B67: HongKong | C67: 11528.0934 | D67: 0.0008306411279 | F67: 64 | G67: Moldava, República de | H67: 12178.8658 | I67: 0.0007532017495 | K67: 64 | L67: Nigéria | M67: 25016.4128 | N67: 0.0008325480976 | O67: 12658.324
A68: 65 | B68: Kuwait | C68: 10775.802 | D68: 0.0007764357918 | F68: 65 | G68: Sérvia | H68: 11730.1152 | I68: 0.0007254487762 | K68: 65 | L68: Estónia | M68: 24688.9592 | N68: 0.0008216504172 | O68: -7809.6604
A69: 66 | B69: Chipre | C69: 10743.4206 | D69: 0.000774102594 | F69: 66 | G69: Tunísia | H69: 11549.772 | I69: 0.0007142954541 | K69: 66 | L69: Uganda | M69: 24133.8048 | N69: 0.0008031748371 | O69: -21814.9432
A70: 67 | B70: Malta | C70: 10376.2344 | D70: 0.0007476454906 | F70: 67 | G70: Belize | H70: 10934.5394 | I70: 0.0006762464043 | K70: 67 | L70: Eslovénia | M70: 23940.0562 | N70: 0.0007967268691 | O70: -8101.3342
A71: 68 | B71: Tailândia | C71: 9256.6804 | D71: 0.0006669775462 | F71: 68 | G71: Paraguai | H71: 10263.5706 | I71: 0.0006347503502 | K71: 68 | L71: Namíbia | M71: 23765.809 | N71: 0.0007909279092 | O71: -22033.5738
A72: 69 | B72: Colômbia | C72: 8905.6078 | D72: 0.0006416814863 | F72: 69 | G72: Maurícias | H72: 9873.1322 | I72: 0.000610603694 | K72: 69 | L72: Camarões | M72: 21652.1438 | N72: 0.0007205849725 | O72: -4393.5114
A73: 70 | B73: Geórgia | C73: 8776.724 | D73: 0.000632394939 | F73: 70 | G73: Reino Unido (Irlanda do Norte) pós-2020 | H73: 9115.962 | I73: 0.0005637765158 | K73: 70 | L73: Tailândia | M73: 21572.7944 | N73: 0.0007179442185 | O73: -3059.4336
A74: 71 | B74: Líbano | C74: 8677.7716 | D74: 0.0006252650581 | F74: 71 | G74: Islândia | H74: 9112.164 | I74: 0.0005635416285 | K74: 71 | L74: Nova Zelânda | M74: 20810.7044 | N74: 0.0006925818061 | O74: -12208.0876
A75: 72 | B75: Camarões | C75: 8629.3162 | D75: 0.00062177367 | F75: 72 | G75: Luxemburgo | H75: 8865.1908 | I75: 0.0005482675751 | K75: 72 | L75: Croácia | M75: 20464.7652 | N75: 0.0006810689235 | O75: 4201.4372
A76: 73 | B76: Estónia | C76: 8439.6494 | D76: 0.0006081074861 | F76: 73 | G76: Croácia | H76: 8131.664 | I76: 0.0005029026226 | K76: 73 | L76: Eslováquia | M76: 20081.0336 | N76: 0.000668298307 | O76: 5498.5412
A77: 74 | B77: Gana | C77: 8178.0838 | D77: 0.0005892607317 | F77: 74 | G77: Israel | H77: 8052.3576 | I77: 0.0004979979196 | K77: 74 | L77: Suazilândia | M77: 19975.6478 | N77: 0.0006647910597 | O77: -15841.411
A78: 75 | B78: Eslovénia | C78: 7919.361 | D78: 0.0005706188114 | F78: 75 | G78: Bangladesh | H78: 7823.177 | I78: 0.0004838242493 | K78: 75 | L78: Sérvia | M78: 19112.5644 | N78: 0.0006360675793 | O78: -4347.666
A79: 76 | B79: Belarus | C79: 7872.655 | D79: 0.0005672534739 | F79: 76 | G79: Malásia | H79: 7805.5168 | I79: 0.0004827320545 | K79: 76 | L79: Paquistão | M79: 17209.3366 | N79: 0.0005727280151 | O79: -8022.2146
A80: 77 | B80: Sérvia | C80: 7382.4492 | D80: 0.0005319323601 | F80: 77 | G80: Quénia | H80: 7356.7132 | I80: 0.0004549758035 | K80: 77 | L80: Mauritânia | M80: 16816.7526 | N80: 0.0005596627901 | O80: -10069.7186
A81: 78 | B81: Gibraltar | C81: 7309.7404 | D81: 0.0005266934262 | F81: 78 | G81: Filipinas | H81: 7323.2812 | I81: 0.000452908202 | K81: 78 | L81: Maurícias | M81: 16663.174 | N81: 0.0005545516827 | O81: -3083.0904
A82: 79 | B82: Cuba | C82: 7088.722 | D82: 0.0005107682453 | F82: 79 | G82: Eslováquia | H82: 7291.2462 | I82: 0.000450926998 | K82: 79 | L82: Moldava, República de | M82: 15413.0416 | N82: 0.0005129471825 | O82: -8944.69
A83: 80 | B83: Maurícias | C83: 6790.0418 | D83: 0.0004892472487 | F83: 80 | G83: Gana | H83: 6780.4694 | I83: 0.0004193380154 | K83: 80 | L83: Chipre | M83: 14982.0224 | N83: 0.0004986028312 | O83: 6504.8188
A84: 81 | B84: Taiwan | C84: 6498.8018 | D84: 0.0004682623457 | F84: 81 | G84: Argélia | H84: 6675.0502 | I84: 0.0004128183668 | K84: 81 | L84: Gana | M84: 14958.5532 | N84: 0.0004978217744 | O84: 1397.6144
A85: 82 | B85: Vietname | C85: 6293.7406 | D85: 0.0004534869392 | F85: 82 | G85: Nigéria | H85: 6179.0444 | I85: 0.0003821428964 | K85: 82 | L85: Macau | M85: 14605.4142 | N85: 0.000486069282 | O85: 14563.8882
A86: 83 | B86: Andorra | C86: 6022.5714 | D86: 0.0004339482104 | F86: 83 | G86: Panamá | H86: 5638.1522 | I86: 0.0003486914275 | K86: 83 | L86: HongKong | M86: 14502.5018 | N86: 0.0004826443496 | O86: 8553.685
A87: 84 | B87: Guatemala | C87: 5731.0826 | D87: 0.0004129453804 | F87: 84 | G87: Congo | H87: 5587.8752 | I87: 0.0003455820473 | K87: 84 | L87: Dominicana, República | M87: 14480.0812 | N87: 0.0004818981903 | O87: 9215.96
A88: 85 | B88: Peru | C88: 5511.1802 | D88: 0.0003971006114 | F88: 85 | G88: Honduras | H88: 5352.3066 | I88: 0.0003310133112 | K88: 85 | L88: Líbia, Jamahira Árabe da | M88: 13839.6806 | N88: 0.0004605856102 | O88: 13757.3998
A89: 86 | B89: Singapura | C89: 5118.6402 | D89: 0.0003688166743 | F89: 86 | G89: Camboja | H89: 5251.3418 | I89: 0.0003247691448 | K89: 86 | L89: Iraque | M89: 13672.6982 | N89: 0.0004550284234 | O89: 13646.351
A90: 87 | B90: Omã | C90: 4766.6966 | D90: 0.0003434578558 | F90: 87 | G90: Zimbabwe | H90: 5173.412 | I90: 0.0003199495777 | K90: 87 | L90: Tanzânia, República Unida da | M90: 13489.132 | N90: 0.0004489193265 | O90: -12670.0436
A91: 88 | B91: Panamá | C91: 4742.5904 | D91: 0.0003417209162 | F91: 88 | G91: Etiópia | H91: 4865.2444 | I91: 0.0003008909577 | K91: 88 | L91: Malta | M91: 12866.7846 | N91: 0.0004282075582 | O91: 7885.6842
A92: 89 | B92: Paquistão | C92: 4593.561 | D92: 0.000330982805 | F92: 89 | G92: Sri Lanca | H92: 4526.3514 | I92: 0.0002799321258 | K92: 89 | L92: Reino Unido (Irlanda do Norte) pós-2020 | M92: 12713.2454 | N92: 0.0004230977621 | O92: -5518.6786
A93: 90 | B93: Mali | C93: 4507.5844 | D93: 0.0003247878778 | F93: 90 | G93: Suriname | H93: 4461.0484 | I93: 0.0002758934629 | K93: 90 | L93: Kuwait | M93: 12319.6144 | N93: 0.0004099976929 | O93: 9231.9896
A94: 91 | B94: Costa Rica | C94: 4345.8664 | D94: 0.0003131355067 | F94: 91 | G94: Macedónia, Antiga República jugoslava da | H94: 4419.1744 | I94: 0.000273303766 | K94: 91 | L94: Síria, República Árabe da | M94: 12141.732 | N94: 0.0004040777532 | O94: 11848.9104
A95: 92 | B95: Indonésia | C95: 4327.6936 | D95: 0.0003118260903 | F95: 92 | G95: Myanmar | H95: 4417.7084 | I95: 0.0002732131013 | K95: 92 | L95: Território Palestiniano Ocupado | M95: 11817.7626 | N95: 0.0003932960273 | O95: 11794.423
A96: 93 | B96: Nova Zelânda | C96: 4301.3084 | D96: 0.0003099249405 | F96: 93 | G96: Papuásia-Nova Guiné | H96: 4268.11 | I96: 0.0002639611908 | K96: 93 | L96: Paraguai | M96: 11233.3798 | N96: 0.0003738477238 | O96: -9293.7614
A97: 94 | B97: Burquina Faso | C97: 4086.0794 | D97: 0.0002944169069 | F97: 94 | G97: Chipre | H97: 4238.6018 | I97: 0.0002621362567 | K97: 94 | L97: Islândia | M97: 10997.3204 | N97: 0.0003659916492 | O97: -7227.0076
A98: 95 | B98: Venezuela | C98: 3914.122 | D98: 0.0002820267498 | F98: 95 | G98: Suíça | H98: 4064.2032 | I98: 0.0002513505782 | K98: 95 | L98: Belize | M98: 10954.0486 | N98: 0.0003645515605 | O98: -10915.0302
A99: 96 | B99: Reino Unido (Irlanda do Norte) pós-2020 | C99: 3597.2834 | D99: 0.0002591973744 | F99: 96 | G99: Guatemala | H99: 3891.5604 | I99: 0.0002406734871 | K99: 96 | L99: Filipinas | M99: 10864.8014 | N99: 0.0003615814069 | O99: -3781.761
A100: 97 | B100: Filipinas | C100: 3541.5202 | D100: 0.0002551794327 | F100: 97 | G100: Malavi | H100: 3761.9744 | I100: 0.0002326592432 | K100: 97 | L100: Malásia | M100: 10802.9 | N100: 0.0003595213237 | O100: -4808.1336
A101: 98 | B101: Catar | C101: 3509.4766 | D101: 0.0002528705745 | F101: 98 | G101: Congo, República Democrática do | H101: 3658.6746 | I101: 0.0002262706688 | K101: 98 | L101: Panamá | M101: 10380.7426 | N101: 0.0003454718937 | O101: -895.5618
A102: 99 | B102: Mauritânia | C102: 3373.517 | D102: 0.00024307419 | F102: 99 | G102: Madagáscar | H102: 3530.0814 | I102: 0.0002183178245 | K102: 99 | L102: Bangladesh | M102: 9992.5026 | N102: 0.0003325512373 | O102: -5653.8514
A103: 100 | B103: Uruguai | C103: 3271.2554 | D103: 0.0002357058692 | F103: 100 | G103: Taiwan | H103: 3371.8952 | I103: 0.0002085348016 | K103: 100 | L103: Taiwan | M103: 9870.697 | N103: 0.0003284975378 | O103: 3126.9066
A104: 101 | B104: Moldava, República de | C104: 3234.1758 | D104: 0.0002330341489 | F104: 101 | G104: Nicarágua | H104: 3348.1498 | I104: 0.0002070662678 | K104: 101 | L104: Geórgia | M104: 9763.0358 | N104: 0.000324914565 | O104: 7790.4122
A105: 102 | B105: Guiné | C105: 3199.9078 | D105: 0.0002305650147 | F105: 102 | G105: Gâmbia | H105: 3121.0524 | I105: 0.0001930214329 | K105: 102 | L105: Quénia | M105: 9728.6568 | N105: 0.0003237704293 | O105: -4984.7696
A106: 103 | B106: Malásia | C106: 2997.3832 | D106: 0.0002159723794 | F106: 103 | G106: HongKong | H106: 2974.4084 | I106: 0.0001839522372 | K106: 103 | L106: Guatemala | M106: 9622.643 | N106: 0.000320242282 | O106: 1839.5222
A107: 104 | B107: Gabão | C107: 2969.7446 | D107: 0.0002139809176 | F107: 104 | G107: Gabão | H107: 2833.2392 | I107: 0.0001752216304 | K107: 104 | L107: Líbano | M107: 9030.5168 | N107: 0.0003005362776 | O107: 8325.0264
A108: 105 | B108: Equador | C108: 2812.108 | D108: 0.0002026226263 | F108: 105 | G108: Dominicana, República | H108: 2632.0606 | I108: 0.0001627797433 | K108: 105 | L108: Belarus | M108: 8568.8254 | N108: 0.0002851711531 | O108: 7176.4846
A109: 106 | B109: Arménia | C109: 2727.7232 | D109: 0.000196542394 | F109: 106 | G109: Malta | H109: 2490.5502 | I109: 0.000154028035 | K109: 106 | L109: Congo | M109: 8278.2768 | N109: 0.0002755016739 | O109: -2897.4736
A110: 107 | B110: Guiné Equatorial | C110: 2712.0278 | D110: 0.0001954114833 | F110: 107 | G110: Mali | H110: 2475.2544 | I110: 0.0001530820665 | K110: 107 | L110: Gibraltar | M110: 7352.4128 | N110: 0.0002446888504 | O110: 7267.068
A111: 108 | B111: Congo | C111: 2690.4016 | D111: 0.0001938532368 | F111: 108 | G111: Centro-Africana, República | H111: 2466.2132 | I111: 0.0001525229137 | K111: 108 | L111: Mali | M111: 6982.8388 | N111: 0.0002323893999 | O111: 2032.33
A112: 109 | B112: Timor-Leste | C112: 2668.7438 | D112: 0.0001922927134 | F112: 109 | G112: Benim | H112: 1927.4492 | I112: 0.0001192030632 | K112: 109 | L112: Singapura | M112: 6659.3268 | N112: 0.0002216228963 | O112: 3577.9536
A113: 110 | B113: Benim | C113: 2476.0626 | D113: 0.000178409331 | F113: 110 | G113: Serra Leoa | H113: 1903.7664 | I113: 0.0001177384008 | K113: 110 | L113: Honduras | M113: 6528.2066 | N113: 0.0002172592062 | O113: -4176.4066
A114: 111 | B114: Quénia | C114: 2371.9436 | D114: 0.0001709071777 | F114: 111 | G114: Laos, República Democrática Popular do | H114: 1764.877 | I114: 0.0001091487882 | K114: 111 | L114: Etiópia | M114: 6273.7972 | N114: 0.0002087924422 | O114: -3456.6916
A115: 112 | B115: Seychelles | C115: 2348.937 | D115: 0.0001692494683 | F115: 112 | G115: Burquina Faso | H115: 1596.8146 | I115: 9.875497194e-05 | K115: 112 | L115: Camboja | M115: 6129.6458 | N115: 0.0002039950728 | O115: -4373.0378
A116: 113 | B116: Congo, República Democrática do | C116: 2232.4506 | D116: 0.0001608561989 | F116: 113 | G116: Kuwait | H116: 1543.8124 | I116: 9.547705178e-05 | K116: 113 | L116: Andorra | M116: 6085.3588 | N116: 0.0002025211981 | O116: 5959.784
A117: 114 | B117: Bangladesh | C117: 2169.3256 | D117: 0.0001563078126 | F117: 114 | G117: Singapura | H117: 1540.6866 | I117: 9.528373673e-05 | K117: 114 | L117: Sri Lanca | M117: 6081.5442 | N117: 0.0002023942479 | O117: -2971.1586
A118: 115 | B118: Suazilândia | C118: 2067.1184 | D118: 0.0001489434115 | F118: 115 | G118: Seychelles | H118: 1430.66 | I118: 8.847914351e-05 | K118: 115 | L118: Congo, República Democrática do | M118: 5891.1252 | N118: 0.0001960570893 | O118: -1426.224
A119: 116 | B119: Irão, República Islâmica do | C119: 2015.5486 | D119: 0.0001452276195 | F119: 116 | G119: Bolívia | H119: 1415.5294 | I119: 8.754339181e-05 | K119: 116 | L119: Gabão | M119: 5802.9838 | N119: 0.0001931237369 | O119: 136.5054
A120: 117 | B120: Islândia | C120: 1885.1564 | D120: 0.0001358323865 | F120: 117 | G120: São Tomé e Príncipe | H120: 1089.0898 | I120: 6.735474027e-05 | K120: 117 | L120: Burquina Faso | M120: 5682.894 | N120: 0.0001891271393 | O120: 2489.2648
A121: 118 | B121: Togo | C121: 1879.1826 | D121: 0.0001354019524 | F121: 118 | G121: Venezuela | H121: 1080.4086 | I121: 6.68178516e-05 | K121: 118 | L121: Omã | M121: 5590.2944 | N121: 0.0001860454177 | O121: 3943.0988
A122: 119 | B122: Sudão | C122: 1868.0632 | D122: 0.0001346007592 | F122: 119 | G122: Bósnia-Herzegovina | H122: 1034.9794 | I122: 6.400828349e-05 | K122: 119 | L122: Macedónia, Antiga República jugoslava da | M122: 5497.1524 | N122: 0.0001829456449 | O122: -3341.1964
A123: 120 | B123: Nicarágua | C123: 1709.2518 | D123: 0.0001231578192 | F123: 120 | G123: Geórgia | H123: 986.3118 | I123: 6.099843659e-05 | K123: 120 | L123: Zimbabwe | M123: 5240.2714 | N123: 0.0001743966259 | O123: -5106.5526
A124: 121 | B124: Jamaica | C124: 1645.8018 | D124: 0.0001185860156 | F124: 121 | G124: Cazaquistão | H124: 977.1902 | I124: 6.04343114e-05 | K124: 121 | L124: Suriname | M124: 5124.6412 | N124: 0.0001705484442 | O124: -3797.4556
A125: 122 | B125: El Salvador | C125: 1616.0178 | D125: 0.0001164399699 | F125: 122 | G125: El Salvador | H125: 921.9616 | I125: 5.701869956e-05 | K125: 122 | L125: Nicarágua | M125: 5057.4016 | N125: 0.0001683107052 | O125: -1638.898
A126: 123 | B126: Cazaquistão | C126: 1586.0954 | D126: 0.0001142839519 | F126: 123 | G126: Omã | H126: 823.5978 | I126: 5.093539202e-05 | K126: 123 | L126: Venezuela | M126: 4994.5306 | N126: 0.0001662183536 | O126: 2833.7134
A127: 124 | B127: Sri Lanca | C127: 1555.1928 | D127: 0.000112057307 | F127: 124 | G127: Timor-Leste | H127: 773.0574 | I127: 4.780972183e-05 | K127: 124 | L127: Myanmar | M127: 4788.3204 | N127: 0.0001593556627 | O127: -4047.0964
A128: 125 | B128: Ruanda | C128: 1542.3664 | D128: 0.0001111331182 | F128: 125 | G128: Emirados Árabes Unidos | H128: 758.5788 | I128: 4.691429306e-05 | K128: 125 | L128: Benim | M128: 4403.5118 | N128: 0.0001465492036 | O128: 548.6134
A129: 126 | B129: Azerbaijão | C129: 1447.7444 | D129: 0.0001043152584 | F129: 126 | G129: Belarus | H129: 696.1704 | I129: 4.305464662e-05 | K129: 126 | L129: Papuásia-Nova Guiné | M129: 4270.9956 | N129: 0.0001421390545 | O129: -4265.2244
A130: 127 | B130: Etiópia | C130: 1408.5528 | D130: 0.0001014913608 | F130: 127 | G130: Turquemenistão | H130: 693.7048 | I130: 4.290216163e-05 | K130: 127 | L130: Madagáscar | M130: 3916.3472 | N130: 0.0001303363291 | O130: -3143.8156
A131: 128 | B131: Albânia | C131: 1395.6804 | D131: 0.0001005638575 | F131: 128 | G131: Iémen | H131: 684.2014 | I131: 4.231442401e-05 | K131: 128 | L131: Seychelles | M131: 3779.597 | N131: 0.0001257852721 | O131: 918.277
A132: 129 | B132: Bolívia | C132: 1235.6182 | D132: 8.903079284e-05 | F132: 129 | G132: Gronelândia | H132: 628.3832 | I132: 3.886234838e-05 | K132: 129 | L132: Malavi | M132: 3770.4898 | N132: 0.0001254821838 | O132: -3753.459
A133: 130 | B133: Montenegro | C133: 1193.9358 | D133: 8.602742406e-05 | F133: 130 | G133: Faroé, Ilhas | H133: 595.1746 | I133: 3.680856307e-05 | K133: 130 | L133: Gâmbia | M133: 3599.2092 | N133: 0.0001197819526 | O133: -2642.8956
A134: 131 | B134: São Bartolomeu | C134: 1183.3114 | D134: 8.526189734e-05 | F134: 131 | G134: Cabo Verde | H134: 418.902 | I134: 2.590698711e-05 | K134: 131 | L134: Catar | M134: 3530.8284 | N134: 0.0001175062344 | O134: 3488.1248
A135: 132 | B135: Honduras | C135: 1175.9 | D135: 8.472787896e-05 | F135: 132 | G135: Usbequistão | H135: 380.4082 | I135: 2.35263387e-05 | K135: 132 | L135: Guiné | M135: 3486.7122 | N135: 0.000116038044 | O135: 2913.1034
A136: 133 | B136: Uganda | C136: 1159.4308 | D136: 8.354121311e-05 | F136: 133 | G136: Líbano | H136: 352.7452 | I136: 2.181552093e-05 | K136: 133 | L136: Timor-Leste | M136: 3441.8012 | N136: 0.0001145434025 | O136: 1895.6864
A137: 134 | B137: Macedónia, Antiga República jugoslava da | C137: 1077.978 | D137: 7.767224212e-05 | F137: 134 | G137: Chade | H137: 303.1764 | I137: 1.874993933e-05 | K137: 134 | L137: Arménia | M137: 2777.2048 | N137: 9.242558441e-05 | O137: 2678.2416
A138: 135 | B138: Paraguai | C138: 969.8092 | D138: 6.987828601e-05 | F138: 135 | G138: Guiné-Bissau | H138: 291.7994 | I138: 1.804632896e-05 | K138: 135 | L138: Guiné Equatorial | M138: 2721.8116 | N138: 9.058209455e-05 | O138: 2702.244
A139: 136 | B139: Bermudas | C139: 957.27 | D139: 6.897479097e-05 | F139: 136 | G139: Guiné | H139: 286.8044 | I139: 1.773741327e-05 | K139: 136 | L139: Bolívia | M139: 2651.1476 | N139: 8.823039132e-05 | O139: -179.9112
A140: 137 | B140: Aruba | C140: 940.2512 | D140: 6.774852442e-05 | F140: 137 | G140: Togo | H140: 238.6312 | I140: 1.475814253e-05 | K140: 137 | L140: Centro-Africana, República | M140: 2569.5112 | N140: 8.55135258e-05 | O140: -2362.9152
A141: 138 | B141: Barbados | C141: 924.8742 | D141: 6.664055555e-05 | F141: 138 | G141: Irão, República Islâmica do | H141: 211.8398 | I141: 1.310122885e-05 | K141: 138 | L141: Cazaquistão | M141: 2563.2856 | N141: 8.530633736e-05 | O141: 608.9052
A142: 139 | B142: Camboja | C142: 878.304 | D142: 6.328500298e-05 | F142: 139 | G142: Zâmbia | H142: 183.9494 | I142: 1.137634753e-05 | K142: 139 | L142: El Salvador | M142: 2537.9794 | N142: 8.446414513e-05 | O142: 694.0562
A143: 140 | B143: Trindade e Tobago | C143: 878.2468 | D143: 6.328088151e-05 | F143: 140 | G143: Jordânia | H143: 147.7944 | I143: 9.140342169e-06 | K143: 140 | L143: Serra Leoa | M143: 2340.2336 | N143: 7.788315004e-05 | O143: -1467.2992
A144: 141 | B144: Kosovo | C144: 870.5922 | D144: 6.27293397e-05 | F144: 141 | G144: Síria, República Árabe da | H144: 146.4108 | I144: 9.054773451e-06 | K144: 141 | L144: Irão, República Islâmica do | M144: 2227.3884 | N144: 7.412765331e-05 | O144: 1803.7088
A145: 142 | B145: Namíbia | C145: 866.1176 | D145: 6.240692846e-05 | F145: 142 | G145: Maldivas | H145: 127.2588 | I145: 7.870318334e-06 | K145: 142 | L145: Togo | M145: 2117.8138 | N145: 7.048100239e-05 | O145: 1640.5514
A146: 143 | B146: Turquemenistão | C146: 749.1004 | D146: 5.39754129e-05 | F146: 143 | G146: Albânia | H146: 125.4572 | I146: 7.758898413e-06 | K146: 143 | L146: Laos, República Democrática Popular do | M146: 1935.8146 | N146: 6.442405534e-05 | O146: -1593.9394
A147: 144 | B147: Barém | C147: 728.9324 | D147: 5.252223502e-05 | F147: 144 | G147: Azerbaijão | H147: 124.9342 | I147: 7.726553487e-06 | K147: 144 | L147: Sudão | M147: 1883.1514 | N147: 6.267142008e-05 | O147: 1852.975
A148: 145 | B148: Iémen | C148: 704.0114 | D148: 5.072658618e-05 | F148: 145 | G148: Kosovo | H148: 80.0466 | I148: 4.950480624e-06 | K148: 145 | L148: Jamaica | M148: 1660.4886 | N148: 5.526118537e-05 | O148: 1631.115
A149: 146 | B149: Suriname | C149: 663.5928 | D149: 4.78142788e-05 | F149: 146 | G149: Tajiquistão | H149: 74.7168 | I149: 4.620859233e-06 | K149: 146 | L149: Azerbaijão | M149: 1572.6786 | N149: 5.233886197e-05 | O149: 1322.8102
A150: 147 | B150: Niger | C150: 619.0434 | D150: 4.460433223e-05 | F150: 147 | G150: Andorra | H150: 62.7874 | I150: 3.883085691e-06 | K150: 147 | L150: Bósnia-Herzegovina | M150: 1571.857 | N150: 5.231151906e-05 | O150: -498.1018
A151: 148 | B151: São Martinho (parte holandesa) | C151: 606.1984 | D151: 4.367880318e-05 | F151: 148 | G151: Libéria | H151: 54.4472 | I151: 3.367286163e-06 | K151: 148 | L151: Ruanda | M151: 1569.669 | N151: 5.223870226e-05 | O151: 1515.0638
A152: 149 | B152: Bósnia-Herzegovina | C152: 536.8776 | D152: 3.8683987e-05 | F152: 149 | G152: Arábia Saudita | H152: 51.2828 | I152: 3.171583899e-06 | K152: 149 | L152: Albânia | M152: 1521.1376 | N152: 5.062357362e-05 | O152: 1270.2232
A153: 150 | B153: Curaçau | C153: 534.0534 | D153: 3.84804931e-05 | F153: 150 | G153: Fiji, Ilhas | H153: 50.1218 | I153: 3.099781874e-06 | K153: 150 | L153: Turquemenistão | M153: 1442.8052 | N153: 4.801666546e-05 | O153: 55.3956
A154: 151 | B154: Burundi | C154: 485.0592 | D154: 3.49502825e-05 | F154: 151 | G154: Arménia | H154: 49.4816 | I154: 3.060188715e-06 | K154: 151 | L154: Iémen | M154: 1388.2128 | N154: 4.619982629e-05 | O154: 19.81
A155: 152 | B155: Gâmbia | C155: 478.1568 | D155: 3.445293943e-05 | F155: 152 | G155: Falkland Ilhas (Malvinas) | H155: 46.09 | I155: 2.850435271e-06 | K155: 152 | L155: Montenegro | M155: 1194.2042 | N155: 3.97432055e-05 | O155: 1193.6674
A156: 153 | B156: Antígua e Barbuda | C156: 468.1724 | D156: 3.373352704e-05 | F156: 153 | G156: Aruba | H156: 45.6344 | I156: 2.822258696e-06 | K156: 153 | L156: São Bartolomeu | M156: 1185.2626 | N156: 3.944562838e-05 | O156: 1181.3602
A157: 154 | B157: Serra Leoa | C157: 436.4672 | D157: 3.144905187e-05 | F157: 154 | G157: Gibraltar | H157: 42.6724 | I157: 2.639073856e-06 | K157: 154 | L157: Aruba | M157: 985.8856 | N157: 3.281034684e-05 | O157: 894.6168
A158: 155 | B158: Tanzânia, República Unida da | C158: 409.5442 | D158: 2.950915164e-05 | F158: 155 | G158: Líbia, Jamahira Árabe da | H158: 41.1404 | I158: 2.544327342e-06 | K158: 155 | L158: Bermudas | M158: 958.1048 | N158: 3.188579973e-05 | O158: 956.4352
A159: 156 | B159: Nova Caledónia | C159: 388.6078 | D159: 2.800060774e-05 | F159: 156 | G159: Curaçau | H159: 39.2148 | I159: 2.425238643e-06 | K159: 156 | L159: Kosovo | M159: 950.6388 | N159: 3.163733069e-05 | O159: 790.5456
A160: 157 | B160: Madagáscar | C160: 386.2658 | D160: 2.783185811e-05 | F160: 157 | G160: Botswana | H160: 30.037 | I160: 1.857637757e-06 | K160: 157 | L160: Barbados | M160: 935.22 | N160: 3.112419187e-05 | O160: 914.5284
A161: 158 | B161: Myanmar | C161: 370.612 | D161: 2.670394479e-05 | F161: 158 | G161: São Pedro e Miquelon | H161: 28.9156 | I161: 1.788284793e-06 | K161: 158 | L161: Trindade e Tobago | M161: 878.6292 | N161: 2.924084579e-05 | O161: 877.8644
A162: 159 | B162: Comores | C162: 333.8038 | D162: 2.405177988e-05 | F162: 159 | G162: Ruanda | H162: 27.3026 | I162: 1.688528835e-06 | K162: 159 | L162: Barém | M162: 733.5568 | N162: 2.441282542e-05 | O162: 724.308
A163: 160 | B163: Haiti | C163: 328.0528 | D163: 2.363739938e-05 | F163: 160 | G163: São Marino | H163: 25.3104 | I163: 1.56532126e-06 | K163: 160 | L163: Usbequistão | M163: 665.2294 | N163: 2.213888441e-05 | O163: -95.587
A164: 161 | B164: Polinésia Francesa | C164: 317.6242 | D164: 2.288598076e-05 | F164: 161 | G164: Catar | H164: 21.3518 | I164: 1.32050171e-06 | K164: 161 | L164: Gronelândia | M164: 629.1046 | N164: 2.093664836e-05 | O164: -627.6618
A165: 162 | B165: Bahamas | C165: 305.389 | D165: 2.200439002e-05 | F165: 162 | G165: Macau | H165: 20.763 | I165: 1.284087384e-06 | K165: 162 | L165: Niger | M165: 622.3102 | N165: 2.071053021e-05 | O165: 615.7766
A166: 163 | B166: Libéria | C166: 303.6128 | D166: 2.187640834e-05 | F166: 163 | G166: Marshall, Ilhas | H166: 18.3784 | I166: 1.136611837e-06 | K166: 163 | L166: São Martinho (parte holandesa) | M166: 606.2012 | N166: 2.017442148e-05 | O166: 606.1956
A167: 164 | B167: Somália | C167: 293.0252 | D167: 2.111353319e-05 | F167: 164 | G167: Quirguizistão | H167: 17.5046 | I167: 1.082571691e-06 | K167: 164 | L167: Faroé, Ilhas | M167: 600.7416 | N167: 1.999272559e-05 | O167: -589.6076
A168: 165 | B168: Usbequistão | C168: 284.8212 | D168: 2.05224051e-05 | F168: 165 | G168: Salomão, Ilhas | H168: 16.0532 | I168: 9.928098826e-07 | K168: 165 | L168: Curaçau | M168: 573.2682 | N168: 1.907840877e-05 | O168: 494.8386
A169: 166 | B169: São Marino | C169: 251.4926 | D169: 1.812095805e-05 | F169: 166 | G169: Sudão | H169: 15.0882 | I169: 9.331294739e-07 | K169: 166 | L169: Burundi | M169: 485.2096 | N169: 1.614781194e-05 | O169: 484.9088
A170: 167 | B170: Bonaire, Santo Eustáquio e Saba | C170: 241.8602 | D170: 1.742690854e-05 | F170: 167 | G170: Jamaica | H170: 14.6868 | I170: 9.083048977e-07 | K170: 167 | L170: Antígua e Barbuda | M170: 477.853 | N170: 1.590298374e-05 | O170: 458.4918
A171: 168 | B171: Laos, República Democrática Popular do | C171: 170.9376 | D171: 1.231667683e-05 | F171: 168 | G171: Iraque | H171: 13.1736 | I171: 8.147210693e-07 | K171: 168 | L171: Nova Caledónia | M171: 390.0338 | N171: 1.298035417e-05 | O171: 387.1818
A172: 169 | B172: Zâmbia | C172: 164.8696 | D172: 1.187945532e-05 | F172: 169 | G172: São Cristovão e Nevis | H172: 12.4064 | I172: 7.672735982e-07 | K172: 169 | L172: Libéria | M172: 358.06 | N172: 1.19162637e-05 | O172: 249.1656
A173: 170 | B173: Santa Lúcia | C173: 158.8492 | D173: 1.144566357e-05 | F173: 170 | G173: Nepal | H173: 12.0278 | I173: 7.438590876e-07 | K173: 170 | L173: Zâmbia | M173: 348.819 | N173: 1.160872253e-05 | O173: -19.0798
A174: 171 | B174: Liechtenstein | C174: 144.4366 | D174: 1.040718323e-05 | F174: 171 | G174: Território Palestiniano Ocupado | H174: 11.6698 | I174: 7.217185837e-07 | K174: 171 | L174: Comores | M174: 333.8038 | N174: 1.110901554e-05 | O174: 333.8038
A175: 172 | B175: Maldivas | C175: 139.5096 | D175: 1.005217493e-05 | F175: 172 | G175: Barbados | H175: 10.3458 | I175: 6.398358261e-07 | K175: 172 | L175: Haiti | M175: 328.3394 | N175: 1.09271599e-05 | O175: 327.7662
A176: 173 | B176: Ceuta e Melilha | C176: 132.796 | D176: 9.568435594e-06 | F176: 173 | G176: Jibuti | H176: 9.885 | I176: 6.113376579e-07 | K176: 173 | L176: Polinésia Francesa | M176: 318.4566 | N176: 1.059825958e-05 | O176: 316.7918
A177: 174 | B177: Quirguizistão | C177: 130.9018 | D177: 9.431951583e-06 | F177: 174 | G177: Guiné Equatorial | H177: 9.7838 | I177: 6.050789456e-07 | K177: 174 | L177: Bahamas | M177: 305.389 | N177: 1.016336887e-05 | O177: 305.389
A178: 175 | B178: Botswana | C178: 118.8382 | D178: 8.562725254e-06 | F178: 175 | G178: Antígua e Barbuda | H178: 9.6806 | I178: 5.986965433e-07 | K178: 175 | L178: Chade | M178: 303.2232 | N178: 1.009129088e-05 | O178: -303.1296
A179: 176 | B179: Guiana | C179: 116.6432 | D179: 8.404567507e-06 | F179: 176 | G179: Santa Helena | H179: 5.0476 | I179: 3.121687367e-07 | K179: 176 | L179: Somália | M179: 293.0252 | N179: 9.751900673e-06 | O179: 293.0252
A180: 177 | B180: Nepal | C180: 114.3036 | D180: 8.235990804e-06 | F180: 177 | G180: Barém | H180: 4.6244 | I180: 2.859959398e-07 | K180: 177 | L180: São Marino | M180: 276.803 | N180: 9.212024638e-06 | O180: 226.1822
A181: 178 | B181: Afeganistão | C181: 109.4574 | D181: 7.886804438e-06 | F181: 178 | G181: Niger | H181: 3.2668 | I181: 2.020351908e-07 | K181: 178 | L181: Maldivas | M181: 266.7684 | N181: 8.878072396e-06 | O181: 12.2508
A182: 179 | B182: Virgens Britânicas, Ilhas | C182: 106.6708 | D182: 7.686019756e-06 | F182: 179 | G182: São Bartolomeu | H182: 1.9512 | I182: 1.20671931e-07 | K182: 179 | L182: Bonaire, Santo Eustáquio e Saba | M182: 241.8602 | N182: 8.049125628e-06 | O182: 241.8602
A183: 180 | B183: Centro-Africana, República | C183: 103.298 | D183: 7.442997229e-06 | F183: 180 | G183: Liechtenstein | H183: 1.8568 | I183: 1.148337646e-07 | K183: 180 | L183: Santa Lúcia | M183: 158.8768 | N183: 5.287431841e-06 | O183: 158.8216
A184: 181 | B184: Jibuti | C184: 90.5704 | D184: 6.52592728e-06 | F184: 181 | G184: Lesoto | H184: 1.7136 | I184: 1.05977563e-07 | K184: 181 | L184: Botswana | M184: 148.8752 | N184: 4.954577842e-06 | O184: 88.8012
A185: 182 | B185: Caimão, Ilhas | C185: 73.8006 | D185: 5.317602096e-06 | F185: 182 | G185: Nova Caledónia | H185: 1.426 | I185: 8.819094589e-08 | K185: 182 | L185: Quirguizistão | M185: 148.4064 | N185: 4.938976143e-06 | O185: 113.3972
A186: 183 | B186: Zimbabwe | C186: 66.8594 | D186: 4.817463348e-06 | F186: 183 | G186: Bermudas | H186: 0.8348 | I186: 5.162819189e-08 | K186: 183 | L186: Liechtenstein | M186: 146.2934 | N186: 4.868655344e-06 | O186: 142.5798
A187: 184 | B187: Turcas e Caicos, Ilhas | C187: 48.519 | D187: 3.495970711e-06 | F187: 184 | G187: Polinésia Francesa | H187: 0.8324 | I187: 5.147976393e-08 | K187: 184 | L187: Ceuta e Melilha | M187: 132.796 | N187: 4.419460858e-06 | O187: 132.796
A188: 185 | B188: Virgens dos Estados Unidos, Ilhas | C188: 27.4406 | D188: 1.9771952e-06 | F188: 185 | G188: Micronésia, Estados Federados da | H188: 0.6592 | I188: 4.076821285e-08 | K188: 185 | L188: Nepal | M188: 126.3314 | N188: 4.204318484e-06 | O188: 102.2758
A189: 186 | B189: Mongólia | C189: 26.1112 | D189: 1.881407087e-06 | F189: 186 | G189: Afeganistão | H189: 0.6156 | I189: 3.807177159e-08 | K189: 186 | L189: Afeganistão | M189: 110.073 | N189: 3.66323771e-06 | O189: 108.8418
A190: 187 | B190: Belize | C190: 19.5092 | D190: 1.405708935e-06 | F190: 187 | G190: Trindade e Tobago | H190: 0.3824 | I190: 2.364952153e-08 | K190: 187 | L190: Virgens Britânicas, Ilhas | M190: 106.6778 | N190: 3.550245199e-06 | O190: 106.6638
A191: 188 | B191: Anguila | C191: 15.482 | D191: 1.115534503e-06 | F191: 188 | G191: Haiti | H191: 0.2866 | I191: 1.772477215e-08 | K191: 188 | L191: Jibuti | M191: 100.4554 | N191: 3.34316326e-06 | O191: 80.6854
A192: 189 | B192: Brunei Darussalam | C192: 13.5634 | D192: 9.772923833e-07 | F192: 189 | G192: Montenegro | H192: 0.2684 | I192: 1.659919346e-08 | K192: 189 | L192: Tajiquistão | M192: 74.7168 | N192: 2.486580718e-06 | O192: -74.7168
A193: 190 | B193: Fiji, Ilhas | C193: 11.4598 | D193: 8.257203396e-07 | F193: 190 | G193: Burundi | H193: 0.1504 | I193: 9.301485457e-09 | K193: 190 | L193: Caimão, Ilhas | M193: 73.8014 | N193: 2.456116137e-06 | O193: 73.7998
A194: 191 | B194: Malavi | C194: 8.5154 | D194: 6.135655928e-07 | F194: 191 | G194: Oceano Indico, Território Britânico do | H194: 0.1384 | I194: 8.55934566e-09 | K194: 191 | L194: Fiji, Ilhas | M194: 61.5816 | N194: 2.049440275e-06 | O194: -38.662
A195: 192 | B195: São Vicente e Granadinas | C195: 7.5006 | D195: 5.404455557e-07 | F195: 192 | G195: Vanuatu | H195: 0.0874 | I195: 5.405251522e-09 | K195: 192 | L195: Turcas e Caicos, Ilhas | M195: 48.519 | N195: 1.614715966e-06 | O195: 48.519
A196: 193 | B196: Guam | C196: 6.4026 | D196: 4.613306555e-07 | F196: 193 | G196: Nauru | H196: 0.0694 | I196: 4.292041827e-09 | K196: 193 | L196: Falkland Ilhas (Malvinas) | M196: 46.09 | N196: 1.533878663e-06 | O196: -46.09
A197: 194 | B197: Territórios Franceses do Sul | C197: 6.3292 | D197: 4.560419181e-07 | F197: 194 | G197: Palau | H197: 0.0478 | I197: 2.956190192e-09 | K197: 194 | L197: São Pedro e Miquelon | M197: 28.9156 | N197: 9.623133406e-07 | O197: -28.9156
A198: 195 | B198: Faroé, Ilhas | C198: 5.567 | D198: 4.011226313e-07 | F198: 195 | G198: Santa Lúcia | H198: 0.0276 | I198: 1.706921533e-09 | K198: 195 | L198: Virgens dos Estados Unidos, Ilhas | M198: 27.4406 | N198: 9.132252298e-07 | O198: 27.4406
A199: 196 | B199: Sudão do Sul | C199: 3.771 | D199: 2.717142883e-07 | F199: 196 | G199: Coreia, República Popular Democrática da | H199: 0.0196 | I199: 1.212161669e-09 | K199: 196 | L199: Mongólia | M199: 26.1254 | N199: 8.69455275e-07 | O199: 26.097
A200: 197 | B200: Marianas do Norte, Ilhas | C200: 2.9244 | D200: 2.10713674e-07 | F200: 197 | G200: São Vicente e Granadinas | H200: 0.0144 | I200: 8.905677565e-10 | K200: 197 | L200: Marshall, Ilhas | M200: 18.3784 | N200: 6.116345329e-07 | O200: -18.3784
... 58 more rows

Sheet 2AA
A1: Ranking dos parceiros comerciais de Portugal por país (média 2019-2023 em milhares de euros) produtos agrícolas e agroalimentares
A2: Exportações | F2: Importações | K2: Trocas comerciais (total e saldo)
A3: P | B3: País | C3: média quinquénio | D3: % do Total | F3: P | G3: País | H3: média quinquénio | I3: % do Total | K3: P | L3: País | M3: Total (exp+imp) | N3: % do Total | O3: Saldo (exp-imp)
A4: 1 | B4: Espanha | C4: 2759419.439 | D4: 0.3560855896 | F4: 1 | G4: Espanha | H4: 5216892.326 | I4: 0.4653125163 | K4: 1 | L4: Espanha | M4: 7976311.764 | N4: 0.4206715062 | O4: -2457472.887
A5: 2 | B5: França | C5: 750404.6944 | D5: 0.09683496981 | F5: 2 | G5: França | H5: 878500.976 | I5: 0.0783565146 | K5: 2 | L5: França | M5: 1628905.67 | N5: 0.08590865328 | O5: -128096.2816
A6: 3 | B6: Itália | C6: 479973.025 | D6: 0.06193747684 | F6: 3 | G6: Alemanha | H6: 716514.4174 | I6: 0.06390837795 | K6: 3 | L6: Países Baixos | M6: 1047407.835 | N6: 0.05524039738 | O6: -310220.2488
A7: 4 | B7: Brasil | C7: 405387.6024 | D7: 0.05231270077 | F7: 4 | G7: Países Baixos | H7: 678814.0418 | I7: 0.06054575217 | K7: 4 | L7: Brasil | M7: 1040823.994 | N7: 0.05489316491 | O7: -230048.7888
A8: 5 | B8: Países Baixos | C8: 368593.793 | D8: 0.04756469287 | F8: 5 | G8: Brasil | H8: 635436.3912 | I8: 0.05667675076 | K8: 5 | L8: Alemanha | M8: 998293.5766 | N8: 0.05265010633 | O8: -434735.2582
A9: 6 | B9: Alemanha | C9: 281779.1592 | D9: 0.0363618146 | F9: 6 | G9: Itália | H9: 370141.5684 | I9: 0.03301419577 | K9: 6 | L9: Itália | M9: 850114.5934 | N9: 0.04483513145 | O9: 109831.4566 | P9: Nota: Nesta listagem, o Reino Unido passa a ser constituído por três componentes: Reino Unido [até 2020] ; Reino Unido (sem Irlanda do Norte) pós-2020 e Reino Unido (Irlanda do Norte) pós-2020. Estas componentes são calculadas igualmente como média do quinquénio, embora a primeira corresponda apenas a 2019-2020 e as duas últimas a 2021-2023.
A10: 7 | B10: Angola | C10: 239257.4432 | D10: 0.03087465665 | F10: 7 | G10: Bélgica | H10: 281935.2606 | I10: 0.0251467727 | K10: 7 | L10: Bélgica | M10: 456382.3416 | N10: 0.02406965183 | O10: -107488.1796
A11: 8 | B11: Reino Unido (sem Irlanda do Norte) pós 2020 | C11: 237665.5644 | D11: 0.03066923478 | F11: 8 | G11: Ucrânia | H11: 218361.6698 | I11: 0.01947642613 | K11: 8 | L11: Estados Unidos | M11: 399330.4322 | N11: 0.02106072824 | O11: -4827.0378
A12: 9 | B12: Estados Unidos | C12: 197251.6972 | D12: 0.02545408136 | F12: 9 | G12: Polónia | H12: 216470.8282 | I12: 0.01930777549 | K12: 9 | L12: Polónia | M12: 361890.0362 | N12: 0.01908611788 | O12: -71051.6202
A13: 10 | B13: Israel | C13: 180621.8384 | D13: 0.02330810348 | F13: 10 | G13: Estados Unidos | H13: 202078.735 | I13: 0.01802409534 | K13: 10 | L13: Reino Unido (sem Irlanda do Norte) pós 2020 | M13: 312259.9708 | N13: 0.01646862311 | O13: 163071.158
A14: 11 | B14: Bélgica | C14: 174447.081 | D14: 0.02251129017 | F14: 11 | G14: Roménia | H14: 147860.1336 | I14: 0.01318815236 | K14: 11 | L14: Angola | M14: 248843.4486 | N14: 0.01312402918 | O14: 229671.4378
A15: 12 | B15: Polónia | C15: 145419.208 | D15: 0.01876542714 | F15: 12 | G15: África do Sul | H15: 122030.5704 | I15: 0.01088432504 | K15: 12 | L15: Ucrânia | M15: 226323.7844 | N15: 0.01193633976 | O15: -210399.5552
A16: 13 | B16: Reino Unido | C16: 140181.6612 | D16: 0.01808955492 | F16: 13 | G16: Canadá | H16: 114587.6202 | I16: 0.01022046279 | K16: 13 | L16: Reino Unido | M16: 218445.519 | N16: 0.01152083923 | O16: 61917.8034
A17: 14 | B17: Suíça | C17: 101113.552 | D17: 0.01304806304 | F17: 14 | G17: Irlanda | H17: 113697.2068 | I17: 0.01014104376 | K17: 14 | L17: Canadá | M17: 187938.0432 | N17: 0.009911871808 | O17: -41237.1972
A18: 15 | B18: Cabo Verde | C18: 93274.137 | D18: 0.01203643622 | F18: 15 | G18: Argentina | H18: 81740.7412 | I18: 0.007290737012 | K18: 15 | L18: Israel | M18: 185954.1124 | N18: 0.009807239092 | O18: 175289.5644
A19: 16 | B19: Canadá | C19: 73350.423 | D19: 0.009465407199 | F19: 16 | G19: Reino Unido | H19: 78263.8578 | I19: 0.006980621859 | K19: 16 | L19: Roménia | M19: 164595.1916 | N19: 0.008680767404 | O19: -131125.0756
A20: 17 | B20: China, República Popular da | C20: 65002.3268 | D20: 0.008388138294 | F20: 17 | G20: Dinamarca | H20: 77997.9928 | I20: 0.006956908448 | K20: 17 | L20: Irlanda | M20: 144257.8138 | N20: 0.007608171998 | O20: -83136.5998
A21: 18 | B21: Japão | C21: 61056.1688 | D21: 0.007878911614 | F21: 18 | G21: Reino Unido (sem Irlanda do Norte) pós 2020 | H21: 74594.4064 | I21: 0.006653330905 | K21: 18 | L21: África do Sul | M21: 144191.7208 | N21: 0.007604686246 | O21: -99869.42
A22: 19 | B22: Suécia | C22: 55333.2024 | D22: 0.007140399072 | F22: 19 | G22: Costa Rica | H22: 70756.5738 | I22: 0.006311021455 | K22: 19 | L22: Dinamarca | M22: 126445.284 | N22: 0.006668737337 | O22: -29550.7016
A23: 20 | B23: Marrocos | C23: 49767.4468 | D23: 0.006422173587 | F23: 20 | G23: China, República Popular da | H23: 48106.3882 | I23: 0.00429077373 | K23: 20 | L23: China, República Popular da | M23: 113108.715 | N23: 0.00596536531 | O23: 16895.9386
A24: 21 | B24: Dinamarca | C24: 48447.2912 | D24: 0.006251815874 | F24: 21 | G24: Bulgária | H24: 41822.2734 | I24: 0.003730271981 | K24: 21 | L24: Suíça | M24: 103785.579 | N24: 0.005473662155 | O24: 98441.525
A25: 22 | B25: Luxemburgo | C25: 48401.4964 | D25: 0.006245906345 | F25: 22 | G25: Grécia | H25: 35196.1588 | I25: 0.003139266098 | K25: 22 | L25: Cabo Verde | M25: 93419.3156 | N25: 0.004926944353 | O25: 93128.9584
A26: 23 | B26: Rússia, Federação da | C26: 47519.044 | D26: 0.006132031456 | F26: 23 | G26: Colômbia | H26: 31210.9096 | I26: 0.002783808055 | K26: 23 | L26: Argentina | M26: 82057.1494 | N26: 0.004327702534 | O26: -81424.333
A27: 24 | B27: Guiné-Bissau | C27: 33196.0112 | D27: 0.004283734852 | F27: 24 | G27: Guiana | H27: 31014.2578 | I27: 0.002766268007 | K27: 24 | L27: Japão | M27: 72872.0242 | N27: 0.003843278082 | O27: 49240.3134
A28: 25 | B28: Irlanda | C28: 30560.607 | D28: 0.003943652643 | F28: 25 | G28: Vietname | H28: 30892.5166 | I28: 0.002755409492 | K28: 25 | L28: Costa Rica | M28: 72068.7862 | N28: 0.003800915227 | O28: -69444.3614
A29: 26 | B29: Arábia Saudita | C29: 29146.6976 | D29: 0.003761196596 | F29: 26 | G29: Cuba | H29: 28789.5394 | I29: 0.002567837744 | K29: 26 | L29: Suécia | M29: 68874.6508 | N29: 0.003632456196 | O29: 41791.754
A30: 27 | B30: Moçambique | C30: 28593.946 | D30: 0.003689867505 | F30: 27 | G30: Áustria | H30: 27561.0196 | I30: 0.00245826185 | K30: 27 | L30: Marrocos | M30: 61090.9854 | N30: 0.003221944879 | O30: 38443.9082
A31: 28 | B31: São Tomé e Príncipe | C31: 25047.189 | D31: 0.003232180993 | F31: 28 | G31: Chile | H31: 26079.5266 | I31: 0.002326122409 | K31: 28 | L31: Grécia | M31: 60091.7544 | N31: 0.003169245333 | O31: -10300.5632
A32: 29 | B32: Grécia | C32: 24895.5956 | D32: 0.003212618826 | F32: 29 | G32: Checa, República | H32: 24316.1468 | I32: 0.002168840518 | K32: 29 | L32: Rússia, Federação da | M32: 59387.4766 | N32: 0.003132101649 | O32: 35650.6114
A33: 30 | B33: Finlândia | C33: 22503.8536 | D33: 0.002903979679 | F33: 30 | G33: Índia | H33: 24071.1366 | I33: 0.002146987218 | K33: 30 | L33: Luxemburgo | M33: 56659.809 | N33: 0.002988244178 | O33: 40143.1838
A34: 31 | B34: África do Sul | C34: 22161.1504 | D34: 0.002859756003 | F34: 31 | G34: Uruguai | H34: 22728.6906 | I34: 0.002027249856 | K34: 31 | L34: Bulgária | M34: 50843.4548 | N34: 0.002681489057 | O34: -32801.092
A35: 32 | B35: Jordânia | C35: 21893.2362 | D35: 0.002825183374 | F35: 32 | G35: Costa do Marfim | H35: 22619.1534 | I35: 0.002017479857 | K35: 32 | L35: Checa, República | M35: 43760.0144 | N35: 0.002307907679 | O35: -4872.2792
A36: 33 | B36: Argélia | C36: 20568.7852 | D36: 0.002654271367 | F36: 33 | G36: Turquia | H36: 19669.1464 | I36: 0.001754358617 | K36: 33 | L36: Áustria | M36: 42114.7706 | N36: 0.002221137351 | O36: -13007.2686
A37: 34 | B37: Checa, República | C37: 19443.8676 | D37: 0.00250910788 | F37: 34 | G37: Hungria | H37: 19114.634 | I37: 0.001704899754 | K37: 34 | L37: Moçambique | M37: 38413.508 | N37: 0.002025932379 | O37: 18774.384
A38: 35 | B38: Noruega | C38: 18383.7692 | D38: 0.0023723089 | F38: 35 | G38: Suazilândia | H38: 17908.3876 | I38: 0.001597310501 | K38: 35 | L38: Colômbia | M38: 37783.0652 | N38: 0.001992682761 | O38: -24638.754
A39: 36 | B39: Coreia, República da | C39: 16791.4172 | D39: 0.002166825967 | F39: 36 | G39: Letónia | H39: 17565.2096 | I39: 0.001566701279 | K39: 36 | L39: Guiné-Bissau | M39: 33466.8492 | N39: 0.001765045083 | O39: 32925.1732
A40: 37 | B40: Roménia | C40: 16735.058 | D40: 0.002159553169 | F40: 37 | G40: Uganda | H40: 17520.2176 | I40: 0.001562688288 | K40: 37 | L40: Austrália | M40: 33457.6176 | N40: 0.001764558208 | O40: -224.8624
A41: 38 | B41: Austrália | C41: 16616.3776 | D41: 0.002144238216 | F41: 38 | G41: Austrália | H41: 16841.24 | I41: 0.001502127947 | K41: 38 | L41: Cuba | M41: 33227.7552 | N41: 0.001752435241 | O41: -24351.3236
A42: 39 | B42: Áustria | C42: 14553.751 | D42: 0.001878069326 | F42: 39 | G42: Lituânia | H42: 14648.1574 | I42: 0.00130651939 | K42: 39 | L42: Vietname | M42: 32990.675 | N42: 0.001739931607 | O42: -28794.3582
A43: 40 | B43: Emirados Árabes Unidos | C43: 13772.665 | D43: 0.001777275128 | F43: 40 | G43: México | H43: 13942.9954 | I43: 0.001243623573 | K43: 40 | L43: Hungria | M43: 31183.1208 | N43: 0.001644601011 | O43: -7046.1472
A44: 41 | B44: Iraque | C44: 13213.736 | D44: 0.001705148883 | F44: 41 | G44: Peru | H44: 13551.1124 | I44: 0.001208670184 | K44: 41 | L44: Chile | M44: 31046.9382 | N44: 0.001637418727 | O44: -21112.115
A45: 42 | B45: Nigéria | C45: 12563.3872 | D45: 0.001621225492 | F45: 42 | G45: Suécia | H45: 13541.4484 | I45: 0.001207808219 | K45: 42 | L45: Guiana | M45: 31034.393 | N45: 0.001636757092 | O45: -30994.1226
A46: 43 | B46: Hungria | C46: 12068.4868 | D46: 0.001557361732 | F46: 43 | G46: Egito | H46: 13444.2972 | I46: 0.00119914297 | K46: 43 | L46: Finlândia | M46: 30610.4384 | N46: 0.001614397683 | O46: 14397.2688
A47: 44 | B47: Macau | C47: 11451.795 | D47: 0.001477781564 | F47: 44 | G47: Indonésia | H47: 13373.0146 | I47: 0.001192785031 | K47: 44 | L47: Costa do Marfim | M47: 30195.695 | N47: 0.001592524073 | O47: -15042.6118
A48: 45 | B48: Território Palestiniano Ocupado | C48: 11126.9966 | D48: 0.001435868389 | F48: 45 | G48: Paquistão | H48: 12392.2934 | I48: 0.001105311144 | K48: 45 | L48: Turquia | M48: 29730.2176 | N48: 0.001567974747 | O48: -9608.0752
A49: 46 | B49: Líbia, Jamahira Árabe da | C49: 10747.1924 | D49: 0.001386857064 | F49: 46 | G49: Moldava, República de | H49: 12169.9448 | I49: 0.00108547911 | K49: 46 | L49: Arábia Saudita | M49: 29183.7518 | N49: 0.001539154084 | O49: 29109.6434
A50: 47 | B50: Senegal | C50: 10277.8906 | D50: 0.001326296641 | F50: 47 | G50: Rússia, Federação da | H50: 11868.4326 | I50: 0.001058586203 | K50: 47 | L50: Índia | M50: 27213.734 | N50: 0.001435255142 | O50: -20928.5392
A51: 48 | B51: Turquia | C51: 10061.0712 | D51: 0.001298317472 | F51: 48 | G51: Japão | H51: 11815.8554 | I51: 0.001053896662 | K51: 48 | L51: São Tomé e Príncipe | M51: 26136.022 | N51: 0.001378416499 | O51: 23958.356
A52: 49 | B52: Kuwait | C52: 9238.6512 | D52: 0.001192189384 | F52: 49 | G52: Marrocos | H52: 11323.5386 | I52: 0.001009985238 | K52: 49 | L52: Uruguai | M52: 24804.8014 | N52: 0.001308207788 | O52: -20652.5798
A53: 50 | B53: Bulgária | C53: 9021.1814 | D53: 0.001164126284 | F53: 50 | G53: Tailândia | H53: 10221.1584 | I53: 0.000911660168 | K53: 50 | L53: Letónia | M53: 24565.731 | N53: 0.00129559919 | O53: -10564.6882
A54: 51 | B54: Eslováquia | C54: 8977.9412 | D54: 0.00115854641 | F54: 51 | G54: Paraguai | H54: 9863.0808 | I54: 0.0008797219989 | K54: 51 | L54: Argélia | M54: 22398.8544 | N54: 0.001181317894 | O54: 18738.716
A55: 52 | B55: Ucrânia | C55: 7962.1146 | D55: 0.001027460426 | F55: 52 | G55: Moçambique | H55: 9819.562 | I55: 0.0008758404079 | K55: 52 | L55: Jordânia | M55: 22013.8634 | N55: 0.001161013429 | O55: 21772.609
A56: 53 | B56: Costa do Marfim | C56: 7576.5416 | D56: 0.0009777046739 | F56: 53 | G56: Angola | H56: 9586.0054 | I56: 0.0008550086939 | K56: 53 | L56: México | M56: 20411.1484 | N56: 0.001076486075 | O56: -7474.8424
A57: 54 | B57: Letónia | C57: 7000.5214 | D57: 0.0009033729179 | F57: 54 | G57: Equador | H57: 9434.7056 | I57: 0.0008415137459 | K57: 54 | L57: Lituânia | M57: 20298.5022 | N57: 0.001070545102 | O57: -8997.8126
A58: 55 | B58: Gibraltar | C58: 6867.0166 | D58: 0.0008861449696 | F58: 55 | G58: Sérvia | H58: 8961.3684 | I58: 0.0007992951778 | K58: 55 | L58: Suazilândia | M58: 19974.7344 | N58: 0.001053469555 | O58: -15842.0408
A59: 56 | B59: Maurícias | C59: 6601.9064 | D59: 0.0008519341785 | F59: 56 | G59: Belize | H59: 8481.6488 | I59: 0.0007565073417 | K59: 56 | L59: Noruega | M59: 19562.9914 | N59: 0.001031754187 | O59: 17204.547
A60: 57 | B60: Colômbia | C60: 6572.1556 | D60: 0.0008480950264 | F60: 57 | G60: Luxemburgo | H60: 8258.3126 | I60: 0.0007365872201 | K60: 57 | L60: Uganda | M60: 18130.6166 | N60: 0.0009562105919 | O60: -16909.8186
A61: 58 | B61: México | C61: 6468.153 | D61: 0.00083467415 | F61: 58 | G61: Finlândia | H61: 8106.5848 | I61: 0.0007230540973 | K61: 58 | L61: Coreia, República da | M61: 18110.515 | N61: 0.0009551504315 | O61: 15472.3194
A62: 59 | B62: Andorra | C62: 5880.33 | D62: 0.0007588193174 | F62: 59 | G62: Estónia | H62: 8074.9354 | I62: 0.0007202311788 | K62: 59 | L62: Peru | M62: 15536.0606 | N62: 0.0008193734405 | O62: -11566.1642
A63: 60 | B63: Lituânia | C63: 5650.3448 | D63: 0.000729141185 | F63: 60 | G63: Nova Zelânda | H63: 7373.8184 | I63: 0.0006576961493 | K63: 60 | L63: Egito | M63: 15081.7762 | N63: 0.0007954144344 | O63: -11806.8182
A64: 61 | B64: Malta | C64: 5437.1088 | D64: 0.0007016244307 | F64: 61 | G64: Malásia | H64: 6878.308 | I64: 0.0006134998776 | K64: 61 | L64: Indonésia | M64: 14601.4892 | N64: 0.0007700840484 | O64: -12144.54
A65: 62 | B65: Estónia | C65: 5362.6332 | D65: 0.0006920138265 | F65: 62 | G65: Camarões | H65: 6873.6916 | I65: 0.000613088125 | K65: 62 | L65: Emirados Árabes Unidos | M65: 14301.0792 | N65: 0.000754240394 | O65: 13244.2508
A66: 63 | B66: HongKong | C66: 4973.9084 | D66: 0.0006418513548 | F66: 63 | G66: Eslovénia | H66: 5854.2478 | I66: 0.0005221604366 | K66: 63 | L66: Eslováquia | M66: 14074.6532 | N66: 0.0007422986633 | O66: 3881.2292
A67: 64 | B67: Chile | C67: 4967.4116 | D67: 0.0006410129839 | F67: 64 | G67: Israel | H67: 5332.274 | I67: 0.0004756038034 | K67: 64 | L67: Tailândia | M67: 13545.4648 | N67: 0.0007143892125 | O67: -6896.852
A68: 65 | B68: Chipre | C68: 4590.008 | D68: 0.0005923114413 | F68: 65 | G68: Honduras | H68: 5320.7232 | I68: 0.000474573548 | K68: 65 | L68: Estónia | M68: 13437.5686 | N68: 0.0007086987557 | O68: -2712.3022
A69: 66 | B69: Cuba | C69: 4438.2158 | D69: 0.0005727236199 | F69: 66 | G69: Camboja | H69: 5251.2876 | I69: 0.0004683803487 | K69: 66 | L69: Iraque | M69: 13226 | N69: 0.0006975406059 | O69: 13201.472
A70: 67 | B70: Mali | C70: 4408.7876 | D70: 0.0005689260972 | F70: 67 | G70: Zimbabwe | H70: 5172.692 | I70: 0.0004613701376 | K70: 67 | L70: Paquistão | M70: 12653.1142 | N70: 0.0006673265497 | O70: -12131.4726
A71: 68 | B71: Omã | C71: 4251.3822 | D71: 0.000548613928 | F71: 68 | G71: Eslováquia | H71: 5096.712 | I71: 0.0004545932209 | K71: 68 | L71: Nigéria | M71: 12613.3818 | N71: 0.0006652310588 | O71: 12513.3926
A72: 69 | B72: Sérvia | C72: 3643.2286 | D72: 0.0004701355603 | F72: 69 | G72: Reino Unido (Irlanda do Norte) pós-2020 | H72: 4870.092 | I72: 0.000434380206 | K72: 69 | L72: Sérvia | M72: 12604.597 | N72: 0.0006647677475 | O72: -5318.1398
A73: 70 | B73: Gana | C73: 3561.703 | D73: 0.0004596151984 | F73: 70 | G73: Etiópia | H73: 4865.161 | I73: 0.0004339403932 | K73: 70 | L73: Moldava, República de | M73: 12435.7646 | N73: 0.0006558635093 | O73: -11904.125
A74: 71 | B74: Síria, República Árabe da | C74: 3557.076 | D74: 0.0004590181133 | F74: 71 | G74: Tanzânia, República Unida da | H74: 4645.6104 | I74: 0.0004143579223 | K74: 71 | L74: Macau | M74: 11470.0196 | N74: 0.0006049300183 | O74: 11433.5704
A75: 72 | B75: Tailândia | C75: 3324.3064 | D75: 0.0004289806717 | F75: 72 | G75: Filipinas | H75: 4316.8954 | I75: 0.0003850387042 | K75: 72 | L75: Território Palestiniano Ocupado | M75: 11138.6664 | N75: 0.0005874544163 | O75: 11115.3268
A76: 73 | B76: Singapura | C76: 3292.5498 | D76: 0.0004248826838 | F76: 73 | G76: Macedónia, Antiga República jugoslava da | H76: 4269.76 | I76: 0.0003808345362 | K76: 73 | L76: Kuwait | M76: 10781.5982 | N76: 0.0005686226025 | O76: 7695.7042
A77: 74 | B77: Eslovénia | C77: 3209.5124 | D77: 0.0004141672336 | F77: 74 | G77: Myanmar | H77: 4258.6984 | I77: 0.0003798479142 | K77: 74 | L77: Senegal | M77: 10777.8706 | N77: 0.0005684260085 | O77: 9777.9106
A78: 75 | B78: Índia | C78: 3142.5974 | D78: 0.0004055322769 | F78: 75 | G78: Tunísia | H78: 4096.3914 | I78: 0.0003653711963 | K78: 75 | L78: Líbia, Jamahira Árabe da | M78: 10763.4438 | N78: 0.0005676651376 | O78: 10730.941
A79: 76 | B79: Taiwan | C79: 3027.0112 | D79: 0.0003906166104 | F79: 76 | G79: Quénia | H79: 3999.6272 | I79: 0.0003567404655 | K79: 76 | L79: Paraguai | M79: 10570.8508 | N79: 0.0005575077629 | O79: -9155.3108
A80: 77 | B80: Guiné | C80: 2745.3572 | D80: 0.0003542709468 | F80: 77 | G80: Chipre | H80: 3962.894 | I80: 0.0003534641054 | K80: 77 | L80: Equador | M80: 10263.4314 | N80: 0.000541294432 | O80: -8605.9798
A81: 78 | B81: Burquina Faso | C81: 2525.8832 | D81: 0.0003259492181 | F81: 78 | G81: Suriname | H81: 3877.4378 | I81: 0.0003458419739 | K81: 78 | L81: Nova Zelânda | M81: 9856.0686 | N81: 0.0005198100759 | O81: -4891.5682
A82: 79 | B82: Venezuela | C82: 2486.9168 | D82: 0.0003209208512 | F82: 79 | G82: Malavi | H82: 3756.8802 | I82: 0.0003350890281 | K82: 79 | L82: Maurícias | M82: 9426.6558 | N82: 0.0004971628004 | O82: 3777.157
A83: 80 | B83: Nova Zelânda | C83: 2482.2502 | D83: 0.000320318656 | F83: 80 | G83: Guatemala | H83: 3336.065 | I83: 0.0002975550774 | K83: 80 | L83: Eslovénia | M83: 9063.7602 | N83: 0.000478023649 | O83: -2644.7354
A84: 81 | B84: Timor-Leste | C84: 2425.5014 | D84: 0.000312995583 | F84: 81 | G84: Sri Lanca | H84: 3081.7828 | I84: 0.000274874776 | K84: 81 | L84: Camarões | M84: 8912.7596 | N84: 0.0004700598618 | O84: -4834.6236
A85: 82 | B85: Filipinas | C85: 2423.494 | D85: 0.0003127365408 | F85: 82 | G85: Nicarágua | H85: 3050.9764 | I85: 0.0002721270475 | K85: 82 | L85: Chipre | M85: 8552.902 | N85: 0.0004510809348 | O85: 627.114
A86: 83 | B86: Congo | C86: 2401.0914 | D86: 0.0003098456272 | F86: 83 | G86: Maurícias | H86: 2824.7494 | I86: 0.0002519490856 | K86: 83 | L86: Belize | M86: 8501.158 | N86: 0.0004483519509 | O86: -8462.1396
A87: 84 | B87: Dominicana, República | C87: 2366.1238 | D87: 0.0003053332801 | F87: 84 | G87: Suíça | H87: 2672.027 | I87: 0.000238327251 | K87: 84 | L87: Malásia | M87: 8478.9536 | N87: 0.0004471808885 | O87: -5277.6624
A88: 85 | B88: Seychelles | C88: 2266.2448 | D88: 0.0002924445282 | F88: 85 | G88: Taiwan | H88: 2620.89 | I88: 0.0002337661666 | K88: 85 | L88: Mali | M88: 6882.4546 | N88: 0.0003629813664 | O88: 1935.1206
A89: 86 | B89: Belarus | C89: 2265.0334 | D89: 0.0002922882047 | F89: 86 | G89: Dominicana, República | H89: 2590.705 | I89: 0.000231073863 | K89: 86 | L89: Gibraltar | M89: 6867.0382 | N89: 0.0003621683039 | O89: 6866.995
A90: 87 | B90: Benim | C90: 2254.9256 | D90: 0.0002909838571 | F90: 87 | G90: Mali | H90: 2473.667 | I90: 0.0002206348424 | K90: 87 | L90: Filipinas | M90: 6740.3894 | N90: 0.0003554888331 | O90: -1893.4014
A91: 88 | B91: Guiné Equatorial | C91: 2237.2378 | D91: 0.0002887013587 | F91: 88 | G91: Gana | H91: 2244.213 | I91: 0.0002001690533 | K91: 88 | L91: Reino Unido (Irlanda do Norte) pós-2020 | M91: 6635.6864 | N91: 0.000349966786 | O91: -3104.4976
A92: 89 | B92: Líbano | C92: 2221.1552 | D92: 0.0002866260011 | F92: 89 | G92: Croácia | H92: 2133.6498 | I92: 0.0001903075424 | K92: 89 | L92: HongKong | M92: 6486.7258 | N92: 0.0003421105886 | O92: 3461.091
A93: 90 | B93: Gabão | C93: 2209.6904 | D93: 0.0002851465413 | F93: 90 | G93: Congo, República Democrática do | H93: 1937.5966 | I93: 0.0001728208851 | K93: 90 | L93: Honduras | M93: 6000.5624 | N93: 0.0003164702807 | O93: -4640.884
A94: 91 | B94: Croácia | C94: 2104.1152 | D94: 0.0002715227308 | F94: 91 | G94: Benim | H94: 1901.2374 | I94: 0.0001695778834 | K94: 91 | L94: Malta | M94: 5958.7242 | N94: 0.0003142637297 | O94: 4915.4934
A95: 92 | B95: Vietname | C95: 2098.1584 | D95: 0.0002707540436 | F95: 92 | G95: Serra Leoa | H95: 1900.5094 | I95: 0.0001695129506 | K95: 92 | L95: Andorra | M95: 5897.0704 | N95: 0.0003110121019 | O95: 5863.5896
A96: 93 | B96: Uruguai | C96: 2076.1108 | D96: 0.0002679089405 | F96: 93 | G96: Argélia | H96: 1830.0692 | I96: 0.0001632301476 | K96: 93 | L96: Gana | M96: 5805.916 | N96: 0.0003062046094 | O96: 1317.49
A97: 94 | B97: Suazilândia | C97: 2066.3468 | D97: 0.0002666489582 | F97: 94 | G97: Laos, República Democrática Popular do | H97: 1764.7672 | I97: 0.0001574056383 | K97: 94 | L97: Camboja | M97: 5661.8046 | N97: 0.0002986041593 | O97: -4840.7706
A98: 95 | B98: Camarões | C98: 2039.068 | D98: 0.0002631288019 | F98: 95 | G98: Burquina Faso | H98: 1596.6714 | I98: 0.0001424125975 | K98: 95 | L98: Taiwan | M98: 5647.9012 | N98: 0.0002978708926 | O98: 406.1212
A99: 96 | B99: Peru | C99: 1984.9482 | D99: 0.0002561449848 | F99: 96 | G99: Kuwait | H99: 1542.947 | I99: 0.000137620734 | K99: 96 | L99: Etiópia | M99: 5274.7014 | N99: 0.0002781882966 | O99: -4455.6206
A100: 97 | B100: Catar | C100: 1923.0908 | D100: 0.0002481626793 | F100: 97 | G100: HongKong | H100: 1512.8174 | I100: 0.0001349333716 | K100: 97 | L100: Zimbabwe | M100: 5238.022 | N100: 0.0002762538212 | O100: -5107.362
A101: 98 | B101: Irão, República Islâmica do | C101: 1920.529 | D101: 0.0002478320953 | F101: 98 | G101: Panamá | H101: 1505.4946 | I101: 0.000134280226 | K101: 98 | L101: Tunísia | M101: 5011.6662 | N101: 0.000264315793 | O101: -3181.1166
A102: 99 | B102: Geórgia | C102: 1916.3824 | D102: 0.0002472970028 | F102: 99 | G102: Madagáscar | H102: 1471.794 | I102: 0.0001312743539 | K102: 99 | L102: Tanzânia, República Unida da | M102: 4986.1414 | N102: 0.0002629696124 | O102: -4305.0794
A103: 100 | B103: Reino Unido (Irlanda do Norte) pós-2020 | C103: 1765.5944 | D103: 0.0002278387671 | F103: 100 | G103: Coreia, República da | H103: 1319.0978 | I103: 0.0001176548562 | K103: 100 | L103: Dominicana, República | M103: 4956.8288 | N103: 0.0002614236628 | O103: -224.5812
A104: 101 | B104: Egito | C104: 1637.479 | D104: 0.0002113062867 | F104: 101 | G104: Singapura | H104: 1313.0876 | I104: 0.0001171187859 | K104: 101 | L104: Omã | M104: 4826.1814 | N104: 0.0002545333055 | O104: 3676.583
A105: 102 | B105: Malásia | C105: 1600.6456 | D105: 0.0002065531699 | F105: 102 | G105: Noruega | H105: 1179.2222 | I105: 0.0001051788718 | K105: 102 | L105: Singapura | M105: 4605.6374 | N105: 0.0002429017921 | O105: 1979.4622
A106: 103 | B106: Bangladesh | C106: 1592.1082 | D106: 0.0002054514726 | F106: 103 | G106: São Tomé e Príncipe | H106: 1088.833 | I106: 9.711674909e-05 | K106: 103 | L106: Myanmar | M106: 4593.3818 | N106: 0.0002422554305 | O106: -3924.015
A107: 104 | B107: Congo, República Democrática do | C107: 1487.5888 | D107: 0.0001919639064 | F107: 104 | G107: Timor-Leste | H107: 773.0574 | I107: 6.895164047e-05 | K107: 104 | L107: Macedónia, Antiga República jugoslava da | M107: 4569.63 | N107: 0.0002410027581 | O107: -3969.89
A108: 105 | B108: Costa Rica | C108: 1312.2124 | D108: 0.0001693326935 | F108: 105 | G108: El Salvador | H108: 699.8376 | I108: 6.242091542e-05 | K108: 105 | L108: Quénia | M108: 4449.3114 | N108: 0.0002346571427 | O108: -3549.943
A109: 106 | B109: Sudão | C109: 1307.024 | D109: 0.0001686631634 | F109: 106 | G109: Turquemenistão | H109: 693.7048 | I109: 6.187390996e-05 | K109: 106 | L109: Croácia | M109: 4237.765 | N109: 0.0002235001638 | O109: -29.5346
A110: 107 | B110: Togo | C110: 1248.9136 | D110: 0.0001611643846 | F110: 107 | G110: Cazaquistão | H110: 686.1514 | I110: 6.120019631e-05 | K110: 107 | L110: Benim | M110: 4156.163 | N110: 0.0002191964658 | O110: 353.6882
A111: 108 | B111: Indonésia | C111: 1228.4746 | D111: 0.0001585268612 | F111: 108 | G111: Omã | H111: 574.7992 | I111: 5.126831174e-05 | K111: 108 | L111: Burquina Faso | M111: 4122.5546 | N111: 0.0002174239554 | O111: 929.2118
A112: 109 | B112: Islândia | C112: 1198.9784 | D112: 0.0001547205635 | F112: 109 | G112: Geórgia | H112: 547.4606 | I112: 4.882988826e-05 | K112: 109 | L112: Suriname | M112: 4115.4388 | N112: 0.0002170486673 | O112: -3639.4368
A113: 110 | B113: Panamá | C113: 1014.5438 | D113: 0.0001309204473 | F113: 110 | G113: Emirados Árabes Unidos | H113: 528.4142 | I113: 4.713107453e-05 | K113: 110 | L113: Guatemala | M113: 3875.6304 | N113: 0.0002044011476 | O113: -2796.4996
A114: 111 | B114: Tunísia | C114: 915.2748 | D114: 0.000118110412 | F114: 111 | G114: Malta | H114: 521.6154 | I114: 4.652466624e-05 | K114: 111 | L114: Malavi | M114: 3763.5146 | N114: 0.0001984881487 | O114: -3750.2458
A115: 112 | B115: Equador | C115: 828.7258 | D115: 0.0001069418121 | F115: 112 | G115: Senegal | H115: 499.98 | I115: 4.459493073e-05 | K115: 112 | L115: Síria, República Árabe da | M115: 3703.4868 | N115: 0.0001953222763 | O115: 3410.6652
A116: 113 | B116: Bermudas | C116: 818.2718 | D116: 0.0001055927896 | F116: 113 | G116: Usbequistão | H116: 380.3558 | I116: 3.392523811e-05 | K116: 113 | L116: Sri Lanca | M116: 3487.054 | N116: 0.0001839075881 | O116: -2676.5116
A117: 114 | B117: Kosovo | C117: 799.843 | D117: 0.0001032146698 | F117: 114 | G117: Líbano | H117: 342.8862 | I117: 3.0583196e-05 | K117: 114 | L117: Nicarágua | M117: 3449.8386 | N117: 0.000181944844 | O117: -2652.1142
A118: 115 | B118: Paraguai | C118: 707.77 | D118: 9.133323271e-05 | F118: 115 | G118: Chade | H118: 303.1764 | I118: 2.704134277e-05 | K118: 115 | L118: Congo, República Democrática do | M118: 3425.1854 | N118: 0.0001806446317 | O118: -450.0078
A119: 116 | B119: Honduras | C119: 679.8392 | D119: 8.772893999e-05 | F119: 116 | G119: Bangladesh | H119: 298.8156 | I119: 2.665238806e-05 | K119: 116 | L119: Timor-Leste | M119: 3198.5588 | N119: 0.0001686923214 | O119: 1652.444
A120: 117 | B120: Aruba | C120: 651.3298 | D120: 8.404998261e-05 | F120: 117 | G120: Bolívia | H120: 296.509 | I120: 2.64466545e-05 | K120: 117 | L120: Guiné | M120: 3020.6542 | N120: 0.0001593096145 | O120: 2470.0602
A121: 118 | B121: Mauritânia | C121: 615.705 | D121: 7.945282796e-05 | F121: 118 | G121: Venezuela | H121: 285.0498 | I121: 2.542456915e-05 | K121: 118 | L121: Venezuela | M121: 2771.9666 | N121: 0.0001461938048 | O121: 2201.867
A122: 119 | B122: Uganda | C122: 610.399 | D122: 7.876812229e-05 | F122: 119 | G122: Guiné | H122: 275.297 | I122: 2.455468348e-05 | K122: 119 | L122: Congo | M122: 2655.1662 | N122: 0.0001400337396 | O122: 2147.0166
A123: 120 | B123: Namíbia | C123: 600.2532 | D123: 7.74588711e-05 | F123: 120 | G123: Guiné-Bissau | H123: 270.838 | I123: 2.415696998e-05 | K123: 120 | L123: Líbano | M123: 2564.0414 | N123: 0.0001352278082 | O123: 1878.269
A124: 121 | B124: Cazaquistão | C124: 584.6762 | D124: 7.544875798e-05 | F124: 121 | G124: Congo | H124: 254.0748 | I124: 2.266180268e-05 | K124: 121 | L124: Panamá | M124: 2520.0384 | N124: 0.0001329070855 | O124: -490.9508
A125: 122 | B125: Albânia | C125: 582.0574 | D125: 7.511081844e-05 | F125: 122 | G125: Belarus | H125: 241.8304 | I125: 2.156968266e-05 | K125: 122 | L125: Belarus | M125: 2506.8638 | N125: 0.0001322122557 | O125: 2023.203
A126: 123 | B126: Ruanda | C126: 580.43 | D126: 7.490081278e-05 | F126: 123 | G126: Togo | H126: 238.6312 | I126: 2.128433504e-05 | K126: 123 | L126: Geórgia | M126: 2463.843 | N126: 0.0001299433343 | O126: 1368.9218
A127: 124 | B127: Azerbaijão | C127: 564.159 | D127: 7.280114335e-05 | F127: 124 | G127: Irão, República Islâmica do | H127: 186.7426 | I127: 1.665621287e-05 | K127: 124 | L127: Serra Leoa | M127: 2326.8524 | N127: 0.0001227184359 | O127: -1474.1664
A128: 125 | B128: São Bartolomeu | C128: 548.5216 | D128: 7.078323599e-05 | F128: 125 | G128: Zâmbia | H128: 183.9494 | I128: 1.640707778e-05 | K128: 125 | L128: Seychelles | M128: 2267.3882 | N128: 0.0001195822878 | O128: 2265.1014
A129: 126 | B129: Guatemala | C129: 539.5654 | D129: 6.962749515e-05 | F129: 126 | G129: Islândia | H129: 183.9414 | I129: 1.640636424e-05 | K129: 126 | L129: Guiné Equatorial | M129: 2237.2378 | N129: 0.0001179921526 | O129: 2237.2378
A130: 127 | B130: Arménia | C130: 525.5354 | D130: 6.781701257e-05 | F130: 127 | G130: Síria, República Árabe da | H130: 146.4108 | I130: 1.305888132e-05 | K130: 127 | L130: Gabão | M130: 2210.0274 | N130: 0.0001165570733 | O130: 2209.3534
A131: 128 | B131: Barém | C131: 502.4658 | D131: 6.48400269e-05 | F131: 128 | G131: Cabo Verde | H131: 145.1786 | I131: 1.294897718e-05 | K131: 128 | L131: Irão, República Islâmica do | M131: 2107.2716 | N131: 0.0001111377218 | O131: 1733.7864
A132: 129 | B132: Bolívia | C132: 494.4554 | D132: 6.380633555e-05 | F132: 129 | G132: Azerbaijão | H132: 124.8964 | I132: 1.113993821e-05 | K132: 129 | L132: Catar | M132: 1939.3412 | N132: 0.0001022810552 | O132: 1906.8404
A133: 130 | B133: Burundi | C133: 484.978 | D133: 6.258333715e-05 | F133: 130 | G133: Jordânia | H133: 120.6272 | I133: 1.075915362e-05 | K133: 130 | L133: Bangladesh | M133: 1890.9238 | N133: 9.97275165e-05 | O133: 1293.2926
A134: 131 | B134: Quénia | C134: 449.6842 | D134: 5.802889595e-05 | F134: 131 | G134: Albânia | H134: 120.2784 | I134: 1.072804295e-05 | K134: 131 | L134: Laos, República Democrática Popular do | M134: 1777.8864 | N134: 9.376591235e-05 | O134: -1751.648
A135: 132 | B135: Gâmbia | C135: 434.028 | D135: 5.600856256e-05 | F135: 132 | G135: Iémen | H135: 84.6154 | I135: 7.547137688e-06 | K135: 132 | L135: Madagáscar | M135: 1602.4536 | N135: 8.451356836e-05 | O135: -1341.1344
A136: 133 | B136: Serra Leoa | C136: 426.343 | D136: 5.501686202e-05 | F136: 133 | G136: Kosovo | H136: 79.8322 | I136: 7.120507678e-06 | K136: 133 | L136: Togo | M136: 1487.5448 | N136: 7.845326638e-05 | O136: 1010.2824
A137: 134 | B137: Camboja | C137: 410.517 | D137: 5.297461703e-05 | F137: 134 | G137: Tajiquistão | H137: 74.7168 | I137: 6.66424761e-06 | K137: 134 | L137: Islândia | M137: 1382.9198 | N137: 7.293533307e-05 | O137: 1015.037
A138: 135 | B138: Etiópia | C138: 409.5404 | D138: 5.284859298e-05 | F138: 135 | G138: Namíbia | H138: 64.9894 | I138: 5.796627447e-06 | K138: 135 | L138: Sudão | M138: 1318.1622 | N138: 6.952001056e-05 | O138: 1295.8858
A139: 136 | B139: Sri Lanca | C139: 405.2712 | D139: 5.229767978e-05 | F139: 136 | G139: Libéria | H139: 54.4472 | I139: 4.856332478e-06 | K139: 136 | L139: Cazaquistão | M139: 1270.8276 | N139: 6.702357887e-05 | O139: -101.4752
A140: 137 | B140: Antígua e Barbuda | C140: 403.3246 | D140: 5.204648339e-05 | F140: 137 | G140: Nigéria | H140: 49.9946 | I140: 4.459189815e-06 | K140: 137 | L140: El Salvador | M140: 1081.0474 | N140: 5.701455152e-05 | O140: -318.6278
A141: 138 | B141: Nicarágua | C141: 398.8622 | D141: 5.147063895e-05 | F141: 138 | G141: Aruba | H141: 45.6144 | I141: 4.068504756e-06 | K141: 138 | L141: Kosovo | M141: 879.6752 | N141: 4.63941609e-05 | O141: 720.0108
A142: 139 | B142: El Salvador | C142: 381.2098 | D142: 4.919270861e-05 | F142: 139 | G142: Bósnia-Herzegovina | H142: 42.5574 | I142: 3.795840443e-06 | K142: 139 | L142: Bermudas | M142: 818.9736 | N142: 4.319275224e-05 | O142: 817.57
A143: 140 | B143: São Martinho (parte holandesa) | C143: 373.2376 | D143: 4.816394673e-05 | F143: 140 | G143: Curaçau | H143: 39.2148 | I143: 3.497702487e-06 | K143: 140 | L143: Bolívia | M143: 790.9644 | N143: 4.171554414e-05 | O143: 197.9464
A144: 141 | B144: Iémen | C144: 360.3172 | D144: 4.6496651e-05 | F144: 141 | G144: Arménia | H144: 37.5752 | I144: 3.351460941e-06 | K144: 141 | L144: Albânia | M144: 702.3358 | N144: 3.704126263e-05 | O144: 461.779
A145: 142 | B145: Tanzânia, República Unida da | C145: 340.531 | D145: 4.394336729e-05 | F145: 142 | G145: Arábia Saudita | H145: 37.0542 | I145: 3.304991164e-06 | K145: 142 | L145: Turquemenistão | M145: 700.9924 | N145: 3.697041157e-05 | O145: -686.4172
A146: 143 | B146: Myanmar | C146: 334.6834 | D146: 4.318877157e-05 | F146: 143 | G146: Botswana | H146: 30.037 | I146: 2.679103033e-06 | K146: 143 | L146: Aruba | M146: 696.9442 | N146: 3.675690909e-05 | O146: 605.7154
A147: 144 | B147: Comores | C147: 333.8038 | D147: 4.307526477e-05 | F147: 144 | G147: Ruanda | H147: 26.8278 | I147: 2.39286348e-06 | K147: 144 | L147: Azerbaijão | M147: 689.0554 | N147: 3.634085296e-05 | O147: 439.2626
A148: 145 | B148: Argentina | C148: 316.4082 | D148: 4.083047284e-05 | F148: 145 | G148: São Marino | H148: 25.2246 | I148: 2.249868574e-06 | K148: 145 | L148: Namíbia | M148: 665.2426 | N148: 3.508496343e-05 | O148: 535.2638
A149: 146 | B149: Jamaica | C149: 302.5728 | D149: 3.904510216e-05 | F149: 146 | G149: Macau | H149: 18.2246 | I149: 1.62551457e-06 | K149: 146 | L149: Mauritânia | M149: 617.715 | N149: 3.257835289e-05 | O149: 613.695
A150: 147 | B150: Libéria | C150: 301.9358 | D150: 3.896290134e-05 | F150: 147 | G150: Quirguizistão | H150: 17.5046 | I150: 1.561295301e-06 | K150: 147 | L150: Ruanda | M150: 607.2578 | N150: 3.202683909e-05 | O150: 553.6022
A151: 148 | B151: Macedónia, Antiga República jugoslava da | C151: 299.87 | D151: 3.869632295e-05 | F151: 148 | G151: Andorra | H151: 16.7404 | I151: 1.493133682e-06 | K151: 148 | L151: Arménia | M151: 563.1106 | N151: 2.96985112e-05 | O151: 487.9602
A152: 149 | B152: Somália | C152: 292.8384 | D152: 3.778893953e-05 | F152: 149 | G152: Líbia, Jamahira Árabe da | H152: 16.2514 | I152: 1.449518095e-06 | K152: 149 | L152: São Bartolomeu | M152: 548.8046 | N152: 2.894401128e-05 | O152: 548.2386
A153: 150 | B153: Moldava, República de | C153: 265.8198 | D153: 3.430236044e-05 | F153: 150 | G153: Catar | H153: 16.2504 | I153: 1.449428902e-06 | K153: 150 | L153: Barém | M153: 506.7884 | N153: 2.672807255e-05 | O153: 498.1432
A154: 151 | B154: Paquistão | C154: 260.8208 | D154: 3.365727118e-05 | F154: 151 | G154: Jamaica | H154: 14.6512 | I154: 1.30679077e-06 | K154: 151 | L154: Burundi | M154: 485.092 | N154: 2.558380218e-05 | O154: 484.864
A155: 152 | B155: Curaçau | C155: 251.4226 | D155: 3.244449303e-05 | F155: 152 | G155: São Cristovão e Nevis | H155: 12.4064 | I155: 1.10656936e-06 | K155: 152 | L155: Iémen | M155: 444.9326 | N155: 2.346579127e-05 | O155: 275.7018
A156: 153 | B156: Suriname | C156: 238.001 | D156: 3.071252062e-05 | F156: 153 | G156: Iraque | H156: 12.264 | I156: 1.093868216e-06 | K156: 153 | L156: Gâmbia | M156: 434.067 | N156: 2.289273841e-05 | O156: 433.989
A157: 154 | B157: Nova Caledónia | C157: 206.2626 | D157: 2.661688125e-05 | F157: 154 | G157: Território Palestiniano Ocupado | H157: 11.6698 | I157: 1.04086948e-06 | K157: 154 | L157: Usbequistão | M157: 421.6984 | N157: 2.224041717e-05 | O157: -339.0132
A158: 155 | B158: Trindade e Tobago | C158: 189.8074 | D158: 2.449344199e-05 | F158: 155 | G158: Sudão | H158: 11.1382 | I158: 9.93454253e-07 | K158: 155 | L158: Antígua e Barbuda | M158: 403.7924 | N158: 2.129605288e-05 | O158: 402.8568
A159: 156 | B159: Haiti | C159: 187.225 | D159: 2.416019963e-05 | F159: 156 | G159: Barém | H159: 4.3226 | I159: 3.85547517e-07 | K159: 156 | L159: São Martinho (parte holandesa) | M159: 373.2376 | N159: 1.968458957e-05 | O159: 373.2376
A160: 157 | B160: Zâmbia | C160: 152.2624 | D160: 1.964849769e-05 | F160: 157 | G160: Nepal | H160: 2.6584 | I160: 2.371118122e-07 | K160: 157 | L160: Libéria | M160: 356.383 | N160: 1.879567623e-05 | O160: 247.4886
A161: 158 | B161: Maldivas | C161: 137.7162 | D161: 1.777140278e-05 | F161: 158 | G161: Fiji, Ilhas | H161: 2.251 | I161: 2.007744091e-07 | K161: 158 | L161: Zâmbia | M161: 336.2118 | N161: 1.773184505e-05 | O161: -31.687
A162: 159 | B162: Liechtenstein | C162: 135.8048 | D162: 1.752474872e-05 | F162: 159 | G162: Mauritânia | H162: 2.01 | I162: 1.792787927e-07 | K162: 159 | L162: Comores | M162: 333.8038 | N162: 1.760484689e-05 | O162: 333.8038
A163: 160 | B163: Polinésia Francesa | C163: 133.9344 | D163: 1.728338545e-05 | F163: 160 | G163: Liechtenstein | H163: 1.7982 | I163: 1.603876244e-07 | K163: 160 | L163: Jamaica | M163: 317.224 | N163: 1.673042652e-05 | O163: 287.9216
A164: 161 | B164: Madagáscar | C164: 130.6596 | D164: 1.686079327e-05 | F164: 161 | G164: Lesoto | H164: 1.7136 | I164: 1.528418603e-07 | K164: 161 | L164: Chade | M164: 303.1804 | N164: 1.598976561e-05 | O164: -303.1724
A165: 162 | B165: Niger | C165: 126.732 | D165: 1.635396138e-05 | F165: 162 | G165: Seychelles | H165: 1.1434 | I165: 1.019837669e-07 | K165: 162 | L165: Somália | M165: 292.8384 | N165: 1.544432746e-05 | O165: 292.8384
A166: 163 | B166: Bósnia-Herzegovina | C166: 90.5322 | D166: 1.168260662e-05 | F166: 163 | G166: Bermudas | H166: 0.7018 | I166: 6.259594861e-08 | K166: 163 | L166: Curaçau | M166: 290.6374 | N166: 1.532824649e-05 | O166: 212.2078
A167: 164 | B167: Centro-Africana, República | C167: 89.9082 | D167: 1.160208338e-05 | F167: 164 | G167: Afeganistão | H167: 0.5848 | I167: 5.216031739e-08 | K167: 164 | L167: Nova Caledónia | M167: 206.2906 | N167: 1.087978755e-05 | O167: 206.2346
A168: 165 | B168: Nepal | C168: 87.8934 | D168: 1.134208621e-05 | F168: 165 | G168: Antígua e Barbuda | H168: 0.4678 | I168: 4.172468618e-08 | K168: 165 | L168: Trindade e Tobago | M168: 189.8764 | N168: 1.001410095e-05 | O168: 189.7384
A169: 166 | B169: Jibuti | C169: 70.7204 | D169: 9.1260194e-06 | F169: 166 | G169: Gabão | H169: 0.337 | I169: 3.005818564e-08 | K169: 166 | L169: Haiti | M169: 187.2274 | N169: 9.874392412e-06 | O169: 187.2226
A170: 167 | B170: Zimbabwe | C170: 65.33 | D170: 8.430422444e-06 | F170: 167 | G170: São Bartolomeu | H170: 0.283 | I170: 2.524174046e-08 | K170: 167 | L170: Maldivas | M170: 137.7198 | N170: 7.263356475e-06 | O170: 137.7126
A171: 168 | B171: Montenegro | C171: 54.6326 | D171: 7.049990773e-06 | F171: 168 | G171: Barbados | H171: 0.1636 | I171: 1.459204502e-08 | K171: 168 | L171: Liechtenstein | M171: 137.603 | N171: 7.257196431e-06 | O171: 134.0066
A172: 169 | B172: Caimão, Ilhas | C172: 53.1296 | D172: 6.856038149e-06 | F172: 169 | G172: Oceano Indico, Território Britânico do | H172: 0.1384 | I172: 1.23443706e-08 | K172: 169 | L172: Polinésia Francesa | M172: 133.9626 | N172: 7.065201359e-06 | O172: 133.9062
A173: 170 | B173: Ceuta e Melilha | C173: 51.6648 | D173: 6.667014993e-06 | F173: 170 | G173: Niger | H173: 0.1252 | I173: 1.116701733e-08 | K173: 170 | L173: Bósnia-Herzegovina | M173: 133.0896 | N173: 7.019159249e-06 | O173: 47.9748
A174: 171 | B174: Bahamas | C174: 43.9552 | D174: 5.672139975e-06 | F174: 171 | G174: Burundi | H174: 0.114 | I174: 1.016805093e-08 | K174: 171 | L174: Niger | M174: 126.8572 | N174: 6.690461829e-06 | O174: 126.6068
A175: 172 | B175: Usbequistão | C175: 41.3426 | D175: 5.335000504e-06 | F175: 172 | G175: Trindade e Tobago | H175: 0.069 | I175: 6.154346614e-09 | K175: 172 | L175: Nepal | M175: 90.5518 | N175: 4.775711284e-06 | O175: 85.235
A176: 173 | B176: Virgens dos Estados Unidos, Ilhas | C176: 26.0742 | D176: 3.364710254e-06 | F176: 173 | G176: Gâmbia | H176: 0.039 | I176: 3.478543738e-09 | K176: 173 | L176: Centro-Africana, República | M176: 89.9082 | N176: 4.741767753e-06 | O176: 89.9082
A177: 174 | B177: Turcas e Caicos, Ilhas | C177: 25.0024 | D177: 3.226401257e-06 | F177: 174 | G177: Polinésia Francesa | H177: 0.0282 | I177: 2.515254703e-09 | K177: 174 | L177: Tajiquistão | M177: 74.7168 | N177: 3.940571748e-06 | O177: -74.7168
A178: 175 | B178: Quirguizistão | C178: 23.7908 | D178: 3.070051956e-06 | F178: 175 | G178: Nova Caledónia | H178: 0.028 | I178: 2.497416017e-09 | K178: 175 | L178: Jibuti | M178: 70.7204 | N178: 3.7298012e-06 | O178: 70.7204
A179: 176 | B179: Guiana | C179: 20.1352 | D179: 2.598319945e-06 | F179: 176 | G179: Papuásia-Nova Guiné | H179: 0.0222 | I179: 1.980094128e-09 | K179: 176 | L179: Montenegro | M179: 54.634 | N179: 2.881402802e-06 | O179: 54.6312
A180: 177 | B180: Belize | C180: 19.5092 | D180: 2.517538612e-06 | F180: 177 | G180: Gibraltar | H180: 0.0216 | I180: 1.926578071e-09 | K180: 177 | L180: Caimão, Ilhas | M180: 53.1304 | N180: 2.802102783e-06 | O180: 53.1288
A181: 178 | B181: Mongólia | C181: 19.1206 | D181: 2.467392245e-06 | F181: 178 | G181: São Vicente e Granadinas | H181: 0.0144 | I181: 1.28438538e-09 | K181: 178 | L181: Ceuta e Melilha | M181: 51.6648 | N181: 2.724806888e-06 | O181: 51.6648
A182: 179 | B182: Afeganistão | C182: 18.9718 | D182: 2.448190548e-06 | F182: 179 | G182: Mongólia | H182: 0.0112 | I182: 9.989664069e-10 | K182: 179 | L182: Bahamas | M182: 43.9552 | N182: 2.318201787e-06 | O182: 43.9552
A183: 180 | B183: Barbados | C183: 15.4724 | D183: 1.996615157e-06 | F183: 180 | G183: Santa Lúcia | H183: 0.009 | I183: 8.027408627e-10 | K183: 180 | L183: Quirguizistão | M183: 41.2954 | N183: 2.177923661e-06 | O183: 6.2862
A184: 181 | B184: Virgens Britânicas, Ilhas | C184: 13.47 | D184: 1.738218128e-06 | F184: 181 | G184: Virgens Britânicas, Ilhas | H184: 0.007 | I184: 6.243540043e-10 | K184: 181 | L184: Botswana | M184: 30.0886 | N184: 1.586875871e-06 | O184: -29.9854
A185: 182 | B185: Laos, República Democrática Popular do | C185: 13.1192 | D185: 1.692949612e-06 | F185: 182 | G185: Maldivas | H185: 0.0036 | I185: 3.210963451e-10 | K185: 182 | L185: Virgens dos Estados Unidos, Ilhas | M185: 26.0742 | N185: 1.375156001e-06 | O185: 26.0742
A186: 183 | B186: Brunei Darussalam | C186: 12.819 | D186: 1.654210704e-06 | F186: 183 | G186: Faroé, Ilhas | H186: 0.0026 | I186: 2.319029159e-10 | K186: 183 | L186: São Marino | M186: 25.2486 | N186: 1.331613772e-06 | O186: -25.2006
A187: 184 | B187: Fiji, Ilhas | C187: 11.4226 | D187: 1.474014134e-06 | F187: 184 | G187: Haiti | H187: 0.0024 | I187: 2.140642301e-10 | K187: 184 | L187: Turcas e Caicos, Ilhas | M187: 25.0024 | N187: 1.318629158e-06 | O187: 25.0024
A188: 185 | B188: Turquemenistão | C188: 7.2876 | D188: 9.404185918e-07 | F188: 185 | G188: Montenegro | H188: 0.0014 | I188: 1.248708009e-10 | K188: 185 | L188: Afeganistão | M188: 19.5566 | N188: 1.031417104e-06 | O188: 18.387
A189: 186 | B189: Santa Lúcia | C189: 7.138 | D189: 9.211136599e-07 | F189: 186 | G189: Caimão, Ilhas | H189: 0.0008 | I189: 7.135474335e-11 | K189: 186 | L189: Mongólia | M189: 19.1318 | N189: 1.009013108e-06 | O189: 19.1094
A190: 187 | B190: Malavi | C190: 6.6344 | D190: 8.561272717e-07 | F190: 187 | G190: Anguila | H190: 0 | I190: 0 | K190: 187 | L190: Barbados | M190: 15.636 | N190: 8.246442548e-07 | O190: 15.3088
A191: 188 | B191: Bonaire, Santo Eustáquio e Saba | C191: 6.6316 | D191: 8.557659494e-07 | F191: 188 | G191: Antárctica | H191: 0 | I191: 0 | K191: 188 | L191: Fiji, Ilhas | M191: 13.6736 | N191: 7.211470761e-07 | O191: 9.1716
A192: 189 | B192: Guam | C192: 6.3336 | D192: 8.173109381e-07 | F192: 189 | G192: Antilhas Holandesas | H192: 0 | I192: 0 | K192: 189 | L192: Virgens Britânicas, Ilhas | M192: 13.477 | N192: 7.107783718e-07 | O192: 13.463
A193: 190 | B193: São Vicente e Granadinas | C193: 4.3128 | D193: 5.565395058e-07 | F193: 190 | G193: Bahamas | H193: 0 | I193: 0 | K193: 190 | L193: São Cristovão e Nevis | M193: 13.1558 | N193: 6.938382507e-07 | O193: -11.657
A194: 191 | B194: Sudão do Sul | C194: 3.771 | D194: 4.866236497e-07 | F194: 191 | G194: Bonaire, Santo Eustáquio e Saba | H194: 0 | I194: 0 | K194: 191 | L194: Brunei Darussalam | M194: 12.819 | N194: 6.760753839e-07 | O194: 12.819
A195: 192 | B195: Marianas do Norte, Ilhas | C195: 2.9244 | D195: 3.773752854e-07 | F195: 192 | G195: Bouvet, Ilha | H195: 0 | I195: 0 | K195: 192 | L195: Santa Lúcia | M195: 7.147 | N195: 3.769335181e-07 | O195: 7.129
A196: 193 | B196: Papuásia-Nova Guiné | C196: 2.8856 | D196: 3.723683913e-07 | F196: 193 | G196: Brunei Darussalam | H196: 0 | I196: 0 | K196: 193 | L196: Bonaire, Santo Eustáquio e Saba | M196: 6.6316 | N196: 3.497512689e-07 | O196: 6.6316
A197: 194 | B197: Anguila | C197: 2.7816 | D197: 3.589478504e-07 | F197: 194 | G197: Butão | H197: 0 | I197: 0 | K197: 194 | L197: Guam | M197: 6.3336 | N197: 3.340347181e-07 | O197: 6.3336
A198: 195 | B198: Domínica | C198: 1.4248 | D198: 1.838614097e-07 | F198: 195 | G198: Centro-Africana, República | H198: 0 | I198: 0 | K198: 195 | L198: São Vicente e Granadinas | M198: 4.3272 | N198: 2.282169749e-07 | O198: 4.2984
A199: 196 | B199: São Cristovão e Nevis | C199: 0.7494 | D199: 9.670532036e-08 | F199: 196 | G199: Ceuta | H199: 0 | I199: 0 | K199: 196 | L199: Sudão do Sul | M199: 3.771 | N199: 1.988829295e-07 | O199: 3.771
A200: 197 | B200: Granada | C200: 0.6942 | D200: 8.958211021e-08 | F200: 197 | G200: Ceuta e Melilha | H200: 0 | I200: 0 | K200: 197 | L200: Marianas do Norte, Ilhas | M200: 2.9244 | N200: 1.54233158e-07 | O200: 2.9244
... 58 more rows

Sheet 2A
A1: Parceiros comerciais de Portugal - União Europeia vs. Países Terceiros (média 2019-2023 em milhões de euros) produtos agrícolas e agroalimentares, do mar e da floresta
A2: Exportações | F2: Importações | K2: Trocas comerciais (total e saldo)
A3: P | B3: Grupo de Países | C3: média quinquénio | D3: % do Total | F3: P | G3: Grupo de Países | H3: média quinquénio | I3: % do Total | K3: P | L3: Grupo de Países | M3: média quinquénio | N3: % do Total | O3: Saldo (exp-imp)
A4: 1 | B4: União Europeia | C4: 9409.7167 | D4: 0.6780043691 | F4: 1 | G4: União Europeia | H4: 12698.69193 | I4: 0.7853503879 | K4: 1 | L4: União Europeia | M4: 22108.40863 | N4: 0.7357695004 | O4: -3288.975233
A5: 2 | B5: Países Terceiros | C5: 4469.107497 | D5: 0.3220154768 | F5: 2 | G5: Países Terceiros | H5: 3470.768386 | I5: 0.2146496121 | K5: 2 | L5: Países Terceiros | M5: 7939.875883 | N5: 0.264239666 | O5: 998.3391116
B6: Outros | C6: -0.2754318 | D6: -1.984586463e-05 | G6: Outros | H6: 0 | I6: 0 | L6: Outros | M6: -0.2754318 | N6: -9.166390999e-06 | O6: -0.2754318
B7: Total | C7: 13878.54877 | D7: 1 | G7: Total | H7: 16169.46032 | I7: 1 | L7: Total | M7: 30048.00908 | N7: 1 | O7: -2290.911553
F27: valores em milhões de euros
A28: Nota: Outros = Países não determinados, abastecimentos de bordo, etc.
A29: Fonte: GPP a partir de dados INE/Comércio Internacional (2022 provisórios) | M29: 2024-05-27

Sheet 3
A1: Principais produtos agrícolas e agroalimentares, do mar e da floresta transacionados entre Portugal e Japão em 2019-2023 (NC a 2 e 4 dígitos) em milhões de euros
AC4: P | AE4: Cód.NC | AF4: Descritivo | AG4: Média export quinquénio | AH4: % do total | AI4: % acumulada | AN4: P | AO4: NC | AP4: Exportações | AQ4: 2019 | AR4: 2020 | AS4: 2021 | AT4: 2022 | AU4: 2023 | AV4: média quinquénio
AC5: 1 | AD5: º | AE5: 20 | AF5: Preparações de produtos vegetais | AG5: 40.3956034 | AH5: 0.5506525043 | AN5: 1º | AO5: 20 | AP5: Preparações de produtos vegetais | AQ5: 30.425052 | AR5: 30.613031 | AS5: 32.78762 | AT5: 46.040786 | AU5: 62.111528 | AV5: 40.3956034
AC6: 2 | AD6: º | AE6: 22 | AF6: Bebidas, líquidos alcoólicos e vinagres | AG6: 7.3386902 | AH6: 0.1000373258 | AN6: 2º | AO6: 22 | AP6: Bebidas, líquidos alcoólicos e vinagres | AQ6: 7.162229 | AR6: 6.122348 | AS6: 6.972348 | AT6: 8.713171 | AU6: 7.723355 | AV6: 7.3386902
AC7: 3 | AD7: º | AE7: 45 | AF7: Cortiça e suas obras | AG7: 6.8632046 | AH7: 0.09355574573 | AI7: 0.7442455758 | AN7: 3º | AO7: 45 | AP7: Cortiça e suas obras | AQ7: 7.393744 | AR7: 6.301975 | AS7: 5.97986 | AT7: 7.512583 | AU7: 7.127861 | AV7: 6.8632046
AC8: 4 | AD8: º | AE8: 02 | AF8: Carnes e miudezas | AG8: 4.278588 | AH8: 0.05832355501 | AO8: - | AP8: Outros | AQ8: 16.050058 | AR8: 18.916666 | AS8: 22.110978 | AT8: 22.176177 | AU8: 14.55623 | AV8: 18.7620218
AC9: 5 | AD9: º | AE9: 03 | AF9: Peixes e crustáceos | AG9: 2.9209502 | AH9: 0.03981692083 | AP9: Total | AQ9: 61.031083 | AR9: 61.95402 | AS9: 67.850806 | AT9: 84.442717 | AU9: 91.518974 | AV9: 73.35952
AC10: 6 | AD10: º | AE10: 19a | AF10: Preparações à base de cereais (exc. NC 19022010) (a) | AG10: 2.6388616 | AH10: 0.03597163122
AC11: 7 | AD11: º | AE11: 07 | AF11: Produtos hortícolas | AG11: 2.5598154 | AH11: 0.03489411327
AC12: 8 | AD12: º | AE12: 04 | AF12: Leite e laticínios; ovos; mel, etc. | AG12: 1.4960444 | AH12: 0.02039332318
AC13: 9 | AD13: º | AE13: 15 | AF13: Gorduras e óleos animais ou vegetais | AG13: 1.4378938 | AH13: 0.01960064352
AC14: 10 | AD14: º | AE14: 47 | AF14: Pastas de madeira | AG14: 1.4172396 | AH14: 0.01931909587 | AI14: 0.9725648587
AE15: - | AF15: Outros | AG15: 2.0126288 | AH15: 0.02743514134
AE16: Total | AG16: 73.35952 | AH16: 1
AC38: P | AE38: Cód.NC | AF38: Descritivo | AG38: Média import quinquénio | AH38: % do total | AI38: % acumulada | AN38: P | AO38: NC | AP38: Importações | AQ38: 2019 | AR38: 2020 | AS38: 2021 | AT38: 2022 | AU38: 2023 | AV38: média quinquénio
AC39: 1 | AD39: º | AE39: 15 | AF39: Gorduras e óleos animais ou vegetais | AG39: 5.848548 | AH39: 0.3939141123 | AN39: 1º | AO39: 15 | AP39: Gorduras e óleos animais ou vegetais | AQ39: 8.56173 | AR39: 7.564172 | AS39: 8.375219 | AT39: 3.659811 | AU39: 1.081808 | AV39: 5.848548
AC40: 2 | AD40: º | AE40: 21 | AF40: Preparações alimentícias diversas | AG40: 3.4873078 | AH40: 0.2348787693 | AN40: 2º | AO40: 21 | AP40: Preparações alimentícias diversas | AQ40: 3.986457 | AR40: 2.553426 | AS40: 3.933924 | AT40: 4.090605 | AU40: 2.872127 | AV40: 3.4873078
AC41: 3 | AD41: º | AE41: 48 | AF41: Papel e cartão | AG41: 1.7736692 | AH41: 0.119460989 | AI41: 0.7482538706 | AN41: 3º | AO41: 48 | AP41: Papel e cartão | AQ41: 1.472326 | AR41: 1.466204 | AS41: 1.945763 | AT41: 2.557498 | AU41: 1.426555 | AV41: 1.7736692
AC42: 4 | AD42: º | AE42: 19a | AF42: Preparações à base de cereais (exc. NC 19022010) (a) | AG42: 0.920142 | AH42: 0.06197382993 | AO42: - | AP42: Outros | AQ42: 2.91124 | AR42: 1.865336 | AS42: 2.823307 | AT42: 7.500936 | AU42: 3.587891 | AV42: 3.737742
AC43: 5 | AD43: º | AE43: 44 | AF43: Madeira e suas obras | AG43: 0.854851 | AH43: 0.05757632027 | AP43: Total | AQ43: 16.931753 | AR43: 13.449138 | AS43: 17.078213 | AT43: 17.80885 | AU43: 8.968381 | AV43: 14.847267
AC44: 6 | AD44: º | AE44: 22 | AF44: Bebidas, líquidos alcoólicos e vinagres | AG44: 0.4566338 | AH44: 0.03075541108
AC45: 7 | AD45: º | AE45: 20 | AF45: Preparações de produtos vegetais | AG45: 0.3855176 | AH45: 0.02596555986
AC46: 8 | AD46: º | AE46: 03 | AF46: Peixes e crustáceos | AG46: 0.3589118 | AH46: 0.0241735937
AC47: 9 | AD47: º | AE47: 11 | AF47: Produtos da indústria de moagem e outros | AG47: 0.3244206 | AH47: 0.02185052643
AC48: 10 | AD48: º | AE48: 09 | AF48: Café, chá, mate e especiarias | AG48: 0.2102018 | AH48: 0.01415760894 | AI48: 0.9847067208
AE49: - | AF49: Outros | AG49: 0.2270634 | AH49: 0.01529327923
AE50: Total | AG50: 14.847267 | AH50: 1
AC62: DESAGREGAÇÃO A 4 DÍGITOS | AN62: DESAGREGAÇÃO A 4 DÍGITOS
AC64: P | AE64: Cód.NC | AF64: Descritivo | AG64: Média export quinquénio | AH64: % do total | AI64: % acumulada | AN64: P | AO64: NC | AP64: Exportações | AQ64: 2019 | AR64: 2020 | AS64: 2021 | AT64: 2022 | AU64: 2023 | AV64: média quinquénio
AC65: 1 | AD65: º | AE65: 2002 | AF65: Tomates preparados | AG65: 40.2286994 | AH65: 0.5483773531 | AN65: 1º | AO65: 2002 | AP65: Tomates preparados | AQ65: 30.23865 | AR65: 30.380466 | AS65: 32.668405 | AT65: 45.839097 | AU65: 62.016879 | AV65: 40.2286994
AC66: 2 | AD66: º | AE66: 2204 | AF66: Vinhos de uvas frescas | AG66: 7.2900506 | AH66: 0.09937429525 | AN66: 2º | AO66: 2204 | AP66: Vinhos de uvas frescas | AQ66: 7.021836 | AR66: 6.09225 | AS66: 6.963547 | AT66: 8.675809 | AU66: 7.696811 | AV66: 7.2900506
AC67: 3 | AD67: º | AE67: 0203 | AF67: Carnes de suíno | AG67: 3.929925 | AH67: 0.05357075673 | AI67: 0.7013224051 | AN67: 3º | AO67: 0203 | AP67: Carnes de suíno | AQ67: 4.554868 | AR67: 4.861793 | AS67: 5.226437 | AT67: 4.270354 | AU67: 0.736173 | AV67: 3.929925
AC68: 4 | AD68: º | AE68: 4504 | AF68: Cortiça aglomerada e suas obras | AG68: 2.7441524 | AH68: 0.03740690234 | AN68: - | AO68: - | AP68: Outros | AQ68: 19.215729 | AR68: 20.619511 | AS68: 22.992417 | AT68: 25.657457 | AU68: 21.069111 | AV68: 21.910845
AC69: 5 | AD69: º | AE69: 1905 | AF69: Produtos de padaria, pastelaria, etc. | AG69: 2.6373802 | AH69: 0.03595143752 | AP69: Total | AQ69: 61.031083 | AR69: 61.95402 | AS69: 67.850806 | AT69: 84.442717 | AU69: 91.518974 | AV69: 73.35952
AC70: 6 | AD70: º | AE70: 0302 | AF70: Peixes frescos ou refrigerados | AG70: 2.5392778 | AH70: 0.03461415505
AC71: 7 | AD71: º | AE71: 4501 | AF71: Cortiça natural em bruto | AG71: 2.3868988 | AH71: 0.03253700133
AC72: 8 | AD72: º | AE72: 0710 | AF72: Produtos hortícolas congelados | AG72: 2.194671 | AH72: 0.02991664885
AC73: 9 | AD73: º | AE73: 4503 | AF73: Obras de cortiça natural | AG73: 1.703769 | AH73: 0.02322492023
AC74: 10 | AD74: º | AE74: 4702 | AF74: Pastas químicas de madeira para dissolução | AG74: 1.2611416 | AH74: 0.01719124662 | AI74: 0.912164717
AE75: - | AF75: Outros | AG75: 6.4435542 | AH75: 0.087835283
AE76: Total | AG76: 73.35952 | AH76: 1
AC89: DESAGREGAÇÃO A 4 DÍGITOS | AN89: DESAGREGAÇÃO A 4 DÍGITOS
G91: média 2019-2023 em milhões de euros | I91: Cód. NC | J91: Descritivo | K91: Export | L91: Import | M91: Saldo | AC91: P | AE91: Cód.NC | AF91: Descritivo | AG91: Média import quinquénio | AH91: % do total | AI91: % acumulada | AN91: P | AO91: NC | AP91: Importações | AQ91: 2019 | AR91: 2020 | AS91: 2021 | AT91: 2022 | AU91: 2023 | AV91: média quinquénio
I92: 2002 | J92: Tomates preparados | K92: 40.2286994 | L92: 0.022019 | M92: 40.2066804 | AC92: 1 | AD92: º | AE92: 1518 | AF92: Gorduras e óleos, animais ou vegetais, processados de outras formas | AG92: 5.8480032 | AH92: 0.3938774187 | AN92: 1º | AO92: 1518 | AP92: Gorduras e óleos, animais ou vegetais, processados de outras formas | AQ92: 8.561528 | AR92: 7.563625 | AS92: 8.375219 | AT92: 3.657897 | AU92: 1.081747 | AV92: 5.8480032
I93: 2204 | J93: Vinhos de uvas frescas | K93: 7.2900506 | L93: 0.012154 | M93: 7.2778966 | AC93: 2 | AD93: º | AE93: 2103 | AF93: Preparações para molhos e molhos preparados | AG93: 3.2055834 | AH93: 0.2159039371 | AN93: 2º | AO93: 2103 | AP93: Preparações para molhos e molhos preparados | AQ93: 3.781993 | AR93: 2.383402 | AS93: 3.621941 | AT93: 3.711307 | AU93: 2.529274 | AV93: 3.2055834
I94: 0203 | J94: Carnes de suíno | K94: 3.929925 | L94: 7.3e-05 | M94: 3.929852 | AC94: 3 | AD94: º | AE94: 4401 | AF94: Lenha, resíduos de madeira, etc. | AG94: 0.7837914 | AH94: 0.0527902812 | AI94: 0.6625716369 | AN94: 3º | AO94: 4401 | AP94: Lenha, resíduos de madeira, etc. | AQ94: 0 | AR94: 0.000635 | AS94: 0 | AT94: 3.917771 | AU94: 0.000551 | AV94: 0.7837914
I95: 4504 | J95: Cortiça aglomerada e suas obras | K95: 2.7441524 | L95: 0.006268 | M95: 2.7378844 | AC95: 4 | AD95: º | AE95: 4823 | AF95: Papéis, cartões, pasta de celulose, etc. | AG95: 0.7316642 | AH95: 0.0492793859 | AN95: - | AO95: - | AP95: Outros | AQ95: 4.588232 | AR95: 3.501476 | AS95: 5.081053 | AT95: 6.521875 | AU95: 5.356809 | AV95: 5.009889
I96: 0302 | J96: Peixes frescos ou refrigerados | K96: 2.5392778 | L96: 0 | M96: 2.5392778 | AC96: 5 | AD96: º | AE96: 4811 | AF96: Papel, cartão, pasta de celulose, etc. | AG96: 0.6815944 | AH96: 0.04590706155 | AP96: Total | AQ96: 16.931753 | AR96: 13.449138 | AS96: 17.078213 | AT96: 17.80885 | AU96: 8.968381 | AV96: 14.847267
I97: 4501 | J97: Cortiça natural em bruto | K97: 2.3868988 | L97: 0.0296956 | M97: 2.3572032 | AC97: 6 | AD97: º | AE97: 1905 | AF97: Produtos de padaria, pastelaria, etc. | AG97: 0.5452648 | AH97: 0.03672492722
I98: 0710 | J98: Produtos hortícolas congelados | K98: 2.194671 | L98: 0.0009174 | M98: 2.1937536 | AC98: 7 | AD98: º | AE98: 1902 | AF98: Massas alimentícias (exc. NC 1902 20 10) (a) | AG98: 0.334227 | AH98: 0.02251101162
I99: 1905 | J99: Produtos de padaria, pastelaria, etc. | K99: 2.6373802 | L99: 0.5452648 | M99: 2.0921154 | AC99: 8 | AD99: º | AE99: 1101 | AF99: Farinhas de trigo ou trigo/centeio | AG99: 0.3019594 | AH99: 0.02033770929
I100: 4503 | J100: Obras de cortiça natural | K100: 1.703769 | L100: 0.0009814 | M100: 1.7027876 | AC100: 9 | AD100: º | AE100: 2008 | AF100: Frutas preparadas | AG100: 0.2998176 | AH100: 0.02019345379
I101: 4702 | J101: Pastas químicas de madeira para dissolução | K101: 1.2611416 | L101: 0 | M101: 1.2611416 | AC101: 10 | AD101: º | AE101: 0304 | AF101: Filetes de peixes | AG101: 0.27293 | AH101: 0.0183825077 | AI101: 0.875907694
I102: - | J102: Outros | K102: 6.0993726 | L102: 1.6200926 | M102: 4.47928 | AE102: - | AF102: Outros | AG102: 1.8424316 | AH102: 0.124092306
I103: 2104 | J103: Preparações para caldos e sopas | K103: 0.0005128 | L103: 0.17142 | M103: -0.1709072 | AE103: Total | AG103: 14.847267 | AH103: 1
I104: 4805 | J104: Papéis e cartões, não revestidos | K104: 2.6e-06 | L104: 0.2517406 | M104: -0.251738
I105: 2008 | J105: Frutas preparadas | K105: 0.0002166 | L105: 0.2998176 | M105: -0.299601
I106: 1101 | J106: Farinhas de trigo ou trigo/centeio | K106: 0 | L106: 0.3019594 | M106: -0.3019594
I107: 1902 | J107: Massas alimentícias (exc. NC 1902 20 10) (a) | K107: 4.06e-05 | L107: 0.334227 | M107: -0.3341864
I108: 4401 | J108: Lenha, resíduos de madeira, etc. | K108: 0.335343 | L108: 0.7837914 | M108: -0.4484484
I109: 4811 | J109: Papel, cartão, pasta de celulose, etc. | K109: 0.0025346 | L109: 0.6815944 | M109: -0.6790598
I110: 4823 | J110: Papéis, cartões, pasta de celulose, etc. | K110: 0.000725 | L110: 0.7316642 | M110: -0.7309392
I111: 2103 | J111: Preparações para molhos e molhos preparados | K111: 0.004755 | L111: 3.2055834 | M111: -3.2008284
I112: 1518 | J112: Gorduras e óleos, animais ou vegetais, processados de outras formas | K112: 5.14e-05 | L112: 5.8480032 | M112: -5.8479518
I113: Total | K113: 73.35952 | L113: 14.847267 | M113: 58.512253
A116: Fonte: GPP a partir de dados INE/Comércio Internacional (2022 definitivos) | Y116: 2024-07-05T15:40:28.630

Sheet 3A
A1: Principais produtos agrícolas e agroalimentares transacionados entre Portugal e Japão em 2019-2023 (NC a 2 e 4 dígitos) em milhões de euros
AC4: P | AE4: Cód.NC | AF4: Descritivo | AG4: Média export quinquénio | AH4: % do total | AI4: % acumulada | AN4: P | AO4: NC | AP4: Exportações | AQ4: 2019 | AR4: 2020 | AS4: 2021 | AT4: 2022 | AU4: 2023 | AV4: média quinquénio
AC5: 1 | AD5: º | AE5: 20 | AF5: Preparações de produtos vegetais | AG5: 40.3956034 | AH5: 0.6616137926 | AN5: 1º | AO5: 20 | AP5: Preparações de produtos vegetais | AQ5: 30.425052 | AR5: 30.613031 | AS5: 32.78762 | AT5: 46.040786 | AU5: 62.111528 | AV5: 40.3956034
AC6: 2 | AD6: º | AE6: 22 | AF6: Bebidas, líquidos alcoólicos e vinagres | AG6: 7.3386902 | AH6: 0.1201957205 | AN6: 2º | AO6: 22 | AP6: Bebidas, líquidos alcoólicos e vinagres | AQ6: 7.162229 | AR6: 6.122348 | AS6: 6.972348 | AT6: 8.713171 | AU6: 7.723355 | AV6: 7.3386902
AC7: 3 | AD7: º | AE7: 02 | AF7: Carnes e miudezas | AG7: 4.278588 | AH7: 0.07007626066 | AI7: 0.8518857737 | AN7: 3º | AO7: 02 | AP7: Carnes e miudezas | AQ7: 4.563267 | AR7: 4.905182 | AS7: 5.252178 | AT7: 5.031722 | AU7: 1.640591 | AV7: 4.278588
AC8: 4 | AD8: º | AE8: 19a | AF8: Preparações à base de cereais (exc. NC 19022010) (a) | AG8: 2.6388616 | AH8: 0.04322022904 | AO8: - | AP8: Outros | AQ8: 8.860459 | AR8: 9.194686 | AS8: 11.018599 | AT8: 8.884379 | AU8: 7.258313 | AV8: 9.0432872
AC9: 5 | AD9: º | AE9: 07 | AF9: Produtos hortícolas | AG9: 2.5598154 | AH9: 0.04192558181 | AP9: Total | AQ9: 51.011007 | AR9: 50.835247 | AS9: 56.030745 | AT9: 68.670058 | AU9: 78.733787 | AV9: 61.0561688
AC10: 6 | AD10: º | AE10: 04 | AF10: Leite e laticínios; ovos; mel, etc. | AG10: 1.4960444 | AH10: 0.0245027559
AC11: 7 | AD11: º | AE11: 15 | AF11: Gorduras e óleos animais ou vegetais | AG11: 1.4378938 | AH11: 0.02355034435
AC12: 8 | AD12: º | AE12: 09 | AF12: Café, chá, mate e especiarias | AG12: 0.3197814 | AH12: 0.005237495347
AC13: 9 | AD13: º | AE13: 18 | AF13: Cacau e suas preparações | AG13: 0.2898452 | AH13: 0.004747189444
AC14: 10 | AD14: º | AE14: 12 | AF14: Sementes e frutos oleaginosos | AG14: 0.090834 | AH14: 0.001487712082 | AI14: 0.9965570817
AE15: - | AF15: Outros | AG15: 0.2102114 | AH15: 0.003442918285
AE16: Total | AG16: 61.0561688 | AH16: 1
AC38: P | AE38: Cód.NC | AF38: Descritivo | AG38: Média import quinquénio | AH38: % do total | AI38: % acumulada | AN38: P | AO38: NC | AP38: Importações | AQ38: 2019 | AR38: 2020 | AS38: 2021 | AT38: 2022 | AU38: 2023 | AV38: média quinquénio
AC39: 1 | AD39: º | AE39: 15 | AF39: Gorduras e óleos animais ou vegetais | AG39: 5.848548 | AH39: 0.4949745746 | AN39: 1º | AO39: 15 | AP39: Gorduras e óleos animais ou vegetais | AQ39: 8.56173 | AR39: 7.564172 | AS39: 8.375219 | AT39: 3.659811 | AU39: 1.081808 | AV39: 5.848548
AC40: 2 | AD40: º | AE40: 21 | AF40: Preparações alimentícias diversas | AG40: 3.4873078 | AH40: 0.2951379889 | AN40: 2º | AO40: 21 | AP40: Preparações alimentícias diversas | AQ40: 3.986457 | AR40: 2.553426 | AS40: 3.933924 | AT40: 4.090605 | AU40: 2.872127 | AV40: 3.4873078
AC41: 3 | AD41: º | AE41: 19a | AF41: Preparações à base de cereais (exc. NC 19022010) (a) | AG41: 0.920142 | AH41: 0.07787349869 | AI41: 0.8679860622 | AN41: 3º | AO41: 19a | AP41: Preparações à base de cereais (exc. NC 19022010) (a) | AQ41: 0.768668 | AR41: 0.624537 | AS41: 1.021235 | AT41: 1.229747 | AU41: 0.956523 | AV41: 0.920142
AC42: 4 | AD42: º | AE42: 22 | AF42: Bebidas, líquidos alcoólicos e vinagres | AG42: 0.4566338 | AH42: 0.03864585208 | AO42: - | AP42: Outros | AQ42: 1.759416 | AR42: 1.011173 | AS42: 1.716728 | AT42: 1.765665 | AU42: 1.546306 | AV42: 1.5598576
AC43: 5 | AD43: º | AE43: 20 | AF43: Preparações de produtos vegetais | AG43: 0.3855176 | AH43: 0.03262714268 | AP43: Total | AQ43: 15.076271 | AR43: 11.753308 | AS43: 15.047106 | AT43: 10.745828 | AU43: 6.456764 | AV43: 11.8158554
AC44: 6 | AD44: º | AE44: 11 | AF44: Produtos da indústria de moagem e outros | AG44: 0.3244206 | AH44: 0.02745637866
AC45: 7 | AD45: º | AE45: 09 | AF45: Café, chá, mate e especiarias | AG45: 0.2102018 | AH45: 0.01778980809
AC46: 8 | AD46: º | AE46: 12 | AF46: Sementes e frutos oleaginosos | AG46: 0.0664602 | AH46: 0.005624662604
AC47: 9 | AD47: º | AE47: 10 | AF47: Cereais | AG47: 0.0527652 | AH47: 0.004465626754
AC48: 10 | AD48: º | AE48: 23a | AF48: Resíduos indústrias alimentares; alimentos p/ animais (exc. NC 230120) (a) | AG48: 0.0172378 | AH48: 0.001458870257 | AI48: 0.9960544033
AE49: - | AF49: Outros | AG49: 0.0466206 | AH49: 0.003945596694
AE50: Total | AG50: 11.8158554 | AH50: 1
AC62: DESAGREGAÇÃO A 4 DÍGITOS | AN62: DESAGREGAÇÃO A 4 DÍGITOS
AC64: P | AE64: Cód.NC | AF64: Descritivo | AG64: Média export quinquénio | AH64: % do total | AI64: % acumulada | AN64: P | AO64: NC | AP64: Exportações | AQ64: 2019 | AR64: 2020 | AS64: 2021 | AT64: 2022 | AU64: 2023 | AV64: média quinquénio
AC65: 1 | AD65: º | AE65: 2002 | AF65: Tomates preparados | AG65: 40.2286994 | AH65: 0.6588801785 | AN65: 1º | AO65: 2002 | AP65: Tomates preparados | AQ65: 30.23865 | AR65: 30.380466 | AS65: 32.668405 | AT65: 45.839097 | AU65: 62.016879 | AV65: 40.2286994
AC66: 2 | AD66: º | AE66: 2204 | AF66: Vinhos de uvas frescas | AG66: 7.2900506 | AH66: 0.1193990836 | AN66: 2º | AO66: 2204 | AP66: Vinhos de uvas frescas | AQ66: 7.021836 | AR66: 6.09225 | AS66: 6.963547 | AT66: 8.675809 | AU66: 7.696811 | AV66: 7.2900506
AC67: 3 | AD67: º | AE67: 0203 | AF67: Carnes de suíno | AG67: 3.929925 | AH67: 0.06436573203 | AI67: 0.8426449941 | AN67: 3º | AO67: 0203 | AP67: Carnes de suíno | AQ67: 4.554868 | AR67: 4.861793 | AS67: 5.226437 | AT67: 4.270354 | AU67: 0.736173 | AV67: 3.929925
AC68: 4 | AD68: º | AE68: 1905 | AF68: Produtos de padaria, pastelaria, etc. | AG68: 2.6373802 | AH68: 0.04319596614 | AN68: - | AO68: - | AP68: Outros | AQ68: 9.195653 | AR68: 9.500738 | AS68: 11.172356 | AT68: 9.884798 | AU68: 8.283924 | AV68: 9.6074938
AC69: 5 | AD69: º | AE69: 0710 | AF69: Produtos hortícolas congelados | AG69: 2.194671 | AH69: 0.03594511485 | AP69: Total | AQ69: 51.011007 | AR69: 50.835247 | AS69: 56.030745 | AT69: 68.670058 | AU69: 78.733787 | AV69: 61.0561688
AC70: 6 | AD70: º | AE70: 1509 | AF70: Azeite (processos mecânicos ou físicos) | AG70: 1.0159826 | AH70: 0.01664013023
AC71: 7 | AD71: º | AE71: 0404 | AF71: Soro de leite e outros produtos do leite | AG71: 0.9334924 | AH71: 0.01528907592
AC72: 8 | AD72: º | AE72: 0402 | AF72: Leite e nata, concentrados | AG72: 0.5388886 | AH72: 0.00882611226
AC73: 9 | AD73: º | AE73: 1510 | AF73: Óleos de azeitonas obtidos por outros processos | AG73: 0.4105838 | AH73: 0.006724689873
AC74: 10 | AD74: º | AE74: 0712 | AF74: Produtos hortícolas secos | AG74: 0.365075 | AH74: 0.005979330298 | AI74: 0.9752454137
AE75: - | AF75: Outros | AG75: 1.5114202 | AH75: 0.0247545863
AE76: Total | AG76: 61.0561688 | AH76: 1
AC89: DESAGREGAÇÃO A 4 DÍGITOS | AN89: DESAGREGAÇÃO A 4 DÍGITOS
G91: média 2019-2023 em milhões de euros | I91: Cód. NC | J91: Descritivo | K91: Export | L91: Import | M91: Saldo | AC91: P | AE91: Cód.NC | AF91: Descritivo | AG91: Média import quinquénio | AH91: % do total | AI91: % acumulada | AN91: P | AO91: NC | AP91: Importações | AQ91: 2019 | AR91: 2020 | AS91: 2021 | AT91: 2022 | AU91: 2023 | AV91: média quinquénio
I92: 2002 | J92: Tomates preparados | K92: 40.2286994 | L92: 0.022019 | M92: 40.2066804 | AC92: 1 | AD92: º | AE92: 1518 | AF92: Gorduras e óleos, animais ou vegetais, processados de outras formas | AG92: 5.8480032 | AH92: 0.494928467 | AN92: 1º | AO92: 1518 | AP92: Gorduras e óleos, animais ou vegetais, processados de outras formas | AQ92: 8.561528 | AR92: 7.563625 | AS92: 8.375219 | AT92: 3.657897 | AU92: 1.081747 | AV92: 5.8480032
I93: 2204 | J93: Vinhos de uvas frescas | K93: 7.2900506 | L93: 0.012154 | M93: 7.2778966 | AC93: 2 | AD93: º | AE93: 2103 | AF93: Preparações para molhos e molhos preparados | AG93: 3.2055834 | AH93: 0.271295077 | AN93: 2º | AO93: 2103 | AP93: Preparações para molhos e molhos preparados | AQ93: 3.781993 | AR93: 2.383402 | AS93: 3.621941 | AT93: 3.711307 | AU93: 2.529274 | AV93: 3.2055834
I94: 0203 | J94: Carnes de suíno | K94: 3.929925 | L94: 7.3e-05 | M94: 3.929852 | AC94: 3 | AD94: º | AE94: 1905 | AF94: Produtos de padaria, pastelaria, etc. | AG94: 0.5452648 | AH94: 0.04614687482 | AI94: 0.8123704188 | AN94: 3º | AO94: 1905 | AP94: Produtos de padaria, pastelaria, etc. | AQ94: 0.411051 | AR94: 0.343982 | AS94: 0.605862 | AT94: 0.7879 | AU94: 0.577529 | AV94: 0.5452648
I95: 0710 | J95: Produtos hortícolas congelados | K95: 2.194671 | L95: 0.0009174 | M95: 2.1937536 | AC95: 4 | AD95: º | AE95: 1902 | AF95: Massas alimentícias (exc. NC 1902 20 10) (a) | AG95: 0.334227 | AH95: 0.02828631434 | AN95: - | AO95: - | AP95: Outros | AQ95: 2.321699 | AR95: 1.462299 | AS95: 2.444084 | AT95: 2.588724 | AU95: 2.268214 | AV95: 2.217004
I96: 1905 | J96: Produtos de padaria, pastelaria, etc. | K96: 2.6373802 | L96: 0.5452648 | M96: 2.0921154 | AC96: 5 | AD96: º | AE96: 1101 | AF96: Farinhas de trigo ou trigo/centeio | AG96: 0.3019594 | AH96: 0.02555544138 | AP96: Total | AQ96: 15.076271 | AR96: 11.753308 | AS96: 15.047106 | AT96: 10.745828 | AU96: 6.456764 | AV96: 11.8158554
I97: 1509 | J97: Azeite (processos mecânicos ou físicos) | K97: 1.0159826 | L97: 0 | M97: 1.0159826 | AC97: 6 | AD97: º | AE97: 2008 | AF97: Frutas preparadas | AG97: 0.2998176 | AH97: 0.02537417646
I98: 0404 | J98: Soro de leite e outros produtos do leite | K98: 0.9334924 | L98: 0 | M98: 0.9334924 | AC98: 7 | AD98: º | AE98: 2206 | AF98: Sidra, perada e outras bebidas fermentadas | AG98: 0.1714232 | AH98: 0.01450789589
I99: 0402 | J99: Leite e nata, concentrados | K99: 0.5388886 | L99: 0 | M99: 0.5388886 | AC99: 8 | AD99: º | AE99: 2104 | AF99: Preparações para caldos e sopas | AG99: 0.17142 | AH99: 0.01450762507
I100: 1510 | J100: Óleos de azeitonas obtidos por outros processos | K100: 0.4105838 | L100: 0 | M100: 0.4105838 | AC100: 9 | AD100: º | AE100: 2209 | AF100: Vinagres para usos alimentares | AG100: 0.1214834 | AH100: 0.01028138851
I101: 0712 | J101: Produtos hortícolas secos | K101: 0.365075 | L101: 2.74e-05 | M101: 0.3650476 | AC101: 10 | AD101: º | AE101: 2202 | AF101: Águas com açúcar ou outros produtos; outras bebidas | AG101: 0.1151364 | AH101: 0.009744228928 | AI101: 0.9406274894
I102: - | J102: Outros | K102: 1.4991808 | L102: 0.5679298 | M102: 0.931251 | AE102: - | AF102: Outros | AG102: 0.701537 | AH102: 0.0593725106
I103: 0902 | J103: Chá | K103: 0.0011508 | L103: 0.0984164 | M103: -0.0972656 | AE103: Total | AG103: 11.8158554 | AH103: 1
I104: 2202 | J104: Águas com açúcar ou outros produtos; outras bebidas | K104: 0.0019364 | L104: 0.1151364 | M104: -0.1132
I105: 2209 | J105: Vinagres para usos alimentares | K105: 1.64e-05 | L105: 0.1214834 | M105: -0.121467
I106: 2206 | J106: Sidra, perada e outras bebidas fermentadas | K106: 0.0035594 | L106: 0.1714232 | M106: -0.1678638
I107: 2104 | J107: Preparações para caldos e sopas | K107: 0.0005128 | L107: 0.17142 | M107: -0.1709072
I108: 2008 | J108: Frutas preparadas | K108: 0.0002166 | L108: 0.2998176 | M108: -0.299601
I109: 1101 | J109: Farinhas de trigo ou trigo/centeio | K109: 0 | L109: 0.3019594 | M109: -0.3019594
I110: 1902 | J110: Massas alimentícias (exc. NC 1902 20 10) (a) | K110: 4.06e-05 | L110: 0.334227 | M110: -0.3341864
I111: 2103 | J111: Preparações para molhos e molhos preparados | K111: 0.004755 | L111: 3.2055834 | M111: -3.2008284
I112: 1518 | J112: Gorduras e óleos, animais ou vegetais, processados de outras formas | K112: 5.14e-05 | L112: 5.8480032 | M112: -5.8479518
I113: Total | K113: 61.0561688 | L113: 11.8158554 | M113: 49.2403134
A116: Fonte: GPP a partir de dados INE/Comércio Internacional (2022 definitivos) | Y116: 2024-07-05T15:40:28.630

Sheet 4A
A1: Evolução da balança comercial Portugal-Japão 2019-2023 por produto em euros (NC 2 dígitos)
A3: =+aux!A31 -> Evolução da balança comercial Portugal-Japão para Preparações de produtos vegetais
A5: Selecione o produto:
Q7: Para obter uma maior desagregação deste produto, clique no botão respetivo:
A20: =+aux!A43 -> Evolução da balança comercial Portugal-Japão para Gorduras e óleos animais ou vegetais
A22: Selecione o produto:
A38: Fonte: GPP a partir de dados INE/Comércio Internacional (2022 definitivos) | N38: 2024-07-05T15:40:28.630

Sheet 5.2
A1: Trocas comerciais Portugal-Japão 2019-2023 em milhares de euros (NC 2 dígitos) | C1: Produtos agrícolas e agroalimentares, do mar e da floresta
A2: Cód. NC | B2: Descritivo | C2: Importações | K2: Exportações | S2: Saldo quinquénio (exp-imp) | T2: Evolução das importações | U2: =+"Variação das Importações " & INDEX(K3:N3,1,aux!AL1) & "-"& '5.2'!O3 &"" -> Variação das Importações 2019-2023 | Z2: Evolução das exportações | AA2: ="Variação das Exportações " & INDEX(K3:N3,1,aux!AL1) & "-"& '5.2'!O3 &"" -> Variação das Exportações 2019-2023
C3: 2019 | D3: 2020 | E3: 2021 | F3: 2022 | G3: 2023 | H3: média quinquénio | I3: % Subtot | J3: % Total | K3: 2019 | L3: 2020 | M3: 2021 | N3: 2022 | O3: 2023 | P3: média quinquénio | Q3: % Subtot | R3: % Total | U3: variação total em valor | V3: % no subtotal de variação | W3: % no total de variação | X3: taxa de variação média anual | Y3: taxa de variação total | AA3: variação total em valor | AB3: % no subtotal de variação | AC3: % no total de variação | AD3: taxa de variação média anual | AE3: taxa de variação total
A4: 01 | B4: Animais vivos | C4: 0 | D4: 0 | E4: 0 | F4: 0 | G4: 0.112 | H4: 0.0224 | I4: 1.895757797e-06 | J4: 1.508695169e-06 | K4: 0.01 | L4: 0.23 | M4: 0.55 | N4: 0 | O4: 0.6 | P4: 0.278 | Q4: 4.553184477e-06 | R4: 3.789555875e-06 | S4: 0.2556 | U4: =G4-INDEX($C4:$G4,1,aux!$AL$1) -> 0.112 | V4: =IF($U$37<>0,U4/$U$37, "n.d.") -> -1.299378259e-05 | W4: =IF($U$53<>0,U4/$U$53, "n.d.") -> -1.406439383e-05 | X4: =+IF(INDEX($C4:$G4,1,aux!$AL$1)>0,(G4/INDEX($C4:$G4,1,aux!$AL$1))^(1/($G$3-INDEX($C$3:$G$3,1,aux!$AL$1)))-1,"n.d.") -> n.d. | Y4: =IF(INDEX($C4:$G4,1,aux!$AL$1)>0,(G4-INDEX($C4:$G4,1,aux!$AL$1))/INDEX($C4:$G4,1,aux!$AL$1),"n.d.") -> n.d. | AA4: =O4-INDEX($K4:$O4,1,aux!$AL$1) -> 0.59 | AB4: =IF($AA$37<>0,AA4/$AA$37, "n.d.") -> 2.128213693e-05 | AC4: =IF($AA$53<>0,AA4/$AA$53, "n.d.") -> 1.935194533e-05 | AD4: =+IF(INDEX($K4:$O4,1,aux!$AL$1)>0,(O4/INDEX($K4:$O4,1,aux!$AL$1))^(1/($O$3-INDEX($K$3:$O$3,1,aux!$AL$1)))-1,"n.d.") -> 1.783157684 | AE4: =IF(INDEX($K4:$O4,1,aux!$AL$1)>0,(O4-INDEX($K4:$O4,1,aux!$AL$1))/INDEX($K4:$O4,1,aux!$AL$1),"n.d.") -> 59
A5: 02 | B5: Carnes e miudezas | C5: 0 | D5: 0 | E5: 0.307 | F5: 0.146 | G5: 39.428 | H5: 7.9762 | I5: 0.0006750421133 | J5: 0.0005372167147 | K5: 4563.267 | L5: 4905.182 | M5: 5252.178 | N5: 5031.722 | O5: 1640.591 | P5: 4278.588 | Q5: 0.07007626066 | R5: 0.05832355501 | S5: 4270.6118 | U5: =G5-INDEX($C5:$G5,1,aux!$AL$1) -> 39.428 | V5: -0.004574275536 | W5: -0.004951168927 | X5: =+IF(INDEX($C5:$G5,1,aux!$AL$1)>0,(G5/INDEX($C5:$G5,1,aux!$AL$1))^(1/($G$3-INDEX($C$3:$G$3,1,aux!$AL$1)))-1,"n.d.") -> n.d. | Y5: =IF(INDEX($C5:$G5,1,aux!$AL$1)>0,(G5-INDEX($C5:$G5,1,aux!$AL$1))/INDEX($C5:$G5,1,aux!$AL$1),"n.d.") -> n.d. | AA5: =O5-INDEX($K5:$O5,1,aux!$AL$1) -> -2922.676 | AB5: -0.1054250692 | AC5: -0.095863502 | AD5: =+IF(INDEX($K5:$O5,1,aux!$AL$1)>0,(O5/INDEX($K5:$O5,1,aux!$AL$1))^(1/($O$3-INDEX($K$3:$O$3,1,aux!$AL$1)))-1,"n.d.") -> -0.2256610396 | AE5: =IF(INDEX($K5:$O5,1,aux!$AL$1)>0,(O5-INDEX($K5:$O5,1,aux!$AL$1))/INDEX($K5:$O5,1,aux!$AL$1),"n.d.") -> -0.6404788499
A6: 04 | B6: Leite e laticínios; ovos; mel, etc. | C6: 0 | D6: 0 | E6: 0.019 | F6: 0 | G6: 0.023 | H6: 0.0084 | I6: 7.109091738e-07 | J6: 5.657606885e-07 | K6: 3265.068 | L6: 1703.413 | M6: 1777.433 | N6: 710.419 | O6: 23.889 | P6: 1496.0444 | Q6: 0.0245027559 | R6: 0.02039332318 | S6: 1496.036 | U6: =G6-INDEX($C6:$G6,1,aux!$AL$1) -> 0.023 | V6: -2.668366068e-06 | W6: -2.888223732e-06 | X6: =+IF(INDEX($C6:$G6,1,aux!$AL$1)>0,(G6/INDEX($C6:$G6,1,aux!$AL$1))^(1/($G$3-INDEX($C$3:$G$3,1,aux!$AL$1)))-1,"n.d.") -> n.d. | Y6: =IF(INDEX($C6:$G6,1,aux!$AL$1)>0,(G6-INDEX($C6:$G6,1,aux!$AL$1))/INDEX($C6:$G6,1,aux!$AL$1),"n.d.") -> n.d. | AA6: =O6-INDEX($K6:$O6,1,aux!$AL$1) -> -3241.179 | AB6: -0.1169139242 | AC6: -0.1063103709 | AD6: =+IF(INDEX($K6:$O6,1,aux!$AL$1)>0,(O6/INDEX($K6:$O6,1,aux!$AL$1))^(1/($O$3-INDEX($K$3:$O$3,1,aux!$AL$1)))-1,"n.d.") -> -0.7075332932 | AE6: =IF(INDEX($K6:$O6,1,aux!$AL$1)>0,(O6-INDEX($K6:$O6,1,aux!$AL$1))/INDEX($K6:$O6,1,aux!$AL$1),"n.d.") -> -0.9926834602
A7: 05a | B7: Outros produtos de origem animal (exc. NC 0508, 051191) (a) | C7: 0 | D7: 0 | E7: 0 | F7: 0 | G7: 0 | H7: 0 | I7: 0 | J7: 0 | K7: 0 | L7: 0 | M7: 0 | N7: 0 | O7: 0.001 | P7: 0.0002 | Q7: 3.275672286e-09 | R7: 2.726299191e-09 | S7: 0.0002 | U7: =G7-INDEX($C7:$G7,1,aux!$AL$1) -> 0 | V7: 0 | W7: 0 | X7: =+IF(INDEX($C7:$G7,1,aux!$AL$1)>0,(G7/INDEX($C7:$G7,1,aux!$AL$1))^(1/($G$3-INDEX($C$3:$G$3,1,aux!$AL$1)))-1,"n.d.") -> n.d. | Y7: =IF(INDEX($C7:$G7,1,aux!$AL$1)>0,(G7-INDEX($C7:$G7,1,aux!$AL$1))/INDEX($C7:$G7,1,aux!$AL$1),"n.d.") -> n.d. | AA7: =O7-INDEX($K7:$O7,1,aux!$AL$1) -> 0.001 | AB7: 3.607141852e-08 | AC7: 3.279990735e-08 | AD7: =+IF(INDEX($K7:$O7,1,aux!$AL$1)>0,(O7/INDEX($K7:$O7,1,aux!$AL$1))^(1/($O$3-INDEX($K$3:$O$3,1,aux!$AL$1)))-1,"n.d.") -> n.d. | AE7: =IF(INDEX($K7:$O7,1,aux!$AL$1)>0,(O7-INDEX($K7:$O7,1,aux!$AL$1))/INDEX($K7:$O7,1,aux!$AL$1),"n.d.") -> n.d.
A8: 06 | B8: Plantas vivas e produtos de floricultura | C8: 2.956 | D8: 0.887 | E8: 6.297 | F8: 2.752 | G8: 6.325 | H8: 3.8434 | I8: 0.0003252747998 | J8: 0.000258862456 | K8: 89.992 | L8: 57.513 | M8: 77.808 | N8: 43.84 | O8: 41.509 | P8: 62.1324 | Q8: 0.001017626904 | R8: 0.0008469575592 | S8: 58.289 | U8: =G8-INDEX($C8:$G8,1,aux!$AL$1) -> 3.369 | V8: -0.000390857621 | W8: -0.0004230619893 | X8: =+IF(INDEX($C8:$G8,1,aux!$AL$1)>0,(G8/INDEX($C8:$G8,1,aux!$AL$1))^(1/($G$3-INDEX($C$3:$G$3,1,aux!$AL$1)))-1,"n.d.") -> 0.2094530806 | Y8: =IF(INDEX($C8:$G8,1,aux!$AL$1)>0,(G8-INDEX($C8:$G8,1,aux!$AL$1))/INDEX($C8:$G8,1,aux!$AL$1),"n.d.") -> 1.139715832 | AA8: =O8-INDEX($K8:$O8,1,aux!$AL$1) -> -48.483 | AB8: -0.001748850584 | AC8: -0.001590237908 | AD8: =+IF(INDEX($K8:$O8,1,aux!$AL$1)>0,(O8/INDEX($K8:$O8,1,aux!$AL$1))^(1/($O$3-INDEX($K$3:$O$3,1,aux!$AL$1)))-1,"n.d.") -> -0.1758911239 | AE8: =IF(INDEX($K8:$O8,1,aux!$AL$1)>0,(O8-INDEX($K8:$O8,1,aux!$AL$1))/INDEX($K8:$O8,1,aux!$AL$1),"n.d.") -> -0.5387478887
A9: 07 | B9: Produtos hortícolas | C9: 0 | D9: 4.587 | E9: 0.008 | F9: 0.021 | G9: 0.129 | H9: 0.949 | I9: 8.031581023e-05 | J9: 6.391748731e-05 | K9: 2019.709 | L9: 2218.587 | M9: 2572.126 | N9: 3065.995 | O9: 2922.66 | P9: 2559.8154 | Q9: 0.04192558181 | R9: 0.03489411327 | S9: 2558.8664 | U9: =G9-INDEX($C9:$G9,1,aux!$AL$1) -> 0.129 | V9: -1.496605316e-05 | W9: -1.619916789e-05 | X9: =+IF(INDEX($C9:$G9,1,aux!$AL$1)>0,(G9/INDEX($C9:$G9,1,aux!$AL$1))^(1/($G$3-INDEX($C$3:$G$3,1,aux!$AL$1)))-1,"n.d.") -> n.d. | Y9: =IF(INDEX($C9:$G9,1,aux!$AL$1)>0,(G9-INDEX($C9:$G9,1,aux!$AL$1))/INDEX($C9:$G9,1,aux!$AL$1),"n.d.") -> n.d. | AA9: =O9-INDEX($K9:$O9,1,aux!$AL$1) -> 902.951 | AB9: 0.03257072343 | AC9: 0.02961670914 | AD9: =+IF(INDEX($K9:$O9,1,aux!$AL$1)>0,(O9/INDEX($K9:$O9,1,aux!$AL$1))^(1/($O$3-INDEX($K$3:$O$3,1,aux!$AL$1)))-1,"n.d.") -> 0.09678720092 | AE9: =IF(INDEX($K9:$O9,1,aux!$AL$1)>0,(O9-INDEX($K9:$O9,1,aux!$AL$1))/INDEX($K9:$O9,1,aux!$AL$1),"n.d.") -> 0.4470698502
A10: 08 | B10: Frutas | C10: 4.565 | D10: 2.285 | E10: 0 | F10: 0.045 | G10: 0 | H10: 1.379 | I10: 0.0001167075894 | J10: 9.287904636e-05 | K10: 37.326 | L10: 33.762 | M10: 35.064 | N10: 13.373 | O10: 0 | P10: 23.905 | Q10: 0.0003915247299 | R10: 0.0003258609108 | S10: 22.526 | U10: =G10-INDEX($C10:$G10,1,aux!$AL$1) -> -4.565 | V10: 0.0005296126565 | W10: 0.0005732496234 | X10: =+IF(INDEX($C10:$G10,1,aux!$AL$1)>0,(G10/INDEX($C10:$G10,1,aux!$AL$1))^(1/($G$3-INDEX($C$3:$G$3,1,aux!$AL$1)))-1,"n.d.") -> -1 | Y10: =IF(INDEX($C10:$G10,1,aux!$AL$1)>0,(G10-INDEX($C10:$G10,1,aux!$AL$1))/INDEX($C10:$G10,1,aux!$AL$1),"n.d.") -> -1 | AA10: =O10-INDEX($K10:$O10,1,aux!$AL$1) -> -37.326 | AB10: -0.001346401768 | AC10: -0.001224289342 | AD10: =+IF(INDEX($K10:$O10,1,aux!$AL$1)>0,(O10/INDEX($K10:$O10,1,aux!$AL$1))^(1/($O$3-INDEX($K$3:$O$3,1,aux!$AL$1)))-1,"n.d.") -> -1 | AE10: =IF(INDEX($K10:$O10,1,aux!$AL$1)>0,(O10-INDEX($K10:$O10,1,aux!$AL$1))/INDEX($K10:$O10,1,aux!$AL$1),"n.d.") -> -1
A11: 09 | B11: Café, chá, mate e especiarias | C11: 297.032 | D11: 116.036 | E11: 107.091 | F11: 242.169 | G11: 288.681 | H11: 210.2018 | I11: 0.01778980809 | J11: 0.01415760894 | K11: 330.2 | L11: 303.858 | M11: 313.428 | N11: 416.04 | O11: 235.381 | P11: 319.7814 | Q11: 0.005237495347 | R11: 0.00435909886 | S11: 109.5796 | U11: =G11-INDEX($C11:$G11,1,aux!$AL$1) -> -8.351 | V11: 0.0009688489144 | W11: 0.001048676365 | X11: =+IF(INDEX($C11:$G11,1,aux!$AL$1)>0,(G11/INDEX($C11:$G11,1,aux!$AL$1))^(1/($G$3-INDEX($C$3:$G$3,1,aux!$AL$1)))-1,"n.d.") -> -0.007104047324 | Y11: =IF(INDEX($C11:$G11,1,aux!$AL$1)>0,(G11-INDEX($C11:$G11,1,aux!$AL$1))/INDEX($C11:$G11,1,aux!$AL$1),"n.d.") -> -0.02811481591 | AA11: =O11-INDEX($K11:$O11,1,aux!$AL$1) -> -94.819 | AB11: -0.003420255833 | AC11: -0.003110054415 | AD11: =+IF(INDEX($K11:$O11,1,aux!$AL$1)>0,(O11/INDEX($K11:$O11,1,aux!$AL$1))^(1/($O$3-INDEX($K$3:$O$3,1,aux!$AL$1)))-1,"n.d.") -> -0.08114161321 | AE11: =IF(INDEX($K11:$O11,1,aux!$AL$1)>0,(O11-INDEX($K11:$O11,1,aux!$AL$1))/INDEX($K11:$O11,1,aux!$AL$1),"n.d.") -> -0.2871562689
A12: 10 | B12: Cereais | C12: 36.626 | D12: 0 | E12: 73.378 | F12: 132.16 | G12: 21.662 | H12: 52.7652 | I12: 0.004465626754 | J12: 0.003553866176 | K12: 0 | L12: 0.023 | M12: 0 | N12: 0.003 | O12: 0 | P12: 0.0052 | Q12: 8.516747942e-08 | R12: 7.088377896e-08 | S12: -52.76 | U12: =G12-INDEX($C12:$G12,1,aux!$AL$1) -> -14.964 | V12: 0.001736062167 | W12: 0.001879103475 | X12: =+IF(INDEX($C12:$G12,1,aux!$AL$1)>0,(G12/INDEX($C12:$G12,1,aux!$AL$1))^(1/($G$3-INDEX($C$3:$G$3,1,aux!$AL$1)))-1,"n.d.") -> -0.1230450878 | Y12: =IF(INDEX($C12:$G12,1,aux!$AL$1)>0,(G12-INDEX($C12:$G12,1,aux!$AL$1))/INDEX($C12:$G12,1,aux!$AL$1),"n.d.") -> -0.4085622236 | AA12: =O12-INDEX($K12:$O12,1,aux!$AL$1) -> 0 | AB12: 0 | AC12: 0 | AD12: =+IF(INDEX($K12:$O12,1,aux!$AL$1)>0,(O12/INDEX($K12:$O12,1,aux!$AL$1))^(1/($O$3-INDEX($K$3:$O$3,1,aux!$AL$1)))-1,"n.d.") -> n.d. | AE12: =IF(INDEX($K12:$O12,1,aux!$AL$1)>0,(O12-INDEX($K12:$O12,1,aux!$AL$1))/INDEX($K12:$O12,1,aux!$AL$1),"n.d.") -> n.d.
A13: 11 | B13: Produtos da indústria de moagem e outros | C13: 392.505 | D13: 246.517 | E13: 535.961 | F13: 266.984 | G13: 180.136 | H13: 324.4206 | I13: 0.02745637866 | J13: 0.02185052643 | K13: 0 | L13: 0.495 | M13: 0.459 | N13: 0 | O13: 0 | P13: 0.1908 | Q13: 3.12499136e-06 | R13: 2.600889428e-06 | S13: -324.2298 | U13: =G13-INDEX($C13:$G13,1,aux!$AL$1) -> -212.369 | V13: 0.02463818406 | W13: 0.02666822547 | X13: =+IF(INDEX($C13:$G13,1,aux!$AL$1)>0,(G13/INDEX($C13:$G13,1,aux!$AL$1))^(1/($G$3-INDEX($C$3:$G$3,1,aux!$AL$1)))-1,"n.d.") -> -0.1769260998 | Y13: =IF(INDEX($C13:$G13,1,aux!$AL$1)>0,(G13-INDEX($C13:$G13,1,aux!$AL$1))/INDEX($C13:$G13,1,aux!$AL$1),"n.d.") -> -0.5410606234 | AA13: =O13-INDEX($K13:$O13,1,aux!$AL$1) -> 0 | AB13: 0 | AC13: 0 | AD13: =+IF(INDEX($K13:$O13,1,aux!$AL$1)>0,(O13/INDEX($K13:$O13,1,aux!$AL$1))^(1/($O$3-INDEX($K$3:$O$3,1,aux!$AL$1)))-1,"n.d.") -> n.d. | AE13: =IF(INDEX($K13:$O13,1,aux!$AL$1)>0,(O13-INDEX($K13:$O13,1,aux!$AL$1))/INDEX($K13:$O13,1,aux!$AL$1),"n.d.") -> n.d.
A14: 12 | B14: Sementes e frutos oleaginosos | C14: 140.245 | D14: 55.654 | E14: 46.972 | F14: 61.055 | G14: 28.375 | H14: 66.4602 | I14: 0.005624662604 | J14: 0.004476258156 | K14: 82.594 | L14: 0 | M14: 1.384 | N14: 54.964 | O14: 315.228 | P14: 90.834 | Q14: 0.001487712082 | R14: 0.001238203303 | S14: 24.3738 | U14: =G14-INDEX($C14:$G14,1,aux!$AL$1) -> -111.87 | V14: 0.01297870052 | W14: 0.01404806908 | X14: =+IF(INDEX($C14:$G14,1,aux!$AL$1)>0,(G14/INDEX($C14:$G14,1,aux!$AL$1))^(1/($G$3-INDEX($C$3:$G$3,1,aux!$AL$1)))-1,"n.d.") -> -0.3293249955 | Y14: =IF(INDEX($C14:$G14,1,aux!$AL$1)>0,(G14-INDEX($C14:$G14,1,aux!$AL$1))/INDEX($C14:$G14,1,aux!$AL$1),"n.d.") -> -0.7976754965 | AA14: =O14-INDEX($K14:$O14,1,aux!$AL$1) -> 232.634 | AB14: 0.008391438377 | AC14: 0.007630373646 | AD14: =+IF(INDEX($K14:$O14,1,aux!$AL$1)>0,(O14/INDEX($K14:$O14,1,aux!$AL$1))^(1/($O$3-INDEX($K$3:$O$3,1,aux!$AL$1)))-1,"n.d.") -> 0.3977164349 | AE14: =IF(INDEX($K14:$O14,1,aux!$AL$1)>0,(O14-INDEX($K14:$O14,1,aux!$AL$1))/INDEX($K14:$O14,1,aux!$AL$1),"n.d.") -> 2.816596847
A15: 13a | B15: Sucos e extratos vegetais (exc. NC 1301) (a) | C15: 1.647 | D15: 0 | E15: 0 | F15: 0 | G15: 0 | H15: 0.3294 | I15: 2.787779546e-05 | J15: 2.218590128e-05 | K15: 42.003 | L15: 0 | M15: 0 | N15: 0.799 | O15: 0 | P15: 8.5604 | Q15: 0.0001402053252 | R15: 0.000116691058 | S15: 8.231 | U15: =G15-INDEX($C15:$G15,1,aux!$AL$1) -> -1.647 | V15: 0.0001910782136 | W15: 0.0002068219342 | X15: =+IF(INDEX($C15:$G15,1,aux!$AL$1)>0,(G15/INDEX($C15:$G15,1,aux!$AL$1))^(1/($G$3-INDEX($C$3:$G$3,1,aux!$AL$1)))-1,"n.d.") -> -1 | Y15: =IF(INDEX($C15:$G15,1,aux!$AL$1)>0,(G15-INDEX($C15:$G15,1,aux!$AL$1))/INDEX($C15:$G15,1,aux!$AL$1),"n.d.") -> -1 | AA15: =O15-INDEX($K15:$O15,1,aux!$AL$1) -> -42.003 | AB15: -0.001515107792 | AC15: -0.001377694508 | AD15: =+IF(INDEX($K15:$O15,1,aux!$AL$1)>0,(O15/INDEX($K15:$O15,1,aux!$AL$1))^(1/($O$3-INDEX($K$3:$O$3,1,aux!$AL$1)))-1,"n.d.") -> -1 | AE15: =IF(INDEX($K15:$O15,1,aux!$AL$1)>0,(O15-INDEX($K15:$O15,1,aux!$AL$1))/INDEX($K15:$O15,1,aux!$AL$1),"n.d.") -> -1
A16: 14 | B16: Matérias para entrançar e outros | C16: 0 | D16: 0 | E16: 0 | F16: 0.133 | G16: 0 | H16: 0.0266 | I16: 2.251212384e-06 | J16: 1.791575514e-06 | K16: 0 | L16: 0 | M16: 0 | N16: 0 | O16: 0 | P16: 0 | Q16: 0 | R16: 0 | S16: -0.0266 | U16: =G16-INDEX($C16:$G16,1,aux!$AL$1) -> 0 | V16: 0 | W16: 0 | X16: =+IF(INDEX($C16:$G16,1,aux!$AL$1)>0,(G16/INDEX($C16:$G16,1,aux!$AL$1))^(1/($G$3-INDEX($C$3:$G$3,1,aux!$AL$1)))-1,"n.d.") -> n.d. | Y16: =IF(INDEX($C16:$G16,1,aux!$AL$1)>0,(G16-INDEX($C16:$G16,1,aux!$AL$1))/INDEX($C16:$G16,1,aux!$AL$1),"n.d.") -> n.d. | AA16: =O16-INDEX($K16:$O16,1,aux!$AL$1) -> 0 | AB16: 0 | AC16: 0 | AD16: =+IF(INDEX($K16:$O16,1,aux!$AL$1)>0,(O16/INDEX($K16:$O16,1,aux!$AL$1))^(1/($O$3-INDEX($K$3:$O$3,1,aux!$AL$1)))-1,"n.d.") -> n.d. | AE16: =IF(INDEX($K16:$O16,1,aux!$AL$1)>0,(O16-INDEX($K16:$O16,1,aux!$AL$1))/INDEX($K16:$O16,1,aux!$AL$1),"n.d.") -> n.d.
A17: 15 | B17: Gorduras e óleos animais ou vegetais | C17: 8561.73 | D17: 7564.172 | E17: 8375.219 | F17: 3659.811 | G17: 1081.808 | H17: 5848.548 | I17: 0.4949745746 | J17: 0.3939141123 | K17: 885.798 | L17: 1148.448 | M17: 2193.428 | N17: 2560.142 | O17: 401.653 | P17: 1437.8938 | Q17: 0.02355034435 | R17: 0.01960064352 | S17: -4410.6542 | U17: =G17-INDEX($C17:$G17,1,aux!$AL$1) -> -7479.922 | V17: 0.8677900024 | W17: 0.9392907929 | X17: =+IF(INDEX($C17:$G17,1,aux!$AL$1)>0,(G17/INDEX($C17:$G17,1,aux!$AL$1))^(1/($G$3-INDEX($C$3:$G$3,1,aux!$AL$1)))-1,"n.d.") -> -0.4037928703 | Y17: =IF(INDEX($C17:$G17,1,aux!$AL$1)>0,(G17-INDEX($C17:$G17,1,aux!$AL$1))/INDEX($C17:$G17,1,aux!$AL$1),"n.d.") -> -0.8736460972 | AA17: =O17-INDEX($K17:$O17,1,aux!$AL$1) -> -484.145 | AB17: -0.01746379692 | AC17: -0.01587991114 | AD17: =+IF(INDEX($K17:$O17,1,aux!$AL$1)>0,(O17/INDEX($K17:$O17,1,aux!$AL$1))^(1/($O$3-INDEX($K$3:$O$3,1,aux!$AL$1)))-1,"n.d.") -> -0.1794045966 | AE17: =IF(INDEX($K17:$O17,1,aux!$AL$1)>0,(O17-INDEX($K17:$O17,1,aux!$AL$1))/INDEX($K17:$O17,1,aux!$AL$1),"n.d.") -> -0.5465636635
A18: 16a | B18: Preparações de carnes (exc. NC 1604-05) (a) | C18: 0 | D18: 0 | E18: 0 | F18: 0 | G18: 0 | H18: 0 | I18: 0 | J18: 0 | K18: 0.084 | L18: 0 | M18: 0.172 | N18: 38.283 | O18: 23.609 | P18: 12.4296 | Q18: 0.0002035764812 | R18: 0.0001694340421 | S18: 12.4296 | U18: =G18-INDEX($C18:$G18,1,aux!$AL$1) -> 0 | V18: 0 | W18: 0 | X18: =+IF(INDEX($C18:$G18,1,aux!$AL$1)>0,(G18/INDEX($C18:$G18,1,aux!$AL$1))^(1/($G$3-INDEX($C$3:$G$3,1,aux!$AL$1)))-1,"n.d.") -> n.d. | Y18: =IF(INDEX($C18:$G18,1,aux!$AL$1)>0,(G18-INDEX($C18:$G18,1,aux!$AL$1))/INDEX($C18:$G18,1,aux!$AL$1),"n.d.") -> n.d. | AA18: =O18-INDEX($K18:$O18,1,aux!$AL$1) -> 23.525 | AB18: 0.0008485801208 | AC18: 0.0007716178203 | AD18: =+IF(INDEX($K18:$O18,1,aux!$AL$1)>0,(O18/INDEX($K18:$O18,1,aux!$AL$1))^(1/($O$3-INDEX($K$3:$O$3,1,aux!$AL$1)))-1,"n.d.") -> 3.094487754 | AE18: =IF(INDEX($K18:$O18,1,aux!$AL$1)>0,(O18-INDEX($K18:$O18,1,aux!$AL$1))/INDEX($K18:$O18,1,aux!$AL$1),"n.d.") -> 280.0595238
A19: 17 | B19: Açúcares e produtos de confeitaria | C19: 2.138 | D19: 2.023 | E19: 11.638 | F19: 4.71 | G19: 9.184 | H19: 5.9386 | I19: 0.0005025958595 | J19: 0.0003999793363 | K19: 1.179 | L19: 1.193 | M19: 1.825 | N19: 2.166 | O19: 0.934 | P19: 1.4594 | Q19: 2.390258067e-05 | R19: 1.989380519e-05 | S19: -4.4792 | U19: =G19-INDEX($C19:$G19,1,aux!$AL$1) -> 7.046 | V19: -0.0008174481441 | W19: -0.0008848010617 | X19: =+IF(INDEX($C19:$G19,1,aux!$AL$1)>0,(G19/INDEX($C19:$G19,1,aux!$AL$1))^(1/($G$3-INDEX($C$3:$G$3,1,aux!$AL$1)))-1,"n.d.") -> 0.4396470894 | Y19: =IF(INDEX($C19:$G19,1,aux!$AL$1)>0,(G19-INDEX($C19:$G19,1,aux!$AL$1))/INDEX($C19:$G19,1,aux!$AL$1),"n.d.") -> 3.295603368 | AA19: =O19-INDEX($K19:$O19,1,aux!$AL$1) -> -0.245 | AB19: -8.837497538e-06 | AC19: -8.0359773e-06 | AD19: =+IF(INDEX($K19:$O19,1,aux!$AL$1)>0,(O19/INDEX($K19:$O19,1,aux!$AL$1))^(1/($O$3-INDEX($K$3:$O$3,1,aux!$AL$1)))-1,"n.d.") -> -0.05657307257 | AE19: =IF(INDEX($K19:$O19,1,aux!$AL$1)>0,(O19-INDEX($K19:$O19,1,aux!$AL$1))/INDEX($K19:$O19,1,aux!$AL$1),"n.d.") -> -0.2078032231
A20: 18 | B20: Cacau e suas preparações | C20: 41.476 | D20: 1.753 | E20: 10.172 | F20: 0.668 | G20: 0.19 | H20: 10.8518 | I20: 0.0009184100205 | J20: 0.0007308954571 | K20: 184.962 | L20: 162.337 | M20: 355.216 | N20: 258.147 | O20: 488.564 | P20: 289.8452 | Q20: 0.004747189444 | R20: 0.003951023671 | S20: 278.9934 | U20: =G20-INDEX($C20:$G20,1,aux!$AL$1) -> -41.286 | V20: 0.004789833108 | W20: 0.005184487175 | X20: =+IF(INDEX($C20:$G20,1,aux!$AL$1)>0,(G20/INDEX($C20:$G20,1,aux!$AL$1))^(1/($G$3-INDEX($C$3:$G$3,1,aux!$AL$1)))-1,"n.d.") -> -0.7398408028 | Y20: =IF(INDEX($C20:$G20,1,aux!$AL$1)>0,(G20-INDEX($C20:$G20,1,aux!$AL$1))/INDEX($C20:$G20,1,aux!$AL$1),"n.d.") -> -0.9954190375 | AA20: =O20-INDEX($K20:$O20,1,aux!$AL$1) -> 303.602 | AB20: 0.01095135481 | AC20: 0.00995811747 | AD20: =+IF(INDEX($K20:$O20,1,aux!$AL$1)>0,(O20/INDEX($K20:$O20,1,aux!$AL$1))^(1/($O$3-INDEX($K$3:$O$3,1,aux!$AL$1)))-1,"n.d.") -> 0.2748519056 | AE20: =IF(INDEX($K20:$O20,1,aux!$AL$1)>0,(O20-INDEX($K20:$O20,1,aux!$AL$1))/INDEX($K20:$O20,1,aux!$AL$1),"n.d.") -> 1.64142905
A21: 19a | B21: Preparações à base de cereais (exc. NC 19022010) (a) | C21: 768.668 | D21: 624.537 | E21: 1021.235 | F21: 1229.747 | G21: 956.523 | H21: 920.142 | I21: 0.07787349869 | J21: 0.06197382993 | K21: 1852.541 | L21: 3489.245 | M21: 3641.439 | N21: 1603.457 | O21: 2607.626 | P21: 2638.8616 | Q21: 0.04322022904 | R21: 0.03597163122 | S21: 1718.7196 | U21: =G21-INDEX($C21:$G21,1,aux!$AL$1) -> 187.855 | V21: -0.0217941699 | W21: -0.02358988127 | X21: =+IF(INDEX($C21:$G21,1,aux!$AL$1)>0,(G21/INDEX($C21:$G21,1,aux!$AL$1))^(1/($G$3-INDEX($C$3:$G$3,1,aux!$AL$1)))-1,"n.d.") -> 0.05618295377 | Y21: =IF(INDEX($C21:$G21,1,aux!$AL$1)>0,(G21-INDEX($C21:$G21,1,aux!$AL$1))/INDEX($C21:$G21,1,aux!$AL$1),"n.d.") -> 0.2443902959 | AA21: =O21-INDEX($K21:$O21,1,aux!$AL$1) -> 755.085 | AB21: 0.02723698706 | AC21: 0.02476671804 | AD21: =+IF(INDEX($K21:$O21,1,aux!$AL$1)>0,(O21/INDEX($K21:$O21,1,aux!$AL$1))^(1/($O$3-INDEX($K$3:$O$3,1,aux!$AL$1)))-1,"n.d.") -> 0.08922943369 | AE21: =IF(INDEX($K21:$O21,1,aux!$AL$1)>0,(O21-INDEX($K21:$O21,1,aux!$AL$1))/INDEX($K21:$O21,1,aux!$AL$1),"n.d.") -> 0.4075942179
A22: 20 | B22: Preparações de produtos vegetais | C22: 471.144 | D22: 241.426 | E22: 326.851 | F22: 511.851 | G22: 376.316 | H22: 385.5176 | I22: 0.03262714268 | J22: 0.02596555986 | K22: 30425.052 | L22: 30613.031 | M22: 32787.62 | N22: 46040.786 | O22: 62111.528 | P22: 40395.6034 | Q22: 0.6616137926 | R22: 0.5506525043 | S22: 40010.0858 | U22: =G22-INDEX($C22:$G22,1,aux!$AL$1) -> -94.828 | V22: 0.01100155728 | W22: 0.01190802087 | X22: =+IF(INDEX($C22:$G22,1,aux!$AL$1)>0,(G22/INDEX($C22:$G22,1,aux!$AL$1))^(1/($G$3-INDEX($C$3:$G$3,1,aux!$AL$1)))-1,"n.d.") -> -0.05463448787 | Y22: =IF(INDEX($C22:$G22,1,aux!$AL$1)>0,(G22-INDEX($C22:$G22,1,aux!$AL$1))/INDEX($C22:$G22,1,aux!$AL$1),"n.d.") -> -0.201271798 | AA22: =O22-INDEX($K22:$O22,1,aux!$AL$1) -> 31686.476 | AB22: 1.142976137 | AC22: 1.039313477 | AD22: =+IF(INDEX($K22:$O22,1,aux!$AL$1)>0,(O22/INDEX($K22:$O22,1,aux!$AL$1))^(1/($O$3-INDEX($K$3:$O$3,1,aux!$AL$1)))-1,"n.d.") -> 0.1953228484 | AE22: =IF(INDEX($K22:$O22,1,aux!$AL$1)>0,(O22-INDEX($K22:$O22,1,aux!$AL$1))/INDEX($K22:$O22,1,aux!$AL$1),"n.d.") -> 1.041460044
A23: 21 | B23: Preparações alimentícias diversas | C23: 3986.457 | D23: 2553.426 | E23: 3933.924 | F23: 4090.605 | G23: 2872.127 | H23: 3487.3078 | I23: 0.2951379889 | J23: 0.2348787693 | K23: 11.471 | L23: 19.897 | M23: 29.264 | N23: 74.795 | O23: 99.483 | P23: 46.982 | Q23: 0.0007694881766 | R23: 0.0006404349429 | S23: -3440.3258 | U23: =G23-INDEX($C23:$G23,1,aux!$AL$1) -> -1114.33 | V23: 0.1292800157 | W23: 0.1399319283 | X23: =+IF(INDEX($C23:$G23,1,aux!$AL$1)>0,(G23/INDEX($C23:$G23,1,aux!$AL$1))^(1/($G$3-INDEX($C$3:$G$3,1,aux!$AL$1)))-1,"n.d.") -> -0.07869349209 | Y23: =IF(INDEX($C23:$G23,1,aux!$AL$1)>0,(G23-INDEX($C23:$G23,1,aux!$AL$1))/INDEX($C23:$G23,1,aux!$AL$1),"n.d.") -> -0.279528915 | AA23: =O23-INDEX($K23:$O23,1,aux!$AL$1) -> 88.012 | AB23: 0.003174717687 | AC23: 0.002886785445 | AD23: =+IF(INDEX($K23:$O23,1,aux!$AL$1)>0,(O23/INDEX($K23:$O23,1,aux!$AL$1))^(1/($O$3-INDEX($K$3:$O$3,1,aux!$AL$1)))-1,"n.d.") -> 0.7160775048 | AE23: =IF(INDEX($K23:$O23,1,aux!$AL$1)>0,(O23-INDEX($K23:$O23,1,aux!$AL$1))/INDEX($K23:$O23,1,aux!$AL$1),"n.d.") -> 7.6725656
A24: 22 | B24: Bebidas, líquidos alcoólicos e vinagres | C24: 360.259 | D24: 324.778 | E24: 572.372 | F24: 515.949 | G24: 509.811 | H24: 456.6338 | I24: 0.03864585208 | J24: 0.03075541108 | K24: 7162.229 | L24: 6122.348 | M24: 6972.348 | N24: 8713.171 | O24: 7723.355 | P24: 7338.6902 | Q24: 0.1201957205 | R24: 0.1000373258 | S24: 6882.0564 | U24: =G24-INDEX($C24:$G24,1,aux!$AL$1) -> 149.552 | V24: -0.01735041227 | W24: -0.01877998416 | X24: =+IF(INDEX($C24:$G24,1,aux!$AL$1)>0,(G24/INDEX($C24:$G24,1,aux!$AL$1))^(1/($G$3-INDEX($C$3:$G$3,1,aux!$AL$1)))-1,"n.d.") -> 0.09068311712 | Y24: =IF(INDEX($C24:$G24,1,aux!$AL$1)>0,(G24-INDEX($C24:$G24,1,aux!$AL$1))/INDEX($C24:$G24,1,aux!$AL$1),"n.d.") -> 0.4151235639 | AA24: =O24-INDEX($K24:$O24,1,aux!$AL$1) -> 561.126 | AB24: 0.02024061079 | AC24: 0.01840488081 | AD24: =+IF(INDEX($K24:$O24,1,aux!$AL$1)>0,(O24/INDEX($K24:$O24,1,aux!$AL$1))^(1/($O$3-INDEX($K$3:$O$3,1,aux!$AL$1)))-1,"n.d.") -> 0.01903581664 | AE24: =IF(INDEX($K24:$O24,1,aux!$AL$1)>0,(O24-INDEX($K24:$O24,1,aux!$AL$1))/INDEX($K24:$O24,1,aux!$AL$1),"n.d.") -> 0.07834516322
A25: 23a | B25: Resíduos indústrias alimentares; alimentos p/ animais (exc. NC 230120) (a) | C25: 8.757 | D25: 14.71 | E25: 23.519 | F25: 21.201 | G25: 18.002 | H25: 17.2378 | I25: 0.001458870257 | J25: 0.001161008285 | K25: 57.288 | L25: 52.576 | M25: 18.968 | N25: 41.948 | O25: 93.942 | P25: 52.9444 | Q25: 0.0008671425188 | R25: 0.0007217113743 | S25: 35.7066 | U25: =G25-INDEX($C25:$G25,1,aux!$AL$1) -> 9.245 | V25: -0.001072567143 | W25: -0.001160940365 | X25: =+IF(INDEX($C25:$G25,1,aux!$AL$1)>0,(G25/INDEX($C25:$G25,1,aux!$AL$1))^(1/($G$3-INDEX($C$3:$G$3,1,aux!$AL$1)))-1,"n.d.") -> 0.1974057847 | Y25: =IF(INDEX($C25:$G25,1,aux!$AL$1)>0,(G25-INDEX($C25:$G25,1,aux!$AL$1))/INDEX($C25:$G25,1,aux!$AL$1),"n.d.") -> 1.055726847 | AA25: =O25-INDEX($K25:$O25,1,aux!$AL$1) -> 36.654 | AB25: 0.001322161775 | AC25: 0.001202247804 | AD25: =+IF(INDEX($K25:$O25,1,aux!$AL$1)>0,(O25/INDEX($K25:$O25,1,aux!$AL$1))^(1/($O$3-INDEX($K$3:$O$3,1,aux!$AL$1)))-1,"n.d.") -> 0.1316158852 | AE25: =IF(INDEX($K25:$O25,1,aux!$AL$1)>0,(O25-INDEX($K25:$O25,1,aux!$AL$1))/INDEX($K25:$O25,1,aux!$AL$1),"n.d.") -> 0.6398198576
A26: 24 | B26: Tabaco | C26: 0 | D26: 0 | E26: 0.169 | F26: 0 | G26: 0.181 | H26: 0.07 | I26: 5.924243115e-06 | J26: 4.714672404e-06 | K26: 0 | L26: 0 | M26: 0 | N26: 0 | O26: 0 | P26: 0 | Q26: 0 | R26: 0 | S26: -0.07 | U26: =G26-INDEX($C26:$G26,1,aux!$AL$1) -> 0.181 | V26: -2.099888079e-05 | W26: -2.272906502e-05 | X26: =+IF(INDEX($C26:$G26,1,aux!$AL$1)>0,(G26/INDEX($C26:$G26,1,aux!$AL$1))^(1/($G$3-INDEX($C$3:$G$3,1,aux!$AL$1)))-1,"n.d.") -> n.d. | Y26: =IF(INDEX($C26:$G26,1,aux!$AL$1)>0,(G26-INDEX($C26:$G26,1,aux!$AL$1))/INDEX($C26:$G26,1,aux!$AL$1),"n.d.") -> n.d. | AA26: =O26-INDEX($K26:$O26,1,aux!$AL$1) -> 0 | AB26: 0 | AC26: 0 | AD26: =+IF(INDEX($K26:$O26,1,aux!$AL$1)>0,(O26/INDEX($K26:$O26,1,aux!$AL$1))^(1/($O$3-INDEX($K$3:$O$3,1,aux!$AL$1)))-1,"n.d.") -> n.d. | AE26: =IF(INDEX($K26:$O26,1,aux!$AL$1)>0,(O26-INDEX($K26:$O26,1,aux!$AL$1))/INDEX($K26:$O26,1,aux!$AL$1),"n.d.") -> n.d.
A27: 29 | B27: Manitol e sorbitol (NC 290543; 290544) | C27: 0 | D27: 0 | E27: 0 | F27: 3.912 | G27: 5.033 | H27: 1.789 | I27: 0.0001514067276 | J27: 0.0001204935562 | K27: 0 | L27: 0 | M27: 0 | N27: 0 | O27: 0 | P27: 0 | Q27: 0 | R27: 0 | S27: -1.789 | U27: =G27-INDEX($C27:$G27,1,aux!$AL$1) -> 5.033 | V27: -0.0005839081052 | W27: -0.0006320186976 | X27: =+IF(INDEX($C27:$G27,1,aux!$AL$1)>0,(G27/INDEX($C27:$G27,1,aux!$AL$1))^(1/($G$3-INDEX($C$3:$G$3,1,aux!$AL$1)))-1,"n.d.") -> n.d. | Y27: =IF(INDEX($C27:$G27,1,aux!$AL$1)>0,(G27-INDEX($C27:$G27,1,aux!$AL$1))/INDEX($C27:$G27,1,aux!$AL$1),"n.d.") -> n.d. | AA27: =O27-INDEX($K27:$O27,1,aux!$AL$1) -> 0 | AB27: 0 | AC27: 0 | AD27: =+IF(INDEX($K27:$O27,1,aux!$AL$1)>0,(O27/INDEX($K27:$O27,1,aux!$AL$1))^(1/($O$3-INDEX($K$3:$O$3,1,aux!$AL$1)))-1,"n.d.") -> n.d. | AE27: =IF(INDEX($K27:$O27,1,aux!$AL$1)>0,(O27-INDEX($K27:$O27,1,aux!$AL$1))/INDEX($K27:$O27,1,aux!$AL$1),"n.d.") -> n.d.
A28: 33 | B28: Óleos essenciais e resinóides (NC 3301) | C28: 0.066 | D28: 0.517 | E28: 0.153 | F28: 0.385 | G28: 2.03 | H28: 0.6302 | I28: 5.333511444e-05 | J28: 4.244552213e-05 | K28: 0 | L28: 3.1 | M28: 0.017 | N28: 0.008 | O28: 0.986 | P28: 0.8222 | Q28: 1.346628877e-05 | R28: 1.120781597e-05 | S28: 0.192 | U28: =G28-INDEX($C28:$G28,1,aux!$AL$1) -> 1.964 | V28: -0.000227855259 | W28: -0.0002466291918 | X28: =+IF(INDEX($C28:$G28,1,aux!$AL$1)>0,(G28/INDEX($C28:$G28,1,aux!$AL$1))^(1/($G$3-INDEX($C$3:$G$3,1,aux!$AL$1)))-1,"n.d.") -> 1.354984351 | Y28: =IF(INDEX($C28:$G28,1,aux!$AL$1)>0,(G28-INDEX($C28:$G28,1,aux!$AL$1))/INDEX($C28:$G28,1,aux!$AL$1),"n.d.") -> 29.75757576 | AA28: =O28-INDEX($K28:$O28,1,aux!$AL$1) -> 0.986 | AB28: 3.556641866e-05 | AC28: 3.234070864e-05 | AD28: =+IF(INDEX($K28:$O28,1,aux!$AL$1)>0,(O28/INDEX($K28:$O28,1,aux!$AL$1))^(1/($O$3-INDEX($K$3:$O$3,1,aux!$AL$1)))-1,"n.d.") -> n.d. | AE28: =IF(INDEX($K28:$O28,1,aux!$AL$1)>0,(O28-INDEX($K28:$O28,1,aux!$AL$1))/INDEX($K28:$O28,1,aux!$AL$1),"n.d.") -> n.d.
A29: 35 | B29: Caseínas, albuminas, gelatinas, peptonas, dextrinas (NC 3501 a 3505) | C29: 0 | D29: 0 | E29: 0 | F29: 0 | G29: 58.354 | H29: 11.6708 | I29: 0.0009877236649 | J29: 0.0007860571242 | K29: 0.009 | L29: 0.009 | M29: 0 | N29: 0 | O29: 0 | P29: 0.0036 | Q29: 5.896210114e-08 | R29: 4.907338543e-08 | S29: -11.6672 | U29: =G29-INDEX($C29:$G29,1,aux!$AL$1) -> 58.354 | V29: -0.006769992762 | W29: -0.007327800334 | X29: =+IF(INDEX($C29:$G29,1,aux!$AL$1)>0,(G29/INDEX($C29:$G29,1,aux!$AL$1))^(1/($G$3-INDEX($C$3:$G$3,1,aux!$AL$1)))-1,"n.d.") -> n.d. | Y29: =IF(INDEX($C29:$G29,1,aux!$AL$1)>0,(G29-INDEX($C29:$G29,1,aux!$AL$1))/INDEX($C29:$G29,1,aux!$AL$1),"n.d.") -> n.d. | AA29: =O29-INDEX($K29:$O29,1,aux!$AL$1) -> -0.009 | AB29: -3.246427667e-07 | AC29: -2.951991661e-07 | AD29: =+IF(INDEX($K29:$O29,1,aux!$AL$1)>0,(O29/INDEX($K29:$O29,1,aux!$AL$1))^(1/($O$3-INDEX($K$3:$O$3,1,aux!$AL$1)))-1,"n.d.") -> -1 | AE29: =IF(INDEX($K29:$O29,1,aux!$AL$1)>0,(O29-INDEX($K29:$O29,1,aux!$AL$1))/INDEX($K29:$O29,1,aux!$AL$1),"n.d.") -> -1
A30: 38a | B30: Agentes de acabamento, ácidos gordos, sorbitol (NC 380910, 382311-12-13-19-70, 382460) (a) | C30: 0 | D30: 0 | E30: 0 | F30: 0 | G30: 0 | H30: 0 | I30: 0 | J30: 0 | K30: 0 | L30: 0 | M30: 0 | N30: 0 | O30: 0 | P30: 0 | Q30: 0 | R30: 0 | S30: 0 | U30: =G30-INDEX($C30:$G30,1,aux!$AL$1) -> 0 | V30: 0 | W30: 0 | X30: =+IF(INDEX($C30:$G30,1,aux!$AL$1)>0,(G30/INDEX($C30:$G30,1,aux!$AL$1))^(1/($G$3-INDEX($C$3:$G$3,1,aux!$AL$1)))-1,"n.d.") -> n.d. | Y30: =IF(INDEX($C30:$G30,1,aux!$AL$1)>0,(G30-INDEX($C30:$G30,1,aux!$AL$1))/INDEX($C30:$G30,1,aux!$AL$1),"n.d.") -> n.d. | AA30: =O30-INDEX($K30:$O30,1,aux!$AL$1) -> 0 | AB30: 0 | AC30: 0 | AD30: =+IF(INDEX($K30:$O30,1,aux!$AL$1)>0,(O30/INDEX($K30:$O30,1,aux!$AL$1))^(1/($O$3-INDEX($K$3:$O$3,1,aux!$AL$1)))-1,"n.d.") -> n.d. | AE30: =IF(INDEX($K30:$O30,1,aux!$AL$1)>0,(O30-INDEX($K30:$O30,1,aux!$AL$1))/INDEX($K30:$O30,1,aux!$AL$1),"n.d.") -> n.d.
A31: 41 | B31: Couro e peles em bruto (NC 4101 a 4103) | C31: 0 | D31: 0 | E31: 0 | F31: 0 | G31: 0 | H31: 0 | I31: 0 | J31: 0 | K31: 0 | L31: 0 | M31: 0 | N31: 0 | O31: 0 | P31: 0 | Q31: 0 | R31: 0 | S31: 0 | U31: =G31-INDEX($C31:$G31,1,aux!$AL$1) -> 0 | V31: 0 | W31: 0 | X31: =+IF(INDEX($C31:$G31,1,aux!$AL$1)>0,(G31/INDEX($C31:$G31,1,aux!$AL$1))^(1/($G$3-INDEX($C$3:$G$3,1,aux!$AL$1)))-1,"n.d.") -> n.d. | Y31: =IF(INDEX($C31:$G31,1,aux!$AL$1)>0,(G31-INDEX($C31:$G31,1,aux!$AL$1))/INDEX($C31:$G31,1,aux!$AL$1),"n.d.") -> n.d. | AA31: =O31-INDEX($K31:$O31,1,aux!$AL$1) -> 0 | AB31: 0 | AC31: 0 | AD31: =+IF(INDEX($K31:$O31,1,aux!$AL$1)>0,(O31/INDEX($K31:$O31,1,aux!$AL$1))^(1/($O$3-INDEX($K$3:$O$3,1,aux!$AL$1)))-1,"n.d.") -> n.d. | AE31: =IF(INDEX($K31:$O31,1,aux!$AL$1)>0,(O31-INDEX($K31:$O31,1,aux!$AL$1))/INDEX($K31:$O31,1,aux!$AL$1),"n.d.") -> n.d.
A32: 43 | B32: Peles com pelo em bruto (NC 4301) | C32: 0 | D32: 0 | E32: 0 | F32: 0 | G32: 0 | H32: 0 | I32: 0 | J32: 0 | K32: 0 | L32: 0 | M32: 0 | N32: 0 | O32: 0 | P32: 0 | Q32: 0 | R32: 0 | S32: 0 | U32: =G32-INDEX($C32:$G32,1,aux!$AL$1) -> 0 | V32: 0 | W32: 0 | X32: =+IF(INDEX($C32:$G32,1,aux!$AL$1)>0,(G32/INDEX($C32:$G32,1,aux!$AL$1))^(1/($G$3-INDEX($C$3:$G$3,1,aux!$AL$1)))-1,"n.d.") -> n.d. | Y32: =IF(INDEX($C32:$G32,1,aux!$AL$1)>0,(G32-INDEX($C32:$G32,1,aux!$AL$1))/INDEX($C32:$G32,1,aux!$AL$1),"n.d.") -> n.d. | AA32: =O32-INDEX($K32:$O32,1,aux!$AL$1) -> 0 | AB32: 0 | AC32: 0 | AD32: =+IF(INDEX($K32:$O32,1,aux!$AL$1)>0,(O32/INDEX($K32:$O32,1,aux!$AL$1))^(1/($O$3-INDEX($K$3:$O$3,1,aux!$AL$1)))-1,"n.d.") -> n.d. | AE32: =IF(INDEX($K32:$O32,1,aux!$AL$1)>0,(O32-INDEX($K32:$O32,1,aux!$AL$1))/INDEX($K32:$O32,1,aux!$AL$1),"n.d.") -> n.d.
A33: 50 | B33: Seda crua (NC 5001-5003) | C33: 0 | D33: 0 | E33: 0 | F33: 0 | G33: 0 | H33: 0 | I33: 0 | J33: 0 | K33: 0 | L33: 0 | M33: 0 | N33: 0 | O33: 0 | P33: 0 | Q33: 0 | R33: 0 | S33: 0 | U33: =G33-INDEX($C33:$G33,1,aux!$AL$1) -> 0 | V33: 0 | W33: 0 | X33: =+IF(INDEX($C33:$G33,1,aux!$AL$1)>0,(G33/INDEX($C33:$G33,1,aux!$AL$1))^(1/($G$3-INDEX($C$3:$G$3,1,aux!$AL$1)))-1,"n.d.") -> n.d. | Y33: =IF(INDEX($C33:$G33,1,aux!$AL$1)>0,(G33-INDEX($C33:$G33,1,aux!$AL$1))/INDEX($C33:$G33,1,aux!$AL$1),"n.d.") -> n.d. | AA33: =O33-INDEX($K33:$O33,1,aux!$AL$1) -> 0 | AB33: 0 | AC33: 0 | AD33: =+IF(INDEX($K33:$O33,1,aux!$AL$1)>0,(O33/INDEX($K33:$O33,1,aux!$AL$1))^(1/($O$3-INDEX($K$3:$O$3,1,aux!$AL$1)))-1,"n.d.") -> n.d. | AE33: =IF(INDEX($K33:$O33,1,aux!$AL$1)>0,(O33-INDEX($K33:$O33,1,aux!$AL$1))/INDEX($K33:$O33,1,aux!$AL$1),"n.d.") -> n.d.
A34: 51 | B34: Lã não cardada (NC 5101-5103) | C34: 0 | D34: 0 | E34: 0 | F34: 0 | G34: 0 | H34: 0 | I34: 0 | J34: 0 | K34: 0 | L34: 0 | M34: 0 | N34: 0 | O34: 0 | P34: 0 | Q34: 0 | R34: 0 | S34: 0 | U34: =G34-INDEX($C34:$G34,1,aux!$AL$1) -> 0 | V34: 0 | W34: 0 | X34: =+IF(INDEX($C34:$G34,1,aux!$AL$1)>0,(G34/INDEX($C34:$G34,1,aux!$AL$1))^(1/($G$3-INDEX($C$3:$G$3,1,aux!$AL$1)))-1,"n.d.") -> n.d. | Y34: =IF(INDEX($C34:$G34,1,aux!$AL$1)>0,(G34-INDEX($C34:$G34,1,aux!$AL$1))/INDEX($C34:$G34,1,aux!$AL$1),"n.d.") -> n.d. | AA34: =O34-INDEX($K34:$O34,1,aux!$AL$1) -> 0 | AB34: 0 | AC34: 0 | AD34: =+IF(INDEX($K34:$O34,1,aux!$AL$1)>0,(O34/INDEX($K34:$O34,1,aux!$AL$1))^(1/($O$3-INDEX($K$3:$O$3,1,aux!$AL$1)))-1,"n.d.") -> n.d. | AE34: =IF(INDEX($K34:$O34,1,aux!$AL$1)>0,(O34-INDEX($K34:$O34,1,aux!$AL$1))/INDEX($K34:$O34,1,aux!$AL$1),"n.d.") -> n.d.
A35: 52 | B35: Algodão (NC 5201-5203) | C35: 0 | D35: 0 | E35: 1.821 | F35: 0.039 | G35: 2.334 | H35: 0.8388 | I35: 7.098935893e-05 | J35: 5.649524589e-05 | K35: 0.225 | L35: 0 | M35: 0.018 | N35: 0 | O35: 2.248 | P35: 0.4982 | Q35: 8.159699663e-06 | R35: 6.791211284e-06 | S35: -0.3406 | U35: =G35-INDEX($C35:$G35,1,aux!$AL$1) -> 2.334 | V35: -0.0002707811479 | W35: -0.0002930919214 | X35: =+IF(INDEX($C35:$G35,1,aux!$AL$1)>0,(G35/INDEX($C35:$G35,1,aux!$AL$1))^(1/($G$3-INDEX($C$3:$G$3,1,aux!$AL$1)))-1,"n.d.") -> n.d. | Y35: =IF(INDEX($C35:$G35,1,aux!$AL$1)>0,(G35-INDEX($C35:$G35,1,aux!$AL$1))/INDEX($C35:$G35,1,aux!$AL$1),"n.d.") -> n.d. | AA35: =O35-INDEX($K35:$O35,1,aux!$AL$1) -> 2.023 | AB35: 7.297247967e-05 | AC35: 6.635421256e-05 | AD35: =+IF(INDEX($K35:$O35,1,aux!$AL$1)>0,(O35/INDEX($K35:$O35,1,aux!$AL$1))^(1/($O$3-INDEX($K$3:$O$3,1,aux!$AL$1)))-1,"n.d.") -> 0.777884105 | AE35: =IF(INDEX($K35:$O35,1,aux!$AL$1)>0,(O35-INDEX($K35:$O35,1,aux!$AL$1))/INDEX($K35:$O35,1,aux!$AL$1),"n.d.") -> 8.991111111
A36: 53 | B36: Linho e cânhamo em bruto (NC 5301-5302) | C36: 0 | D36: 0 | E36: 0 | F36: 1.485 | G36: 0 | H36: 0.297 | I36: 2.513571722e-05 | J36: 2.000368149e-05 | K36: 0 | L36: 0 | M36: 0 | N36: 0 | O36: 0 | P36: 0 | Q36: 0 | R36: 0 | S36: -0.297 | U36: =G36-INDEX($C36:$G36,1,aux!$AL$1) -> 0 | V36: 0 | W36: =IF($U$53<>0,U36/$U$53, "n.d.") -> 0 | X36: =+IF(INDEX($C36:$G36,1,aux!$AL$1)>0,(G36/INDEX($C36:$G36,1,aux!$AL$1))^(1/($G$3-INDEX($C$3:$G$3,1,aux!$AL$1)))-1,"n.d.") -> n.d. | Y36: =IF(INDEX($C36:$G36,1,aux!$AL$1)>0,(G36-INDEX($C36:$G36,1,aux!$AL$1))/INDEX($C36:$G36,1,aux!$AL$1),"n.d.") -> n.d. | AA36: =O36-INDEX($K36:$O36,1,aux!$AL$1) -> 0 | AB36: 0 | AC36: =IF($AA$53<>0,AA36/$AA$53, "n.d.") -> 0 | AD36: =+IF(INDEX($K36:$O36,1,aux!$AL$1)>0,(O36/INDEX($K36:$O36,1,aux!$AL$1))^(1/($O$3-INDEX($K$3:$O$3,1,aux!$AL$1)))-1,"n.d.") -> n.d. | AE36: =IF(INDEX($K36:$O36,1,aux!$AL$1)>0,(O36-INDEX($K36:$O36,1,aux!$AL$1))/INDEX($K36:$O36,1,aux!$AL$1),"n.d.") -> n.d.
A37: Subtotal Agrícola e Agroalimentar | C37: 15076.271 | D37: 11753.308 | E37: 15047.106 | F37: 10745.828 | G37: 6456.764 | H37: 11815.8554 | I37: 1 | J37: 0.7958269626 | K37: 51011.007 | L37: 50835.247 | M37: 56030.745 | N37: 68670.058 | O37: 78733.787 | P37: 61056.1688 | Q37: 1 | R37: 0.8322869179 | S37: 49240.3134 | U37: =G37-INDEX($C37:$G37,1,aux!$AL$1) -> -8619.507 | V37: 1 | W37: 1.082394116 | X37: =+IF(INDEX($C37:$G37,1,aux!$AL$1)>0,(G37/INDEX($C37:$G37,1,aux!$AL$1))^(1/($G$3-INDEX($C$3:$G$3,1,aux!$AL$1)))-1,"n.d.") -> -0.191034046 | Y37: =IF(INDEX($C37:$G37,1,aux!$AL$1)>0,(G37-INDEX($C37:$G37,1,aux!$AL$1))/INDEX($C37:$G37,1,aux!$AL$1),"n.d.") -> -0.5717267221 | AA37: =O37-INDEX($K37:$O37,1,aux!$AL$1) -> 27722.78 | AB37: 1 | AC37: 0.9093046154 | AD37: =+IF(INDEX($K37:$O37,1,aux!$AL$1)>0,(O37/INDEX($K37:$O37,1,aux!$AL$1))^(1/($O$3-INDEX($K$3:$O$3,1,aux!$AL$1)))-1,"n.d.") -> 0.1146135312 | AE37: =IF(INDEX($K37:$O37,1,aux!$AL$1)>0,(O37-INDEX($K37:$O37,1,aux!$AL$1))/INDEX($K37:$O37,1,aux!$AL$1),"n.d.") -> 0.5434666287
A38: 03 | B38: Peixes e crustáceos | C38: 262.426 | D38: 23.865 | E38: 13.516 | F38: 489.107 | G38: 1005.645 | H38: 358.9118 | I38: 0.9973323834 | J38: 0.0241735937 | K38: 916.031 | L38: 2859.988 | M38: 3164.87 | N38: 5717.395 | O38: 1946.467 | P38: 2920.9502 | Q38: 0.9552789694 | R38: 0.03981692083 | S38: 2562.0384 | U38: =G38-INDEX($C38:$G38,1,aux!$AL$1) -> 743.219 | V38: =IF($U$44<>0,U38/$U$44, "n.d.") -> 0.9943660276 | W38: -0.09332968496 | X38: =+IF(INDEX($C38:$G38,1,aux!$AL$1)>0,(G38/INDEX($C38:$G38,1,aux!$AL$1))^(1/($G$3-INDEX($C$3:$G$3,1,aux!$AL$1)))-1,"n.d.") -> 0.3991344802 | Y38: =IF(INDEX($C38:$G38,1,aux!$AL$1)>0,(G38-INDEX($C38:$G38,1,aux!$AL$1))/INDEX($C38:$G38,1,aux!$AL$1),"n.d.") -> 2.832108861 | AA38: =O38-INDEX($K38:$O38,1,aux!$AL$1) -> 1030.436 | AB38: =IF($AA$44<>0,AA38/$AA$44, "n.d.") -> 0.9442444247 | AC38: 0.03379820533 | AD38: =+IF(INDEX($K38:$O38,1,aux!$AL$1)>0,(O38/INDEX($K38:$O38,1,aux!$AL$1))^(1/($O$3-INDEX($K$3:$O$3,1,aux!$AL$1)))-1,"n.d.") -> 0.2073528692 | AE38: =IF(INDEX($K38:$O38,1,aux!$AL$1)>0,(O38-INDEX($K38:$O38,1,aux!$AL$1))/INDEX($K38:$O38,1,aux!$AL$1),"n.d.") -> 1.124892062
A39: 05p | B39: Outros produtos de pescado (NC 0508, 051191) (p) | C39: 0 | D39: 0 | E39: 0 | F39: 0 | G39: 0 | H39: 0 | I39: 0 | J39: 0 | K39: 0 | L39: 0 | M39: 0 | N39: 0 | O39: 0 | P39: 0 | Q39: 0 | R39: 0 | S39: 0 | U39: =G39-INDEX($C39:$G39,1,aux!$AL$1) -> 0 | V39: 0 | W39: 0 | X39: =+IF(INDEX($C39:$G39,1,aux!$AL$1)>0,(G39/INDEX($C39:$G39,1,aux!$AL$1))^(1/($G$3-INDEX($C$3:$G$3,1,aux!$AL$1)))-1,"n.d.") -> n.d. | Y39: =IF(INDEX($C39:$G39,1,aux!$AL$1)>0,(G39-INDEX($C39:$G39,1,aux!$AL$1))/INDEX($C39:$G39,1,aux!$AL$1),"n.d.") -> n.d. | AA39: =O39-INDEX($K39:$O39,1,aux!$AL$1) -> 0 | AB39: 0 | AC39: 0 | AD39: =+IF(INDEX($K39:$O39,1,aux!$AL$1)>0,(O39/INDEX($K39:$O39,1,aux!$AL$1))^(1/($O$3-INDEX($K$3:$O$3,1,aux!$AL$1)))-1,"n.d.") -> n.d. | AE39: =IF(INDEX($K39:$O39,1,aux!$AL$1)>0,(O39-INDEX($K39:$O39,1,aux!$AL$1))/INDEX($K39:$O39,1,aux!$AL$1),"n.d.") -> n.d.
A40: 16p | B40: Preparações e conservas de peixes ou crustáceos (NC 1604-05) (p) | C40: 0.009 | D40: 0 | E40: 0 | F40: 0.01 | G40: 4.07 | H40: 0.8178 | I40: 0.002272475921 | J40: 5.508084417e-05 | K40: 105.946 | L40: 193.036 | M40: 118.521 | N40: 60.986 | O40: 159.021 | P40: 127.502 | Q40: 0.0416987524 | R40: 0.001738042997 | S40: 126.6842 | U40: =G40-INDEX($C40:$G40,1,aux!$AL$1) -> 4.061 | V40: 0.005433284722 | W40: -0.0005099598512 | X40: =+IF(INDEX($C40:$G40,1,aux!$AL$1)>0,(G40/INDEX($C40:$G40,1,aux!$AL$1))^(1/($G$3-INDEX($C$3:$G$3,1,aux!$AL$1)))-1,"n.d.") -> 3.611454999 | Y40: =IF(INDEX($C40:$G40,1,aux!$AL$1)>0,(G40-INDEX($C40:$G40,1,aux!$AL$1))/INDEX($C40:$G40,1,aux!$AL$1),"n.d.") -> 451.2222222 | AA40: =O40-INDEX($K40:$O40,1,aux!$AL$1) -> 53.075 | AB40: 0.04863550268 | AC40: 0.001740855082 | AD40: =+IF(INDEX($K40:$O40,1,aux!$AL$1)>0,(O40/INDEX($K40:$O40,1,aux!$AL$1))^(1/($O$3-INDEX($K$3:$O$3,1,aux!$AL$1)))-1,"n.d.") -> 0.1068594542 | AE40: =IF(INDEX($K40:$O40,1,aux!$AL$1)>0,(O40-INDEX($K40:$O40,1,aux!$AL$1))/INDEX($K40:$O40,1,aux!$AL$1),"n.d.") -> 0.5009627546
A41: 19p | B41: Massas recheadas com pescado (NC 19022010) (p) | C41: 0 | D41: 0 | E41: 0 | F41: 0 | G41: 0 | H41: 0 | I41: 0 | J41: 0 | K41: 0 | L41: 0 | M41: 0 | N41: 0 | O41: 0 | P41: 0 | Q41: 0 | R41: 0 | S41: 0 | U41: =G41-INDEX($C41:$G41,1,aux!$AL$1) -> 0 | V41: 0 | W41: 0 | X41: =+IF(INDEX($C41:$G41,1,aux!$AL$1)>0,(G41/INDEX($C41:$G41,1,aux!$AL$1))^(1/($G$3-INDEX($C$3:$G$3,1,aux!$AL$1)))-1,"n.d.") -> n.d. | Y41: =IF(INDEX($C41:$G41,1,aux!$AL$1)>0,(G41-INDEX($C41:$G41,1,aux!$AL$1))/INDEX($C41:$G41,1,aux!$AL$1),"n.d.") -> n.d. | AA41: =O41-INDEX($K41:$O41,1,aux!$AL$1) -> 0 | AB41: 0 | AC41: 0 | AD41: =+IF(INDEX($K41:$O41,1,aux!$AL$1)>0,(O41/INDEX($K41:$O41,1,aux!$AL$1))^(1/($O$3-INDEX($K$3:$O$3,1,aux!$AL$1)))-1,"n.d.") -> n.d. | AE41: =IF(INDEX($K41:$O41,1,aux!$AL$1)>0,(O41-INDEX($K41:$O41,1,aux!$AL$1))/INDEX($K41:$O41,1,aux!$AL$1),"n.d.") -> n.d.
A42: 23p | B42: Farinhas de pescado (NC 230120) (p) | C42: 0 | D42: 0 | E42: 0 | F42: 0 | G42: 0 | H42: 0 | I42: 0 | J42: 0 | K42: 0 | L42: 0 | M42: 0 | N42: 0 | O42: 0 | P42: 0 | Q42: 0 | R42: 0 | S42: 0 | U42: =G42-INDEX($C42:$G42,1,aux!$AL$1) -> 0 | V42: 0 | W42: 0 | X42: =+IF(INDEX($C42:$G42,1,aux!$AL$1)>0,(G42/INDEX($C42:$G42,1,aux!$AL$1))^(1/($G$3-INDEX($C$3:$G$3,1,aux!$AL$1)))-1,"n.d.") -> n.d. | Y42: =IF(INDEX($C42:$G42,1,aux!$AL$1)>0,(G42-INDEX($C42:$G42,1,aux!$AL$1))/INDEX($C42:$G42,1,aux!$AL$1),"n.d.") -> n.d. | AA42: =O42-INDEX($K42:$O42,1,aux!$AL$1) -> 0 | AB42: 0 | AC42: 0 | AD42: =+IF(INDEX($K42:$O42,1,aux!$AL$1)>0,(O42/INDEX($K42:$O42,1,aux!$AL$1))^(1/($O$3-INDEX($K$3:$O$3,1,aux!$AL$1)))-1,"n.d.") -> n.d. | AE42: =IF(INDEX($K42:$O42,1,aux!$AL$1)>0,(O42-INDEX($K42:$O42,1,aux!$AL$1))/INDEX($K42:$O42,1,aux!$AL$1),"n.d.") -> n.d.
A43: 25 | B43: Sal e cloreto de sódio puro; água do mar (NC 2501) | C43: 0 | D43: 0 | E43: 0.022 | F43: 0.539 | G43: 0.15 | H43: 0.1422 | I43: 0.000395140714 | J43: 9.577520226e-06 | K43: 3.349 | L43: 16.218 | M43: 13.977 | N43: 1.543 | O43: 11.119 | P43: 9.2412 | Q43: 0.003022278166 | R43: 0.0001259713804 | S43: 9.099 | U43: =G43-INDEX($C43:$G43,1,aux!$AL$1) -> 0.15 | V43: 0.0002006876898 | W43: -1.883624173e-05 | X43: =+IF(INDEX($C43:$G43,1,aux!$AL$1)>0,(G43/INDEX($C43:$G43,1,aux!$AL$1))^(1/($G$3-INDEX($C$3:$G$3,1,aux!$AL$1)))-1,"n.d.") -> n.d. | Y43: =IF(INDEX($C43:$G43,1,aux!$AL$1)>0,(G43-INDEX($C43:$G43,1,aux!$AL$1))/INDEX($C43:$G43,1,aux!$AL$1),"n.d.") -> n.d. | AA43: =O43-INDEX($K43:$O43,1,aux!$AL$1) -> 7.77 | AB43: 0.007120072649 | AC43: 0.0002548552801 | AD43: =+IF(INDEX($K43:$O43,1,aux!$AL$1)>0,(O43/INDEX($K43:$O43,1,aux!$AL$1))^(1/($O$3-INDEX($K$3:$O$3,1,aux!$AL$1)))-1,"n.d.") -> 0.3498566353 | AE43: =IF(INDEX($K43:$O43,1,aux!$AL$1)>0,(O43-INDEX($K43:$O43,1,aux!$AL$1))/INDEX($K43:$O43,1,aux!$AL$1),"n.d.") -> 2.320095551
A44: Subtotal Mar | C44: 262.435 | D44: 23.865 | E44: 13.538 | F44: 489.656 | G44: 1009.865 | H44: 359.8718 | I44: 1 | J44: 0.02423825206 | K44: 1025.326 | L44: 3069.242 | M44: 3297.368 | N44: 5779.924 | O44: 2116.607 | P44: 3057.6934 | Q44: 1 | R44: 0.04168093521 | S44: 2697.8216 | U44: =G44-INDEX($C44:$G44,1,aux!$AL$1) -> 747.43 | V44: 1 | W44: -0.09385848106 | X44: =+IF(INDEX($C44:$G44,1,aux!$AL$1)>0,(G44/INDEX($C44:$G44,1,aux!$AL$1))^(1/($G$3-INDEX($C$3:$G$3,1,aux!$AL$1)))-1,"n.d.") -> 0.400587969 | Y44: =IF(INDEX($C44:$G44,1,aux!$AL$1)>0,(G44-INDEX($C44:$G44,1,aux!$AL$1))/INDEX($C44:$G44,1,aux!$AL$1),"n.d.") -> 2.848057614 | AA44: =O44-INDEX($K44:$O44,1,aux!$AL$1) -> 1091.281 | AB44: 1 | AC44: 0.03579391569 | AD44: =+IF(INDEX($K44:$O44,1,aux!$AL$1)>0,(O44/INDEX($K44:$O44,1,aux!$AL$1))^(1/($O$3-INDEX($K$3:$O$3,1,aux!$AL$1)))-1,"n.d.") -> 0.1986560023 | AE44: =IF(INDEX($K44:$O44,1,aux!$AL$1)>0,(O44-INDEX($K44:$O44,1,aux!$AL$1))/INDEX($K44:$O44,1,aux!$AL$1),"n.d.") -> 1.064325883
A45: 13f | B45: Gomas e resinas (NC 1301) (f) | C45: 0 | D45: 0 | E45: 0 | F45: 0.157 | G45: 0 | H45: 0.0314 | I45: 1.175352132e-05 | J45: 2.114867336e-06 | K45: 0 | L45: 0 | M45: 0 | N45: 0 | O45: 0 | P45: 0 | Q45: 0 | R45: 0 | S45: -0.0314 | U45: =G45-INDEX($C45:$G45,1,aux!$AL$1) -> 0 | V45: =IF($U$52<>0,U45/$U$52, "n.d.") -> 0 | W45: 0 | X45: =+IF(INDEX($C45:$G45,1,aux!$AL$1)>0,(G45/INDEX($C45:$G45,1,aux!$AL$1))^(1/($G$3-INDEX($C$3:$G$3,1,aux!$AL$1)))-1,"n.d.") -> n.d. | Y45: =IF(INDEX($C45:$G45,1,aux!$AL$1)>0,(G45-INDEX($C45:$G45,1,aux!$AL$1))/INDEX($C45:$G45,1,aux!$AL$1),"n.d.") -> n.d. | AA45: =O45-INDEX($K45:$O45,1,aux!$AL$1) -> 0 | AB45: =IF($AA$52<>0,AA45/$AA$52, "n.d.") -> 0 | AC45: 0 | AD45: =+IF(INDEX($K45:$O45,1,aux!$AL$1)>0,(O45/INDEX($K45:$O45,1,aux!$AL$1))^(1/($O$3-INDEX($K$3:$O$3,1,aux!$AL$1)))-1,"n.d.") -> n.d. | AE45: =IF(INDEX($K45:$O45,1,aux!$AL$1)>0,(O45-INDEX($K45:$O45,1,aux!$AL$1))/INDEX($K45:$O45,1,aux!$AL$1),"n.d.") -> n.d.
A46: 38f | B46: Tall oil, essências e colofónias (NC 3803,3805,3806) (f) | C46: 24.737 | D46: 0 | E46: 0 | F46: 2.653 | G46: 0.011 | H46: 5.4802 | I46: 0.002051326355 | J46: 0.0003691049673 | K46: 102.335 | L46: 52.401 | M46: 16 | N46: 0 | O46: 0 | P46: 34.1472 | Q46: 0.003693322935 | R46: 0.0004654774186 | S46: 28.667 | U46: =G46-INDEX($C46:$G46,1,aux!$AL$1) -> -24.726 | V46: 0.2708362999 | W46: 0.003104966087 | X46: =+IF(INDEX($C46:$G46,1,aux!$AL$1)>0,(G46/INDEX($C46:$G46,1,aux!$AL$1))^(1/($G$3-INDEX($C$3:$G$3,1,aux!$AL$1)))-1,"n.d.") -> -0.8547850218 | Y46: =IF(INDEX($C46:$G46,1,aux!$AL$1)>0,(G46-INDEX($C46:$G46,1,aux!$AL$1))/INDEX($C46:$G46,1,aux!$AL$1),"n.d.") -> -0.999555322 | AA46: =O46-INDEX($K46:$O46,1,aux!$AL$1) -> -102.335 | AB46: -0.0611382279 | AC46: -0.003356578518 | AD46: =+IF(INDEX($K46:$O46,1,aux!$AL$1)>0,(O46/INDEX($K46:$O46,1,aux!$AL$1))^(1/($O$3-INDEX($K$3:$O$3,1,aux!$AL$1)))-1,"n.d.") -> -1 | AE46: =IF(INDEX($K46:$O46,1,aux!$AL$1)>0,(O46-INDEX($K46:$O46,1,aux!$AL$1))/INDEX($K46:$O46,1,aux!$AL$1),"n.d.") -> -1
A47: 44 | B47: Madeira e suas obras | C47: 69.108 | D47: 60.619 | E47: 70.9 | F47: 4010.803 | G47: 62.825 | H47: 854.851 | I47: 0.3199843775 | J47: 0.05757632027 | K47: 411.437 | L47: 572.541 | M47: 767.778 | N47: 920.827 | O47: 1226.262 | P47: 779.769 | Q47: 0.08433894233 | R47: 0.01062941797 | S47: -75.082 | U47: =G47-INDEX($C47:$G47,1,aux!$AL$1) -> -6.283 | V47: 0.06882085547 | W47: 0.0007889873787 | X47: =+IF(INDEX($C47:$G47,1,aux!$AL$1)>0,(G47/INDEX($C47:$G47,1,aux!$AL$1))^(1/($G$3-INDEX($C$3:$G$3,1,aux!$AL$1)))-1,"n.d.") -> -0.0235476765 | Y47: =IF(INDEX($C47:$G47,1,aux!$AL$1)>0,(G47-INDEX($C47:$G47,1,aux!$AL$1))/INDEX($C47:$G47,1,aux!$AL$1),"n.d.") -> -0.09091566823 | AA47: =O47-INDEX($K47:$O47,1,aux!$AL$1) -> 814.825 | AB47: 0.4868027219 | AC47: 0.0267261845 | AD47: =+IF(INDEX($K47:$O47,1,aux!$AL$1)>0,(O47/INDEX($K47:$O47,1,aux!$AL$1))^(1/($O$3-INDEX($K$3:$O$3,1,aux!$AL$1)))-1,"n.d.") -> 0.3139232011 | AE47: =IF(INDEX($K47:$O47,1,aux!$AL$1)>0,(O47-INDEX($K47:$O47,1,aux!$AL$1))/INDEX($K47:$O47,1,aux!$AL$1),"n.d.") -> 1.980436859
A48: 45 | B48: Cortiça e suas obras | C48: 25.428 | D48: 145.142 | E48: 0.903 | F48: 1.16 | G48: 12.092 | H48: 36.945 | I48: 0.01382910335 | J48: 0.002488336742 | K48: 7393.744 | L48: 6301.975 | M48: 5979.86 | N48: 7512.583 | O48: 7127.861 | P48: 6863.2046 | Q48: 0.7423165283 | R48: 0.09355574573 | S48: 6826.2596 | U48: =G48-INDEX($C48:$G48,1,aux!$AL$1) -> -13.336 | V48: 0.1460759078 | W48: 0.001674667465 | X48: =+IF(INDEX($C48:$G48,1,aux!$AL$1)>0,(G48/INDEX($C48:$G48,1,aux!$AL$1))^(1/($G$3-INDEX($C$3:$G$3,1,aux!$AL$1)))-1,"n.d.") -> -0.169582517 | Y48: =IF(INDEX($C48:$G48,1,aux!$AL$1)>0,(G48-INDEX($C48:$G48,1,aux!$AL$1))/INDEX($C48:$G48,1,aux!$AL$1),"n.d.") -> -0.5244612238 | AA48: =O48-INDEX($K48:$O48,1,aux!$AL$1) -> -265.883 | AB48: -0.1588470753 | AC48: -0.008720937765 | AD48: =+IF(INDEX($K48:$O48,1,aux!$AL$1)>0,(O48/INDEX($K48:$O48,1,aux!$AL$1))^(1/($O$3-INDEX($K$3:$O$3,1,aux!$AL$1)))-1,"n.d.") -> -0.009113975595 | AE48: =IF(INDEX($K48:$O48,1,aux!$AL$1)>0,(O48-INDEX($K48:$O48,1,aux!$AL$1))/INDEX($K48:$O48,1,aux!$AL$1),"n.d.") -> -0.03596053637
A49: 46 | B49: Obras de espartaria ou de cestaria | C49: 1.448 | D49: 0 | E49: 0 | F49: 0.809 | G49: 0.107 | H49: 0.4728 | I49: 0.0001769765886 | J49: 3.184424447e-05 | K49: 6.705 | L49: 2.728 | M49: 3.144 | N49: 3.791 | O49: 1.267 | P49: 3.527 | Q49: 0.0003814763726 | R49: 4.807828623e-05 | S49: 3.0542 | U49: =G49-INDEX($C49:$G49,1,aux!$AL$1) -> -1.341 | V49: 0.01468864669 | W49: 0.0001683960011 | X49: =+IF(INDEX($C49:$G49,1,aux!$AL$1)>0,(G49/INDEX($C49:$G49,1,aux!$AL$1))^(1/($G$3-INDEX($C$3:$G$3,1,aux!$AL$1)))-1,"n.d.") -> -0.4786206768 | Y49: =IF(INDEX($C49:$G49,1,aux!$AL$1)>0,(G49-INDEX($C49:$G49,1,aux!$AL$1))/INDEX($C49:$G49,1,aux!$AL$1),"n.d.") -> -0.9261049724 | AA49: =O49-INDEX($K49:$O49,1,aux!$AL$1) -> -5.438 | AB49: -0.003248836501 | AC49: -0.0001783658962 | AD49: =+IF(INDEX($K49:$O49,1,aux!$AL$1)>0,(O49/INDEX($K49:$O49,1,aux!$AL$1))^(1/($O$3-INDEX($K$3:$O$3,1,aux!$AL$1)))-1,"n.d.") -> -0.3406827202 | AE49: =IF(INDEX($K49:$O49,1,aux!$AL$1)>0,(O49-INDEX($K49:$O49,1,aux!$AL$1))/INDEX($K49:$O49,1,aux!$AL$1),"n.d.") -> -0.8110365399
A50: 47 | B50: Pastas de madeira | C50: 0 | D50: 0 | E50: 0.003 | F50: 0.286 | G50: 0.162 | H50: 0.0902 | I50: 3.37633001e-05 | J50: 6.075192155e-06 | K50: 937.893 | L50: 934.713 | M50: 1620.68 | N50: 1404.349 | O50: 2188.563 | P50: 1417.2396 | Q50: 0.153287049 | R50: 0.01931909587 | S50: 1417.1494 | U50: =G50-INDEX($C50:$G50,1,aux!$AL$1) -> 0.162 | V50: -0.001774467386 | W50: -2.034314107e-05 | X50: =+IF(INDEX($C50:$G50,1,aux!$AL$1)>0,(G50/INDEX($C50:$G50,1,aux!$AL$1))^(1/($G$3-INDEX($C$3:$G$3,1,aux!$AL$1)))-1,"n.d.") -> n.d. | Y50: =IF(INDEX($C50:$G50,1,aux!$AL$1)>0,(G50-INDEX($C50:$G50,1,aux!$AL$1))/INDEX($C50:$G50,1,aux!$AL$1),"n.d.") -> n.d. | AA50: =O50-INDEX($K50:$O50,1,aux!$AL$1) -> 1250.67 | AB50: 0.7471905749 | AC50: 0.04102186012 | AD50: =+IF(INDEX($K50:$O50,1,aux!$AL$1)>0,(O50/INDEX($K50:$O50,1,aux!$AL$1))^(1/($O$3-INDEX($K$3:$O$3,1,aux!$AL$1)))-1,"n.d.") -> 0.2359515303 | AE50: =IF(INDEX($K50:$O50,1,aux!$AL$1)>0,(O50-INDEX($K50:$O50,1,aux!$AL$1))/INDEX($K50:$O50,1,aux!$AL$1),"n.d.") -> 1.333489001
A51: 48 | B51: Papel e cartão | C51: 1472.326 | D51: 1466.204 | E51: 1945.763 | F51: 2557.498 | G51: 1426.555 | H51: 1773.6692 | I51: 0.6639126993 | J51: 0.119460989 | K51: 142.636 | L51: 185.173 | M51: 135.231 | N51: 151.185 | O51: 124.627 | P51: 147.7704 | Q51: 0.01598268108 | R51: 0.00201433161 | S51: -1625.8988 | U51: =G51-INDEX($C51:$G51,1,aux!$AL$1) -> -45.771 | V51: 0.5013527575 | W51: 0.005747690802 | X51: =+IF(INDEX($C51:$G51,1,aux!$AL$1)>0,(G51/INDEX($C51:$G51,1,aux!$AL$1))^(1/($G$3-INDEX($C$3:$G$3,1,aux!$AL$1)))-1,"n.d.") -> -0.007864168431 | Y51: =IF(INDEX($C51:$G51,1,aux!$AL$1)>0,(G51-INDEX($C51:$G51,1,aux!$AL$1))/INDEX($C51:$G51,1,aux!$AL$1),"n.d.") -> -0.03108754447 | AA51: =O51-INDEX($K51:$O51,1,aux!$AL$1) -> -18.009 | AB51: -0.01075915714 | AC51: -0.0005906935314 | AD51: =+IF(INDEX($K51:$O51,1,aux!$AL$1)>0,(O51/INDEX($K51:$O51,1,aux!$AL$1))^(1/($O$3-INDEX($K$3:$O$3,1,aux!$AL$1)))-1,"n.d.") -> -0.03317972929 | AE51: =IF(INDEX($K51:$O51,1,aux!$AL$1)>0,(O51-INDEX($K51:$O51,1,aux!$AL$1))/INDEX($K51:$O51,1,aux!$AL$1),"n.d.") -> -0.1262584481
A52: Subtotal Florestas | C52: 1593.047 | D52: 1671.965 | E52: 2017.569 | F52: 6573.366 | G52: 1501.752 | H52: 2671.5398 | I52: 1 | J52: 0.1799347853 | K52: 8994.75 | L52: 8049.531 | M52: 8522.693 | N52: 9992.735 | O52: 10668.58 | P52: 9245.6578 | Q52: 1 | R52: 0.1260321469 | S52: 6574.118 | U52: =G52-INDEX($C52:$G52,1,aux!$AL$1) -> -91.295 | V52: 1 | W52: 0.01146436459 | X52: =+IF(INDEX($C52:$G52,1,aux!$AL$1)>0,(G52/INDEX($C52:$G52,1,aux!$AL$1))^(1/($G$3-INDEX($C$3:$G$3,1,aux!$AL$1)))-1,"n.d.") -> -0.01464571967 | Y52: =IF(INDEX($C52:$G52,1,aux!$AL$1)>0,(G52-INDEX($C52:$G52,1,aux!$AL$1))/INDEX($C52:$G52,1,aux!$AL$1),"n.d.") -> -0.05730841588 | AA52: =O52-INDEX($K52:$O52,1,aux!$AL$1) -> 1673.83 | AB52: 1 | AC52: 0.05490146891 | AD52: =+IF(INDEX($K52:$O52,1,aux!$AL$1)>0,(O52/INDEX($K52:$O52,1,aux!$AL$1))^(1/($O$3-INDEX($K$3:$O$3,1,aux!$AL$1)))-1,"n.d.") -> 0.04358872974 | AE52: =IF(INDEX($K52:$O52,1,aux!$AL$1)>0,(O52-INDEX($K52:$O52,1,aux!$AL$1))/INDEX($K52:$O52,1,aux!$AL$1),"n.d.") -> 0.1860896634
B53: TOTAL | C53: 16931.753 | D53: 13449.138 | E53: 17078.213 | F53: 17808.85 | G53: 8968.381 | H53: 14847.267 | J53: 1 | K53: 61031.083 | L53: 61954.02 | M53: 67850.806 | N53: 84442.717 | O53: 91518.974 | P53: 73359.52 | R53: 1 | S53: 58512.253 | U53: =G53-INDEX($C53:$G53,1,aux!$AL$1) -> -7963.372 | W53: 1 | X53: =+IF(INDEX($C53:$G53,1,aux!$AL$1)>0,(G53/INDEX($C53:$G53,1,aux!$AL$1))^(1/($G$3-INDEX($C$3:$G$3,1,aux!$AL$1)))-1,"n.d.") -> -0.1468939313 | Y53: =IF(INDEX($C53:$G53,1,aux!$AL$1)>0,(G53-INDEX($C53:$G53,1,aux!$AL$1))/INDEX($C53:$G53,1,aux!$AL$1),"n.d.") -> -0.4703217676 | AA53: =O53-INDEX($K53:$O53,1,aux!$AL$1) -> 30487.891 | AC53: 1 | AD53: =+IF(INDEX($K53:$O53,1,aux!$AL$1)>0,(O53/INDEX($K53:$O53,1,aux!$AL$1))^(1/($O$3-INDEX($K$3:$O$3,1,aux!$AL$1)))-1,"n.d.") -> 0.1065983454 | AE53: =IF(INDEX($K53:$O53,1,aux!$AL$1)>0,(O53-INDEX($K53:$O53,1,aux!$AL$1))/INDEX($K53:$O53,1,aux!$AL$1),"n.d.") -> 0.499546944
B54: a - agrícola e agroalimentar; p - pescas; f - florestas
A55: Fonte: GPP a partir de dados INE/Comércio Internacional (2022 definitivos) | S55: 2024-07-05T15:40:28.630

Sheet 5.2_var
A1: ="Principais contributos por produto para a variação das trocas comerciais PT-Japão_x000D_ no período " & INDEX('5.2'!K3:N3,1,aux!AL1) & "-2023 (NC 2 dígitos - milhares de euros) Produtos agrícolas e agroalimentares, do mar e da floresta" -> Principais contributos por produto para a variação das trocas comerciais PT-Japão no período 2019-2023 (NC 2 dígitos - milhares de euros) Produtos agrícolas e agroalimentares, do mar e da floresta
E5: aumento das importações | J5: aumento das exportações
E17: redução das importações | J17: redução das exportações
A28: Fonte: GPP a partir de dados INE/Comércio Internacional (2022 definitivos) | F28: a - agrícola e agroalimentar; p - mar; f - florestas | H28: ='3'!Y116 -> 2024-07-05T15:40:28.630
A29: Cód. NC | B29: Descritivo | C29: ="Variação das Importações " & INDEX('5.2'!K3:N3,1,aux!AL1) & "-"& '5.2'!O3 &"" -> Variação das Importações 2019-2023 | F29: Cód. NC | G29: Descritivo | H29: ="Variação das Exportações " & INDEX('5.2'!K3:N3,1,aux!AL1) & "-"& '5.2'!O3 &"" -> Variação das Exportações 2019-2023
C30: variação total em valor | D30: % do aumento/ redução total | H30: variação total em valor | I30: % do aumento/ redução total
A31: =IF(C31>0,aux!AU6,"") -> 03 | B31: =IF(C31>0,aux!AV6,"") -> Peixes e crustáceos | C31: =IF(aux!AW6>0,aux!AW6,0) -> 743.219 | D31: =IF(SUM($C$31:$C$41)<>0,C31/SUM($C$31:$C$41),0) -> 0.6131072242 | F31: =IF(H31>0,aux!AZ6,"") -> 20 | G31: =IF(H31>0,aux!BA6,"") -> Preparações de produtos vegetais | H31: =IF(aux!BB6>0,aux!BB6,0) -> 31686.476 | I31: =IF(SUM($H$31:$H$41)<>0,H31/SUM($H$31:$H$41),0) -> 0.8393670421
A32: =IF(C32>0,aux!AU7,"") -> 19a | B32: =IF(C32>0,aux!AV7,"") -> Preparações à base de cereais (exc. NC 19022010) (a) | C32: =IF(aux!AW7>0,aux!AW7,0) -> 187.855 | D32: =IF(SUM($C$31:$C$41)<>0,C32/SUM($C$31:$C$41),0) -> 0.1549681286 | F32: =IF(H32>0,aux!AZ7,"") -> 47 | G32: =IF(H32>0,aux!BA7,"") -> Pastas de madeira | H32: =IF(aux!BB7>0,aux!BB7,0) -> 1250.67 | I32: =IF(SUM($H$31:$H$41)<>0,H32/SUM($H$31:$H$41),0) -> 0.0331299441
A33: =IF(C33>0,aux!AU8,"") -> 22 | B33: =IF(C33>0,aux!AV8,"") -> Bebidas, líquidos alcoólicos e vinagres | C33: =IF(aux!AW8>0,aux!AW8,0) -> 149.552 | D33: 0.1233706506 | F33: =IF(H33>0,aux!AZ8,"") -> 03 | G33: =IF(H33>0,aux!BA8,"") -> Peixes e crustáceos | H33: =IF(aux!BB8>0,aux!BB8,0) -> 1030.436 | I33: 0.02729599901
A34: =IF(C34>0,aux!AU9,"") -> 35 | B34: =IF(C34>0,aux!AV9,"") -> Caseínas, albuminas, gelatinas, peptonas, dextrinas (NC 3501 a 3505) | C34: =IF(aux!AW9>0,aux!AW9,0) -> 58.354 | D34: 0.04813824588 | F34: =IF(H34>0,aux!AZ9,"") -> 07 | G34: =IF(H34>0,aux!BA9,"") -> Produtos hortícolas | H34: =IF(aux!BB9>0,aux!BB9,0) -> 902.951 | I34: 0.02391895236
A35: =IF(C35>0,aux!AU10,"") -> 02 | B35: =IF(C35>0,aux!AV10,"") -> Carnes e miudezas | C35: =IF(aux!AW10>0,aux!AW10,0) -> 39.428 | D35: 0.03252552967 | F35: =IF(H35>0,aux!AZ10,"") -> 44 | G35: =IF(H35>0,aux!BA10,"") -> Madeira e suas obras | H35: =IF(aux!BB10>0,aux!BB10,0) -> 814.825 | I35: 0.02158451606
A36: =IF(C36>0,aux!AU11,"") -> 23a | B36: =IF(C36>0,aux!AV11,"") -> Resíduos indústrias alimentares; alimentos p/ animais (exc. NC 230120) (a) | C36: =IF(aux!AW11>0,aux!AW11,0) -> 9.245 | D36: 0.007626522314 | F36: =IF(H36>0,aux!AZ11,"") -> 19a | G36: =IF(H36>0,aux!BA11,"") -> Preparações à base de cereais (exc. NC 19022010) (a) | H36: =IF(aux!BB11>0,aux!BB11,0) -> 755.085 | I36: 0.02000201799
A37: =IF(C37>0,aux!AU12,"") -> 17 | B37: =IF(C37>0,aux!AV12,"") -> Açúcares e produtos de confeitaria | C37: =IF(aux!AW12>0,aux!AW12,0) -> 7.046 | D37: 0.005812490668 | F37: =IF(H37>0,aux!AZ12,"") -> 22 | G37: =IF(H37>0,aux!BA12,"") -> Bebidas, líquidos alcoólicos e vinagres | H37: =IF(aux!BB12>0,aux!BB12,0) -> 561.126 | I37: 0.01486409126
A38: =IF(C38>0,aux!AU13,"") -> 29 | B38: =IF(C38>0,aux!AV13,"") -> Manitol e sorbitol (NC 290543; 290544) | C38: =IF(aux!AW13>0,aux!AW13,0) -> 5.033 | D38: 0.004151896896 | F38: =IF(H38>0,aux!AZ13,"") -> 18 | G38: =IF(H38>0,aux!BA13,"") -> Cacau e suas preparações | H38: =IF(aux!BB13>0,aux!BB13,0) -> 303.602 | I38: 0.008042343134
A39: =IF(C39>0,aux!AU14,"") -> 16p | B39: =IF(C39>0,aux!AV14,"") -> Preparações e conservas de peixes ou crustáceos (NC 1604-05) (p) | C39: =IF(aux!AW14>0,aux!AW14,0) -> 4.061 | D39: 0.003350060261 | F39: =IF(H39>0,aux!AZ14,"") -> 12 | G39: =IF(H39>0,aux!BA14,"") -> Sementes e frutos oleaginosos | H39: =IF(aux!BB14>0,aux!BB14,0) -> 232.634 | I39: 0.006162418076
A40: =IF(C40>0,aux!AU15,"") -> 06 | B40: =IF(C40>0,aux!AV15,"") -> Plantas vivas e produtos de floricultura | C40: =IF(aux!AW15>0,aux!AW15,0) -> 3.369 | D40: 0.002779205373 | F40: =IF(H40>0,aux!AZ15,"") -> 21 | G40: =IF(H40>0,aux!BA15,"") -> Preparações alimentícias diversas | H40: =IF(aux!BB15>0,aux!BB15,0) -> 88.012 | I40: 0.002331416473
B41: Outros contributos para o aumento das importações | C41: =SUMIF(aux!AW16:AW51,">0") -> 5.055 | D41: 0.004170045462 | G41: Outros contributos para o aumento das exportações | H41: =SUMIF(aux!BB16:BB51,">0") -> 124.624 | I41: 0.003301259448
B42: Outros contributos para a redução das importações | C42: =SUMIF(aux!AW6:AW41,"<0") -> -22.187 | D42: =IF(SUM($C$42:$C$52)<>0,C42/SUM($C$42:$C$52),0) -> 0.002418046406 | G42: Outros contributos para a redução das exportações | H42: =SUMIF(aux!BB6:BB41,"<0") -> -5.692 | I42: =IF(SUM($H$42:$H$52)<>0,H42/SUM($H$42:$H$52),0) -> 0.0007837467556
A43: =IF(C43<>0,aux!AU42,"") -> 45 | B43: =IF(C43<0,aux!AV42,"") -> Cortiça e suas obras | C43: =IF(aux!AW42<0,aux!AW42,0) -> -13.336 | D43: =IF(SUM($C$42:$C$52)<>0,C43/SUM($C$42:$C$52),0) -> 0.001453421682 | F43: =IF(H43<>0,aux!AZ42,"") -> 48 | G43: =IF(H43<>0,aux!BA42,"") -> Papel e cartão | H43: =IF(aux!BB42<0,aux!BB42,0) -> -18.009 | I43: =IF(SUM($H$42:$H$52)<>0,H43/SUM($H$42:$H$52),0) -> 0.002479707541
A44: =IF(C44<>0,aux!AU43,"") -> 10 | B44: =IF(C44<0,aux!AV43,"") -> Cereais | C44: =IF(aux!AW43<0,aux!AW43,0) -> -14.964 | D44: 0.001630848984 | F44: =IF(H44<>0,aux!AZ43,"") -> 08 | G44: =IF(H44<>0,aux!BA43,"") -> Frutas | H44: =IF(aux!BB43<0,aux!BB43,0) -> -37.326 | I44: 0.005139517112
A45: =IF(C45<>0,aux!AU44,"") -> 38f | B45: =IF(C45<0,aux!AV44,"") -> Tall oil, essências e colofónias (NC 3803,3805,3806) (f) | C45: =IF(aux!AW44<0,aux!AW44,0) -> -24.726 | D45: 0.002694758887 | F45: =IF(H45<>0,aux!AZ44,"") -> 13a | G45: =IF(H45<>0,aux!BA44,"") -> Sucos e extratos vegetais (exc. NC 1301) (a) | H45: =IF(aux!BB44<0,aux!BB44,0) -> -42.003 | I45: 0.005783505793
A46: =IF(C46<>0,aux!AU45,"") -> 18 | B46: =IF(C46<0,aux!AV45,"") -> Cacau e suas preparações | C46: =IF(aux!AW45<0,aux!AW45,0) -> -41.286 | D46: 0.004499547658 | F46: =IF(H46<>0,aux!AZ45,"") -> 06 | G46: =IF(H46<>0,aux!BA45,"") -> Plantas vivas e produtos de floricultura | H46: =IF(aux!BB45<0,aux!BB45,0) -> -48.483 | I46: 0.006675754384
A47: =IF(C47<>0,aux!AU46,"") -> 48 | B47: =IF(C47<0,aux!AV46,"") -> Papel e cartão | C47: =IF(aux!AW46<0,aux!AW46,0) -> -45.771 | D47: 0.004988344617 | F47: =IF(H47<>0,aux!AZ46,"") -> 09 | G47: =IF(H47<>0,aux!BA46,"") -> Café, chá, mate e especiarias | H47: =IF(aux!BB46<0,aux!BB46,0) -> -94.819 | I47: 0.01305588258
A48: =IF(C48<>0,aux!AU47,"") -> 20 | B48: =IF(C48<0,aux!AV47,"") -> Preparações de produtos vegetais | C48: =IF(aux!AW47<0,aux!AW47,0) -> -94.828 | D48: 0.01033481338 | F48: =IF(H48<>0,aux!AZ47,"") -> 38f | G48: =IF(H48<>0,aux!BA47,"") -> Tall oil, essências e colofónias (NC 3803,3805,3806) (f) | H48: =IF(aux!BB47<0,aux!BB47,0) -> -102.335 | I48: 0.01409078079
A49: =IF(C49<>0,aux!AU48,"") -> 12 | B49: =IF(C49<0,aux!AV48,"") -> Sementes e frutos oleaginosos | C49: =IF(aux!AW48<0,aux!AW48,0) -> -111.87 | D49: 0.01219213284 | F49: =IF(H49<>0,aux!AZ48,"") -> 45 | G49: =IF(H49<>0,aux!BA48,"") -> Cortiça e suas obras | H49: =IF(aux!BB48<0,aux!BB48,0) -> -265.883 | I49: 0.03661014382
A50: =IF(C50<>0,aux!AU49,"") -> 11 | B50: =IF(C50<0,aux!AV49,"") -> Produtos da indústria de moagem e outros | C50: =IF(aux!AW49<0,aux!AW49,0) -> -212.369 | D50: 0.02314499919 | F50: =IF(H50<>0,aux!AZ49,"") -> 15 | G50: =IF(H50<>0,aux!BA49,"") -> Gorduras e óleos animais ou vegetais | H50: =IF(aux!BB49<0,aux!BB49,0) -> -484.145 | I50: 0.06666322435
A51: =IF(C51<>0,aux!AU50,"") -> 21 | B51: =IF(C51<0,aux!AV50,"") -> Preparações alimentícias diversas | C51: =IF(aux!AW50<0,aux!AW50,0) -> -1114.33 | D51: 0.1214450647 | F51: =IF(H51<>0,aux!AZ50,"") -> 02 | G51: =IF(H51<>0,aux!BA50,"") -> Carnes e miudezas | H51: =IF(aux!BB50<0,aux!BB50,0) -> -2922.676 | I51: 0.402431102
A52: =IF(C52<>0,aux!AU51,"") -> 15 | B52: =IF(C52<0,aux!AV51,"") -> Gorduras e óleos animais ou vegetais | C52: =IF(aux!AW51<0,aux!AW51,0) -> -7479.922 | D52: 0.8151980216 | F52: =IF(H52<>0,aux!AZ51,"") -> 04 | G52: =IF(H52<>0,aux!BA51,"") -> Leite e laticínios; ovos; mel, etc. | H52: =IF(aux!BB51<0,aux!BB51,0) -> -3241.179 | I52: 0.4462866349
A53: TOTAL | C53: =SUM(C31:C52) -> -7963.372 | F53: TOTAL | H53: =SUM(H31:H52) -> 30487.891

Sheet 5.2A
A1: Trocas comerciais Portugal-Japão 2019-2023 em milhares de euros (NC 4 dígitos) | G1: Produtos agrícolas e agroalimentares, do mar e da floresta
A2: Cód. NC | B2: Descritivo | C2: Importações | K2: Exportações | S2: Saldo quinquénio (exp-imp) | T2: Evolução das importações | U2: =+"Variação das Importações " & INDEX(K3:N3,1,aux!AL1) & "-"& '5.2'!O3 &"" -> Variação das Importações 2019-2023 | Z2: Evolução das exportações | AA2: ="Variação das Exportações " & INDEX(K3:N3,1,aux!AL1) & "-"& '5.2'!O3 &"" -> Variação das Exportações 2019-2023
C3: 2019 | D3: 2020 | E3: 2021 | F3: 2022 | G3: 2023 | H3: média quinquénio | I3: % Subtot | J3: % Total | K3: 2019 | L3: 2020 | M3: 2021 | N3: 2022 | O3: 2023 | P3: média quinquénio | Q3: % Subtot | R3: % Total | U3: variação total em valor | V3: % no subtotal de variação | W3: % no total de variação | X3: taxa de variação média anual | Y3: taxa de variação total | AA3: variação total em valor | AB3: % no subtotal de variação | AC3: % no total de variação | AD3: taxa de variação média anual | AE3: taxa de variação total | AX3: filtro
A4: 0101 | B4: Equídeos vivos | C4: 0 | D4: 0 | E4: 0 | F4: 0 | G4: 0 | H4: 0 | I4: 0 | J4: 0 | K4: 0 | L4: 0 | M4: 0 | N4: 0 | O4: 0 | P4: 0 | Q4: 0 | R4: 0 | S4: 0 | U4: =G4-INDEX($C4:$G4,1,aux!$AL$1) -> 0 | V4: =IF($U$237<>0,U4/$U$237, "n.d.") -> 0 | W4: =IF($U$322<>0,U4/$U$322, "n.d.") -> 0 | X4: =+IF(INDEX($C4:$G4,1,aux!$AL$1)>0,(G4/INDEX($C4:$G4,1,aux!$AL$1))^(1/($G$3-INDEX($C$3:$G$3,1,aux!$AL$1)))-1,"n.d.") -> n.d. | Y4: =IF(INDEX($C4:$G4,1,aux!$AL$1)>0,(G4-INDEX($C4:$G4,1,aux!$AL$1))/INDEX($C4:$G4,1,aux!$AL$1),"n.d.") -> n.d. | AA4: =O4-INDEX($K4:$O4,1,aux!$AL$1) -> 0 | AB4: =IF($AA$237<>0,AA4/$AA$237, "n.d.") -> 0 | AC4: =IF($AA$322<>0,AA4/$AA$322, "n.d.") -> 0 | AD4: =+IF(INDEX($K4:$O4,1,aux!$AL$1)>0,(O4/INDEX($K4:$O4,1,aux!$AL$1))^(1/($O$3-INDEX($K$3:$O$3,1,aux!$AL$1)))-1,"n.d.") -> n.d. | AE4: =IF(INDEX($K4:$O4,1,aux!$AL$1)>0,(O4-INDEX($K4:$O4,1,aux!$AL$1))/INDEX($K4:$O4,1,aux!$AL$1),"n.d.") -> n.d. | AX4: =+LEFT(A4,2) -> 01
A5: 0102 | B5: Bovinos vivos | C5: 0 | D5: 0 | E5: 0 | F5: 0 | G5: 0 | H5: 0 | I5: 0 | J5: 0 | K5: 0 | L5: 0 | M5: 0 | N5: 0 | O5: 0 | P5: 0 | Q5: 0 | R5: 0 | S5: 0 | U5: =G5-INDEX($C5:$G5,1,aux!$AL$1) -> 0 | V5: 0 | W5: 0 | X5: =+IF(INDEX($C5:$G5,1,aux!$AL$1)>0,(G5/INDEX($C5:$G5,1,aux!$AL$1))^(1/($G$3-INDEX($C$3:$G$3,1,aux!$AL$1)))-1,"n.d.") -> n.d. | Y5: =IF(INDEX($C5:$G5,1,aux!$AL$1)>0,(G5-INDEX($C5:$G5,1,aux!$AL$1))/INDEX($C5:$G5,1,aux!$AL$1),"n.d.") -> n.d. | AA5: =O5-INDEX($K5:$O5,1,aux!$AL$1) -> 0 | AB5: 0 | AC5: 0 | AD5: =+IF(INDEX($K5:$O5,1,aux!$AL$1)>0,(O5/INDEX($K5:$O5,1,aux!$AL$1))^(1/($O$3-INDEX($K$3:$O$3,1,aux!$AL$1)))-1,"n.d.") -> n.d. | AE5: =IF(INDEX($K5:$O5,1,aux!$AL$1)>0,(O5-INDEX($K5:$O5,1,aux!$AL$1))/INDEX($K5:$O5,1,aux!$AL$1),"n.d.") -> n.d. | AX5: 01
A6: 0103 | B6: Suínos vivos | C6: 0 | D6: 0 | E6: 0 | F6: 0 | G6: 0 | H6: 0 | I6: 0 | J6: 0 | K6: 0 | L6: 0 | M6: 0 | N6: 0 | O6: 0 | P6: 0 | Q6: 0 | R6: 0 | S6: 0 | U6: =G6-INDEX($C6:$G6,1,aux!$AL$1) -> 0 | V6: 0 | W6: 0 | X6: =+IF(INDEX($C6:$G6,1,aux!$AL$1)>0,(G6/INDEX($C6:$G6,1,aux!$AL$1))^(1/($G$3-INDEX($C$3:$G$3,1,aux!$AL$1)))-1,"n.d.") -> n.d. | Y6: =IF(INDEX($C6:$G6,1,aux!$AL$1)>0,(G6-INDEX($C6:$G6,1,aux!$AL$1))/INDEX($C6:$G6,1,aux!$AL$1),"n.d.") -> n.d. | AA6: =O6-INDEX($K6:$O6,1,aux!$AL$1) -> 0 | AB6: 0 | AC6: 0 | AD6: =+IF(INDEX($K6:$O6,1,aux!$AL$1)>0,(O6/INDEX($K6:$O6,1,aux!$AL$1))^(1/($O$3-INDEX($K$3:$O$3,1,aux!$AL$1)))-1,"n.d.") -> n.d. | AE6: =IF(INDEX($K6:$O6,1,aux!$AL$1)>0,(O6-INDEX($K6:$O6,1,aux!$AL$1))/INDEX($K6:$O6,1,aux!$AL$1),"n.d.") -> n.d. | AX6: 01
A7: 0104 | B7: Ovinos ou caprinos vivos | C7: 0 | D7: 0 | E7: 0 | F7: 0 | G7: 0 | H7: 0 | I7: 0 | J7: 0 | K7: 0 | L7: 0 | M7: 0 | N7: 0 | O7: 0 | P7: 0 | Q7: 0 | R7: 0 | S7: 0 | U7: =G7-INDEX($C7:$G7,1,aux!$AL$1) -> 0 | V7: 0 | W7: 0 | X7: =+IF(INDEX($C7:$G7,1,aux!$AL$1)>0,(G7/INDEX($C7:$G7,1,aux!$AL$1))^(1/($G$3-INDEX($C$3:$G$3,1,aux!$AL$1)))-1,"n.d.") -> n.d. | Y7: =IF(INDEX($C7:$G7,1,aux!$AL$1)>0,(G7-INDEX($C7:$G7,1,aux!$AL$1))/INDEX($C7:$G7,1,aux!$AL$1),"n.d.") -> n.d. | AA7: =O7-INDEX($K7:$O7,1,aux!$AL$1) -> 0 | AB7: 0 | AC7: 0 | AD7: =+IF(INDEX($K7:$O7,1,aux!$AL$1)>0,(O7/INDEX($K7:$O7,1,aux!$AL$1))^(1/($O$3-INDEX($K$3:$O$3,1,aux!$AL$1)))-1,"n.d.") -> n.d. | AE7: =IF(INDEX($K7:$O7,1,aux!$AL$1)>0,(O7-INDEX($K7:$O7,1,aux!$AL$1))/INDEX($K7:$O7,1,aux!$AL$1),"n.d.") -> n.d. | AX7: 01
A8: 0105 | B8: Aves de capoeira vivas | C8: 0 | D8: 0 | E8: 0 | F8: 0 | G8: 0 | H8: 0 | I8: 0 | J8: 0 | K8: 0 | L8: 0 | M8: 0 | N8: 0 | O8: 0 | P8: 0 | Q8: 0 | R8: 0 | S8: 0 | U8: =G8-INDEX($C8:$G8,1,aux!$AL$1) -> 0 | V8: 0 | W8: 0 | X8: =+IF(INDEX($C8:$G8,1,aux!$AL$1)>0,(G8/INDEX($C8:$G8,1,aux!$AL$1))^(1/($G$3-INDEX($C$3:$G$3,1,aux!$AL$1)))-1,"n.d.") -> n.d. | Y8: =IF(INDEX($C8:$G8,1,aux!$AL$1)>0,(G8-INDEX($C8:$G8,1,aux!$AL$1))/INDEX($C8:$G8,1,aux!$AL$1),"n.d.") -> n.d. | AA8: =O8-INDEX($K8:$O8,1,aux!$AL$1) -> 0 | AB8: 0 | AC8: 0 | AD8: =+IF(INDEX($K8:$O8,1,aux!$AL$1)>0,(O8/INDEX($K8:$O8,1,aux!$AL$1))^(1/($O$3-INDEX($K$3:$O$3,1,aux!$AL$1)))-1,"n.d.") -> n.d. | AE8: =IF(INDEX($K8:$O8,1,aux!$AL$1)>0,(O8-INDEX($K8:$O8,1,aux!$AL$1))/INDEX($K8:$O8,1,aux!$AL$1),"n.d.") -> n.d. | AX8: 01
A9: 0106 | B9: Outros animais vivos | C9: 0 | D9: 0 | E9: 0 | F9: 0 | G9: 0.112 | H9: 0.0224 | I9: 1.895757797e-06 | J9: 1.508695169e-06 | K9: 0.01 | L9: 0.23 | M9: 0.55 | N9: 0 | O9: 0.6 | P9: 0.278 | Q9: 4.553184477e-06 | R9: 3.789555875e-06 | S9: 0.2556 | U9: =G9-INDEX($C9:$G9,1,aux!$AL$1) -> 0.112 | V9: -1.299378259e-05 | W9: -1.406439383e-05 | X9: =+IF(INDEX($C9:$G9,1,aux!$AL$1)>0,(G9/INDEX($C9:$G9,1,aux!$AL$1))^(1/($G$3-INDEX($C$3:$G$3,1,aux!$AL$1)))-1,"n.d.") -> n.d. | Y9: =IF(INDEX($C9:$G9,1,aux!$AL$1)>0,(G9-INDEX($C9:$G9,1,aux!$AL$1))/INDEX($C9:$G9,1,aux!$AL$1),"n.d.") -> n.d. | AA9: =O9-INDEX($K9:$O9,1,aux!$AL$1) -> 0.59 | AB9: 2.128213693e-05 | AC9: 1.935194533e-05 | AD9: =+IF(INDEX($K9:$O9,1,aux!$AL$1)>0,(O9/INDEX($K9:$O9,1,aux!$AL$1))^(1/($O$3-INDEX($K$3:$O$3,1,aux!$AL$1)))-1,"n.d.") -> 1.783157684 | AE9: =IF(INDEX($K9:$O9,1,aux!$AL$1)>0,(O9-INDEX($K9:$O9,1,aux!$AL$1))/INDEX($K9:$O9,1,aux!$AL$1),"n.d.") -> 59 | AX9: 01
A10: 01SS | B10: Animais vivos | C10: 0 | D10: 0 | E10: 0 | F10: 0 | G10: 0 | H10: 0 | I10: 0 | J10: 0 | K10: 0 | L10: 0 | M10: 0 | N10: 0 | O10: 0 | P10: 0 | Q10: 0 | R10: 0 | S10: 0 | U10: =G10-INDEX($C10:$G10,1,aux!$AL$1) -> 0 | V10: 0 | W10: 0 | X10: =+IF(INDEX($C10:$G10,1,aux!$AL$1)>0,(G10/INDEX($C10:$G10,1,aux!$AL$1))^(1/($G$3-INDEX($C$3:$G$3,1,aux!$AL$1)))-1,"n.d.") -> n.d. | Y10: =IF(INDEX($C10:$G10,1,aux!$AL$1)>0,(G10-INDEX($C10:$G10,1,aux!$AL$1))/INDEX($C10:$G10,1,aux!$AL$1),"n.d.") -> n.d. | AA10: =O10-INDEX($K10:$O10,1,aux!$AL$1) -> 0 | AB10: 0 | AC10: 0 | AD10: =+IF(INDEX($K10:$O10,1,aux!$AL$1)>0,(O10/INDEX($K10:$O10,1,aux!$AL$1))^(1/($O$3-INDEX($K$3:$O$3,1,aux!$AL$1)))-1,"n.d.") -> n.d. | AE10: =IF(INDEX($K10:$O10,1,aux!$AL$1)>0,(O10-INDEX($K10:$O10,1,aux!$AL$1))/INDEX($K10:$O10,1,aux!$AL$1),"n.d.") -> n.d. | AX10: 01
A11: 0201 | B11: Carnes de bovino, frescas ou refrigeradas | C11: 0 | D11: 0 | E11: 0 | F11: 0 | G11: 39.209 | H11: 7.8418 | I11: 0.0006636675665 | J11: 0.0005281645437 | K11: 0 | L11: 0 | M11: 0 | N11: 0 | O11: 0 | P11: 0 | Q11: 0 | R11: 0 | S11: -7.8418 | U11: =G11-INDEX($C11:$G11,1,aux!$AL$1) -> 39.209 | V11: -0.00454886805 | W11: -0.004923668014 | X11: =+IF(INDEX($C11:$G11,1,aux!$AL$1)>0,(G11/INDEX($C11:$G11,1,aux!$AL$1))^(1/($G$3-INDEX($C$3:$G$3,1,aux!$AL$1)))-1,"n.d.") -> n.d. | Y11: =IF(INDEX($C11:$G11,1,aux!$AL$1)>0,(G11-INDEX($C11:$G11,1,aux!$AL$1))/INDEX($C11:$G11,1,aux!$AL$1),"n.d.") -> n.d. | AA11: =O11-INDEX($K11:$O11,1,aux!$AL$1) -> 0 | AB11: 0 | AC11: 0 | AD11: =+IF(INDEX($K11:$O11,1,aux!$AL$1)>0,(O11/INDEX($K11:$O11,1,aux!$AL$1))^(1/($O$3-INDEX($K$3:$O$3,1,aux!$AL$1)))-1,"n.d.") -> n.d. | AE11: =IF(INDEX($K11:$O11,1,aux!$AL$1)>0,(O11-INDEX($K11:$O11,1,aux!$AL$1))/INDEX($K11:$O11,1,aux!$AL$1),"n.d.") -> n.d. | AX11: 02
A12: 0202 | B12: Carnes de bovino, congeladas | C12: 0 | D12: 0 | E12: 0 | F12: 0 | G12: 0 | H12: 0 | I12: 0 | J12: 0 | K12: 0 | L12: 0 | M12: 0 | N12: 0.125 | O12: 0.027 | P12: 0.0304 | Q12: 4.979021874e-07 | R12: 4.14397477e-07 | S12: 0.0304 | U12: =G12-INDEX($C12:$G12,1,aux!$AL$1) -> 0 | V12: 0 | W12: 0 | X12: =+IF(INDEX($C12:$G12,1,aux!$AL$1)>0,(G12/INDEX($C12:$G12,1,aux!$AL$1))^(1/($G$3-INDEX($C$3:$G$3,1,aux!$AL$1)))-1,"n.d.") -> n.d. | Y12: =IF(INDEX($C12:$G12,1,aux!$AL$1)>0,(G12-INDEX($C12:$G12,1,aux!$AL$1))/INDEX($C12:$G12,1,aux!$AL$1),"n.d.") -> n.d. | AA12: =O12-INDEX($K12:$O12,1,aux!$AL$1) -> 0.027 | AB12: 9.739283001e-07 | AC12: 8.855974984e-07 | AD12: =+IF(INDEX($K12:$O12,1,aux!$AL$1)>0,(O12/INDEX($K12:$O12,1,aux!$AL$1))^(1/($O$3-INDEX($K$3:$O$3,1,aux!$AL$1)))-1,"n.d.") -> n.d. | AE12: =IF(INDEX($K12:$O12,1,aux!$AL$1)>0,(O12-INDEX($K12:$O12,1,aux!$AL$1))/INDEX($K12:$O12,1,aux!$AL$1),"n.d.") -> n.d. | AX12: 02
A13: 0203 | B13: Carnes de suíno | C13: 0 | D13: 0 | E13: 0 | F13: 0.146 | G13: 0.219 | H13: 0.073 | I13: 6.178139248e-06 | J13: 4.916729793e-06 | K13: 4554.868 | L13: 4861.793 | M13: 5226.437 | N13: 4270.354 | O13: 736.173 | P13: 3929.925 | Q13: 0.06436573203 | R13: 0.05357075673 | S13: 3929.852 | U13: =G13-INDEX($C13:$G13,1,aux!$AL$1) -> 0.219 | V13: -2.54074856e-05 | W13: -2.750091293e-05 | X13: =+IF(INDEX($C13:$G13,1,aux!$AL$1)>0,(G13/INDEX($C13:$G13,1,aux!$AL$1))^(1/($G$3-INDEX($C$3:$G$3,1,aux!$AL$1)))-1,"n.d.") -> n.d. | Y13: =IF(INDEX($C13:$G13,1,aux!$AL$1)>0,(G13-INDEX($C13:$G13,1,aux!$AL$1))/INDEX($C13:$G13,1,aux!$AL$1),"n.d.") -> n.d. | AA13: =O13-INDEX($K13:$O13,1,aux!$AL$1) -> -3818.695 | AB13: -0.1377457456 | AC13: -0.1252528422 | AD13: =+IF(INDEX($K13:$O13,1,aux!$AL$1)>0,(O13/INDEX($K13:$O13,1,aux!$AL$1))^(1/($O$3-INDEX($K$3:$O$3,1,aux!$AL$1)))-1,"n.d.") -> -0.3659463275 | AE13: =IF(INDEX($K13:$O13,1,aux!$AL$1)>0,(O13-INDEX($K13:$O13,1,aux!$AL$1))/INDEX($K13:$O13,1,aux!$AL$1),"n.d.") -> -0.8383766555 | AX13: 02
A14: 0204 | B14: Carnes de ovino ou caprino | C14: 0 | D14: 0 | E14: 0 | F14: 0 | G14: 0 | H14: 0 | I14: 0 | J14: 0 | K14: 0 | L14: 0 | M14: 0 | N14: 0 | O14: 0 | P14: 0 | Q14: 0 | R14: 0 | S14: 0 | U14: =G14-INDEX($C14:$G14,1,aux!$AL$1) -> 0 | V14: 0 | W14: 0 | X14: =+IF(INDEX($C14:$G14,1,aux!$AL$1)>0,(G14/INDEX($C14:$G14,1,aux!$AL$1))^(1/($G$3-INDEX($C$3:$G$3,1,aux!$AL$1)))-1,"n.d.") -> n.d. | Y14: =IF(INDEX($C14:$G14,1,aux!$AL$1)>0,(G14-INDEX($C14:$G14,1,aux!$AL$1))/INDEX($C14:$G14,1,aux!$AL$1),"n.d.") -> n.d. | AA14: =O14-INDEX($K14:$O14,1,aux!$AL$1) -> 0 | AB14: 0 | AC14: 0 | AD14: =+IF(INDEX($K14:$O14,1,aux!$AL$1)>0,(O14/INDEX($K14:$O14,1,aux!$AL$1))^(1/($O$3-INDEX($K$3:$O$3,1,aux!$AL$1)))-1,"n.d.") -> n.d. | AE14: =IF(INDEX($K14:$O14,1,aux!$AL$1)>0,(O14-INDEX($K14:$O14,1,aux!$AL$1))/INDEX($K14:$O14,1,aux!$AL$1),"n.d.") -> n.d. | AX14: 02
A15: 0205 | B15: Carnes de equídeo | C15: 0 | D15: 0 | E15: 0 | F15: 0 | G15: 0 | H15: 0 | I15: 0 | J15: 0 | K15: 0 | L15: 0 | M15: 0 | N15: 0 | O15: 0 | P15: 0 | Q15: 0 | R15: 0 | S15: 0 | U15: =G15-INDEX($C15:$G15,1,aux!$AL$1) -> 0 | V15: 0 | W15: 0 | X15: =+IF(INDEX($C15:$G15,1,aux!$AL$1)>0,(G15/INDEX($C15:$G15,1,aux!$AL$1))^(1/($G$3-INDEX($C$3:$G$3,1,aux!$AL$1)))-1,"n.d.") -> n.d. | Y15: =IF(INDEX($C15:$G15,1,aux!$AL$1)>0,(G15-INDEX($C15:$G15,1,aux!$AL$1))/INDEX($C15:$G15,1,aux!$AL$1),"n.d.") -> n.d. | AA15: =O15-INDEX($K15:$O15,1,aux!$AL$1) -> 0 | AB15: 0 | AC15: 0 | AD15: =+IF(INDEX($K15:$O15,1,aux!$AL$1)>0,(O15/INDEX($K15:$O15,1,aux!$AL$1))^(1/($O$3-INDEX($K$3:$O$3,1,aux!$AL$1)))-1,"n.d.") -> n.d. | AE15: =IF(INDEX($K15:$O15,1,aux!$AL$1)>0,(O15-INDEX($K15:$O15,1,aux!$AL$1))/INDEX($K15:$O15,1,aux!$AL$1),"n.d.") -> n.d. | AX15: 02
A16: 0206 | B16: Miudezas de bovino, suíno, ovino, caprino,equídeo | C16: 0 | D16: 0 | E16: 0 | F16: 0 | G16: 0 | H16: 0 | I16: 0 | J16: 0 | K16: 8.296 | L16: 0 | M16: 0 | N16: 159.61 | O16: 19.773 | P16: 37.5358 | Q16: 0.0006147748989 | R16: 0.0005116691058 | S16: 37.5358 | U16: =G16-INDEX($C16:$G16,1,aux!$AL$1) -> 0 | V16: 0 | W16: 0 | X16: =+IF(INDEX($C16:$G16,1,aux!$AL$1)>0,(G16/INDEX($C16:$G16,1,aux!$AL$1))^(1/($G$3-INDEX($C$3:$G$3,1,aux!$AL$1)))-1,"n.d.") -> n.d. | Y16: =IF(INDEX($C16:$G16,1,aux!$AL$1)>0,(G16-INDEX($C16:$G16,1,aux!$AL$1))/INDEX($C16:$G16,1,aux!$AL$1),"n.d.") -> n.d. | AA16: =O16-INDEX($K16:$O16,1,aux!$AL$1) -> 11.477 | AB16: 0.0004139916704 | AC16: 0.0003764445366 | AD16: =+IF(INDEX($K16:$O16,1,aux!$AL$1)>0,(O16/INDEX($K16:$O16,1,aux!$AL$1))^(1/($O$3-INDEX($K$3:$O$3,1,aux!$AL$1)))-1,"n.d.") -> 0.2425130413 | AE16: =IF(INDEX($K16:$O16,1,aux!$AL$1)>0,(O16-INDEX($K16:$O16,1,aux!$AL$1))/INDEX($K16:$O16,1,aux!$AL$1),"n.d.") -> 1.383437801 | AX16: 02
A17: 0207 | B17: Carnes e miudezas de aves de capoeira | C17: 0 | D17: 0 | E17: 0 | F17: 0 | G17: 0 | H17: 0 | I17: 0 | J17: 0 | K17: 0 | L17: 0 | M17: 0 | N17: 0 | O17: 0 | P17: 0 | Q17: 0 | R17: 0 | S17: 0 | U17: =G17-INDEX($C17:$G17,1,aux!$AL$1) -> 0 | V17: 0 | W17: 0 | X17: =+IF(INDEX($C17:$G17,1,aux!$AL$1)>0,(G17/INDEX($C17:$G17,1,aux!$AL$1))^(1/($G$3-INDEX($C$3:$G$3,1,aux!$AL$1)))-1,"n.d.") -> n.d. | Y17: =IF(INDEX($C17:$G17,1,aux!$AL$1)>0,(G17-INDEX($C17:$G17,1,aux!$AL$1))/INDEX($C17:$G17,1,aux!$AL$1),"n.d.") -> n.d. | AA17: =O17-INDEX($K17:$O17,1,aux!$AL$1) -> 0 | AB17: 0 | AC17: 0 | AD17: =+IF(INDEX($K17:$O17,1,aux!$AL$1)>0,(O17/INDEX($K17:$O17,1,aux!$AL$1))^(1/($O$3-INDEX($K$3:$O$3,1,aux!$AL$1)))-1,"n.d.") -> n.d. | AE17: =IF(INDEX($K17:$O17,1,aux!$AL$1)>0,(O17-INDEX($K17:$O17,1,aux!$AL$1))/INDEX($K17:$O17,1,aux!$AL$1),"n.d.") -> n.d. | AX17: 02
A18: 0208 | B18: Outras carnes e miudezas | C18: 0 | D18: 0 | E18: 0 | F18: 0 | G18: 0 | H18: 0 | I18: 0 | J18: 0 | K18: 0 | L18: 0 | M18: 0 | N18: 0 | O18: 0 | P18: 0 | Q18: 0 | R18: 0 | S18: 0 | U18: =G18-INDEX($C18:$G18,1,aux!$AL$1) -> 0 | V18: 0 | W18: 0 | X18: =+IF(INDEX($C18:$G18,1,aux!$AL$1)>0,(G18/INDEX($C18:$G18,1,aux!$AL$1))^(1/($G$3-INDEX($C$3:$G$3,1,aux!$AL$1)))-1,"n.d.") -> n.d. | Y18: =IF(INDEX($C18:$G18,1,aux!$AL$1)>0,(G18-INDEX($C18:$G18,1,aux!$AL$1))/INDEX($C18:$G18,1,aux!$AL$1),"n.d.") -> n.d. | AA18: =O18-INDEX($K18:$O18,1,aux!$AL$1) -> 0 | AB18: 0 | AC18: 0 | AD18: =+IF(INDEX($K18:$O18,1,aux!$AL$1)>0,(O18/INDEX($K18:$O18,1,aux!$AL$1))^(1/($O$3-INDEX($K$3:$O$3,1,aux!$AL$1)))-1,"n.d.") -> n.d. | AE18: =IF(INDEX($K18:$O18,1,aux!$AL$1)>0,(O18-INDEX($K18:$O18,1,aux!$AL$1))/INDEX($K18:$O18,1,aux!$AL$1),"n.d.") -> n.d. | AX18: 02
A19: 0209 | B19: Toucinho, gorduras de porco e de aves | C19: 0 | D19: 0 | E19: 0 | F19: 0 | G19: 0 | H19: 0 | I19: 0 | J19: 0 | K19: 0 | L19: 43.152 | M19: 0 | N19: 0.384 | O19: 0 | P19: 8.7072 | Q19: 0.0001426096686 | R19: 0.0001186921616 | S19: 8.7072 | U19: =G19-INDEX($C19:$G19,1,aux!$AL$1) -> 0 | V19: 0 | W19: 0 | X19: =+IF(INDEX($C19:$G19,1,aux!$AL$1)>0,(G19/INDEX($C19:$G19,1,aux!$AL$1))^(1/($G$3-INDEX($C$3:$G$3,1,aux!$AL$1)))-1,"n.d.") -> n.d. | Y19: =IF(INDEX($C19:$G19,1,aux!$AL$1)>0,(G19-INDEX($C19:$G19,1,aux!$AL$1))/INDEX($C19:$G19,1,aux!$AL$1),"n.d.") -> n.d. | AA19: =O19-INDEX($K19:$O19,1,aux!$AL$1) -> 0 | AB19: 0 | AC19: 0 | AD19: =+IF(INDEX($K19:$O19,1,aux!$AL$1)>0,(O19/INDEX($K19:$O19,1,aux!$AL$1))^(1/($O$3-INDEX($K$3:$O$3,1,aux!$AL$1)))-1,"n.d.") -> n.d. | AE19: =IF(INDEX($K19:$O19,1,aux!$AL$1)>0,(O19-INDEX($K19:$O19,1,aux!$AL$1))/INDEX($K19:$O19,1,aux!$AL$1),"n.d.") -> n.d. | AX19: 02
A20: 0210 | B20: Carnes e miudezas processadas; farinhas de carnes | C20: 0 | D20: 0 | E20: 0.307 | F20: 0 | G20: 0 | H20: 0.0614 | I20: 5.196407532e-06 | J20: 4.135441223e-06 | K20: 0.103 | L20: 0.237 | M20: 25.741 | N20: 601.249 | O20: 884.618 | P20: 302.3896 | Q20: 0.004952646161 | R20: 0.004122022609 | S20: 302.3282 | U20: =G20-INDEX($C20:$G20,1,aux!$AL$1) -> 0 | V20: 0 | W20: 0 | X20: =+IF(INDEX($C20:$G20,1,aux!$AL$1)>0,(G20/INDEX($C20:$G20,1,aux!$AL$1))^(1/($G$3-INDEX($C$3:$G$3,1,aux!$AL$1)))-1,"n.d.") -> n.d. | Y20: =IF(INDEX($C20:$G20,1,aux!$AL$1)>0,(G20-INDEX($C20:$G20,1,aux!$AL$1))/INDEX($C20:$G20,1,aux!$AL$1),"n.d.") -> n.d. | AA20: =O20-INDEX($K20:$O20,1,aux!$AL$1) -> 884.515 | AB20: 0.03190571075 | AC20: 0.02901201005 | AD20: =+IF(INDEX($K20:$O20,1,aux!$AL$1)>0,(O20/INDEX($K20:$O20,1,aux!$AL$1))^(1/($O$3-INDEX($K$3:$O$3,1,aux!$AL$1)))-1,"n.d.") -> 8.626748741 | AE20: =IF(INDEX($K20:$O20,1,aux!$AL$1)>0,(O20-INDEX($K20:$O20,1,aux!$AL$1))/INDEX($K20:$O20,1,aux!$AL$1),"n.d.") -> 8587.524272 | AX20: 02
A21: 02SS | B21: Carnes e miudezas, comestíveis | C21: 0 | D21: 0 | E21: 0 | F21: 0 | G21: 0 | H21: 0 | I21: 0 | J21: 0 | K21: 0 | L21: 0 | M21: 0 | N21: 0 | O21: 0 | P21: 0 | Q21: 0 | R21: 0 | S21: 0 | U21: =G21-INDEX($C21:$G21,1,aux!$AL$1) -> 0 | V21: 0 | W21: 0 | X21: =+IF(INDEX($C21:$G21,1,aux!$AL$1)>0,(G21/INDEX($C21:$G21,1,aux!$AL$1))^(1/($G$3-INDEX($C$3:$G$3,1,aux!$AL$1)))-1,"n.d.") -> n.d. | Y21: =IF(INDEX($C21:$G21,1,aux!$AL$1)>0,(G21-INDEX($C21:$G21,1,aux!$AL$1))/INDEX($C21:$G21,1,aux!$AL$1),"n.d.") -> n.d. | AA21: =O21-INDEX($K21:$O21,1,aux!$AL$1) -> 0 | AB21: 0 | AC21: 0 | AD21: =+IF(INDEX($K21:$O21,1,aux!$AL$1)>0,(O21/INDEX($K21:$O21,1,aux!$AL$1))^(1/($O$3-INDEX($K$3:$O$3,1,aux!$AL$1)))-1,"n.d.") -> n.d. | AE21: =IF(INDEX($K21:$O21,1,aux!$AL$1)>0,(O21-INDEX($K21:$O21,1,aux!$AL$1))/INDEX($K21:$O21,1,aux!$AL$1),"n.d.") -> n.d. | AX21: 02
A22: 0401 | B22: Leite e nata, não concentrados | C22: 0 | D22: 0 | E22: 0 | F22: 0 | G22: 0 | H22: 0 | I22: 0 | J22: 0 | K22: 0 | L22: 0 | M22: 0 | N22: 0 | O22: 0 | P22: 0 | Q22: 0 | R22: 0 | S22: 0 | U22: =G22-INDEX($C22:$G22,1,aux!$AL$1) -> 0 | V22: 0 | W22: 0 | X22: =+IF(INDEX($C22:$G22,1,aux!$AL$1)>0,(G22/INDEX($C22:$G22,1,aux!$AL$1))^(1/($G$3-INDEX($C$3:$G$3,1,aux!$AL$1)))-1,"n.d.") -> n.d. | Y22: =IF(INDEX($C22:$G22,1,aux!$AL$1)>0,(G22-INDEX($C22:$G22,1,aux!$AL$1))/INDEX($C22:$G22,1,aux!$AL$1),"n.d.") -> n.d. | AA22: =O22-INDEX($K22:$O22,1,aux!$AL$1) -> 0 | AB22: 0 | AC22: 0 | AD22: =+IF(INDEX($K22:$O22,1,aux!$AL$1)>0,(O22/INDEX($K22:$O22,1,aux!$AL$1))^(1/($O$3-INDEX($K$3:$O$3,1,aux!$AL$1)))-1,"n.d.") -> n.d. | AE22: =IF(INDEX($K22:$O22,1,aux!$AL$1)>0,(O22-INDEX($K22:$O22,1,aux!$AL$1))/INDEX($K22:$O22,1,aux!$AL$1),"n.d.") -> n.d. | AX22: 04
A23: 0402 | B23: Leite e nata, concentrados | C23: 0 | D23: 0 | E23: 0 | F23: 0 | G23: 0 | H23: 0 | I23: 0 | J23: 0 | K23: 1775.934 | L23: 760.15 | M23: 158.359 | N23: 0 | O23: 0 | P23: 538.8886 | Q23: 0.00882611226 | R23: 0.00734585777 | S23: 538.8886 | U23: =G23-INDEX($C23:$G23,1,aux!$AL$1) -> 0 | V23: 0 | W23: 0 | X23: =+IF(INDEX($C23:$G23,1,aux!$AL$1)>0,(G23/INDEX($C23:$G23,1,aux!$AL$1))^(1/($G$3-INDEX($C$3:$G$3,1,aux!$AL$1)))-1,"n.d.") -> n.d. | Y23: =IF(INDEX($C23:$G23,1,aux!$AL$1)>0,(G23-INDEX($C23:$G23,1,aux!$AL$1))/INDEX($C23:$G23,1,aux!$AL$1),"n.d.") -> n.d. | AA23: =O23-INDEX($K23:$O23,1,aux!$AL$1) -> -1775.934 | AB23: -0.06406045858 | AC23: -0.05825047065 | AD23: =+IF(INDEX($K23:$O23,1,aux!$AL$1)>0,(O23/INDEX($K23:$O23,1,aux!$AL$1))^(1/($O$3-INDEX($K$3:$O$3,1,aux!$AL$1)))-1,"n.d.") -> -1 | AE23: =IF(INDEX($K23:$O23,1,aux!$AL$1)>0,(O23-INDEX($K23:$O23,1,aux!$AL$1))/INDEX($K23:$O23,1,aux!$AL$1),"n.d.") -> -1 | AX23: 04
A24: 0403 | B24: Leitelho, leite coalhado, iogurte, etc. | C24: 0 | D24: 0 | E24: 0 | F24: 0 | G24: 0 | H24: 0 | I24: 0 | J24: 0 | K24: 0 | L24: 0 | M24: 0 | N24: 0 | O24: 0 | P24: 0 | Q24: 0 | R24: 0 | S24: 0 | U24: =G24-INDEX($C24:$G24,1,aux!$AL$1) -> 0 | V24: 0 | W24: 0 | X24: =+IF(INDEX($C24:$G24,1,aux!$AL$1)>0,(G24/INDEX($C24:$G24,1,aux!$AL$1))^(1/($G$3-INDEX($C$3:$G$3,1,aux!$AL$1)))-1,"n.d.") -> n.d. | Y24: =IF(INDEX($C24:$G24,1,aux!$AL$1)>0,(G24-INDEX($C24:$G24,1,aux!$AL$1))/INDEX($C24:$G24,1,aux!$AL$1),"n.d.") -> n.d. | AA24: =O24-INDEX($K24:$O24,1,aux!$AL$1) -> 0 | AB24: 0 | AC24: 0 | AD24: =+IF(INDEX($K24:$O24,1,aux!$AL$1)>0,(O24/INDEX($K24:$O24,1,aux!$AL$1))^(1/($O$3-INDEX($K$3:$O$3,1,aux!$AL$1)))-1,"n.d.") -> n.d. | AE24: =IF(INDEX($K24:$O24,1,aux!$AL$1)>0,(O24-INDEX($K24:$O24,1,aux!$AL$1))/INDEX($K24:$O24,1,aux!$AL$1),"n.d.") -> n.d. | AX24: 04
A25: 0404 | B25: Soro de leite e outros produtos do leite | C25: 0 | D25: 0 | E25: 0 | F25: 0 | G25: 0 | H25: 0 | I25: 0 | J25: 0 | K25: 1467.475 | L25: 927.272 | M25: 1575.015 | N25: 697.7 | O25: 0 | P25: 933.4924 | Q25: 0.01528907592 | R25: 0.01272489787 | S25: 933.4924 | U25: =G25-INDEX($C25:$G25,1,aux!$AL$1) -> 0 | V25: 0 | W25: 0 | X25: =+IF(INDEX($C25:$G25,1,aux!$AL$1)>0,(G25/INDEX($C25:$G25,1,aux!$AL$1))^(1/($G$3-INDEX($C$3:$G$3,1,aux!$AL$1)))-1,"n.d.") -> n.d. | Y25: =IF(INDEX($C25:$G25,1,aux!$AL$1)>0,(G25-INDEX($C25:$G25,1,aux!$AL$1))/INDEX($C25:$G25,1,aux!$AL$1),"n.d.") -> n.d. | AA25: =O25-INDEX($K25:$O25,1,aux!$AL$1) -> -1467.475 | AB25: -0.0529339049 | AC25: -0.04813304403 | AD25: =+IF(INDEX($K25:$O25,1,aux!$AL$1)>0,(O25/INDEX($K25:$O25,1,aux!$AL$1))^(1/($O$3-INDEX($K$3:$O$3,1,aux!$AL$1)))-1,"n.d.") -> -1 | AE25: =IF(INDEX($K25:$O25,1,aux!$AL$1)>0,(O25-INDEX($K25:$O25,1,aux!$AL$1))/INDEX($K25:$O25,1,aux!$AL$1),"n.d.") -> -1 | AX25: 04
A26: 0405 | B26: Manteiga | C26: 0 | D26: 0 | E26: 0 | F26: 0 | G26: 0 | H26: 0 | I26: 0 | J26: 0 | K26: 0 | L26: 0 | M26: 0 | N26: 0 | O26: 0 | P26: 0 | Q26: 0 | R26: 0 | S26: 0 | U26: =G26-INDEX($C26:$G26,1,aux!$AL$1) -> 0 | V26: 0 | W26: 0 | X26: =+IF(INDEX($C26:$G26,1,aux!$AL$1)>0,(G26/INDEX($C26:$G26,1,aux!$AL$1))^(1/($G$3-INDEX($C$3:$G$3,1,aux!$AL$1)))-1,"n.d.") -> n.d. | Y26: =IF(INDEX($C26:$G26,1,aux!$AL$1)>0,(G26-INDEX($C26:$G26,1,aux!$AL$1))/INDEX($C26:$G26,1,aux!$AL$1),"n.d.") -> n.d. | AA26: =O26-INDEX($K26:$O26,1,aux!$AL$1) -> 0 | AB26: 0 | AC26: 0 | AD26: =+IF(INDEX($K26:$O26,1,aux!$AL$1)>0,(O26/INDEX($K26:$O26,1,aux!$AL$1))^(1/($O$3-INDEX($K$3:$O$3,1,aux!$AL$1)))-1,"n.d.") -> n.d. | AE26: =IF(INDEX($K26:$O26,1,aux!$AL$1)>0,(O26-INDEX($K26:$O26,1,aux!$AL$1))/INDEX($K26:$O26,1,aux!$AL$1),"n.d.") -> n.d. | AX26: 04
A27: 0406 | B27: Queijos e requeijão | C27: 0 | D27: 0 | E27: 0 | F27: 0 | G27: 0 | H27: 0 | I27: 0 | J27: 0 | K27: 0 | L27: 0 | M27: 0 | N27: 0.028 | O27: 0 | P27: 0.0056 | Q27: 9.1718824e-08 | R27: 7.633637734e-08 | S27: 0.0056 | U27: =G27-INDEX($C27:$G27,1,aux!$AL$1) -> 0 | V27: 0 | W27: 0 | X27: =+IF(INDEX($C27:$G27,1,aux!$AL$1)>0,(G27/INDEX($C27:$G27,1,aux!$AL$1))^(1/($G$3-INDEX($C$3:$G$3,1,aux!$AL$1)))-1,"n.d.") -> n.d. | Y27: =IF(INDEX($C27:$G27,1,aux!$AL$1)>0,(G27-INDEX($C27:$G27,1,aux!$AL$1))/INDEX($C27:$G27,1,aux!$AL$1),"n.d.") -> n.d. | AA27: =O27-INDEX($K27:$O27,1,aux!$AL$1) -> 0 | AB27: 0 | AC27: 0 | AD27: =+IF(INDEX($K27:$O27,1,aux!$AL$1)>0,(O27/INDEX($K27:$O27,1,aux!$AL$1))^(1/($O$3-INDEX($K$3:$O$3,1,aux!$AL$1)))-1,"n.d.") -> n.d. | AE27: =IF(INDEX($K27:$O27,1,aux!$AL$1)>0,(O27-INDEX($K27:$O27,1,aux!$AL$1))/INDEX($K27:$O27,1,aux!$AL$1),"n.d.") -> n.d. | AX27: 04
A28: 0407 | B28: Ovos de aves, com cascas | C28: 0 | D28: 0 | E28: 0 | F28: 0 | G28: 0 | H28: 0 | I28: 0 | J28: 0 | K28: 0 | L28: 0 | M28: 0 | N28: 0 | O28: 0 | P28: 0 | Q28: 0 | R28: 0 | S28: 0 | U28: =G28-INDEX($C28:$G28,1,aux!$AL$1) -> 0 | V28: 0 | W28: 0 | X28: =+IF(INDEX($C28:$G28,1,aux!$AL$1)>0,(G28/INDEX($C28:$G28,1,aux!$AL$1))^(1/($G$3-INDEX($C$3:$G$3,1,aux!$AL$1)))-1,"n.d.") -> n.d. | Y28: =IF(INDEX($C28:$G28,1,aux!$AL$1)>0,(G28-INDEX($C28:$G28,1,aux!$AL$1))/INDEX($C28:$G28,1,aux!$AL$1),"n.d.") -> n.d. | AA28: =O28-INDEX($K28:$O28,1,aux!$AL$1) -> 0 | AB28: 0 | AC28: 0 | AD28: =+IF(INDEX($K28:$O28,1,aux!$AL$1)>0,(O28/INDEX($K28:$O28,1,aux!$AL$1))^(1/($O$3-INDEX($K$3:$O$3,1,aux!$AL$1)))-1,"n.d.") -> n.d. | AE28: =IF(INDEX($K28:$O28,1,aux!$AL$1)>0,(O28-INDEX($K28:$O28,1,aux!$AL$1))/INDEX($K28:$O28,1,aux!$AL$1),"n.d.") -> n.d. | AX28: 04
A29: 0408 | B29: Ovos de aves, sem casca | C29: 0 | D29: 0 | E29: 0 | F29: 0 | G29: 0 | H29: 0 | I29: 0 | J29: 0 | K29: 0 | L29: 0 | M29: 0 | N29: 0 | O29: 0 | P29: 0 | Q29: 0 | R29: 0 | S29: 0 | U29: =G29-INDEX($C29:$G29,1,aux!$AL$1) -> 0 | V29: 0 | W29: 0 | X29: =+IF(INDEX($C29:$G29,1,aux!$AL$1)>0,(G29/INDEX($C29:$G29,1,aux!$AL$1))^(1/($G$3-INDEX($C$3:$G$3,1,aux!$AL$1)))-1,"n.d.") -> n.d. | Y29: =IF(INDEX($C29:$G29,1,aux!$AL$1)>0,(G29-INDEX($C29:$G29,1,aux!$AL$1))/INDEX($C29:$G29,1,aux!$AL$1),"n.d.") -> n.d. | AA29: =O29-INDEX($K29:$O29,1,aux!$AL$1) -> 0 | AB29: 0 | AC29: 0 | AD29: =+IF(INDEX($K29:$O29,1,aux!$AL$1)>0,(O29/INDEX($K29:$O29,1,aux!$AL$1))^(1/($O$3-INDEX($K$3:$O$3,1,aux!$AL$1)))-1,"n.d.") -> n.d. | AE29: =IF(INDEX($K29:$O29,1,aux!$AL$1)>0,(O29-INDEX($K29:$O29,1,aux!$AL$1))/INDEX($K29:$O29,1,aux!$AL$1),"n.d.") -> n.d. | AX29: 04
A30: 0409 | B30: Mel natural | C30: 0 | D30: 0 | E30: 0.019 | F30: 0 | G30: 0.023 | H30: 0.0084 | I30: 7.109091738e-07 | J30: 5.657606885e-07 | K30: 21.659 | L30: 15.991 | M30: 44.059 | N30: 12.691 | O30: 23.889 | P30: 23.6578 | Q30: 0.000387475999 | R30: 0.000322491205 | S30: 23.6494 | U30: =G30-INDEX($C30:$G30,1,aux!$AL$1) -> 0.023 | V30: -2.668366068e-06 | W30: -2.888223732e-06 | X30: =+IF(INDEX($C30:$G30,1,aux!$AL$1)>0,(G30/INDEX($C30:$G30,1,aux!$AL$1))^(1/($G$3-INDEX($C$3:$G$3,1,aux!$AL$1)))-1,"n.d.") -> n.d. | Y30: =IF(INDEX($C30:$G30,1,aux!$AL$1)>0,(G30-INDEX($C30:$G30,1,aux!$AL$1))/INDEX($C30:$G30,1,aux!$AL$1),"n.d.") -> n.d. | AA30: =O30-INDEX($K30:$O30,1,aux!$AL$1) -> 2.23 | AB30: 8.043926331e-05 | AC30: 7.314379338e-05 | AD30: =+IF(INDEX($K30:$O30,1,aux!$AL$1)>0,(O30/INDEX($K30:$O30,1,aux!$AL$1))^(1/($O$3-INDEX($K$3:$O$3,1,aux!$AL$1)))-1,"n.d.") -> 0.02480183006 | AE30: =IF(INDEX($K30:$O30,1,aux!$AL$1)>0,(O30-INDEX($K30:$O30,1,aux!$AL$1))/INDEX($K30:$O30,1,aux!$AL$1),"n.d.") -> 0.1029595087 | AX30: 04
A31: 0410 | B31: Outros produtos comestíveis de origem animal | C31: 0 | D31: 0 | E31: 0 | F31: 0 | G31: 0 | H31: 0 | I31: 0 | J31: 0 | K31: 0 | L31: 0 | M31: 0 | N31: 0 | O31: 0 | P31: 0 | Q31: 0 | R31: 0 | S31: 0 | U31: =G31-INDEX($C31:$G31,1,aux!$AL$1) -> 0 | V31: 0 | W31: 0 | X31: =+IF(INDEX($C31:$G31,1,aux!$AL$1)>0,(G31/INDEX($C31:$G31,1,aux!$AL$1))^(1/($G$3-INDEX($C$3:$G$3,1,aux!$AL$1)))-1,"n.d.") -> n.d. | Y31: =IF(INDEX($C31:$G31,1,aux!$AL$1)>0,(G31-INDEX($C31:$G31,1,aux!$AL$1))/INDEX($C31:$G31,1,aux!$AL$1),"n.d.") -> n.d. | AA31: =O31-INDEX($K31:$O31,1,aux!$AL$1) -> 0 | AB31: 0 | AC31: 0 | AD31: =+IF(INDEX($K31:$O31,1,aux!$AL$1)>0,(O31/INDEX($K31:$O31,1,aux!$AL$1))^(1/($O$3-INDEX($K$3:$O$3,1,aux!$AL$1)))-1,"n.d.") -> n.d. | AE31: =IF(INDEX($K31:$O31,1,aux!$AL$1)>0,(O31-INDEX($K31:$O31,1,aux!$AL$1))/INDEX($K31:$O31,1,aux!$AL$1),"n.d.") -> n.d. | AX31: 04
A32: 04SS | B32: Leite e lacticínios; ovos de aves; mel natural; etc. | C32: 0 | D32: 0 | E32: 0 | F32: 0 | G32: 0 | H32: 0 | I32: 0 | J32: 0 | K32: 0 | L32: 0 | M32: 0 | N32: 0 | O32: 0 | P32: 0 | Q32: 0 | R32: 0 | S32: 0 | U32: =G32-INDEX($C32:$G32,1,aux!$AL$1) -> 0 | V32: 0 | W32: 0 | X32: =+IF(INDEX($C32:$G32,1,aux!$AL$1)>0,(G32/INDEX($C32:$G32,1,aux!$AL$1))^(1/($G$3-INDEX($C$3:$G$3,1,aux!$AL$1)))-1,"n.d.") -> n.d. | Y32: =IF(INDEX($C32:$G32,1,aux!$AL$1)>0,(G32-INDEX($C32:$G32,1,aux!$AL$1))/INDEX($C32:$G32,1,aux!$AL$1),"n.d.") -> n.d. | AA32: =O32-INDEX($K32:$O32,1,aux!$AL$1) -> 0 | AB32: 0 | AC32: 0 | AD32: =+IF(INDEX($K32:$O32,1,aux!$AL$1)>0,(O32/INDEX($K32:$O32,1,aux!$AL$1))^(1/($O$3-INDEX($K$3:$O$3,1,aux!$AL$1)))-1,"n.d.") -> n.d. | AE32: =IF(INDEX($K32:$O32,1,aux!$AL$1)>0,(O32-INDEX($K32:$O32,1,aux!$AL$1))/INDEX($K32:$O32,1,aux!$AL$1),"n.d.") -> n.d. | AX32: 04
A33: 0501 | B33: Cabelos em bruto | C33: 0 | D33: 0 | E33: 0 | F33: 0 | G33: 0 | H33: 0 | I33: 0 | J33: 0 | K33: 0 | L33: 0 | M33: 0 | N33: 0 | O33: 0 | P33: 0 | Q33: 0 | R33: 0 | S33: 0 | U33: =G33-INDEX($C33:$G33,1,aux!$AL$1) -> 0 | V33: 0 | W33: 0 | X33: =+IF(INDEX($C33:$G33,1,aux!$AL$1)>0,(G33/INDEX($C33:$G33,1,aux!$AL$1))^(1/($G$3-INDEX($C$3:$G$3,1,aux!$AL$1)))-1,"n.d.") -> n.d. | Y33: =IF(INDEX($C33:$G33,1,aux!$AL$1)>0,(G33-INDEX($C33:$G33,1,aux!$AL$1))/INDEX($C33:$G33,1,aux!$AL$1),"n.d.") -> n.d. | AA33: =O33-INDEX($K33:$O33,1,aux!$AL$1) -> 0 | AB33: 0 | AC33: 0 | AD33: =+IF(INDEX($K33:$O33,1,aux!$AL$1)>0,(O33/INDEX($K33:$O33,1,aux!$AL$1))^(1/($O$3-INDEX($K$3:$O$3,1,aux!$AL$1)))-1,"n.d.") -> n.d. | AE33: =IF(INDEX($K33:$O33,1,aux!$AL$1)>0,(O33-INDEX($K33:$O33,1,aux!$AL$1))/INDEX($K33:$O33,1,aux!$AL$1),"n.d.") -> n.d. | AX33: 05
A34: 0502 | B34: Cerdas de porco ou de javali, etc. | C34: 0 | D34: 0 | E34: 0 | F34: 0 | G34: 0 | H34: 0 | I34: 0 | J34: 0 | K34: 0 | L34: 0 | M34: 0 | N34: 0 | O34: 0 | P34: 0 | Q34: 0 | R34: 0 | S34: 0 | U34: =G34-INDEX($C34:$G34,1,aux!$AL$1) -> 0 | V34: 0 | W34: 0 | X34: =+IF(INDEX($C34:$G34,1,aux!$AL$1)>0,(G34/INDEX($C34:$G34,1,aux!$AL$1))^(1/($G$3-INDEX($C$3:$G$3,1,aux!$AL$1)))-1,"n.d.") -> n.d. | Y34: =IF(INDEX($C34:$G34,1,aux!$AL$1)>0,(G34-INDEX($C34:$G34,1,aux!$AL$1))/INDEX($C34:$G34,1,aux!$AL$1),"n.d.") -> n.d. | AA34: =O34-INDEX($K34:$O34,1,aux!$AL$1) -> 0 | AB34: 0 | AC34: 0 | AD34: =+IF(INDEX($K34:$O34,1,aux!$AL$1)>0,(O34/INDEX($K34:$O34,1,aux!$AL$1))^(1/($O$3-INDEX($K$3:$O$3,1,aux!$AL$1)))-1,"n.d.") -> n.d. | AE34: =IF(INDEX($K34:$O34,1,aux!$AL$1)>0,(O34-INDEX($K34:$O34,1,aux!$AL$1))/INDEX($K34:$O34,1,aux!$AL$1),"n.d.") -> n.d. | AX34: 05
A35: 0504 | B35: Tripas de animais (excepto peixes) | C35: 0 | D35: 0 | E35: 0 | F35: 0 | G35: 0 | H35: 0 | I35: 0 | J35: 0 | K35: 0 | L35: 0 | M35: 0 | N35: 0 | O35: 0 | P35: 0 | Q35: 0 | R35: 0 | S35: 0 | U35: =G35-INDEX($C35:$G35,1,aux!$AL$1) -> 0 | V35: 0 | W35: 0 | X35: =+IF(INDEX($C35:$G35,1,aux!$AL$1)>0,(G35/INDEX($C35:$G35,1,aux!$AL$1))^(1/($G$3-INDEX($C$3:$G$3,1,aux!$AL$1)))-1,"n.d.") -> n.d. | Y35: =IF(INDEX($C35:$G35,1,aux!$AL$1)>0,(G35-INDEX($C35:$G35,1,aux!$AL$1))/INDEX($C35:$G35,1,aux!$AL$1),"n.d.") -> n.d. | AA35: =O35-INDEX($K35:$O35,1,aux!$AL$1) -> 0 | AB35: 0 | AC35: 0 | AD35: =+IF(INDEX($K35:$O35,1,aux!$AL$1)>0,(O35/INDEX($K35:$O35,1,aux!$AL$1))^(1/($O$3-INDEX($K$3:$O$3,1,aux!$AL$1)))-1,"n.d.") -> n.d. | AE35: =IF(INDEX($K35:$O35,1,aux!$AL$1)>0,(O35-INDEX($K35:$O35,1,aux!$AL$1))/INDEX($K35:$O35,1,aux!$AL$1),"n.d.") -> n.d. | AX35: 05
A36: 0505 | B36: Peles e outras partes de aves | C36: 0 | D36: 0 | E36: 0 | F36: 0 | G36: 0 | H36: 0 | I36: 0 | J36: 0 | K36: 0 | L36: 0 | M36: 0 | N36: 0 | O36: 0.001 | P36: 0.0002 | Q36: 3.275672286e-09 | R36: 2.726299191e-09 | S36: 0.0002 | U36: =G36-INDEX($C36:$G36,1,aux!$AL$1) -> 0 | V36: 0 | W36: 0 | X36: =+IF(INDEX($C36:$G36,1,aux!$AL$1)>0,(G36/INDEX($C36:$G36,1,aux!$AL$1))^(1/($G$3-INDEX($C$3:$G$3,1,aux!$AL$1)))-1,"n.d.") -> n.d. | Y36: =IF(INDEX($C36:$G36,1,aux!$AL$1)>0,(G36-INDEX($C36:$G36,1,aux!$AL$1))/INDEX($C36:$G36,1,aux!$AL$1),"n.d.") -> n.d. | AA36: =O36-INDEX($K36:$O36,1,aux!$AL$1) -> 0.001 | AB36: 3.607141852e-08 | AC36: 3.279990735e-08 | AD36: =+IF(INDEX($K36:$O36,1,aux!$AL$1)>0,(O36/INDEX($K36:$O36,1,aux!$AL$1))^(1/($O$3-INDEX($K$3:$O$3,1,aux!$AL$1)))-1,"n.d.") -> n.d. | AE36: =IF(INDEX($K36:$O36,1,aux!$AL$1)>0,(O36-INDEX($K36:$O36,1,aux!$AL$1))/INDEX($K36:$O36,1,aux!$AL$1),"n.d.") -> n.d. | AX36: 05
A37: 0506 | B37: Ossos e núcleos córneos, em bruto | C37: 0 | D37: 0 | E37: 0 | F37: 0 | G37: 0 | H37: 0 | I37: 0 | J37: 0 | K37: 0 | L37: 0 | M37: 0 | N37: 0 | O37: 0 | P37: 0 | Q37: 0 | R37: 0 | S37: 0 | U37: =G37-INDEX($C37:$G37,1,aux!$AL$1) -> 0 | V37: 0 | W37: 0 | X37: =+IF(INDEX($C37:$G37,1,aux!$AL$1)>0,(G37/INDEX($C37:$G37,1,aux!$AL$1))^(1/($G$3-INDEX($C$3:$G$3,1,aux!$AL$1)))-1,"n.d.") -> n.d. | Y37: =IF(INDEX($C37:$G37,1,aux!$AL$1)>0,(G37-INDEX($C37:$G37,1,aux!$AL$1))/INDEX($C37:$G37,1,aux!$AL$1),"n.d.") -> n.d. | AA37: =O37-INDEX($K37:$O37,1,aux!$AL$1) -> 0 | AB37: 0 | AC37: 0 | AD37: =+IF(INDEX($K37:$O37,1,aux!$AL$1)>0,(O37/INDEX($K37:$O37,1,aux!$AL$1))^(1/($O$3-INDEX($K$3:$O$3,1,aux!$AL$1)))-1,"n.d.") -> n.d. | AE37: =IF(INDEX($K37:$O37,1,aux!$AL$1)>0,(O37-INDEX($K37:$O37,1,aux!$AL$1))/INDEX($K37:$O37,1,aux!$AL$1),"n.d.") -> n.d. | AX37: 05
A38: 0507 | B38: Marfim, carapaças de tartaruga, etc. | C38: 0 | D38: 0 | E38: 0 | F38: 0 | G38: 0 | H38: 0 | I38: 0 | J38: 0 | K38: 0 | L38: 0 | M38: 0 | N38: 0 | O38: 0 | P38: 0 | Q38: 0 | R38: 0 | S38: 0 | U38: =G38-INDEX($C38:$G38,1,aux!$AL$1) -> 0 | V38: 0 | W38: 0 | X38: =+IF(INDEX($C38:$G38,1,aux!$AL$1)>0,(G38/INDEX($C38:$G38,1,aux!$AL$1))^(1/($G$3-INDEX($C$3:$G$3,1,aux!$AL$1)))-1,"n.d.") -> n.d. | Y38: =IF(INDEX($C38:$G38,1,aux!$AL$1)>0,(G38-INDEX($C38:$G38,1,aux!$AL$1))/INDEX($C38:$G38,1,aux!$AL$1),"n.d.") -> n.d. | AA38: =O38-INDEX($K38:$O38,1,aux!$AL$1) -> 0 | AB38: 0 | AC38: 0 | AD38: =+IF(INDEX($K38:$O38,1,aux!$AL$1)>0,(O38/INDEX($K38:$O38,1,aux!$AL$1))^(1/($O$3-INDEX($K$3:$O$3,1,aux!$AL$1)))-1,"n.d.") -> n.d. | AE38: =IF(INDEX($K38:$O38,1,aux!$AL$1)>0,(O38-INDEX($K38:$O38,1,aux!$AL$1))/INDEX($K38:$O38,1,aux!$AL$1),"n.d.") -> n.d. | AX38: 05
A39: 0510 | B39: Âmbar-cinzento, castóreo, algália e almíscar, etc. | C39: 0 | D39: 0 | E39: 0 | F39: 0 | G39: 0 | H39: 0 | I39: 0 | J39: 0 | K39: 0 | L39: 0 | M39: 0 | N39: 0 | O39: 0 | P39: 0 | Q39: 0 | R39: 0 | S39: 0 | U39: =G39-INDEX($C39:$G39,1,aux!$AL$1) -> 0 | V39: 0 | W39: 0 | X39: =+IF(INDEX($C39:$G39,1,aux!$AL$1)>0,(G39/INDEX($C39:$G39,1,aux!$AL$1))^(1/($G$3-INDEX($C$3:$G$3,1,aux!$AL$1)))-1,"n.d.") -> n.d. | Y39: =IF(INDEX($C39:$G39,1,aux!$AL$1)>0,(G39-INDEX($C39:$G39,1,aux!$AL$1))/INDEX($C39:$G39,1,aux!$AL$1),"n.d.") -> n.d. | AA39: =O39-INDEX($K39:$O39,1,aux!$AL$1) -> 0 | AB39: 0 | AC39: 0 | AD39: =+IF(INDEX($K39:$O39,1,aux!$AL$1)>0,(O39/INDEX($K39:$O39,1,aux!$AL$1))^(1/($O$3-INDEX($K$3:$O$3,1,aux!$AL$1)))-1,"n.d.") -> n.d. | AE39: =IF(INDEX($K39:$O39,1,aux!$AL$1)>0,(O39-INDEX($K39:$O39,1,aux!$AL$1))/INDEX($K39:$O39,1,aux!$AL$1),"n.d.") -> n.d. | AX39: 05
A40: 0511 | B40: Outros produtos de origem animal (exc. NC 0511 91) (a) | C40: 0 | D40: 0 | E40: 0 | F40: 0 | G40: 0 | H40: 0 | I40: 0 | J40: 0 | K40: 0 | L40: 0 | M40: 0 | N40: 0 | O40: 0 | P40: 0 | Q40: 0 | R40: 0 | S40: 0 | U40: =G40-INDEX($C40:$G40,1,aux!$AL$1) -> 0 | V40: 0 | W40: 0 | X40: =+IF(INDEX($C40:$G40,1,aux!$AL$1)>0,(G40/INDEX($C40:$G40,1,aux!$AL$1))^(1/($G$3-INDEX($C$3:$G$3,1,aux!$AL$1)))-1,"n.d.") -> n.d. | Y40: =IF(INDEX($C40:$G40,1,aux!$AL$1)>0,(G40-INDEX($C40:$G40,1,aux!$AL$1))/INDEX($C40:$G40,1,aux!$AL$1),"n.d.") -> n.d. | AA40: =O40-INDEX($K40:$O40,1,aux!$AL$1) -> 0 | AB40: 0 | AC40: 0 | AD40: =+IF(INDEX($K40:$O40,1,aux!$AL$1)>0,(O40/INDEX($K40:$O40,1,aux!$AL$1))^(1/($O$3-INDEX($K$3:$O$3,1,aux!$AL$1)))-1,"n.d.") -> n.d. | AE40: =IF(INDEX($K40:$O40,1,aux!$AL$1)>0,(O40-INDEX($K40:$O40,1,aux!$AL$1))/INDEX($K40:$O40,1,aux!$AL$1),"n.d.") -> n.d. | AX40: 05
A41: 05SS | B41: Outros produtos de origem animal | C41: 0 | D41: 0 | E41: 0 | F41: 0 | G41: 0 | H41: 0 | I41: 0 | J41: 0 | K41: 0 | L41: 0 | M41: 0 | N41: 0 | O41: 0 | P41: 0 | Q41: 0 | R41: 0 | S41: 0 | U41: =G41-INDEX($C41:$G41,1,aux!$AL$1) -> 0 | V41: 0 | W41: 0 | X41: =+IF(INDEX($C41:$G41,1,aux!$AL$1)>0,(G41/INDEX($C41:$G41,1,aux!$AL$1))^(1/($G$3-INDEX($C$3:$G$3,1,aux!$AL$1)))-1,"n.d.") -> n.d. | Y41: =IF(INDEX($C41:$G41,1,aux!$AL$1)>0,(G41-INDEX($C41:$G41,1,aux!$AL$1))/INDEX($C41:$G41,1,aux!$AL$1),"n.d.") -> n.d. | AA41: =O41-INDEX($K41:$O41,1,aux!$AL$1) -> 0 | AB41: 0 | AC41: 0 | AD41: =+IF(INDEX($K41:$O41,1,aux!$AL$1)>0,(O41/INDEX($K41:$O41,1,aux!$AL$1))^(1/($O$3-INDEX($K$3:$O$3,1,aux!$AL$1)))-1,"n.d.") -> n.d. | AE41: =IF(INDEX($K41:$O41,1,aux!$AL$1)>0,(O41-INDEX($K41:$O41,1,aux!$AL$1))/INDEX($K41:$O41,1,aux!$AL$1),"n.d.") -> n.d. | AX41: 05
A42: 0601 | B42: Bolbos, tubérculos, raízes, etc. | C42: 0 | D42: 0 | E42: 0 | F42: 0 | G42: 0 | H42: 0 | I42: 0 | J42: 0 | K42: 0 | L42: 0 | M42: 0 | N42: 0 | O42: 0 | P42: 0 | Q42: 0 | R42: 0 | S42: 0 | U42: =G42-INDEX($C42:$G42,1,aux!$AL$1) -> 0 | V42: 0 | W42: 0 | X42: =+IF(INDEX($C42:$G42,1,aux!$AL$1)>0,(G42/INDEX($C42:$G42,1,aux!$AL$1))^(1/($G$3-INDEX($C$3:$G$3,1,aux!$AL$1)))-1,"n.d.") -> n.d. | Y42: =IF(INDEX($C42:$G42,1,aux!$AL$1)>0,(G42-INDEX($C42:$G42,1,aux!$AL$1))/INDEX($C42:$G42,1,aux!$AL$1),"n.d.") -> n.d. | AA42: =O42-INDEX($K42:$O42,1,aux!$AL$1) -> 0 | AB42: 0 | AC42: 0 | AD42: =+IF(INDEX($K42:$O42,1,aux!$AL$1)>0,(O42/INDEX($K42:$O42,1,aux!$AL$1))^(1/($O$3-INDEX($K$3:$O$3,1,aux!$AL$1)))-1,"n.d.") -> n.d. | AE42: =IF(INDEX($K42:$O42,1,aux!$AL$1)>0,(O42-INDEX($K42:$O42,1,aux!$AL$1))/INDEX($K42:$O42,1,aux!$AL$1),"n.d.") -> n.d. | AX42: 06
A43: 0602 | B43: Plantas vivas | C43: 0 | D43: 0 | E43: 0 | F43: 0 | G43: 0 | H43: 0 | I43: 0 | J43: 0 | K43: 83.517 | L43: 45.973 | M43: 69.238 | N43: 2.579 | O43: 4.173 | P43: 41.096 | Q43: 0.0006730851412 | R43: 0.0005601999577 | S43: 41.096 | U43: =G43-INDEX($C43:$G43,1,aux!$AL$1) -> 0 | V43: 0 | W43: 0 | X43: =+IF(INDEX($C43:$G43,1,aux!$AL$1)>0,(G43/INDEX($C43:$G43,1,aux!$AL$1))^(1/($G$3-INDEX($C$3:$G$3,1,aux!$AL$1)))-1,"n.d.") -> n.d. | Y43: =IF(INDEX($C43:$G43,1,aux!$AL$1)>0,(G43-INDEX($C43:$G43,1,aux!$AL$1))/INDEX($C43:$G43,1,aux!$AL$1),"n.d.") -> n.d. | AA43: =O43-INDEX($K43:$O43,1,aux!$AL$1) -> -79.344 | AB43: -0.002862050631 | AC43: -0.002602475849 | AD43: =+IF(INDEX($K43:$O43,1,aux!$AL$1)>0,(O43/INDEX($K43:$O43,1,aux!$AL$1))^(1/($O$3-INDEX($K$3:$O$3,1,aux!$AL$1)))-1,"n.d.") -> -0.5272098992 | AE43: =IF(INDEX($K43:$O43,1,aux!$AL$1)>0,(O43-INDEX($K43:$O43,1,aux!$AL$1))/INDEX($K43:$O43,1,aux!$AL$1),"n.d.") -> -0.9500341248 | AX43: 06
A44: 0603 | B44: Flores e seus botões | C44: 0 | D44: 0 | E44: 0.086 | F44: 0.28 | G44: 0.211 | H44: 0.1154 | I44: 9.766537935e-06 | J44: 7.77247422e-06 | K44: 6.475 | L44: 11.54 | M44: 8.57 | N44: 41.261 | O44: 37.336 | P44: 21.0364 | Q44: 0.0003445417623 | R44: 0.0002867576015 | S44: 20.921 | U44: =G44-INDEX($C44:$G44,1,aux!$AL$1) -> 0.211 | V44: -2.447935827e-05 | W44: -2.649631337e-05 | X44: =+IF(INDEX($C44:$G44,1,aux!$AL$1)>0,(G44/INDEX($C44:$G44,1,aux!$AL$1))^(1/($G$3-INDEX($C$3:$G$3,1,aux!$AL$1)))-1,"n.d.") -> n.d. | Y44: =IF(INDEX($C44:$G44,1,aux!$AL$1)>0,(G44-INDEX($C44:$G44,1,aux!$AL$1))/INDEX($C44:$G44,1,aux!$AL$1),"n.d.") -> n.d. | AA44: =O44-INDEX($K44:$O44,1,aux!$AL$1) -> 30.861 | AB44: 0.001113200047 | AC44: 0.001012237941 | AD44: =+IF(INDEX($K44:$O44,1,aux!$AL$1)>0,(O44/INDEX($K44:$O44,1,aux!$AL$1))^(1/($O$3-INDEX($K$3:$O$3,1,aux!$AL$1)))-1,"n.d.") -> 0.5496085494 | AE44: =IF(INDEX($K44:$O44,1,aux!$AL$1)>0,(O44-INDEX($K44:$O44,1,aux!$AL$1))/INDEX($K44:$O44,1,aux!$AL$1),"n.d.") -> 4.766177606 | AX44: 06
A45: 0604 | B45: Folhagem, folhas, ramos e outras partes de plantas | C45: 2.956 | D45: 0.887 | E45: 6.211 | F45: 2.472 | G45: 6.114 | H45: 3.728 | I45: 0.0003155082619 | J45: 0.0002510899817 | K45: 0 | L45: 0 | M45: 0 | N45: 0 | O45: 0 | P45: 0 | Q45: 0 | R45: 0 | S45: -3.728 | U45: =G45-INDEX($C45:$G45,1,aux!$AL$1) -> 3.158 | V45: -0.0003663782627 | W45: -0.0003965656759 | X45: =+IF(INDEX($C45:$G45,1,aux!$AL$1)>0,(G45/INDEX($C45:$G45,1,aux!$AL$1))^(1/($G$3-INDEX($C$3:$G$3,1,aux!$AL$1)))-1,"n.d.") -> 0.1992376402 | Y45: =IF(INDEX($C45:$G45,1,aux!$AL$1)>0,(G45-INDEX($C45:$G45,1,aux!$AL$1))/INDEX($C45:$G45,1,aux!$AL$1),"n.d.") -> 1.068335589 | AA45: =O45-INDEX($K45:$O45,1,aux!$AL$1) -> 0 | AB45: 0 | AC45: 0 | AD45: =+IF(INDEX($K45:$O45,1,aux!$AL$1)>0,(O45/INDEX($K45:$O45,1,aux!$AL$1))^(1/($O$3-INDEX($K$3:$O$3,1,aux!$AL$1)))-1,"n.d.") -> n.d. | AE45: =IF(INDEX($K45:$O45,1,aux!$AL$1)>0,(O45-INDEX($K45:$O45,1,aux!$AL$1))/INDEX($K45:$O45,1,aux!$AL$1),"n.d.") -> n.d. | AX45: 06
A46: 06SS | B46: Plantas vivas e produtos de floricultura | C46: 0 | D46: 0 | E46: 0 | F46: 0 | G46: 0 | H46: 0 | I46: 0 | J46: 0 | K46: 0 | L46: 0 | M46: 0 | N46: 0 | O46: 0 | P46: 0 | Q46: 0 | R46: 0 | S46: 0 | U46: =G46-INDEX($C46:$G46,1,aux!$AL$1) -> 0 | V46: 0 | W46: 0 | X46: =+IF(INDEX($C46:$G46,1,aux!$AL$1)>0,(G46/INDEX($C46:$G46,1,aux!$AL$1))^(1/($G$3-INDEX($C$3:$G$3,1,aux!$AL$1)))-1,"n.d.") -> n.d. | Y46: =IF(INDEX($C46:$G46,1,aux!$AL$1)>0,(G46-INDEX($C46:$G46,1,aux!$AL$1))/INDEX($C46:$G46,1,aux!$AL$1),"n.d.") -> n.d. | AA46: =O46-INDEX($K46:$O46,1,aux!$AL$1) -> 0 | AB46: 0 | AC46: 0 | AD46: =+IF(INDEX($K46:$O46,1,aux!$AL$1)>0,(O46/INDEX($K46:$O46,1,aux!$AL$1))^(1/($O$3-INDEX($K$3:$O$3,1,aux!$AL$1)))-1,"n.d.") -> n.d. | AE46: =IF(INDEX($K46:$O46,1,aux!$AL$1)>0,(O46-INDEX($K46:$O46,1,aux!$AL$1))/INDEX($K46:$O46,1,aux!$AL$1),"n.d.") -> n.d. | AX46: 06
A47: 0701 | B47: Batatas, frescas ou refrigeradas | C47: 0 | D47: 0 | E47: 0 | F47: 0 | G47: 0 | H47: 0 | I47: 0 | J47: 0 | K47: 0 | L47: 0 | M47: 0 | N47: 0 | O47: 0 | P47: 0 | Q47: 0 | R47: 0 | S47: 0 | U47: =G47-INDEX($C47:$G47,1,aux!$AL$1) -> 0 | V47: 0 | W47: 0 | X47: =+IF(INDEX($C47:$G47,1,aux!$AL$1)>0,(G47/INDEX($C47:$G47,1,aux!$AL$1))^(1/($G$3-INDEX($C$3:$G$3,1,aux!$AL$1)))-1,"n.d.") -> n.d. | Y47: =IF(INDEX($C47:$G47,1,aux!$AL$1)>0,(G47-INDEX($C47:$G47,1,aux!$AL$1))/INDEX($C47:$G47,1,aux!$AL$1),"n.d.") -> n.d. | AA47: =O47-INDEX($K47:$O47,1,aux!$AL$1) -> 0 | AB47: 0 | AC47: 0 | AD47: =+IF(INDEX($K47:$O47,1,aux!$AL$1)>0,(O47/INDEX($K47:$O47,1,aux!$AL$1))^(1/($O$3-INDEX($K$3:$O$3,1,aux!$AL$1)))-1,"n.d.") -> n.d. | AE47: =IF(INDEX($K47:$O47,1,aux!$AL$1)>0,(O47-INDEX($K47:$O47,1,aux!$AL$1))/INDEX($K47:$O47,1,aux!$AL$1),"n.d.") -> n.d. | AX47: 07
A48: 0702 | B48: Tomates, frescos ou refrigerados | C48: 0 | D48: 0 | E48: 0 | F48: 0 | G48: 0 | H48: 0 | I48: 0 | J48: 0 | K48: 0.026 | L48: 0.021 | M48: 0 | N48: 0 | O48: 0 | P48: 0.0094 | Q48: 1.539565974e-07 | R48: 1.28136062e-07 | S48: 0.0094 | U48: =G48-INDEX($C48:$G48,1,aux!$AL$1) -> 0 | V48: 0 | W48: 0 | X48: =+IF(INDEX($C48:$G48,1,aux!$AL$1)>0,(G48/INDEX($C48:$G48,1,aux!$AL$1))^(1/($G$3-INDEX($C$3:$G$3,1,aux!$AL$1)))-1,"n.d.") -> n.d. | Y48: =IF(INDEX($C48:$G48,1,aux!$AL$1)>0,(G48-INDEX($C48:$G48,1,aux!$AL$1))/INDEX($C48:$G48,1,aux!$AL$1),"n.d.") -> n.d. | AA48: =O48-INDEX($K48:$O48,1,aux!$AL$1) -> -0.026 | AB48: -9.378568816e-07 | AC48: -8.52797591e-07 | AD48: =+IF(INDEX($K48:$O48,1,aux!$AL$1)>0,(O48/INDEX($K48:$O48,1,aux!$AL$1))^(1/($O$3-INDEX($K$3:$O$3,1,aux!$AL$1)))-1,"n.d.") -> -1 | AE48: =IF(INDEX($K48:$O48,1,aux!$AL$1)>0,(O48-INDEX($K48:$O48,1,aux!$AL$1))/INDEX($K48:$O48,1,aux!$AL$1),"n.d.") -> -1 | AX48: 07
A49: 0703 | B49: Cebolas, alhos, etc., frescos ou refrigerados | C49: 0 | D49: 0 | E49: 0 | F49: 0 | G49: 0 | H49: 0 | I49: 0 | J49: 0 | K49: 0 | L49: 0 | M49: 0 | N49: 0 | O49: 0 | P49: 0 | Q49: 0 | R49: 0 | S49: 0 | U49: =G49-INDEX($C49:$G49,1,aux!$AL$1) -> 0 | V49: 0 | W49: 0 | X49: =+IF(INDEX($C49:$G49,1,aux!$AL$1)>0,(G49/INDEX($C49:$G49,1,aux!$AL$1))^(1/($G$3-INDEX($C$3:$G$3,1,aux!$AL$1)))-1,"n.d.") -> n.d. | Y49: =IF(INDEX($C49:$G49,1,aux!$AL$1)>0,(G49-INDEX($C49:$G49,1,aux!$AL$1))/INDEX($C49:$G49,1,aux!$AL$1),"n.d.") -> n.d. | AA49: =O49-INDEX($K49:$O49,1,aux!$AL$1) -> 0 | AB49: 0 | AC49: 0 | AD49: =+IF(INDEX($K49:$O49,1,aux!$AL$1)>0,(O49/INDEX($K49:$O49,1,aux!$AL$1))^(1/($O$3-INDEX($K$3:$O$3,1,aux!$AL$1)))-1,"n.d.") -> n.d. | AE49: =IF(INDEX($K49:$O49,1,aux!$AL$1)>0,(O49-INDEX($K49:$O49,1,aux!$AL$1))/INDEX($K49:$O49,1,aux!$AL$1),"n.d.") -> n.d. | AX49: 07
A50: 0704 | B50: Couves, frescas ou refrigeradas | C50: 0 | D50: 0 | E50: 0 | F50: 0 | G50: 0 | H50: 0 | I50: 0 | J50: 0 | K50: 0 | L50: 0 | M50: 0 | N50: 0 | O50: 0 | P50: 0 | Q50: 0 | R50: 0 | S50: 0 | U50: =G50-INDEX($C50:$G50,1,aux!$AL$1) -> 0 | V50: 0 | W50: 0 | X50: =+IF(INDEX($C50:$G50,1,aux!$AL$1)>0,(G50/INDEX($C50:$G50,1,aux!$AL$1))^(1/($G$3-INDEX($C$3:$G$3,1,aux!$AL$1)))-1,"n.d.") -> n.d. | Y50: =IF(INDEX($C50:$G50,1,aux!$AL$1)>0,(G50-INDEX($C50:$G50,1,aux!$AL$1))/INDEX($C50:$G50,1,aux!$AL$1),"n.d.") -> n.d. | AA50: =O50-INDEX($K50:$O50,1,aux!$AL$1) -> 0 | AB50: 0 | AC50: 0 | AD50: =+IF(INDEX($K50:$O50,1,aux!$AL$1)>0,(O50/INDEX($K50:$O50,1,aux!$AL$1))^(1/($O$3-INDEX($K$3:$O$3,1,aux!$AL$1)))-1,"n.d.") -> n.d. | AE50: =IF(INDEX($K50:$O50,1,aux!$AL$1)>0,(O50-INDEX($K50:$O50,1,aux!$AL$1))/INDEX($K50:$O50,1,aux!$AL$1),"n.d.") -> n.d. | AX50: 07
A51: 0705 | B51: Alfaces, frescas ou refrigeradas | C51: 0 | D51: 0 | E51: 0 | F51: 0 | G51: 0 | H51: 0 | I51: 0 | J51: 0 | K51: 0 | L51: 0 | M51: 0 | N51: 0 | O51: 0 | P51: 0 | Q51: 0 | R51: 0 | S51: 0 | U51: =G51-INDEX($C51:$G51,1,aux!$AL$1) -> 0 | V51: 0 | W51: 0 | X51: =+IF(INDEX($C51:$G51,1,aux!$AL$1)>0,(G51/INDEX($C51:$G51,1,aux!$AL$1))^(1/($G$3-INDEX($C$3:$G$3,1,aux!$AL$1)))-1,"n.d.") -> n.d. | Y51: =IF(INDEX($C51:$G51,1,aux!$AL$1)>0,(G51-INDEX($C51:$G51,1,aux!$AL$1))/INDEX($C51:$G51,1,aux!$AL$1),"n.d.") -> n.d. | AA51: =O51-INDEX($K51:$O51,1,aux!$AL$1) -> 0 | AB51: 0 | AC51: 0 | AD51: =+IF(INDEX($K51:$O51,1,aux!$AL$1)>0,(O51/INDEX($K51:$O51,1,aux!$AL$1))^(1/($O$3-INDEX($K$3:$O$3,1,aux!$AL$1)))-1,"n.d.") -> n.d. | AE51: =IF(INDEX($K51:$O51,1,aux!$AL$1)>0,(O51-INDEX($K51:$O51,1,aux!$AL$1))/INDEX($K51:$O51,1,aux!$AL$1),"n.d.") -> n.d. | AX51: 07
A52: 0706 | B52: Cenouras, nabos, beterrabas, etc., frescos ou refrigerados | C52: 0 | D52: 0 | E52: 0 | F52: 0 | G52: 0 | H52: 0 | I52: 0 | J52: 0 | K52: 0 | L52: 0 | M52: 0 | N52: 0 | O52: 0 | P52: 0 | Q52: 0 | R52: 0 | S52: 0 | U52: =G52-INDEX($C52:$G52,1,aux!$AL$1) -> 0 | V52: 0 | W52: 0 | X52: =+IF(INDEX($C52:$G52,1,aux!$AL$1)>0,(G52/INDEX($C52:$G52,1,aux!$AL$1))^(1/($G$3-INDEX($C$3:$G$3,1,aux!$AL$1)))-1,"n.d.") -> n.d. | Y52: =IF(INDEX($C52:$G52,1,aux!$AL$1)>0,(G52-INDEX($C52:$G52,1,aux!$AL$1))/INDEX($C52:$G52,1,aux!$AL$1),"n.d.") -> n.d. | AA52: =O52-INDEX($K52:$O52,1,aux!$AL$1) -> 0 | AB52: 0 | AC52: 0 | AD52: =+IF(INDEX($K52:$O52,1,aux!$AL$1)>0,(O52/INDEX($K52:$O52,1,aux!$AL$1))^(1/($O$3-INDEX($K$3:$O$3,1,aux!$AL$1)))-1,"n.d.") -> n.d. | AE52: =IF(INDEX($K52:$O52,1,aux!$AL$1)>0,(O52-INDEX($K52:$O52,1,aux!$AL$1))/INDEX($K52:$O52,1,aux!$AL$1),"n.d.") -> n.d. | AX52: 07
A53: 0707 | B53: Pepinos e pepininhos, frescos ou refrigerados | C53: 0 | D53: 0 | E53: 0 | F53: 0 | G53: 0 | H53: 0 | I53: 0 | J53: 0 | K53: 0 | L53: 0 | M53: 0 | N53: 0 | O53: 0 | P53: 0 | Q53: 0 | R53: 0 | S53: 0 | U53: =G53-INDEX($C53:$G53,1,aux!$AL$1) -> 0 | V53: 0 | W53: 0 | X53: =+IF(INDEX($C53:$G53,1,aux!$AL$1)>0,(G53/INDEX($C53:$G53,1,aux!$AL$1))^(1/($G$3-INDEX($C$3:$G$3,1,aux!$AL$1)))-1,"n.d.") -> n.d. | Y53: =IF(INDEX($C53:$G53,1,aux!$AL$1)>0,(G53-INDEX($C53:$G53,1,aux!$AL$1))/INDEX($C53:$G53,1,aux!$AL$1),"n.d.") -> n.d. | AA53: =O53-INDEX($K53:$O53,1,aux!$AL$1) -> 0 | AB53: 0 | AC53: 0 | AD53: =+IF(INDEX($K53:$O53,1,aux!$AL$1)>0,(O53/INDEX($K53:$O53,1,aux!$AL$1))^(1/($O$3-INDEX($K$3:$O$3,1,aux!$AL$1)))-1,"n.d.") -> n.d. | AE53: =IF(INDEX($K53:$O53,1,aux!$AL$1)>0,(O53-INDEX($K53:$O53,1,aux!$AL$1))/INDEX($K53:$O53,1,aux!$AL$1),"n.d.") -> n.d. | AX53: 07
A54: 0708 | B54: Tomates preparados ou conservados | C54: 0 | D54: 0 | E54: 0 | F54: 0 | G54: 0 | H54: 0 | I54: 0 | J54: 0 | K54: 0 | L54: 0 | M54: 0 | N54: 0 | O54: 0 | P54: 0 | Q54: 0 | R54: 0 | S54: 0 | U54: =G54-INDEX($C54:$G54,1,aux!$AL$1) -> 0 | V54: 0 | W54: 0 | X54: =+IF(INDEX($C54:$G54,1,aux!$AL$1)>0,(G54/INDEX($C54:$G54,1,aux!$AL$1))^(1/($G$3-INDEX($C$3:$G$3,1,aux!$AL$1)))-1,"n.d.") -> n.d. | Y54: =IF(INDEX($C54:$G54,1,aux!$AL$1)>0,(G54-INDEX($C54:$G54,1,aux!$AL$1))/INDEX($C54:$G54,1,aux!$AL$1),"n.d.") -> n.d. | AA54: =O54-INDEX($K54:$O54,1,aux!$AL$1) -> 0 | AB54: 0 | AC54: 0 | AD54: =+IF(INDEX($K54:$O54,1,aux!$AL$1)>0,(O54/INDEX($K54:$O54,1,aux!$AL$1))^(1/($O$3-INDEX($K$3:$O$3,1,aux!$AL$1)))-1,"n.d.") -> n.d. | AE54: =IF(INDEX($K54:$O54,1,aux!$AL$1)>0,(O54-INDEX($K54:$O54,1,aux!$AL$1))/INDEX($K54:$O54,1,aux!$AL$1),"n.d.") -> n.d. | AX54: 07
A55: 0709 | B55: Outros produtos hortícolas, frescos ou refrigerados | C55: 0 | D55: 0 | E55: 0 | F55: 0 | G55: 0 | H55: 0 | I55: 0 | J55: 0 | K55: 0 | L55: 0 | M55: 0 | N55: 0 | O55: 0 | P55: 0 | Q55: 0 | R55: 0 | S55: 0 | U55: =G55-INDEX($C55:$G55,1,aux!$AL$1) -> 0 | V55: 0 | W55: 0 | X55: =+IF(INDEX($C55:$G55,1,aux!$AL$1)>0,(G55/INDEX($C55:$G55,1,aux!$AL$1))^(1/($G$3-INDEX($C$3:$G$3,1,aux!$AL$1)))-1,"n.d.") -> n.d. | Y55: =IF(INDEX($C55:$G55,1,aux!$AL$1)>0,(G55-INDEX($C55:$G55,1,aux!$AL$1))/INDEX($C55:$G55,1,aux!$AL$1),"n.d.") -> n.d. | AA55: =O55-INDEX($K55:$O55,1,aux!$AL$1) -> 0 | AB55: 0 | AC55: 0 | AD55: =+IF(INDEX($K55:$O55,1,aux!$AL$1)>0,(O55/INDEX($K55:$O55,1,aux!$AL$1))^(1/($O$3-INDEX($K$3:$O$3,1,aux!$AL$1)))-1,"n.d.") -> n.d. | AE55: =IF(INDEX($K55:$O55,1,aux!$AL$1)>0,(O55-INDEX($K55:$O55,1,aux!$AL$1))/INDEX($K55:$O55,1,aux!$AL$1),"n.d.") -> n.d. | AX55: 07
A56: 0710 | B56: Produtos hortícolas congelados | C56: 0 | D56: 4.587 | E56: 0 | F56: 0 | G56: 0 | H56: 0.9174 | I56: 7.764143762e-05 | J56: 6.178914948e-05 | K56: 1698.018 | L56: 1835.241 | M56: 2180.031 | N56: 2669.405 | O56: 2590.66 | P56: 2194.671 | Q56: 0.03594511485 | R56: 0.02991664885 | S56: 2193.7536 | U56: =G56-INDEX($C56:$G56,1,aux!$AL$1) -> 0 | V56: 0 | W56: 0 | X56: =+IF(INDEX($C56:$G56,1,aux!$AL$1)>0,(G56/INDEX($C56:$G56,1,aux!$AL$1))^(1/($G$3-INDEX($C$3:$G$3,1,aux!$AL$1)))-1,"n.d.") -> n.d. | Y56: =IF(INDEX($C56:$G56,1,aux!$AL$1)>0,(G56-INDEX($C56:$G56,1,aux!$AL$1))/INDEX($C56:$G56,1,aux!$AL$1),"n.d.") -> n.d. | AA56: =O56-INDEX($K56:$O56,1,aux!$AL$1) -> 892.642 | AB56: 0.03219886317 | AC56: 0.02927857489 | AD56: =+IF(INDEX($K56:$O56,1,aux!$AL$1)>0,(O56/INDEX($K56:$O56,1,aux!$AL$1))^(1/($O$3-INDEX($K$3:$O$3,1,aux!$AL$1)))-1,"n.d.") -> 0.1113914016 | AE56: =IF(INDEX($K56:$O56,1,aux!$AL$1)>0,(O56-INDEX($K56:$O56,1,aux!$AL$1))/INDEX($K56:$O56,1,aux!$AL$1),"n.d.") -> 0.5256964296 | AX56: 07
A57: 0711 | B57: Produtos hortícolas conservados transitoriamente | C57: 0 | D57: 0 | E57: 0 | F57: 0 | G57: 0 | H57: 0 | I57: 0 | J57: 0 | K57: 0 | L57: 0 | M57: 0 | N57: 0 | O57: 0 | P57: 0 | Q57: 0 | R57: 0 | S57: 0 | U57: =G57-INDEX($C57:$G57,1,aux!$AL$1) -> 0 | V57: 0 | W57: 0 | X57: =+IF(INDEX($C57:$G57,1,aux!$AL$1)>0,(G57/INDEX($C57:$G57,1,aux!$AL$1))^(1/($G$3-INDEX($C$3:$G$3,1,aux!$AL$1)))-1,"n.d.") -> n.d. | Y57: =IF(INDEX($C57:$G57,1,aux!$AL$1)>0,(G57-INDEX($C57:$G57,1,aux!$AL$1))/INDEX($C57:$G57,1,aux!$AL$1),"n.d.") -> n.d. | AA57: =O57-INDEX($K57:$O57,1,aux!$AL$1) -> 0 | AB57: 0 | AC57: 0 | AD57: =+IF(INDEX($K57:$O57,1,aux!$AL$1)>0,(O57/INDEX($K57:$O57,1,aux!$AL$1))^(1/($O$3-INDEX($K$3:$O$3,1,aux!$AL$1)))-1,"n.d.") -> n.d. | AE57: =IF(INDEX($K57:$O57,1,aux!$AL$1)>0,(O57-INDEX($K57:$O57,1,aux!$AL$1))/INDEX($K57:$O57,1,aux!$AL$1),"n.d.") -> n.d. | AX57: 07
A58: 0712 | B58: Produtos hortícolas secos | C58: 0 | D58: 0 | E58: 0.008 | F58: 0 | G58: 0.129 | H58: 0.0274 | I58: 2.318918019e-06 | J58: 1.845457484e-06 | K58: 321.665 | L58: 383.325 | M58: 392.095 | N58: 396.29 | O58: 332 | P58: 365.075 | Q58: 0.005979330298 | R58: 0.004976518385 | S58: 365.0476 | U58: =G58-INDEX($C58:$G58,1,aux!$AL$1) -> 0.129 | V58: -1.496605316e-05 | W58: -1.619916789e-05 | X58: =+IF(INDEX($C58:$G58,1,aux!$AL$1)>0,(G58/INDEX($C58:$G58,1,aux!$AL$1))^(1/($G$3-INDEX($C$3:$G$3,1,aux!$AL$1)))-1,"n.d.") -> n.d. | Y58: =IF(INDEX($C58:$G58,1,aux!$AL$1)>0,(G58-INDEX($C58:$G58,1,aux!$AL$1))/INDEX($C58:$G58,1,aux!$AL$1),"n.d.") -> n.d. | AA58: =O58-INDEX($K58:$O58,1,aux!$AL$1) -> 10.335 | AB58: 0.0003727981104 | AC58: 0.0003389870424 | AD58: =+IF(INDEX($K58:$O58,1,aux!$AL$1)>0,(O58/INDEX($K58:$O58,1,aux!$AL$1))^(1/($O$3-INDEX($K$3:$O$3,1,aux!$AL$1)))-1,"n.d.") -> 0.007937420013 | AE58: =IF(INDEX($K58:$O58,1,aux!$AL$1)>0,(O58-INDEX($K58:$O58,1,aux!$AL$1))/INDEX($K58:$O58,1,aux!$AL$1),"n.d.") -> 0.03212970015 | AX58: 07
A59: 0713 | B59: Legumes de vagem, secos, em grão | C59: 0 | D59: 0 | E59: 0 | F59: 0 | G59: 0 | H59: 0 | I59: 0 | J59: 0 | K59: 0 | L59: 0 | M59: 0 | N59: 0.3 | O59: 0 | P59: 0.06 | Q59: 9.827016857e-07 | R59: 8.178897572e-07 | S59: 0.06 | U59: =G59-INDEX($C59:$G59,1,aux!$AL$1) -> 0 | V59: 0 | W59: 0 | X59: =+IF(INDEX($C59:$G59,1,aux!$AL$1)>0,(G59/INDEX($C59:$G59,1,aux!$AL$1))^(1/($G$3-INDEX($C$3:$G$3,1,aux!$AL$1)))-1,"n.d.") -> n.d. | Y59: =IF(INDEX($C59:$G59,1,aux!$AL$1)>0,(G59-INDEX($C59:$G59,1,aux!$AL$1))/INDEX($C59:$G59,1,aux!$AL$1),"n.d.") -> n.d. | AA59: =O59-INDEX($K59:$O59,1,aux!$AL$1) -> 0 | AB59: 0 | AC59: 0 | AD59: =+IF(INDEX($K59:$O59,1,aux!$AL$1)>0,(O59/INDEX($K59:$O59,1,aux!$AL$1))^(1/($O$3-INDEX($K$3:$O$3,1,aux!$AL$1)))-1,"n.d.") -> n.d. | AE59: =IF(INDEX($K59:$O59,1,aux!$AL$1)>0,(O59-INDEX($K59:$O59,1,aux!$AL$1))/INDEX($K59:$O59,1,aux!$AL$1),"n.d.") -> n.d. | AX59: 07
A60: 0714 | B60: Raízes de mandioca, de araruta, batata-doce, etc. | C60: 0 | D60: 0 | E60: 0 | F60: 0.021 | G60: 0 | H60: 0.0042 | I60: 3.554545869e-07 | J60: 2.828803442e-07 | K60: 0 | L60: 0 | M60: 0 | N60: 0 | O60: 0 | P60: 0 | Q60: 0 | R60: 0 | S60: -0.0042 | U60: =G60-INDEX($C60:$G60,1,aux!$AL$1) -> 0 | V60: 0 | W60: 0 | X60: =+IF(INDEX($C60:$G60,1,aux!$AL$1)>0,(G60/INDEX($C60:$G60,1,aux!$AL$1))^(1/($G$3-INDEX($C$3:$G$3,1,aux!$AL$1)))-1,"n.d.") -> n.d. | Y60: =IF(INDEX($C60:$G60,1,aux!$AL$1)>0,(G60-INDEX($C60:$G60,1,aux!$AL$1))/INDEX($C60:$G60,1,aux!$AL$1),"n.d.") -> n.d. | AA60: =O60-INDEX($K60:$O60,1,aux!$AL$1) -> 0 | AB60: 0 | AC60: 0 | AD60: =+IF(INDEX($K60:$O60,1,aux!$AL$1)>0,(O60/INDEX($K60:$O60,1,aux!$AL$1))^(1/($O$3-INDEX($K$3:$O$3,1,aux!$AL$1)))-1,"n.d.") -> n.d. | AE60: =IF(INDEX($K60:$O60,1,aux!$AL$1)>0,(O60-INDEX($K60:$O60,1,aux!$AL$1))/INDEX($K60:$O60,1,aux!$AL$1),"n.d.") -> n.d. | AX60: 07
A61: 07SS | B61: Produtos hortícolas, plantas, raízes e tubérculos, comestíveis | C61: 0 | D61: 0 | E61: 0 | F61: 0 | G61: 0 | H61: 0 | I61: 0 | J61: 0 | K61: 0 | L61: 0 | M61: 0 | N61: 0 | O61: 0 | P61: 0 | Q61: 0 | R61: 0 | S61: 0 | U61: =G61-INDEX($C61:$G61,1,aux!$AL$1) -> 0 | V61: 0 | W61: 0 | X61: =+IF(INDEX($C61:$G61,1,aux!$AL$1)>0,(G61/INDEX($C61:$G61,1,aux!$AL$1))^(1/($G$3-INDEX($C$3:$G$3,1,aux!$AL$1)))-1,"n.d.") -> n.d. | Y61: =IF(INDEX($C61:$G61,1,aux!$AL$1)>0,(G61-INDEX($C61:$G61,1,aux!$AL$1))/INDEX($C61:$G61,1,aux!$AL$1),"n.d.") -> n.d. | AA61: =O61-INDEX($K61:$O61,1,aux!$AL$1) -> 0 | AB61: 0 | AC61: 0 | AD61: =+IF(INDEX($K61:$O61,1,aux!$AL$1)>0,(O61/INDEX($K61:$O61,1,aux!$AL$1))^(1/($O$3-INDEX($K$3:$O$3,1,aux!$AL$1)))-1,"n.d.") -> n.d. | AE61: =IF(INDEX($K61:$O61,1,aux!$AL$1)>0,(O61-INDEX($K61:$O61,1,aux!$AL$1))/INDEX($K61:$O61,1,aux!$AL$1),"n.d.") -> n.d. | AX61: 07
A62: 0801 | B62: Cocos, castanhas do brasil e castanha de cajú | C62: 0 | D62: 0 | E62: 0 | F62: 0 | G62: 0 | H62: 0 | I62: 0 | J62: 0 | K62: 0 | L62: 0 | M62: 0 | N62: 3.632 | O62: 0 | P62: 0.7264 | Q62: 1.189724174e-05 | R62: 9.90191866e-06 | S62: 0.7264 | U62: =G62-INDEX($C62:$G62,1,aux!$AL$1) -> 0 | V62: 0 | W62: 0 | X62: =+IF(INDEX($C62:$G62,1,aux!$AL$1)>0,(G62/INDEX($C62:$G62,1,aux!$AL$1))^(1/($G$3-INDEX($C$3:$G$3,1,aux!$AL$1)))-1,"n.d.") -> n.d. | Y62: =IF(INDEX($C62:$G62,1,aux!$AL$1)>0,(G62-INDEX($C62:$G62,1,aux!$AL$1))/INDEX($C62:$G62,1,aux!$AL$1),"n.d.") -> n.d. | AA62: =O62-INDEX($K62:$O62,1,aux!$AL$1) -> 0 | AB62: 0 | AC62: 0 | AD62: =+IF(INDEX($K62:$O62,1,aux!$AL$1)>0,(O62/INDEX($K62:$O62,1,aux!$AL$1))^(1/($O$3-INDEX($K$3:$O$3,1,aux!$AL$1)))-1,"n.d.") -> n.d. | AE62: =IF(INDEX($K62:$O62,1,aux!$AL$1)>0,(O62-INDEX($K62:$O62,1,aux!$AL$1))/INDEX($K62:$O62,1,aux!$AL$1),"n.d.") -> n.d. | AX62: 08
A63: 0802 | B63: Frutas de casca rija | C63: 0.307 | D63: 0 | E63: 0 | F63: 0 | G63: 0 | H63: 0.0614 | I63: 5.196407532e-06 | J63: 4.135441223e-06 | K63: 0 | L63: 0 | M63: 0.024 | N63: 0.009 | O63: 0 | P63: 0.0066 | Q63: 1.080971854e-07 | R63: 8.996787329e-08 | S63: -0.0548 | U63: =G63-INDEX($C63:$G63,1,aux!$AL$1) -> -0.307 | V63: 3.561688621e-05 | W63: 3.855150808e-05 | X63: =+IF(INDEX($C63:$G63,1,aux!$AL$1)>0,(G63/INDEX($C63:$G63,1,aux!$AL$1))^(1/($G$3-INDEX($C$3:$G$3,1,aux!$AL$1)))-1,"n.d.") -> -1 | Y63: =IF(INDEX($C63:$G63,1,aux!$AL$1)>0,(G63-INDEX($C63:$G63,1,aux!$AL$1))/INDEX($C63:$G63,1,aux!$AL$1),"n.d.") -> -1 | AA63: =O63-INDEX($K63:$O63,1,aux!$AL$1) -> 0 | AB63: 0 | AC63: 0 | AD63: =+IF(INDEX($K63:$O63,1,aux!$AL$1)>0,(O63/INDEX($K63:$O63,1,aux!$AL$1))^(1/($O$3-INDEX($K$3:$O$3,1,aux!$AL$1)))-1,"n.d.") -> n.d. | AE63: =IF(INDEX($K63:$O63,1,aux!$AL$1)>0,(O63-INDEX($K63:$O63,1,aux!$AL$1))/INDEX($K63:$O63,1,aux!$AL$1),"n.d.") -> n.d. | AX63: 08
A64: 0803 | B64: Bananas, frescas ou secas | C64: 0 | D64: 0 | E64: 0 | F64: 0 | G64: 0 | H64: 0 | I64: 0 | J64: 0 | K64: 0 | L64: 0 | M64: 0 | N64: 0 | O64: 0 | P64: 0 | Q64: 0 | R64: 0 | S64: 0 | U64: =G64-INDEX($C64:$G64,1,aux!$AL$1) -> 0 | V64: 0 | W64: 0 | X64: =+IF(INDEX($C64:$G64,1,aux!$AL$1)>0,(G64/INDEX($C64:$G64,1,aux!$AL$1))^(1/($G$3-INDEX($C$3:$G$3,1,aux!$AL$1)))-1,"n.d.") -> n.d. | Y64: =IF(INDEX($C64:$G64,1,aux!$AL$1)>0,(G64-INDEX($C64:$G64,1,aux!$AL$1))/INDEX($C64:$G64,1,aux!$AL$1),"n.d.") -> n.d. | AA64: =O64-INDEX($K64:$O64,1,aux!$AL$1) -> 0 | AB64: 0 | AC64: 0 | AD64: =+IF(INDEX($K64:$O64,1,aux!$AL$1)>0,(O64/INDEX($K64:$O64,1,aux!$AL$1))^(1/($O$3-INDEX($K$3:$O$3,1,aux!$AL$1)))-1,"n.d.") -> n.d. | AE64: =IF(INDEX($K64:$O64,1,aux!$AL$1)>0,(O64-INDEX($K64:$O64,1,aux!$AL$1))/INDEX($K64:$O64,1,aux!$AL$1),"n.d.") -> n.d. | AX64: 08
A65: 0804 | B65: Tâmaras, figos, ananases, abacates, goiabas, mangas | C65: 0 | D65: 0 | E65: 0 | F65: 0 | G65: 0 | H65: 0 | I65: 0 | J65: 0 | K65: 0 | L65: 0 | M65: 0 | N65: 0.006 | O65: 0 | P65: 0.0012 | Q65: 1.965403371e-08 | R65: 1.635779514e-08 | S65: 0.0012 | U65: =G65-INDEX($C65:$G65,1,aux!$AL$1) -> 0 | V65: 0 | W65: 0 | X65: =+IF(INDEX($C65:$G65,1,aux!$AL$1)>0,(G65/INDEX($C65:$G65,1,aux!$AL$1))^(1/($G$3-INDEX($C$3:$G$3,1,aux!$AL$1)))-1,"n.d.") -> n.d. | Y65: =IF(INDEX($C65:$G65,1,aux!$AL$1)>0,(G65-INDEX($C65:$G65,1,aux!$AL$1))/INDEX($C65:$G65,1,aux!$AL$1),"n.d.") -> n.d. | AA65: =O65-INDEX($K65:$O65,1,aux!$AL$1) -> 0 | AB65: 0 | AC65: 0 | AD65: =+IF(INDEX($K65:$O65,1,aux!$AL$1)>0,(O65/INDEX($K65:$O65,1,aux!$AL$1))^(1/($O$3-INDEX($K$3:$O$3,1,aux!$AL$1)))-1,"n.d.") -> n.d. | AE65: =IF(INDEX($K65:$O65,1,aux!$AL$1)>0,(O65-INDEX($K65:$O65,1,aux!$AL$1))/INDEX($K65:$O65,1,aux!$AL$1),"n.d.") -> n.d. | AX65: 08
A66: 0805 | B66: Citrinos, frescos ou secos | C66: 0 | D66: 0 | E66: 0 | F66: 0 | G66: 0 | H66: 0 | I66: 0 | J66: 0 | K66: 0 | L66: 0 | M66: 0 | N66: 0 | O66: 0 | P66: 0 | Q66: 0 | R66: 0 | S66: 0 | U66: =G66-INDEX($C66:$G66,1,aux!$AL$1) -> 0 | V66: 0 | W66: 0 | X66: =+IF(INDEX($C66:$G66,1,aux!$AL$1)>0,(G66/INDEX($C66:$G66,1,aux!$AL$1))^(1/($G$3-INDEX($C$3:$G$3,1,aux!$AL$1)))-1,"n.d.") -> n.d. | Y66: =IF(INDEX($C66:$G66,1,aux!$AL$1)>0,(G66-INDEX($C66:$G66,1,aux!$AL$1))/INDEX($C66:$G66,1,aux!$AL$1),"n.d.") -> n.d. | AA66: =O66-INDEX($K66:$O66,1,aux!$AL$1) -> 0 | AB66: 0 | AC66: 0 | AD66: =+IF(INDEX($K66:$O66,1,aux!$AL$1)>0,(O66/INDEX($K66:$O66,1,aux!$AL$1))^(1/($O$3-INDEX($K$3:$O$3,1,aux!$AL$1)))-1,"n.d.") -> n.d. | AE66: =IF(INDEX($K66:$O66,1,aux!$AL$1)>0,(O66-INDEX($K66:$O66,1,aux!$AL$1))/INDEX($K66:$O66,1,aux!$AL$1),"n.d.") -> n.d. | AX66: 08
A67: 0806 | B67: Uvas, frescas ou secas | C67: 0 | D67: 0 | E67: 0 | F67: 0 | G67: 0 | H67: 0 | I67: 0 | J67: 0 | K67: 0 | L67: 0 | M67: 0 | N67: 0 | O67: 0 | P67: 0 | Q67: 0 | R67: 0 | S67: 0 | U67: =G67-INDEX($C67:$G67,1,aux!$AL$1) -> 0 | V67: 0 | W67: 0 | X67: =+IF(INDEX($C67:$G67,1,aux!$AL$1)>0,(G67/INDEX($C67:$G67,1,aux!$AL$1))^(1/($G$3-INDEX($C$3:$G$3,1,aux!$AL$1)))-1,"n.d.") -> n.d. | Y67: =IF(INDEX($C67:$G67,1,aux!$AL$1)>0,(G67-INDEX($C67:$G67,1,aux!$AL$1))/INDEX($C67:$G67,1,aux!$AL$1),"n.d.") -> n.d. | AA67: =O67-INDEX($K67:$O67,1,aux!$AL$1) -> 0 | AB67: 0 | AC67: 0 | AD67: =+IF(INDEX($K67:$O67,1,aux!$AL$1)>0,(O67/INDEX($K67:$O67,1,aux!$AL$1))^(1/($O$3-INDEX($K$3:$O$3,1,aux!$AL$1)))-1,"n.d.") -> n.d. | AE67: =IF(INDEX($K67:$O67,1,aux!$AL$1)>0,(O67-INDEX($K67:$O67,1,aux!$AL$1))/INDEX($K67:$O67,1,aux!$AL$1),"n.d.") -> n.d. | AX67: 08
A68: 0807 | B68: Melões, melancias e papaia, frescos | C68: 0 | D68: 0 | E68: 0 | F68: 0 | G68: 0 | H68: 0 | I68: 0 | J68: 0 | K68: 0 | L68: 0 | M68: 0 | N68: 0 | O68: 0 | P68: 0 | Q68: 0 | R68: 0 | S68: 0 | U68: =G68-INDEX($C68:$G68,1,aux!$AL$1) -> 0 | V68: =IF($U$237<>0,U68/$U$237, "n.d.") -> 0 | W68: =IF($U$322<>0,U68/$U$322, "n.d.") -> 0 | X68: =+IF(INDEX($C68:$G68,1,aux!$AL$1)>0,(G68/INDEX($C68:$G68,1,aux!$AL$1))^(1/($G$3-INDEX($C$3:$G$3,1,aux!$AL$1)))-1,"n.d.") -> n.d. | Y68: =IF(INDEX($C68:$G68,1,aux!$AL$1)>0,(G68-INDEX($C68:$G68,1,aux!$AL$1))/INDEX($C68:$G68,1,aux!$AL$1),"n.d.") -> n.d. | AA68: =O68-INDEX($K68:$O68,1,aux!$AL$1) -> 0 | AB68: =IF($AA$237<>0,AA68/$AA$237, "n.d.") -> 0 | AC68: =IF($AA$322<>0,AA68/$AA$322, "n.d.") -> 0 | AD68: =+IF(INDEX($K68:$O68,1,aux!$AL$1)>0,(O68/INDEX($K68:$O68,1,aux!$AL$1))^(1/($O$3-INDEX($K$3:$O$3,1,aux!$AL$1)))-1,"n.d.") -> n.d. | AE68: =IF(INDEX($K68:$O68,1,aux!$AL$1)>0,(O68-INDEX($K68:$O68,1,aux!$AL$1))/INDEX($K68:$O68,1,aux!$AL$1),"n.d.") -> n.d. | AX68: 08
A69: 0808 | B69: Maçãs, peras e marmelos, frescos | C69: 0 | D69: 0 | E69: 0 | F69: 0 | G69: 0 | H69: 0 | I69: 0 | J69: 0 | K69: 0 | L69: 0 | M69: 0 | N69: 0 | O69: 0 | P69: 0 | Q69: 0 | R69: 0 | S69: 0 | U69: =G69-INDEX($C69:$G69,1,aux!$AL$1) -> 0 | V69: 0 | W69: 0 | X69: =+IF(INDEX($C69:$G69,1,aux!$AL$1)>0,(G69/INDEX($C69:$G69,1,aux!$AL$1))^(1/($G$3-INDEX($C$3:$G$3,1,aux!$AL$1)))-1,"n.d.") -> n.d. | Y69: =IF(INDEX($C69:$G69,1,aux!$AL$1)>0,(G69-INDEX($C69:$G69,1,aux!$AL$1))/INDEX($C69:$G69,1,aux!$AL$1),"n.d.") -> n.d. | AA69: =O69-INDEX($K69:$O69,1,aux!$AL$1) -> 0 | AB69: 0 | AC69: 0 | AD69: =+IF(INDEX($K69:$O69,1,aux!$AL$1)>0,(O69/INDEX($K69:$O69,1,aux!$AL$1))^(1/($O$3-INDEX($K$3:$O$3,1,aux!$AL$1)))-1,"n.d.") -> n.d. | AE69: =IF(INDEX($K69:$O69,1,aux!$AL$1)>0,(O69-INDEX($K69:$O69,1,aux!$AL$1))/INDEX($K69:$O69,1,aux!$AL$1),"n.d.") -> n.d. | AX69: 08
A70: 0809 | B70: Damascos, cerejas, pêssegos, etc., frescos | C70: 0 | D70: 0 | E70: 0 | F70: 0 | G70: 0 | H70: 0 | I70: 0 | J70: 0 | K70: 0 | L70: 0 | M70: 0 | N70: 0 | O70: 0 | P70: 0 | Q70: 0 | R70: 0 | S70: 0 | U70: =G70-INDEX($C70:$G70,1,aux!$AL$1) -> 0 | V70: 0 | W70: 0 | X70: =+IF(INDEX($C70:$G70,1,aux!$AL$1)>0,(G70/INDEX($C70:$G70,1,aux!$AL$1))^(1/($G$3-INDEX($C$3:$G$3,1,aux!$AL$1)))-1,"n.d.") -> n.d. | Y70: =IF(INDEX($C70:$G70,1,aux!$AL$1)>0,(G70-INDEX($C70:$G70,1,aux!$AL$1))/INDEX($C70:$G70,1,aux!$AL$1),"n.d.") -> n.d. | AA70: =O70-INDEX($K70:$O70,1,aux!$AL$1) -> 0 | AB70: 0 | AC70: 0 | AD70: =+IF(INDEX($K70:$O70,1,aux!$AL$1)>0,(O70/INDEX($K70:$O70,1,aux!$AL$1))^(1/($O$3-INDEX($K$3:$O$3,1,aux!$AL$1)))-1,"n.d.") -> n.d. | AE70: =IF(INDEX($K70:$O70,1,aux!$AL$1)>0,(O70-INDEX($K70:$O70,1,aux!$AL$1))/INDEX($K70:$O70,1,aux!$AL$1),"n.d.") -> n.d. | AX70: 08
A71: 0810 | B71: Outras frutas frescas | C71: 0 | D71: 0 | E71: 0 | F71: 0 | G71: 0 | H71: 0 | I71: 0 | J71: 0 | K71: 0 | L71: 0 | M71: 0 | N71: 0 | O71: 0 | P71: 0 | Q71: 0 | R71: 0 | S71: 0 | U71: =G71-INDEX($C71:$G71,1,aux!$AL$1) -> 0 | V71: 0 | W71: 0 | X71: =+IF(INDEX($C71:$G71,1,aux!$AL$1)>0,(G71/INDEX($C71:$G71,1,aux!$AL$1))^(1/($G$3-INDEX($C$3:$G$3,1,aux!$AL$1)))-1,"n.d.") -> n.d. | Y71: =IF(INDEX($C71:$G71,1,aux!$AL$1)>0,(G71-INDEX($C71:$G71,1,aux!$AL$1))/INDEX($C71:$G71,1,aux!$AL$1),"n.d.") -> n.d. | AA71: =O71-INDEX($K71:$O71,1,aux!$AL$1) -> 0 | AB71: 0 | AC71: 0 | AD71: =+IF(INDEX($K71:$O71,1,aux!$AL$1)>0,(O71/INDEX($K71:$O71,1,aux!$AL$1))^(1/($O$3-INDEX($K$3:$O$3,1,aux!$AL$1)))-1,"n.d.") -> n.d. | AE71: =IF(INDEX($K71:$O71,1,aux!$AL$1)>0,(O71-INDEX($K71:$O71,1,aux!$AL$1))/INDEX($K71:$O71,1,aux!$AL$1),"n.d.") -> n.d. | AX71: 08
A72: 0811 | B72: Frutas não cozidas ou cozidas em água ou vapor, congeladas | C72: 0 | D72: 0 | E72: 0 | F72: 0.007 | G72: 0 | H72: 0.0014 | I72: 1.184848623e-07 | J72: 9.429344808e-08 | K72: 0 | L72: 0 | M72: 0 | N72: 0 | O72: 0 | P72: 0 | Q72: 0 | R72: 0 | S72: -0.0014 | U72: =G72-INDEX($C72:$G72,1,aux!$AL$1) -> 0 | V72: 0 | W72: 0 | X72: =+IF(INDEX($C72:$G72,1,aux!$AL$1)>0,(G72/INDEX($C72:$G72,1,aux!$AL$1))^(1/($G$3-INDEX($C$3:$G$3,1,aux!$AL$1)))-1,"n.d.") -> n.d. | Y72: =IF(INDEX($C72:$G72,1,aux!$AL$1)>0,(G72-INDEX($C72:$G72,1,aux!$AL$1))/INDEX($C72:$G72,1,aux!$AL$1),"n.d.") -> n.d. | AA72: =O72-INDEX($K72:$O72,1,aux!$AL$1) -> 0 | AB72: 0 | AC72: 0 | AD72: =+IF(INDEX($K72:$O72,1,aux!$AL$1)>0,(O72/INDEX($K72:$O72,1,aux!$AL$1))^(1/($O$3-INDEX($K$3:$O$3,1,aux!$AL$1)))-1,"n.d.") -> n.d. | AE72: =IF(INDEX($K72:$O72,1,aux!$AL$1)>0,(O72-INDEX($K72:$O72,1,aux!$AL$1))/INDEX($K72:$O72,1,aux!$AL$1),"n.d.") -> n.d. | AX72: 08
A73: 0812 | B73: Frutas conservadas transitoriamente | C73: 0 | D73: 0 | E73: 0 | F73: 0 | G73: 0 | H73: 0 | I73: 0 | J73: 0 | K73: 0 | L73: 0 | M73: 0 | N73: 0 | O73: 0 | P73: 0 | Q73: 0 | R73: 0 | S73: 0 | U73: =G73-INDEX($C73:$G73,1,aux!$AL$1) -> 0 | V73: 0 | W73: 0 | X73: =+IF(INDEX($C73:$G73,1,aux!$AL$1)>0,(G73/INDEX($C73:$G73,1,aux!$AL$1))^(1/($G$3-INDEX($C$3:$G$3,1,aux!$AL$1)))-1,"n.d.") -> n.d. | Y73: =IF(INDEX($C73:$G73,1,aux!$AL$1)>0,(G73-INDEX($C73:$G73,1,aux!$AL$1))/INDEX($C73:$G73,1,aux!$AL$1),"n.d.") -> n.d. | AA73: =O73-INDEX($K73:$O73,1,aux!$AL$1) -> 0 | AB73: 0 | AC73: 0 | AD73: =+IF(INDEX($K73:$O73,1,aux!$AL$1)>0,(O73/INDEX($K73:$O73,1,aux!$AL$1))^(1/($O$3-INDEX($K$3:$O$3,1,aux!$AL$1)))-1,"n.d.") -> n.d. | AE73: =IF(INDEX($K73:$O73,1,aux!$AL$1)>0,(O73-INDEX($K73:$O73,1,aux!$AL$1))/INDEX($K73:$O73,1,aux!$AL$1),"n.d.") -> n.d. | AX73: 08
A74: 0813 | B74: Outras frutas secas | C74: 0 | D74: 0 | E74: 0 | F74: 0 | G74: 0 | H74: 0 | I74: 0 | J74: 0 | K74: 37.326 | L74: 33.762 | M74: 35.04 | N74: 9.726 | O74: 0 | P74: 23.1708 | Q74: 0.000379499737 | R74: 0.0003158526664 | S74: 23.1708 | U74: =G74-INDEX($C74:$G74,1,aux!$AL$1) -> 0 | V74: 0 | W74: 0 | X74: =+IF(INDEX($C74:$G74,1,aux!$AL$1)>0,(G74/INDEX($C74:$G74,1,aux!$AL$1))^(1/($G$3-INDEX($C$3:$G$3,1,aux!$AL$1)))-1,"n.d.") -> n.d. | Y74: =IF(INDEX($C74:$G74,1,aux!$AL$1)>0,(G74-INDEX($C74:$G74,1,aux!$AL$1))/INDEX($C74:$G74,1,aux!$AL$1),"n.d.") -> n.d. | AA74: =O74-INDEX($K74:$O74,1,aux!$AL$1) -> -37.326 | AB74: -0.001346401768 | AC74: -0.001224289342 | AD74: =+IF(INDEX($K74:$O74,1,aux!$AL$1)>0,(O74/INDEX($K74:$O74,1,aux!$AL$1))^(1/($O$3-INDEX($K$3:$O$3,1,aux!$AL$1)))-1,"n.d.") -> -1 | AE74: =IF(INDEX($K74:$O74,1,aux!$AL$1)>0,(O74-INDEX($K74:$O74,1,aux!$AL$1))/INDEX($K74:$O74,1,aux!$AL$1),"n.d.") -> -1 | AX74: 08
A75: 0814 | B75: Cascas de citrinos, melões ou melancias | C75: 4.258 | D75: 2.285 | E75: 0 | F75: 0.038 | G75: 0 | H75: 1.3162 | I75: 0.000111392697 | J75: 8.864931169e-05 | K75: 0 | L75: 0 | M75: 0 | N75: 0 | O75: 0 | P75: 0 | Q75: 0 | R75: 0 | S75: -1.3162 | U75: =G75-INDEX($C75:$G75,1,aux!$AL$1) -> -4.258 | V75: 0.0004939957703 | W75: 0.0005346981153 | X75: =+IF(INDEX($C75:$G75,1,aux!$AL$1)>0,(G75/INDEX($C75:$G75,1,aux!$AL$1))^(1/($G$3-INDEX($C$3:$G$3,1,aux!$AL$1)))-1,"n.d.") -> -1 | Y75: =IF(INDEX($C75:$G75,1,aux!$AL$1)>0,(G75-INDEX($C75:$G75,1,aux!$AL$1))/INDEX($C75:$G75,1,aux!$AL$1),"n.d.") -> -1 | AA75: =O75-INDEX($K75:$O75,1,aux!$AL$1) -> 0 | AB75: 0 | AC75: 0 | AD75: =+IF(INDEX($K75:$O75,1,aux!$AL$1)>0,(O75/INDEX($K75:$O75,1,aux!$AL$1))^(1/($O$3-INDEX($K$3:$O$3,1,aux!$AL$1)))-1,"n.d.") -> n.d. | AE75: =IF(INDEX($K75:$O75,1,aux!$AL$1)>0,(O75-INDEX($K75:$O75,1,aux!$AL$1))/INDEX($K75:$O75,1,aux!$AL$1),"n.d.") -> n.d. | AX75: =+LEFT(A75,2) -> 08
A76: 08SS | B76: Frutas; cascas de citrinos e de melões | C76: 0 | D76: 0 | E76: 0 | F76: 0 | G76: 0 | H76: 0 | I76: 0 | J76: 0 | K76: 0 | L76: 0 | M76: 0 | N76: 0 | O76: 0 | P76: 0 | Q76: 0 | R76: 0 | S76: 0 | U76: =G76-INDEX($C76:$G76,1,aux!$AL$1) -> 0 | V76: 0 | W76: 0 | X76: =+IF(INDEX($C76:$G76,1,aux!$AL$1)>0,(G76/INDEX($C76:$G76,1,aux!$AL$1))^(1/($G$3-INDEX($C$3:$G$3,1,aux!$AL$1)))-1,"n.d.") -> n.d. | Y76: =IF(INDEX($C76:$G76,1,aux!$AL$1)>0,(G76-INDEX($C76:$G76,1,aux!$AL$1))/INDEX($C76:$G76,1,aux!$AL$1),"n.d.") -> n.d. | AA76: =O76-INDEX($K76:$O76,1,aux!$AL$1) -> 0 | AB76: 0 | AC76: 0 | AD76: =+IF(INDEX($K76:$O76,1,aux!$AL$1)>0,(O76/INDEX($K76:$O76,1,aux!$AL$1))^(1/($O$3-INDEX($K$3:$O$3,1,aux!$AL$1)))-1,"n.d.") -> n.d. | AE76: =IF(INDEX($K76:$O76,1,aux!$AL$1)>0,(O76-INDEX($K76:$O76,1,aux!$AL$1))/INDEX($K76:$O76,1,aux!$AL$1),"n.d.") -> n.d. | AX76: 08
A77: 0901 | B77: Café | C77: 0 | D77: 2.343 | E77: 0.097 | F77: 3.557 | G77: 4.939 | H77: 2.1872 | I77: 0.0001851072077 | J77: 0.0001473133069 | K77: 21.615 | L77: 34.984 | M77: 5.087 | N77: 3.546 | O77: 7.837 | P77: 14.6138 | Q77: 0.0002393500982 | R77: 0.0001992079556 | S77: 12.4266 | U77: =G77-INDEX($C77:$G77,1,aux!$AL$1) -> 4.939 | V77: -0.0005730026091 | W77: -0.0006202146528 | X77: =+IF(INDEX($C77:$G77,1,aux!$AL$1)>0,(G77/INDEX($C77:$G77,1,aux!$AL$1))^(1/($G$3-INDEX($C$3:$G$3,1,aux!$AL$1)))-1,"n.d.") -> n.d. | Y77: =IF(INDEX($C77:$G77,1,aux!$AL$1)>0,(G77-INDEX($C77:$G77,1,aux!$AL$1))/INDEX($C77:$G77,1,aux!$AL$1),"n.d.") -> n.d. | AA77: =O77-INDEX($K77:$O77,1,aux!$AL$1) -> -13.778 | AB77: -0.0004969920044 | AC77: -0.0004519171234 | AD77: =+IF(INDEX($K77:$O77,1,aux!$AL$1)>0,(O77/INDEX($K77:$O77,1,aux!$AL$1))^(1/($O$3-INDEX($K$3:$O$3,1,aux!$AL$1)))-1,"n.d.") -> -0.2240233524 | AE77: =IF(INDEX($K77:$O77,1,aux!$AL$1)>0,(O77-INDEX($K77:$O77,1,aux!$AL$1))/INDEX($K77:$O77,1,aux!$AL$1),"n.d.") -> -0.6374277122 | AX77: 09
A78: 0902 | B78: Chá | C78: 190.169 | D78: 47.376 | E78: 14.446 | F78: 94.953 | G78: 145.138 | H78: 98.4164 | I78: 0.008329181144 | J78: 0.006628586931 | K78: 0 | L78: 1.569 | M78: 1.257 | N78: 1.734 | O78: 1.194 | P78: 1.1508 | Q78: 1.884821833e-05 | R78: 1.568712554e-05 | S78: -97.2656 | U78: =G78-INDEX($C78:$G78,1,aux!$AL$1) -> -45.031 | V78: 0.005224312713 | W78: 0.005654765343 | X78: =+IF(INDEX($C78:$G78,1,aux!$AL$1)>0,(G78/INDEX($C78:$G78,1,aux!$AL$1))^(1/($G$3-INDEX($C$3:$G$3,1,aux!$AL$1)))-1,"n.d.") -> -0.06532558925 | Y78: =IF(INDEX($C78:$G78,1,aux!$AL$1)>0,(G78-INDEX($C78:$G78,1,aux!$AL$1))/INDEX($C78:$G78,1,aux!$AL$1),"n.d.") -> -0.2367946406 | AA78: =O78-INDEX($K78:$O78,1,aux!$AL$1) -> 1.194 | AB78: 4.306927372e-05 | AC78: 3.916308937e-05 | AD78: =+IF(INDEX($K78:$O78,1,aux!$AL$1)>0,(O78/INDEX($K78:$O78,1,aux!$AL$1))^(1/($O$3-INDEX($K$3:$O$3,1,aux!$AL$1)))-1,"n.d.") -> n.d. | AE78: =IF(INDEX($K78:$O78,1,aux!$AL$1)>0,(O78-INDEX($K78:$O78,1,aux!$AL$1))/INDEX($K78:$O78,1,aux!$AL$1),"n.d.") -> n.d. | AX78: 09
A79: 0903 | B79: Mate | C79: 0 | D79: 0.234 | E79: 0.586 | F79: 0.11 | G79: 0.751 | H79: 0.3362 | I79: 2.845329336e-05 | J79: 2.264389803e-05 | K79: 0 | L79: 0 | M79: 0 | N79: 0 | O79: 0 | P79: 0 | Q79: 0 | R79: 0 | S79: -0.3362 | U79: =G79-INDEX($C79:$G79,1,aux!$AL$1) -> 0.751 | V79: -8.712795291e-05 | W79: -9.430678361e-05 | X79: =+IF(INDEX($C79:$G79,1,aux!$AL$1)>0,(G79/INDEX($C79:$G79,1,aux!$AL$1))^(1/($G$3-INDEX($C$3:$G$3,1,aux!$AL$1)))-1,"n.d.") -> n.d. | Y79: =IF(INDEX($C79:$G79,1,aux!$AL$1)>0,(G79-INDEX($C79:$G79,1,aux!$AL$1))/INDEX($C79:$G79,1,aux!$AL$1),"n.d.") -> n.d. | AA79: =O79-INDEX($K79:$O79,1,aux!$AL$1) -> 0 | AB79: 0 | AC79: 0 | AD79: =+IF(INDEX($K79:$O79,1,aux!$AL$1)>0,(O79/INDEX($K79:$O79,1,aux!$AL$1))^(1/($O$3-INDEX($K$3:$O$3,1,aux!$AL$1)))-1,"n.d.") -> n.d. | AE79: =IF(INDEX($K79:$O79,1,aux!$AL$1)>0,(O79-INDEX($K79:$O79,1,aux!$AL$1))/INDEX($K79:$O79,1,aux!$AL$1),"n.d.") -> n.d. | AX79: 09
A80: 0904 | B80: Pimenta | C80: 12.378 | D80: 5.172 | E80: 2.329 | F80: 8.184 | G80: 2.5 | H80: 6.1126 | I80: 0.0005173218352 | J80: 0.0004116986648 | K80: 2.057 | L80: 0.284 | M80: 0 | N80: 0 | O80: 0.002 | P80: 0.4686 | Q80: 7.674900165e-06 | R80: 6.387719004e-06 | S80: -5.644 | U80: =G80-INDEX($C80:$G80,1,aux!$AL$1) -> -9.878 | V80: 0.001146005218 | W80: 0.001240429306 | X80: =+IF(INDEX($C80:$G80,1,aux!$AL$1)>0,(G80/INDEX($C80:$G80,1,aux!$AL$1))^(1/($G$3-INDEX($C$3:$G$3,1,aux!$AL$1)))-1,"n.d.") -> -0.3296179417 | Y80: =IF(INDEX($C80:$G80,1,aux!$AL$1)>0,(G80-INDEX($C80:$G80,1,aux!$AL$1))/INDEX($C80:$G80,1,aux!$AL$1),"n.d.") -> -0.7980287607 | AA80: =O80-INDEX($K80:$O80,1,aux!$AL$1) -> -2.055 | AB80: -7.412676506e-05 | AC80: -6.74038096e-05 | AD80: =+IF(INDEX($K80:$O80,1,aux!$AL$1)>0,(O80/INDEX($K80:$O80,1,aux!$AL$1))^(1/($O$3-INDEX($K$3:$O$3,1,aux!$AL$1)))-1,"n.d.") -> -0.8234169857 | AE80: =IF(INDEX($K80:$O80,1,aux!$AL$1)>0,(O80-INDEX($K80:$O80,1,aux!$AL$1))/INDEX($K80:$O80,1,aux!$AL$1),"n.d.") -> -0.9990277103 | AX80: 09
A81: 0905 | B81: Baunilha | C81: 0 | D81: 0 | E81: 0 | F81: 0.012 | G81: 0 | H81: 0.0024 | I81: 2.031169068e-07 | J81: 1.61645911e-07 | K81: 0 | L81: 0 | M81: 0 | N81: 0 | O81: 0 | P81: 0 | Q81: 0 | R81: 0 | S81: -0.0024 | U81: =G81-INDEX($C81:$G81,1,aux!$AL$1) -> 0 | V81: 0 | W81: 0 | X81: =+IF(INDEX($C81:$G81,1,aux!$AL$1)>0,(G81/INDEX($C81:$G81,1,aux!$AL$1))^(1/($G$3-INDEX($C$3:$G$3,1,aux!$AL$1)))-1,"n.d.") -> n.d. | Y81: =IF(INDEX($C81:$G81,1,aux!$AL$1)>0,(G81-INDEX($C81:$G81,1,aux!$AL$1))/INDEX($C81:$G81,1,aux!$AL$1),"n.d.") -> n.d. | AA81: =O81-INDEX($K81:$O81,1,aux!$AL$1) -> 0 | AB81: 0 | AC81: 0 | AD81: =+IF(INDEX($K81:$O81,1,aux!$AL$1)>0,(O81/INDEX($K81:$O81,1,aux!$AL$1))^(1/($O$3-INDEX($K$3:$O$3,1,aux!$AL$1)))-1,"n.d.") -> n.d. | AE81: =IF(INDEX($K81:$O81,1,aux!$AL$1)>0,(O81-INDEX($K81:$O81,1,aux!$AL$1))/INDEX($K81:$O81,1,aux!$AL$1),"n.d.") -> n.d. | AX81: 09
A82: 0906 | B82: Canela | C82: 0 | D82: 0 | E82: 0 | F82: 0 | G82: 0 | H82: 0 | I82: 0 | J82: 0 | K82: 0 | L82: 0 | M82: 0 | N82: 0 | O82: 0 | P82: 0 | Q82: 0 | R82: 0 | S82: 0 | U82: =G82-INDEX($C82:$G82,1,aux!$AL$1) -> 0 | V82: 0 | W82: 0 | X82: =+IF(INDEX($C82:$G82,1,aux!$AL$1)>0,(G82/INDEX($C82:$G82,1,aux!$AL$1))^(1/($G$3-INDEX($C$3:$G$3,1,aux!$AL$1)))-1,"n.d.") -> n.d. | Y82: =IF(INDEX($C82:$G82,1,aux!$AL$1)>0,(G82-INDEX($C82:$G82,1,aux!$AL$1))/INDEX($C82:$G82,1,aux!$AL$1),"n.d.") -> n.d. | AA82: =O82-INDEX($K82:$O82,1,aux!$AL$1) -> 0 | AB82: 0 | AC82: 0 | AD82: =+IF(INDEX($K82:$O82,1,aux!$AL$1)>0,(O82/INDEX($K82:$O82,1,aux!$AL$1))^(1/($O$3-INDEX($K$3:$O$3,1,aux!$AL$1)))-1,"n.d.") -> n.d. | AE82: =IF(INDEX($K82:$O82,1,aux!$AL$1)>0,(O82-INDEX($K82:$O82,1,aux!$AL$1))/INDEX($K82:$O82,1,aux!$AL$1),"n.d.") -> n.d. | AX82: 09
A83: 0907 | B83: Cravo-da-índia | C83: 0 | D83: 0 | E83: 0 | F83: 0 | G83: 0 | H83: 0 | I83: 0 | J83: 0 | K83: 0 | L83: 0 | M83: 0 | N83: 0 | O83: 0 | P83: 0 | Q83: 0 | R83: 0 | S83: 0 | U83: =G83-INDEX($C83:$G83,1,aux!$AL$1) -> 0 | V83: 0 | W83: 0 | X83: =+IF(INDEX($C83:$G83,1,aux!$AL$1)>0,(G83/INDEX($C83:$G83,1,aux!$AL$1))^(1/($G$3-INDEX($C$3:$G$3,1,aux!$AL$1)))-1,"n.d.") -> n.d. | Y83: =IF(INDEX($C83:$G83,1,aux!$AL$1)>0,(G83-INDEX($C83:$G83,1,aux!$AL$1))/INDEX($C83:$G83,1,aux!$AL$1),"n.d.") -> n.d. | AA83: =O83-INDEX($K83:$O83,1,aux!$AL$1) -> 0 | AB83: 0 | AC83: 0 | AD83: =+IF(INDEX($K83:$O83,1,aux!$AL$1)>0,(O83/INDEX($K83:$O83,1,aux!$AL$1))^(1/($O$3-INDEX($K$3:$O$3,1,aux!$AL$1)))-1,"n.d.") -> n.d. | AE83: =IF(INDEX($K83:$O83,1,aux!$AL$1)>0,(O83-INDEX($K83:$O83,1,aux!$AL$1))/INDEX($K83:$O83,1,aux!$AL$1),"n.d.") -> n.d. | AX83: 09
A84: 0908 | B84: Noz-moscada, etc. | C84: 0 | D84: 0 | E84: 0 | F84: 0 | G84: 0 | H84: 0 | I84: 0 | J84: 0 | K84: 0 | L84: 0 | M84: 0 | N84: 0 | O84: 0 | P84: 0 | Q84: 0 | R84: 0 | S84: 0 | U84: =G84-INDEX($C84:$G84,1,aux!$AL$1) -> 0 | V84: 0 | W84: 0 | X84: =+IF(INDEX($C84:$G84,1,aux!$AL$1)>0,(G84/INDEX($C84:$G84,1,aux!$AL$1))^(1/($G$3-INDEX($C$3:$G$3,1,aux!$AL$1)))-1,"n.d.") -> n.d. | Y84: =IF(INDEX($C84:$G84,1,aux!$AL$1)>0,(G84-INDEX($C84:$G84,1,aux!$AL$1))/INDEX($C84:$G84,1,aux!$AL$1),"n.d.") -> n.d. | AA84: =O84-INDEX($K84:$O84,1,aux!$AL$1) -> 0 | AB84: 0 | AC84: 0 | AD84: =+IF(INDEX($K84:$O84,1,aux!$AL$1)>0,(O84/INDEX($K84:$O84,1,aux!$AL$1))^(1/($O$3-INDEX($K$3:$O$3,1,aux!$AL$1)))-1,"n.d.") -> n.d. | AE84: =IF(INDEX($K84:$O84,1,aux!$AL$1)>0,(O84-INDEX($K84:$O84,1,aux!$AL$1))/INDEX($K84:$O84,1,aux!$AL$1),"n.d.") -> n.d. | AX84: 09
A85: 0909 | B85: Sementes de anis, funcho, etc. | C85: 0 | D85: 0 | E85: 0 | F85: 0 | G85: 0 | H85: 0 | I85: 0 | J85: 0 | K85: 0 | L85: 0 | M85: 0 | N85: 0.004 | O85: 0 | P85: 0.0008 | Q85: 1.310268914e-08 | R85: 1.090519676e-08 | S85: 0.0008 | U85: =G85-INDEX($C85:$G85,1,aux!$AL$1) -> 0 | V85: 0 | W85: 0 | X85: =+IF(INDEX($C85:$G85,1,aux!$AL$1)>0,(G85/INDEX($C85:$G85,1,aux!$AL$1))^(1/($G$3-INDEX($C$3:$G$3,1,aux!$AL$1)))-1,"n.d.") -> n.d. | Y85: =IF(INDEX($C85:$G85,1,aux!$AL$1)>0,(G85-INDEX($C85:$G85,1,aux!$AL$1))/INDEX($C85:$G85,1,aux!$AL$1),"n.d.") -> n.d. | AA85: =O85-INDEX($K85:$O85,1,aux!$AL$1) -> 0 | AB85: 0 | AC85: 0 | AD85: =+IF(INDEX($K85:$O85,1,aux!$AL$1)>0,(O85/INDEX($K85:$O85,1,aux!$AL$1))^(1/($O$3-INDEX($K$3:$O$3,1,aux!$AL$1)))-1,"n.d.") -> n.d. | AE85: =IF(INDEX($K85:$O85,1,aux!$AL$1)>0,(O85-INDEX($K85:$O85,1,aux!$AL$1))/INDEX($K85:$O85,1,aux!$AL$1),"n.d.") -> n.d. | AX85: 09
A86: 0910 | B86: Gengibre, açafrão, tomilho, louro, etc. | C86: 94.485 | D86: 60.911 | E86: 89.633 | F86: 135.353 | G86: 135.353 | H86: 103.147 | I86: 0.008729541494 | J86: 0.006947204492 | K86: 306.528 | L86: 267.021 | M86: 307.084 | N86: 410.756 | O86: 226.348 | P86: 303.5474 | Q86: 0.004971609028 | R86: 0.004137805155 | S86: 200.4004 | U86: =G86-INDEX($C86:$G86,1,aux!$AL$1) -> 40.868 | V86: -0.004741338455 | W86: -0.005131996848 | X86: =+IF(INDEX($C86:$G86,1,aux!$AL$1)>0,(G86/INDEX($C86:$G86,1,aux!$AL$1))^(1/($G$3-INDEX($C$3:$G$3,1,aux!$AL$1)))-1,"n.d.") -> 0.09402250185 | Y86: =IF(INDEX($C86:$G86,1,aux!$AL$1)>0,(G86-INDEX($C86:$G86,1,aux!$AL$1))/INDEX($C86:$G86,1,aux!$AL$1),"n.d.") -> 0.4325342647 | AA86: =O86-INDEX($K86:$O86,1,aux!$AL$1) -> -80.18 | AB86: -0.002892206337 | AC86: -0.002629896571 | AD86: =+IF(INDEX($K86:$O86,1,aux!$AL$1)>0,(O86/INDEX($K86:$O86,1,aux!$AL$1))^(1/($O$3-INDEX($K$3:$O$3,1,aux!$AL$1)))-1,"n.d.") -> -0.07300663117 | AE86: =IF(INDEX($K86:$O86,1,aux!$AL$1)>0,(O86-INDEX($K86:$O86,1,aux!$AL$1))/INDEX($K86:$O86,1,aux!$AL$1),"n.d.") -> -0.261574799 | AX86: 09
A87: 09SS | B87: Café, chá, mate e especiarias | C87: 0 | D87: 0 | E87: 0 | F87: 0 | G87: 0 | H87: 0 | I87: 0 | J87: 0 | K87: 0 | L87: 0 | M87: 0 | N87: 0 | O87: 0 | P87: 0 | Q87: 0 | R87: 0 | S87: 0 | U87: =G87-INDEX($C87:$G87,1,aux!$AL$1) -> 0 | V87: 0 | W87: 0 | X87: =+IF(INDEX($C87:$G87,1,aux!$AL$1)>0,(G87/INDEX($C87:$G87,1,aux!$AL$1))^(1/($G$3-INDEX($C$3:$G$3,1,aux!$AL$1)))-1,"n.d.") -> n.d. | Y87: =IF(INDEX($C87:$G87,1,aux!$AL$1)>0,(G87-INDEX($C87:$G87,1,aux!$AL$1))/INDEX($C87:$G87,1,aux!$AL$1),"n.d.") -> n.d. | AA87: =O87-INDEX($K87:$O87,1,aux!$AL$1) -> 0 | AB87: 0 | AC87: 0 | AD87: =+IF(INDEX($K87:$O87,1,aux!$AL$1)>0,(O87/INDEX($K87:$O87,1,aux!$AL$1))^(1/($O$3-INDEX($K$3:$O$3,1,aux!$AL$1)))-1,"n.d.") -> n.d. | AE87: =IF(INDEX($K87:$O87,1,aux!$AL$1)>0,(O87-INDEX($K87:$O87,1,aux!$AL$1))/INDEX($K87:$O87,1,aux!$AL$1),"n.d.") -> n.d. | AX87: 09
A88: 1001 | B88: Trigo e mistura trigo/centeio | C88: 0 | D88: 0 | E88: 0 | F88: 0 | G88: 0 | H88: 0 | I88: 0 | J88: 0 | K88: 0 | L88: 0 | M88: 0 | N88: 0 | O88: 0 | P88: 0 | Q88: 0 | R88: 0 | S88: 0 | U88: =G88-INDEX($C88:$G88,1,aux!$AL$1) -> 0 | V88: 0 | W88: 0 | X88: =+IF(INDEX($C88:$G88,1,aux!$AL$1)>0,(G88/INDEX($C88:$G88,1,aux!$AL$1))^(1/($G$3-INDEX($C$3:$G$3,1,aux!$AL$1)))-1,"n.d.") -> n.d. | Y88: =IF(INDEX($C88:$G88,1,aux!$AL$1)>0,(G88-INDEX($C88:$G88,1,aux!$AL$1))/INDEX($C88:$G88,1,aux!$AL$1),"n.d.") -> n.d. | AA88: =O88-INDEX($K88:$O88,1,aux!$AL$1) -> 0 | AB88: 0 | AC88: 0 | AD88: =+IF(INDEX($K88:$O88,1,aux!$AL$1)>0,(O88/INDEX($K88:$O88,1,aux!$AL$1))^(1/($O$3-INDEX($K$3:$O$3,1,aux!$AL$1)))-1,"n.d.") -> n.d. | AE88: =IF(INDEX($K88:$O88,1,aux!$AL$1)>0,(O88-INDEX($K88:$O88,1,aux!$AL$1))/INDEX($K88:$O88,1,aux!$AL$1),"n.d.") -> n.d. | AX88: 10
A89: 1002 | B89: Centeio | C89: 0 | D89: 0 | E89: 0 | F89: 0 | G89: 0 | H89: 0 | I89: 0 | J89: 0 | K89: 0 | L89: 0 | M89: 0 | N89: 0 | O89: 0 | P89: 0 | Q89: 0 | R89: 0 | S89: 0 | U89: =G89-INDEX($C89:$G89,1,aux!$AL$1) -> 0 | V89: 0 | W89: 0 | X89: =+IF(INDEX($C89:$G89,1,aux!$AL$1)>0,(G89/INDEX($C89:$G89,1,aux!$AL$1))^(1/($G$3-INDEX($C$3:$G$3,1,aux!$AL$1)))-1,"n.d.") -> n.d. | Y89: =IF(INDEX($C89:$G89,1,aux!$AL$1)>0,(G89-INDEX($C89:$G89,1,aux!$AL$1))/INDEX($C89:$G89,1,aux!$AL$1),"n.d.") -> n.d. | AA89: =O89-INDEX($K89:$O89,1,aux!$AL$1) -> 0 | AB89: 0 | AC89: 0 | AD89: =+IF(INDEX($K89:$O89,1,aux!$AL$1)>0,(O89/INDEX($K89:$O89,1,aux!$AL$1))^(1/($O$3-INDEX($K$3:$O$3,1,aux!$AL$1)))-1,"n.d.") -> n.d. | AE89: =IF(INDEX($K89:$O89,1,aux!$AL$1)>0,(O89-INDEX($K89:$O89,1,aux!$AL$1))/INDEX($K89:$O89,1,aux!$AL$1),"n.d.") -> n.d. | AX89: 10
A90: 1003 | B90: Cevada | C90: 0 | D90: 0 | E90: 0 | F90: 0 | G90: 0 | H90: 0 | I90: 0 | J90: 0 | K90: 0 | L90: 0 | M90: 0 | N90: 0 | O90: 0 | P90: 0 | Q90: 0 | R90: 0 | S90: 0 | U90: =G90-INDEX($C90:$G90,1,aux!$AL$1) -> 0 | V90: 0 | W90: 0 | X90: =+IF(INDEX($C90:$G90,1,aux!$AL$1)>0,(G90/INDEX($C90:$G90,1,aux!$AL$1))^(1/($G$3-INDEX($C$3:$G$3,1,aux!$AL$1)))-1,"n.d.") -> n.d. | Y90: =IF(INDEX($C90:$G90,1,aux!$AL$1)>0,(G90-INDEX($C90:$G90,1,aux!$AL$1))/INDEX($C90:$G90,1,aux!$AL$1),"n.d.") -> n.d. | AA90: =O90-INDEX($K90:$O90,1,aux!$AL$1) -> 0 | AB90: 0 | AC90: 0 | AD90: =+IF(INDEX($K90:$O90,1,aux!$AL$1)>0,(O90/INDEX($K90:$O90,1,aux!$AL$1))^(1/($O$3-INDEX($K$3:$O$3,1,aux!$AL$1)))-1,"n.d.") -> n.d. | AE90: =IF(INDEX($K90:$O90,1,aux!$AL$1)>0,(O90-INDEX($K90:$O90,1,aux!$AL$1))/INDEX($K90:$O90,1,aux!$AL$1),"n.d.") -> n.d. | AX90: 10
A91: 1004 | B91: Aveia | C91: 0 | D91: 0 | E91: 0 | F91: 0 | G91: 0 | H91: 0 | I91: 0 | J91: 0 | K91: 0 | L91: 0 | M91: 0 | N91: 0 | O91: 0 | P91: 0 | Q91: 0 | R91: 0 | S91: 0 | U91: =G91-INDEX($C91:$G91,1,aux!$AL$1) -> 0 | V91: 0 | W91: 0 | X91: =+IF(INDEX($C91:$G91,1,aux!$AL$1)>0,(G91/INDEX($C91:$G91,1,aux!$AL$1))^(1/($G$3-INDEX($C$3:$G$3,1,aux!$AL$1)))-1,"n.d.") -> n.d. | Y91: =IF(INDEX($C91:$G91,1,aux!$AL$1)>0,(G91-INDEX($C91:$G91,1,aux!$AL$1))/INDEX($C91:$G91,1,aux!$AL$1),"n.d.") -> n.d. | AA91: =O91-INDEX($K91:$O91,1,aux!$AL$1) -> 0 | AB91: 0 | AC91: 0 | AD91: =+IF(INDEX($K91:$O91,1,aux!$AL$1)>0,(O91/INDEX($K91:$O91,1,aux!$AL$1))^(1/($O$3-INDEX($K$3:$O$3,1,aux!$AL$1)))-1,"n.d.") -> n.d. | AE91: =IF(INDEX($K91:$O91,1,aux!$AL$1)>0,(O91-INDEX($K91:$O91,1,aux!$AL$1))/INDEX($K91:$O91,1,aux!$AL$1),"n.d.") -> n.d. | AX91: 10
A92: 1005 | B92: Milho | C92: 0 | D92: 0 | E92: 0 | F92: 0 | G92: 0 | H92: 0 | I92: 0 | J92: 0 | K92: 0 | L92: 0.023 | M92: 0 | N92: 0 | O92: 0 | P92: 0.0046 | Q92: 7.534046257e-08 | R92: 6.270488138e-08 | S92: 0.0046 | U92: =G92-INDEX($C92:$G92,1,aux!$AL$1) -> 0 | V92: 0 | W92: 0 | X92: =+IF(INDEX($C92:$G92,1,aux!$AL$1)>0,(G92/INDEX($C92:$G92,1,aux!$AL$1))^(1/($G$3-INDEX($C$3:$G$3,1,aux!$AL$1)))-1,"n.d.") -> n.d. | Y92: =IF(INDEX($C92:$G92,1,aux!$AL$1)>0,(G92-INDEX($C92:$G92,1,aux!$AL$1))/INDEX($C92:$G92,1,aux!$AL$1),"n.d.") -> n.d. | AA92: =O92-INDEX($K92:$O92,1,aux!$AL$1) -> 0 | AB92: 0 | AC92: 0 | AD92: =+IF(INDEX($K92:$O92,1,aux!$AL$1)>0,(O92/INDEX($K92:$O92,1,aux!$AL$1))^(1/($O$3-INDEX($K$3:$O$3,1,aux!$AL$1)))-1,"n.d.") -> n.d. | AE92: =IF(INDEX($K92:$O92,1,aux!$AL$1)>0,(O92-INDEX($K92:$O92,1,aux!$AL$1))/INDEX($K92:$O92,1,aux!$AL$1),"n.d.") -> n.d. | AX92: 10
A93: 1006 | B93: Arroz | C93: 36.626 | D93: 0 | E93: 73.378 | F93: 132.16 | G93: 21.662 | H93: 52.7652 | I93: 0.004465626754 | J93: 0.003553866176 | K93: 0 | L93: 0 | M93: 0 | N93: 0.003 | O93: 0 | P93: 0.0006 | Q93: 9.827016857e-09 | R93: 8.178897572e-09 | S93: -52.7646 | U93: =G93-INDEX($C93:$G93,1,aux!$AL$1) -> -14.964 | V93: 0.001736062167 | W93: 0.001879103475 | X93: =+IF(INDEX($C93:$G93,1,aux!$AL$1)>0,(G93/INDEX($C93:$G93,1,aux!$AL$1))^(1/($G$3-INDEX($C$3:$G$3,1,aux!$AL$1)))-1,"n.d.") -> -0.1230450878 | Y93: =IF(INDEX($C93:$G93,1,aux!$AL$1)>0,(G93-INDEX($C93:$G93,1,aux!$AL$1))/INDEX($C93:$G93,1,aux!$AL$1),"n.d.") -> -0.4085622236 | AA93: =O93-INDEX($K93:$O93,1,aux!$AL$1) -> 0 | AB93: 0 | AC93: 0 | AD93: =+IF(INDEX($K93:$O93,1,aux!$AL$1)>0,(O93/INDEX($K93:$O93,1,aux!$AL$1))^(1/($O$3-INDEX($K$3:$O$3,1,aux!$AL$1)))-1,"n.d.") -> n.d. | AE93: =IF(INDEX($K93:$O93,1,aux!$AL$1)>0,(O93-INDEX($K93:$O93,1,aux!$AL$1))/INDEX($K93:$O93,1,aux!$AL$1),"n.d.") -> n.d. | AX93: 10
A94: 1007 | B94: Sorgo de grão | C94: 0 | D94: 0 | E94: 0 | F94: 0 | G94: 0 | H94: 0 | I94: 0 | J94: 0 | K94: 0 | L94: 0 | M94: 0 | N94: 0 | O94: 0 | P94: 0 | Q94: 0 | R94: 0 | S94: 0 | U94: =G94-INDEX($C94:$G94,1,aux!$AL$1) -> 0 | V94: 0 | W94: 0 | X94: =+IF(INDEX($C94:$G94,1,aux!$AL$1)>0,(G94/INDEX($C94:$G94,1,aux!$AL$1))^(1/($G$3-INDEX($C$3:$G$3,1,aux!$AL$1)))-1,"n.d.") -> n.d. | Y94: =IF(INDEX($C94:$G94,1,aux!$AL$1)>0,(G94-INDEX($C94:$G94,1,aux!$AL$1))/INDEX($C94:$G94,1,aux!$AL$1),"n.d.") -> n.d. | AA94: =O94-INDEX($K94:$O94,1,aux!$AL$1) -> 0 | AB94: 0 | AC94: 0 | AD94: =+IF(INDEX($K94:$O94,1,aux!$AL$1)>0,(O94/INDEX($K94:$O94,1,aux!$AL$1))^(1/($O$3-INDEX($K$3:$O$3,1,aux!$AL$1)))-1,"n.d.") -> n.d. | AE94: =IF(INDEX($K94:$O94,1,aux!$AL$1)>0,(O94-INDEX($K94:$O94,1,aux!$AL$1))/INDEX($K94:$O94,1,aux!$AL$1),"n.d.") -> n.d. | AX94: 10
A95: 1008 | B95: Trigo mourisco, painço e outros cereais | C95: 0 | D95: 0 | E95: 0 | F95: 0 | G95: 0 | H95: 0 | I95: 0 | J95: 0 | K95: 0 | L95: 0 | M95: 0 | N95: 0 | O95: 0 | P95: 0 | Q95: 0 | R95: 0 | S95: 0 | U95: =G95-INDEX($C95:$G95,1,aux!$AL$1) -> 0 | V95: 0 | W95: 0 | X95: =+IF(INDEX($C95:$G95,1,aux!$AL$1)>0,(G95/INDEX($C95:$G95,1,aux!$AL$1))^(1/($G$3-INDEX($C$3:$G$3,1,aux!$AL$1)))-1,"n.d.") -> n.d. | Y95: =IF(INDEX($C95:$G95,1,aux!$AL$1)>0,(G95-INDEX($C95:$G95,1,aux!$AL$1))/INDEX($C95:$G95,1,aux!$AL$1),"n.d.") -> n.d. | AA95: =O95-INDEX($K95:$O95,1,aux!$AL$1) -> 0 | AB95: 0 | AC95: 0 | AD95: =+IF(INDEX($K95:$O95,1,aux!$AL$1)>0,(O95/INDEX($K95:$O95,1,aux!$AL$1))^(1/($O$3-INDEX($K$3:$O$3,1,aux!$AL$1)))-1,"n.d.") -> n.d. | AE95: =IF(INDEX($K95:$O95,1,aux!$AL$1)>0,(O95-INDEX($K95:$O95,1,aux!$AL$1))/INDEX($K95:$O95,1,aux!$AL$1),"n.d.") -> n.d. | AX95: 10
A96: 10SS | B96: Cereais | C96: 0 | D96: 0 | E96: 0 | F96: 0 | G96: 0 | H96: 0 | I96: 0 | J96: 0 | K96: 0 | L96: 0 | M96: 0 | N96: 0 | O96: 0 | P96: 0 | Q96: 0 | R96: 0 | S96: 0 | U96: =G96-INDEX($C96:$G96,1,aux!$AL$1) -> 0 | V96: 0 | W96: 0 | X96: =+IF(INDEX($C96:$G96,1,aux!$AL$1)>0,(G96/INDEX($C96:$G96,1,aux!$AL$1))^(1/($G$3-INDEX($C$3:$G$3,1,aux!$AL$1)))-1,"n.d.") -> n.d. | Y96: =IF(INDEX($C96:$G96,1,aux!$AL$1)>0,(G96-INDEX($C96:$G96,1,aux!$AL$1))/INDEX($C96:$G96,1,aux!$AL$1),"n.d.") -> n.d. | AA96: =O96-INDEX($K96:$O96,1,aux!$AL$1) -> 0 | AB96: 0 | AC96: 0 | AD96: =+IF(INDEX($K96:$O96,1,aux!$AL$1)>0,(O96/INDEX($K96:$O96,1,aux!$AL$1))^(1/($O$3-INDEX($K$3:$O$3,1,aux!$AL$1)))-1,"n.d.") -> n.d. | AE96: =IF(INDEX($K96:$O96,1,aux!$AL$1)>0,(O96-INDEX($K96:$O96,1,aux!$AL$1))/INDEX($K96:$O96,1,aux!$AL$1),"n.d.") -> n.d. | AX96: 10
A97: 1101 | B97: Farinhas de trigo ou trigo/centeio | C97: 376.229 | D97: 233.308 | E97: 515.914 | F97: 239.348 | G97: 144.998 | H97: 301.9594 | I97: 0.02555544138 | J97: 0.02033770929 | K97: 0 | L97: 0 | M97: 0 | N97: 0 | O97: 0 | P97: 0 | Q97: 0 | R97: 0 | S97: -301.9594 | U97: =G97-INDEX($C97:$G97,1,aux!$AL$1) -> -231.231 | V97: 0.02682647627 | W97: 0.02903682008 | X97: =+IF(INDEX($C97:$G97,1,aux!$AL$1)>0,(G97/INDEX($C97:$G97,1,aux!$AL$1))^(1/($G$3-INDEX($C$3:$G$3,1,aux!$AL$1)))-1,"n.d.") -> -0.2120885061 | Y97: =IF(INDEX($C97:$G97,1,aux!$AL$1)>0,(G97-INDEX($C97:$G97,1,aux!$AL$1))/INDEX($C97:$G97,1,aux!$AL$1),"n.d.") -> -0.6146017452 | AA97: =O97-INDEX($K97:$O97,1,aux!$AL$1) -> 0 | AB97: 0 | AC97: 0 | AD97: =+IF(INDEX($K97:$O97,1,aux!$AL$1)>0,(O97/INDEX($K97:$O97,1,aux!$AL$1))^(1/($O$3-INDEX($K$3:$O$3,1,aux!$AL$1)))-1,"n.d.") -> n.d. | AE97: =IF(INDEX($K97:$O97,1,aux!$AL$1)>0,(O97-INDEX($K97:$O97,1,aux!$AL$1))/INDEX($K97:$O97,1,aux!$AL$1),"n.d.") -> n.d. | AX97: 11
A98: 1102 | B98: Outras farinhas de cereais | C98: 0 | D98: 0.432 | E98: 3.2 | F98: 3.879 | G98: 6.503 | H98: 2.8028 | I98: 0.0002372066943 | J98: 0.0001887754831 | K98: 0 | L98: 0 | M98: 0.459 | N98: 0 | O98: 0 | P98: 0.0918 | Q98: 1.503533579e-06 | R98: 1.251371328e-06 | S98: -2.711 | U98: =G98-INDEX($C98:$G98,1,aux!$AL$1) -> 6.503 | V98: -0.0007544515017 | W98: -0.0008166138666 | X98: =+IF(INDEX($C98:$G98,1,aux!$AL$1)>0,(G98/INDEX($C98:$G98,1,aux!$AL$1))^(1/($G$3-INDEX($C$3:$G$3,1,aux!$AL$1)))-1,"n.d.") -> n.d. | Y98: =IF(INDEX($C98:$G98,1,aux!$AL$1)>0,(G98-INDEX($C98:$G98,1,aux!$AL$1))/INDEX($C98:$G98,1,aux!$AL$1),"n.d.") -> n.d. | AA98: =O98-INDEX($K98:$O98,1,aux!$AL$1) -> 0 | AB98: 0 | AC98: 0 | AD98: =+IF(INDEX($K98:$O98,1,aux!$AL$1)>0,(O98/INDEX($K98:$O98,1,aux!$AL$1))^(1/($O$3-INDEX($K$3:$O$3,1,aux!$AL$1)))-1,"n.d.") -> n.d. | AE98: =IF(INDEX($K98:$O98,1,aux!$AL$1)>0,(O98-INDEX($K98:$O98,1,aux!$AL$1))/INDEX($K98:$O98,1,aux!$AL$1),"n.d.") -> n.d. | AX98: 11
A99: 1103 | B99: Grumos, sêmolas, etc. de cereais | C99: 0 | D99: 0 | E99: 0 | F99: 0 | G99: 0 | H99: 0 | I99: 0 | J99: 0 | K99: 0 | L99: 0 | M99: 0 | N99: 0 | O99: 0 | P99: 0 | Q99: 0 | R99: 0 | S99: 0 | U99: =G99-INDEX($C99:$G99,1,aux!$AL$1) -> 0 | V99: 0 | W99: 0 | X99: =+IF(INDEX($C99:$G99,1,aux!$AL$1)>0,(G99/INDEX($C99:$G99,1,aux!$AL$1))^(1/($G$3-INDEX($C$3:$G$3,1,aux!$AL$1)))-1,"n.d.") -> n.d. | Y99: =IF(INDEX($C99:$G99,1,aux!$AL$1)>0,(G99-INDEX($C99:$G99,1,aux!$AL$1))/INDEX($C99:$G99,1,aux!$AL$1),"n.d.") -> n.d. | AA99: =O99-INDEX($K99:$O99,1,aux!$AL$1) -> 0 | AB99: 0 | AC99: 0 | AD99: =+IF(INDEX($K99:$O99,1,aux!$AL$1)>0,(O99/INDEX($K99:$O99,1,aux!$AL$1))^(1/($O$3-INDEX($K$3:$O$3,1,aux!$AL$1)))-1,"n.d.") -> n.d. | AE99: =IF(INDEX($K99:$O99,1,aux!$AL$1)>0,(O99-INDEX($K99:$O99,1,aux!$AL$1))/INDEX($K99:$O99,1,aux!$AL$1),"n.d.") -> n.d. | AX99: 11
A100: 1104 | B100: Grãos de cereais processados | C100: 0 | D100: 0 | E100: 0 | F100: 0 | G100: 0 | H100: 0 | I100: 0 | J100: 0 | K100: 0 | L100: 0 | M100: 0 | N100: 0 | O100: 0 | P100: 0 | Q100: 0 | R100: 0 | S100: 0 | U100: =G100-INDEX($C100:$G100,1,aux!$AL$1) -> 0 | V100: 0 | W100: 0 | X100: =+IF(INDEX($C100:$G100,1,aux!$AL$1)>0,(G100/INDEX($C100:$G100,1,aux!$AL$1))^(1/($G$3-INDEX($C$3:$G$3,1,aux!$AL$1)))-1,"n.d.") -> n.d. | Y100: =IF(INDEX($C100:$G100,1,aux!$AL$1)>0,(G100-INDEX($C100:$G100,1,aux!$AL$1))/INDEX($C100:$G100,1,aux!$AL$1),"n.d.") -> n.d. | AA100: =O100-INDEX($K100:$O100,1,aux!$AL$1) -> 0 | AB100: 0 | AC100: 0 | AD100: =+IF(INDEX($K100:$O100,1,aux!$AL$1)>0,(O100/INDEX($K100:$O100,1,aux!$AL$1))^(1/($O$3-INDEX($K$3:$O$3,1,aux!$AL$1)))-1,"n.d.") -> n.d. | AE100: =IF(INDEX($K100:$O100,1,aux!$AL$1)>0,(O100-INDEX($K100:$O100,1,aux!$AL$1))/INDEX($K100:$O100,1,aux!$AL$1),"n.d.") -> n.d. | AX100: 11
A101: 1105 | B101: Farinha, sêmola, etc. de batata | C101: 0 | D101: 0 | E101: 0 | F101: 0 | G101: 0 | H101: 0 | I101: 0 | J101: 0 | K101: 0 | L101: 0 | M101: 0 | N101: 0 | O101: 0 | P101: 0 | Q101: 0 | R101: 0 | S101: 0 | U101: =G101-INDEX($C101:$G101,1,aux!$AL$1) -> 0 | V101: 0 | W101: 0 | X101: =+IF(INDEX($C101:$G101,1,aux!$AL$1)>0,(G101/INDEX($C101:$G101,1,aux!$AL$1))^(1/($G$3-INDEX($C$3:$G$3,1,aux!$AL$1)))-1,"n.d.") -> n.d. | Y101: =IF(INDEX($C101:$G101,1,aux!$AL$1)>0,(G101-INDEX($C101:$G101,1,aux!$AL$1))/INDEX($C101:$G101,1,aux!$AL$1),"n.d.") -> n.d. | AA101: =O101-INDEX($K101:$O101,1,aux!$AL$1) -> 0 | AB101: 0 | AC101: 0 | AD101: =+IF(INDEX($K101:$O101,1,aux!$AL$1)>0,(O101/INDEX($K101:$O101,1,aux!$AL$1))^(1/($O$3-INDEX($K$3:$O$3,1,aux!$AL$1)))-1,"n.d.") -> n.d. | AE101: =IF(INDEX($K101:$O101,1,aux!$AL$1)>0,(O101-INDEX($K101:$O101,1,aux!$AL$1))/INDEX($K101:$O101,1,aux!$AL$1),"n.d.") -> n.d. | AX101: 11
A102: 1106 | B102: Farinhas, etc. de leguminosas e outros tubérculos | C102: 0 | D102: 1.378 | E102: 4.069 | F102: 5.707 | G102: 5.545 | H102: 3.3398 | I102: 0.0002826541022 | J102: 0.0002249437556 | K102: 0 | L102: 0.495 | M102: 0 | N102: 0 | O102: 0 | P102: 0.099 | Q102: 1.621457781e-06 | R102: 1.349518099e-06 | S102: -3.2408 | U102: =G102-INDEX($C102:$G102,1,aux!$AL$1) -> 5.545 | V102: -0.0006433082542 | W102: -0.0006963130694 | X102: =+IF(INDEX($C102:$G102,1,aux!$AL$1)>0,(G102/INDEX($C102:$G102,1,aux!$AL$1))^(1/($G$3-INDEX($C$3:$G$3,1,aux!$AL$1)))-1,"n.d.") -> n.d. | Y102: =IF(INDEX($C102:$G102,1,aux!$AL$1)>0,(G102-INDEX($C102:$G102,1,aux!$AL$1))/INDEX($C102:$G102,1,aux!$AL$1),"n.d.") -> n.d. | AA102: =O102-INDEX($K102:$O102,1,aux!$AL$1) -> 0 | AB102: 0 | AC102: 0 | AD102: =+IF(INDEX($K102:$O102,1,aux!$AL$1)>0,(O102/INDEX($K102:$O102,1,aux!$AL$1))^(1/($O$3-INDEX($K$3:$O$3,1,aux!$AL$1)))-1,"n.d.") -> n.d. | AE102: =IF(INDEX($K102:$O102,1,aux!$AL$1)>0,(O102-INDEX($K102:$O102,1,aux!$AL$1))/INDEX($K102:$O102,1,aux!$AL$1),"n.d.") -> n.d. | AX102: 11
A103: 1107 | B103: Malte, mesmo torrado | C103: 0 | D103: 0 | E103: 0 | F103: 0 | G103: 0 | H103: 0 | I103: 0 | J103: 0 | K103: 0 | L103: 0 | M103: 0 | N103: 0 | O103: 0 | P103: 0 | Q103: 0 | R103: 0 | S103: 0 | U103: =G103-INDEX($C103:$G103,1,aux!$AL$1) -> 0 | V103: 0 | W103: 0 | X103: =+IF(INDEX($C103:$G103,1,aux!$AL$1)>0,(G103/INDEX($C103:$G103,1,aux!$AL$1))^(1/($G$3-INDEX($C$3:$G$3,1,aux!$AL$1)))-1,"n.d.") -> n.d. | Y103: =IF(INDEX($C103:$G103,1,aux!$AL$1)>0,(G103-INDEX($C103:$G103,1,aux!$AL$1))/INDEX($C103:$G103,1,aux!$AL$1),"n.d.") -> n.d. | AA103: =O103-INDEX($K103:$O103,1,aux!$AL$1) -> 0 | AB103: 0 | AC103: 0 | AD103: =+IF(INDEX($K103:$O103,1,aux!$AL$1)>0,(O103/INDEX($K103:$O103,1,aux!$AL$1))^(1/($O$3-INDEX($K$3:$O$3,1,aux!$AL$1)))-1,"n.d.") -> n.d. | AE103: =IF(INDEX($K103:$O103,1,aux!$AL$1)>0,(O103-INDEX($K103:$O103,1,aux!$AL$1))/INDEX($K103:$O103,1,aux!$AL$1),"n.d.") -> n.d. | AX103: 11
A104: 1108 | B104: Amidos e féculas; inulina | C104: 16.276 | D104: 11.399 | E104: 12.778 | F104: 18.05 | G104: 23.09 | H104: 16.3186 | I104: 0.001381076481 | J104: 0.001099097901 | K104: 0 | L104: 0 | M104: 0 | N104: 0 | O104: 0 | P104: 0 | Q104: 0 | R104: 0 | S104: -16.3186 | U104: =G104-INDEX($C104:$G104,1,aux!$AL$1) -> 6.814 | V104: -0.0007905324516 | W104: -0.0008556676744 | X104: =+IF(INDEX($C104:$G104,1,aux!$AL$1)>0,(G104/INDEX($C104:$G104,1,aux!$AL$1))^(1/($G$3-INDEX($C$3:$G$3,1,aux!$AL$1)))-1,"n.d.") -> 0.09136259022 | Y104: =IF(INDEX($C104:$G104,1,aux!$AL$1)>0,(G104-INDEX($C104:$G104,1,aux!$AL$1))/INDEX($C104:$G104,1,aux!$AL$1),"n.d.") -> 0.4186532318 | AA104: =O104-INDEX($K104:$O104,1,aux!$AL$1) -> 0 | AB104: 0 | AC104: 0 | AD104: =+IF(INDEX($K104:$O104,1,aux!$AL$1)>0,(O104/INDEX($K104:$O104,1,aux!$AL$1))^(1/($O$3-INDEX($K$3:$O$3,1,aux!$AL$1)))-1,"n.d.") -> n.d. | AE104: =IF(INDEX($K104:$O104,1,aux!$AL$1)>0,(O104-INDEX($K104:$O104,1,aux!$AL$1))/INDEX($K104:$O104,1,aux!$AL$1),"n.d.") -> n.d. | AX104: 11
A105: 1109 | B105: Glúten de trigo, mesmo seco | C105: 0 | D105: 0 | E105: 0 | F105: 0 | G105: 0 | H105: 0 | I105: 0 | J105: 0 | K105: 0 | L105: 0 | M105: 0 | N105: 0 | O105: 0 | P105: 0 | Q105: 0 | R105: 0 | S105: 0 | U105: =G105-INDEX($C105:$G105,1,aux!$AL$1) -> 0 | V105: 0 | W105: 0 | X105: =+IF(INDEX($C105:$G105,1,aux!$AL$1)>0,(G105/INDEX($C105:$G105,1,aux!$AL$1))^(1/($G$3-INDEX($C$3:$G$3,1,aux!$AL$1)))-1,"n.d.") -> n.d. | Y105: =IF(INDEX($C105:$G105,1,aux!$AL$1)>0,(G105-INDEX($C105:$G105,1,aux!$AL$1))/INDEX($C105:$G105,1,aux!$AL$1),"n.d.") -> n.d. | AA105: =O105-INDEX($K105:$O105,1,aux!$AL$1) -> 0 | AB105: 0 | AC105: 0 | AD105: =+IF(INDEX($K105:$O105,1,aux!$AL$1)>0,(O105/INDEX($K105:$O105,1,aux!$AL$1))^(1/($O$3-INDEX($K$3:$O$3,1,aux!$AL$1)))-1,"n.d.") -> n.d. | AE105: =IF(INDEX($K105:$O105,1,aux!$AL$1)>0,(O105-INDEX($K105:$O105,1,aux!$AL$1))/INDEX($K105:$O105,1,aux!$AL$1),"n.d.") -> n.d. | AX105: 11
A106: 11SS | B106: Produtos da indústria de moagem e outros | C106: 0 | D106: 0 | E106: 0 | F106: 0 | G106: 0 | H106: 0 | I106: 0 | J106: 0 | K106: 0 | L106: 0 | M106: 0 | N106: 0 | O106: 0 | P106: 0 | Q106: 0 | R106: 0 | S106: 0 | U106: =G106-INDEX($C106:$G106,1,aux!$AL$1) -> 0 | V106: 0 | W106: 0 | X106: =+IF(INDEX($C106:$G106,1,aux!$AL$1)>0,(G106/INDEX($C106:$G106,1,aux!$AL$1))^(1/($G$3-INDEX($C$3:$G$3,1,aux!$AL$1)))-1,"n.d.") -> n.d. | Y106: =IF(INDEX($C106:$G106,1,aux!$AL$1)>0,(G106-INDEX($C106:$G106,1,aux!$AL$1))/INDEX($C106:$G106,1,aux!$AL$1),"n.d.") -> n.d. | AA106: =O106-INDEX($K106:$O106,1,aux!$AL$1) -> 0 | AB106: 0 | AC106: 0 | AD106: =+IF(INDEX($K106:$O106,1,aux!$AL$1)>0,(O106/INDEX($K106:$O106,1,aux!$AL$1))^(1/($O$3-INDEX($K$3:$O$3,1,aux!$AL$1)))-1,"n.d.") -> n.d. | AE106: =IF(INDEX($K106:$O106,1,aux!$AL$1)>0,(O106-INDEX($K106:$O106,1,aux!$AL$1))/INDEX($K106:$O106,1,aux!$AL$1),"n.d.") -> n.d. | AX106: 11
A107: 1201 | B107: Soja, mesmo triturada | C107: 0 | D107: 0 | E107: 0 | F107: 0 | G107: 0 | H107: 0 | I107: 0 | J107: 0 | K107: 0 | L107: 0 | M107: 0 | N107: 0 | O107: 0 | P107: 0 | Q107: 0 | R107: 0 | S107: 0 | U107: =G107-INDEX($C107:$G107,1,aux!$AL$1) -> 0 | V107: 0 | W107: 0 | X107: =+IF(INDEX($C107:$G107,1,aux!$AL$1)>0,(G107/INDEX($C107:$G107,1,aux!$AL$1))^(1/($G$3-INDEX($C$3:$G$3,1,aux!$AL$1)))-1,"n.d.") -> n.d. | Y107: =IF(INDEX($C107:$G107,1,aux!$AL$1)>0,(G107-INDEX($C107:$G107,1,aux!$AL$1))/INDEX($C107:$G107,1,aux!$AL$1),"n.d.") -> n.d. | AA107: =O107-INDEX($K107:$O107,1,aux!$AL$1) -> 0 | AB107: 0 | AC107: 0 | AD107: =+IF(INDEX($K107:$O107,1,aux!$AL$1)>0,(O107/INDEX($K107:$O107,1,aux!$AL$1))^(1/($O$3-INDEX($K$3:$O$3,1,aux!$AL$1)))-1,"n.d.") -> n.d. | AE107: =IF(INDEX($K107:$O107,1,aux!$AL$1)>0,(O107-INDEX($K107:$O107,1,aux!$AL$1))/INDEX($K107:$O107,1,aux!$AL$1),"n.d.") -> n.d. | AX107: 12
A108: 1202 | B108: Amendoins não torrados | C108: 0 | D108: 0 | E108: 0 | F108: 0 | G108: 0 | H108: 0 | I108: 0 | J108: 0 | K108: 0 | L108: 0 | M108: 0 | N108: 0 | O108: 0 | P108: 0 | Q108: 0 | R108: 0 | S108: 0 | U108: =G108-INDEX($C108:$G108,1,aux!$AL$1) -> 0 | V108: 0 | W108: 0 | X108: =+IF(INDEX($C108:$G108,1,aux!$AL$1)>0,(G108/INDEX($C108:$G108,1,aux!$AL$1))^(1/($G$3-INDEX($C$3:$G$3,1,aux!$AL$1)))-1,"n.d.") -> n.d. | Y108: =IF(INDEX($C108:$G108,1,aux!$AL$1)>0,(G108-INDEX($C108:$G108,1,aux!$AL$1))/INDEX($C108:$G108,1,aux!$AL$1),"n.d.") -> n.d. | AA108: =O108-INDEX($K108:$O108,1,aux!$AL$1) -> 0 | AB108: 0 | AC108: 0 | AD108: =+IF(INDEX($K108:$O108,1,aux!$AL$1)>0,(O108/INDEX($K108:$O108,1,aux!$AL$1))^(1/($O$3-INDEX($K$3:$O$3,1,aux!$AL$1)))-1,"n.d.") -> n.d. | AE108: =IF(INDEX($K108:$O108,1,aux!$AL$1)>0,(O108-INDEX($K108:$O108,1,aux!$AL$1))/INDEX($K108:$O108,1,aux!$AL$1),"n.d.") -> n.d. | AX108: 12
A109: 1203 | B109: Copra | C109: 0 | D109: 0 | E109: 0 | F109: 0 | G109: 0 | H109: 0 | I109: 0 | J109: 0 | K109: 0 | L109: 0 | M109: 0 | N109: 0 | O109: 0 | P109: 0 | Q109: 0 | R109: 0 | S109: 0 | U109: =G109-INDEX($C109:$G109,1,aux!$AL$1) -> 0 | V109: 0 | W109: 0 | X109: =+IF(INDEX($C109:$G109,1,aux!$AL$1)>0,(G109/INDEX($C109:$G109,1,aux!$AL$1))^(1/($G$3-INDEX($C$3:$G$3,1,aux!$AL$1)))-1,"n.d.") -> n.d. | Y109: =IF(INDEX($C109:$G109,1,aux!$AL$1)>0,(G109-INDEX($C109:$G109,1,aux!$AL$1))/INDEX($C109:$G109,1,aux!$AL$1),"n.d.") -> n.d. | AA109: =O109-INDEX($K109:$O109,1,aux!$AL$1) -> 0 | AB109: 0 | AC109: 0 | AD109: =+IF(INDEX($K109:$O109,1,aux!$AL$1)>0,(O109/INDEX($K109:$O109,1,aux!$AL$1))^(1/($O$3-INDEX($K$3:$O$3,1,aux!$AL$1)))-1,"n.d.") -> n.d. | AE109: =IF(INDEX($K109:$O109,1,aux!$AL$1)>0,(O109-INDEX($K109:$O109,1,aux!$AL$1))/INDEX($K109:$O109,1,aux!$AL$1),"n.d.") -> n.d. | AX109: 12
A110: 1204 | B110: Sementes de linho (linhaça) | C110: 0 | D110: 0 | E110: 0 | F110: 0 | G110: 0 | H110: 0 | I110: 0 | J110: 0 | K110: 0 | L110: 0 | M110: 0 | N110: 0 | O110: 0 | P110: 0 | Q110: 0 | R110: 0 | S110: 0 | U110: =G110-INDEX($C110:$G110,1,aux!$AL$1) -> 0 | V110: 0 | W110: 0 | X110: =+IF(INDEX($C110:$G110,1,aux!$AL$1)>0,(G110/INDEX($C110:$G110,1,aux!$AL$1))^(1/($G$3-INDEX($C$3:$G$3,1,aux!$AL$1)))-1,"n.d.") -> n.d. | Y110: =IF(INDEX($C110:$G110,1,aux!$AL$1)>0,(G110-INDEX($C110:$G110,1,aux!$AL$1))/INDEX($C110:$G110,1,aux!$AL$1),"n.d.") -> n.d. | AA110: =O110-INDEX($K110:$O110,1,aux!$AL$1) -> 0 | AB110: 0 | AC110: 0 | AD110: =+IF(INDEX($K110:$O110,1,aux!$AL$1)>0,(O110/INDEX($K110:$O110,1,aux!$AL$1))^(1/($O$3-INDEX($K$3:$O$3,1,aux!$AL$1)))-1,"n.d.") -> n.d. | AE110: =IF(INDEX($K110:$O110,1,aux!$AL$1)>0,(O110-INDEX($K110:$O110,1,aux!$AL$1))/INDEX($K110:$O110,1,aux!$AL$1),"n.d.") -> n.d. | AX110: 12
A111: 1205 | B111: Sementes de nabo silvestre ou de colza | C111: 0 | D111: 0 | E111: 0 | F111: 0 | G111: 0 | H111: 0 | I111: 0 | J111: 0 | K111: 0 | L111: 0 | M111: 0 | N111: 0 | O111: 0 | P111: 0 | Q111: 0 | R111: 0 | S111: 0 | U111: =G111-INDEX($C111:$G111,1,aux!$AL$1) -> 0 | V111: 0 | W111: 0 | X111: =+IF(INDEX($C111:$G111,1,aux!$AL$1)>0,(G111/INDEX($C111:$G111,1,aux!$AL$1))^(1/($G$3-INDEX($C$3:$G$3,1,aux!$AL$1)))-1,"n.d.") -> n.d. | Y111: =IF(INDEX($C111:$G111,1,aux!$AL$1)>0,(G111-INDEX($C111:$G111,1,aux!$AL$1))/INDEX($C111:$G111,1,aux!$AL$1),"n.d.") -> n.d. | AA111: =O111-INDEX($K111:$O111,1,aux!$AL$1) -> 0 | AB111: 0 | AC111: 0 | AD111: =+IF(INDEX($K111:$O111,1,aux!$AL$1)>0,(O111/INDEX($K111:$O111,1,aux!$AL$1))^(1/($O$3-INDEX($K$3:$O$3,1,aux!$AL$1)))-1,"n.d.") -> n.d. | AE111: =IF(INDEX($K111:$O111,1,aux!$AL$1)>0,(O111-INDEX($K111:$O111,1,aux!$AL$1))/INDEX($K111:$O111,1,aux!$AL$1),"n.d.") -> n.d. | AX111: 12
A112: 1206 | B112: Sementes de girassol | C112: 0 | D112: 0 | E112: 0 | F112: 0 | G112: 0 | H112: 0 | I112: 0 | J112: 0 | K112: 0 | L112: 0 | M112: 0 | N112: 0 | O112: 0 | P112: 0 | Q112: 0 | R112: 0 | S112: 0 | U112: =G112-INDEX($C112:$G112,1,aux!$AL$1) -> 0 | V112: 0 | W112: 0 | X112: =+IF(INDEX($C112:$G112,1,aux!$AL$1)>0,(G112/INDEX($C112:$G112,1,aux!$AL$1))^(1/($G$3-INDEX($C$3:$G$3,1,aux!$AL$1)))-1,"n.d.") -> n.d. | Y112: =IF(INDEX($C112:$G112,1,aux!$AL$1)>0,(G112-INDEX($C112:$G112,1,aux!$AL$1))/INDEX($C112:$G112,1,aux!$AL$1),"n.d.") -> n.d. | AA112: =O112-INDEX($K112:$O112,1,aux!$AL$1) -> 0 | AB112: 0 | AC112: 0 | AD112: =+IF(INDEX($K112:$O112,1,aux!$AL$1)>0,(O112/INDEX($K112:$O112,1,aux!$AL$1))^(1/($O$3-INDEX($K$3:$O$3,1,aux!$AL$1)))-1,"n.d.") -> n.d. | AE112: =IF(INDEX($K112:$O112,1,aux!$AL$1)>0,(O112-INDEX($K112:$O112,1,aux!$AL$1))/INDEX($K112:$O112,1,aux!$AL$1),"n.d.") -> n.d. | AX112: 12
A113: 1207 | B113: Sementes e frutos oleaginosos | C113: 0.341 | D113: 0.726 | E113: 1.253 | F113: 0.854 | G113: 5.015 | H113: 1.6378 | I113: 0.0001386103625 | J113: 0.0001103098638 | K113: 0 | L113: 0 | M113: 0 | N113: 0.004 | O113: 0 | P113: 0.0008 | Q113: 1.310268914e-08 | R113: 1.090519676e-08 | S113: -1.637 | U113: =G113-INDEX($C113:$G113,1,aux!$AL$1) -> 4.674 | V113: -0.0005422583913 | W113: -0.0005869372924 | X113: =+IF(INDEX($C113:$G113,1,aux!$AL$1)>0,(G113/INDEX($C113:$G113,1,aux!$AL$1))^(1/($G$3-INDEX($C$3:$G$3,1,aux!$AL$1)))-1,"n.d.") -> 0.9582996198 | Y113: =IF(INDEX($C113:$G113,1,aux!$AL$1)>0,(G113-INDEX($C113:$G113,1,aux!$AL$1))/INDEX($C113:$G113,1,aux!$AL$1),"n.d.") -> 13.70674487 | AA113: =O113-INDEX($K113:$O113,1,aux!$AL$1) -> 0 | AB113: 0 | AC113: 0 | AD113: =+IF(INDEX($K113:$O113,1,aux!$AL$1)>0,(O113/INDEX($K113:$O113,1,aux!$AL$1))^(1/($O$3-INDEX($K$3:$O$3,1,aux!$AL$1)))-1,"n.d.") -> n.d. | AE113: =IF(INDEX($K113:$O113,1,aux!$AL$1)>0,(O113-INDEX($K113:$O113,1,aux!$AL$1))/INDEX($K113:$O113,1,aux!$AL$1),"n.d.") -> n.d. | AX113: 12
A114: 1208 | B114: Farinhas de sementes oleaginosas | C114: 0 | D114: 0 | E114: 0 | F114: 0.104 | G114: 0 | H114: 0.0208 | I114: 1.760346526e-06 | J114: 1.400931229e-06 | K114: 0.16 | L114: 0 | M114: 0 | N114: 0 | O114: 0 | P114: 0.032 | Q114: 5.241075657e-07 | R114: 4.362078705e-07 | S114: 0.0112 | U114: =G114-INDEX($C114:$G114,1,aux!$AL$1) -> 0 | V114: 0 | W114: 0 | X114: =+IF(INDEX($C114:$G114,1,aux!$AL$1)>0,(G114/INDEX($C114:$G114,1,aux!$AL$1))^(1/($G$3-INDEX($C$3:$G$3,1,aux!$AL$1)))-1,"n.d.") -> n.d. | Y114: =IF(INDEX($C114:$G114,1,aux!$AL$1)>0,(G114-INDEX($C114:$G114,1,aux!$AL$1))/INDEX($C114:$G114,1,aux!$AL$1),"n.d.") -> n.d. | AA114: =O114-INDEX($K114:$O114,1,aux!$AL$1) -> -0.16 | AB114: -5.771426964e-06 | AC114: -5.247985175e-06 | AD114: =+IF(INDEX($K114:$O114,1,aux!$AL$1)>0,(O114/INDEX($K114:$O114,1,aux!$AL$1))^(1/($O$3-INDEX($K$3:$O$3,1,aux!$AL$1)))-1,"n.d.") -> -1 | AE114: =IF(INDEX($K114:$O114,1,aux!$AL$1)>0,(O114-INDEX($K114:$O114,1,aux!$AL$1))/INDEX($K114:$O114,1,aux!$AL$1),"n.d.") -> -1 | AX114: 12
A115: 1209 | B115: Sementes, frutos e esporos para sementeira | C115: 55.715 | D115: 39 | E115: 42.45 | F115: 21.856 | G115: 2.437 | H115: 32.2916 | I115: 0.002732904128 | J115: 0.002174918791 | K115: 0 | L115: 0 | M115: 0.984 | N115: 0 | O115: 0 | P115: 0.1968 | Q115: 3.223261529e-06 | R115: 2.682678404e-06 | S115: -32.0948 | U115: =G115-INDEX($C115:$G115,1,aux!$AL$1) -> -53.278 | V115: 0.006181095972 | W115: 0.006690381914 | X115: =+IF(INDEX($C115:$G115,1,aux!$AL$1)>0,(G115/INDEX($C115:$G115,1,aux!$AL$1))^(1/($G$3-INDEX($C$3:$G$3,1,aux!$AL$1)))-1,"n.d.") -> -0.5426793116 | Y115: =IF(INDEX($C115:$G115,1,aux!$AL$1)>0,(G115-INDEX($C115:$G115,1,aux!$AL$1))/INDEX($C115:$G115,1,aux!$AL$1),"n.d.") -> -0.9562595351 | AA115: =O115-INDEX($K115:$O115,1,aux!$AL$1) -> 0 | AB115: 0 | AC115: 0 | AD115: =+IF(INDEX($K115:$O115,1,aux!$AL$1)>0,(O115/INDEX($K115:$O115,1,aux!$AL$1))^(1/($O$3-INDEX($K$3:$O$3,1,aux!$AL$1)))-1,"n.d.") -> n.d. | AE115: =IF(INDEX($K115:$O115,1,aux!$AL$1)>0,(O115-INDEX($K115:$O115,1,aux!$AL$1))/INDEX($K115:$O115,1,aux!$AL$1),"n.d.") -> n.d. | AX115: 12
A116: 1210 | B116: Cones de lúpulo, frescos ou secos | C116: 0 | D116: 0 | E116: 0 | F116: 0 | G116: 0 | H116: 0 | I116: 0 | J116: 0 | K116: 0 | L116: 0 | M116: 0 | N116: 0 | O116: 0 | P116: 0 | Q116: 0 | R116: 0 | S116: 0 | U116: =G116-INDEX($C116:$G116,1,aux!$AL$1) -> 0 | V116: 0 | W116: 0 | X116: =+IF(INDEX($C116:$G116,1,aux!$AL$1)>0,(G116/INDEX($C116:$G116,1,aux!$AL$1))^(1/($G$3-INDEX($C$3:$G$3,1,aux!$AL$1)))-1,"n.d.") -> n.d. | Y116: =IF(INDEX($C116:$G116,1,aux!$AL$1)>0,(G116-INDEX($C116:$G116,1,aux!$AL$1))/INDEX($C116:$G116,1,aux!$AL$1),"n.d.") -> n.d. | AA116: =O116-INDEX($K116:$O116,1,aux!$AL$1) -> 0 | AB116: 0 | AC116: 0 | AD116: =+IF(INDEX($K116:$O116,1,aux!$AL$1)>0,(O116/INDEX($K116:$O116,1,aux!$AL$1))^(1/($O$3-INDEX($K$3:$O$3,1,aux!$AL$1)))-1,"n.d.") -> n.d. | AE116: =IF(INDEX($K116:$O116,1,aux!$AL$1)>0,(O116-INDEX($K116:$O116,1,aux!$AL$1))/INDEX($K116:$O116,1,aux!$AL$1),"n.d.") -> n.d. | AX116: 12
A117: 1211 | B117: Plantas, partes de plantas para usos não alimentares | C117: 0 | D117: 0 | E117: 0 | F117: 0.176 | G117: 0.085 | H117: 0.0522 | I117: 4.417792723e-06 | J117: 3.515798564e-06 | K117: 82.434 | L117: 0 | M117: 0 | N117: 54.96 | O117: 315.12 | P117: 90.5028 | Q117: 0.001482287569 | R117: 0.001233688552 | S117: 90.4506 | U117: =G117-INDEX($C117:$G117,1,aux!$AL$1) -> 0.085 | V117: -9.861352859e-06 | W117: -1.067387032e-05 | X117: =+IF(INDEX($C117:$G117,1,aux!$AL$1)>0,(G117/INDEX($C117:$G117,1,aux!$AL$1))^(1/($G$3-INDEX($C$3:$G$3,1,aux!$AL$1)))-1,"n.d.") -> n.d. | Y117: =IF(INDEX($C117:$G117,1,aux!$AL$1)>0,(G117-INDEX($C117:$G117,1,aux!$AL$1))/INDEX($C117:$G117,1,aux!$AL$1),"n.d.") -> n.d. | AA117: =O117-INDEX($K117:$O117,1,aux!$AL$1) -> 232.686 | AB117: 0.00839331409 | AC117: 0.007632079241 | AD117: =+IF(INDEX($K117:$O117,1,aux!$AL$1)>0,(O117/INDEX($K117:$O117,1,aux!$AL$1))^(1/($O$3-INDEX($K$3:$O$3,1,aux!$AL$1)))-1,"n.d.") -> 0.398274374 | AE117: =IF(INDEX($K117:$O117,1,aux!$AL$1)>0,(O117-INDEX($K117:$O117,1,aux!$AL$1))/INDEX($K117:$O117,1,aux!$AL$1),"n.d.") -> 2.822694519 | AX117: 12
A118: 1212 | B118: Alfarroba, algas, beterraba sacarina, etc. | C118: 84.189 | D118: 15.928 | E118: 3.269 | F118: 38.065 | G118: 20.838 | H118: 32.4578 | I118: 0.002746969974 | J118: 0.002186112771 | K118: 0 | L118: 0 | M118: 0.4 | N118: 0 | O118: 0.108 | P118: 0.1016 | Q118: 1.664041521e-06 | R118: 1.384959989e-06 | S118: -32.3562 | U118: =G118-INDEX($C118:$G118,1,aux!$AL$1) -> -63.351 | V118: 0.007349724294 | W118: 0.007955298333 | X118: =+IF(INDEX($C118:$G118,1,aux!$AL$1)>0,(G118/INDEX($C118:$G118,1,aux!$AL$1))^(1/($G$3-INDEX($C$3:$G$3,1,aux!$AL$1)))-1,"n.d.") -> -0.2946573085 | Y118: =IF(INDEX($C118:$G118,1,aux!$AL$1)>0,(G118-INDEX($C118:$G118,1,aux!$AL$1))/INDEX($C118:$G118,1,aux!$AL$1),"n.d.") -> -0.7524854791 | AA118: =O118-INDEX($K118:$O118,1,aux!$AL$1) -> 0.108 | AB118: 3.8957132e-06 | AC118: 3.542389993e-06 | AD118: =+IF(INDEX($K118:$O118,1,aux!$AL$1)>0,(O118/INDEX($K118:$O118,1,aux!$AL$1))^(1/($O$3-INDEX($K$3:$O$3,1,aux!$AL$1)))-1,"n.d.") -> n.d. | AE118: =IF(INDEX($K118:$O118,1,aux!$AL$1)>0,(O118-INDEX($K118:$O118,1,aux!$AL$1))/INDEX($K118:$O118,1,aux!$AL$1),"n.d.") -> n.d. | AX118: 12
A119: 1213 | B119: Palhas e cascas de cereais | C119: 0 | D119: 0 | E119: 0 | F119: 0 | G119: 0 | H119: 0 | I119: 0 | J119: 0 | K119: 0 | L119: 0 | M119: 0 | N119: 0 | O119: 0 | P119: 0 | Q119: 0 | R119: 0 | S119: 0 | U119: =G119-INDEX($C119:$G119,1,aux!$AL$1) -> 0 | V119: 0 | W119: 0 | X119: =+IF(INDEX($C119:$G119,1,aux!$AL$1)>0,(G119/INDEX($C119:$G119,1,aux!$AL$1))^(1/($G$3-INDEX($C$3:$G$3,1,aux!$AL$1)))-1,"n.d.") -> n.d. | Y119: =IF(INDEX($C119:$G119,1,aux!$AL$1)>0,(G119-INDEX($C119:$G119,1,aux!$AL$1))/INDEX($C119:$G119,1,aux!$AL$1),"n.d.") -> n.d. | AA119: =O119-INDEX($K119:$O119,1,aux!$AL$1) -> 0 | AB119: 0 | AC119: 0 | AD119: =+IF(INDEX($K119:$O119,1,aux!$AL$1)>0,(O119/INDEX($K119:$O119,1,aux!$AL$1))^(1/($O$3-INDEX($K$3:$O$3,1,aux!$AL$1)))-1,"n.d.") -> n.d. | AE119: =IF(INDEX($K119:$O119,1,aux!$AL$1)>0,(O119-INDEX($K119:$O119,1,aux!$AL$1))/INDEX($K119:$O119,1,aux!$AL$1),"n.d.") -> n.d. | AX119: 12
A120: 1214 | B120: Rutabagas e outros produtos forrageiros | C120: 0 | D120: 0 | E120: 0 | F120: 0 | G120: 0 | H120: 0 | I120: 0 | J120: 0 | K120: 0 | L120: 0 | M120: 0 | N120: 0 | O120: 0 | P120: 0 | Q120: 0 | R120: 0 | S120: 0 | U120: =G120-INDEX($C120:$G120,1,aux!$AL$1) -> 0 | V120: 0 | W120: 0 | X120: =+IF(INDEX($C120:$G120,1,aux!$AL$1)>0,(G120/INDEX($C120:$G120,1,aux!$AL$1))^(1/($G$3-INDEX($C$3:$G$3,1,aux!$AL$1)))-1,"n.d.") -> n.d. | Y120: =IF(INDEX($C120:$G120,1,aux!$AL$1)>0,(G120-INDEX($C120:$G120,1,aux!$AL$1))/INDEX($C120:$G120,1,aux!$AL$1),"n.d.") -> n.d. | AA120: =O120-INDEX($K120:$O120,1,aux!$AL$1) -> 0 | AB120: 0 | AC120: 0 | AD120: =+IF(INDEX($K120:$O120,1,aux!$AL$1)>0,(O120/INDEX($K120:$O120,1,aux!$AL$1))^(1/($O$3-INDEX($K$3:$O$3,1,aux!$AL$1)))-1,"n.d.") -> n.d. | AE120: =IF(INDEX($K120:$O120,1,aux!$AL$1)>0,(O120-INDEX($K120:$O120,1,aux!$AL$1))/INDEX($K120:$O120,1,aux!$AL$1),"n.d.") -> n.d. | AX120: 12
A121: 12SS | B121: Sementes e frutos oleaginosos, etc. | C121: 0 | D121: 0 | E121: 0 | F121: 0 | G121: 0 | H121: 0 | I121: 0 | J121: 0 | K121: 0 | L121: 0 | M121: 0 | N121: 0 | O121: 0 | P121: 0 | Q121: 0 | R121: 0 | S121: 0 | U121: =G121-INDEX($C121:$G121,1,aux!$AL$1) -> 0 | V121: 0 | W121: 0 | X121: =+IF(INDEX($C121:$G121,1,aux!$AL$1)>0,(G121/INDEX($C121:$G121,1,aux!$AL$1))^(1/($G$3-INDEX($C$3:$G$3,1,aux!$AL$1)))-1,"n.d.") -> n.d. | Y121: =IF(INDEX($C121:$G121,1,aux!$AL$1)>0,(G121-INDEX($C121:$G121,1,aux!$AL$1))/INDEX($C121:$G121,1,aux!$AL$1),"n.d.") -> n.d. | AA121: =O121-INDEX($K121:$O121,1,aux!$AL$1) -> 0 | AB121: 0 | AC121: 0 | AD121: =+IF(INDEX($K121:$O121,1,aux!$AL$1)>0,(O121/INDEX($K121:$O121,1,aux!$AL$1))^(1/($O$3-INDEX($K$3:$O$3,1,aux!$AL$1)))-1,"n.d.") -> n.d. | AE121: =IF(INDEX($K121:$O121,1,aux!$AL$1)>0,(O121-INDEX($K121:$O121,1,aux!$AL$1))/INDEX($K121:$O121,1,aux!$AL$1),"n.d.") -> n.d. | AX121: 12
